Workbook

Sheet Tool
A2: SPRENDIMŲ PRIĖMIMO ĮRANKIS TINKAMIAUSIEMS TARPINIŲ PASĖLIŲ AUGALAMS PASIRINKTI
A4: Šis įrankis sukurtas įgyvendinant projektą "Optimalūs tarpinių augalų sprendimai siekiant sumažinti tarptautinių Ventos ir Lielupės UBR taršą" (LLI-49 CATCHPOLLUTION)
A5: Projektą finansavo 2014–2020 m. Interreg V-A Latvijos ir Lietuvos bendradarbiavimo per sieną programa www.latlit.eu Projekto biudžetas: 201 845 EUR ERPF finansavimas: 171 568 EUR
A7: ĮVERTINKITE TARPINIŲ PASĖLIŲ AUGINIMO GALIMYBES
A8: Nurodykite planuojamas pagrindinių pasėlių derliaus nuėmimo ir sėjos datas
A10: Planuojama derliaus nuėmimo data | C10: 2020-08-05 | E10: įveskite datą
A12: Kito pagrindinio pasėlio sėjos data | C12: 2021-04-15 | E12: įveskite datą
A14: Niša tarpiniams augalams | C14: =IF(AND((C12-C10)>=60,C10<DATE((YEAR(C10)),8,20)),"JŪS TURITE PAKANKAMĄ NIŠĄ POSĖLINIAMS TARPINIAMS PASĖLIAMS",IF(C12-C10<60,"NIŠA TARP PAGRINDINIŲ PASĖLIŲ TARPINIAMS POSĖLINIAMS PASĖLIAMS YRA PER TRUMPA","SĖTI TARPINIUS PASĖLIUS PO DERLIAUS NUĖMIMO PER VĖLU; VĖLAI PASĖTI TARPINIAI PASĖLIAI LAUKIAMOS NAUDOS NEDUOS")) -> JŪS TURITE PAKANKAMĄ NIŠĄ POSĖLINIAMS TARPINIAMS PASĖLIAMS
A16: RASKITE TINKAMIAUSIUS TARPINIŲ PASĖLIŲ AUGALUS
A17: Pateikite informaciją apie savo lauką (dirvožemio tipą, pH), nurodykite sėjomainos rotacijoje auginamus pagrindinius augalus
A19: Dirvožemio tipas | C19: Priemolis | E19: pasirinkite iš sąrašo
A21: Dirvožemio pH | C21: 6,6 - 7 | E21: pasirinkite iš sąrašo
C22: TRUE
A23: Sėjomainos rotacijoje auginami augalai | I23: pažymėkite sėjomainos rotacijoje auginamus pagrindinius augalus
A28: JUMS REKOMENDUOJAMI AUGALAI: | C28: =IF(AND(C29="",E29="",G29="",I29="",K29="",M29=""),"NĖRA JUMS REKOMENDUOJAMŲ AUGALŲ","") -> 
C29: Baltosios garstyčios | E29: Vasariniai rapsai | G29: Žieminiai rapsai | I29: Aliejiniai ridikai | K29: Žieminiai rapsiukai | M29: Žieminiai rugiai
C30: =IFERROR(VLOOKUP(C29,'Data base'!$A:$B,2,FALSE),"") -> Sinapis alba L | E30: =IFERROR(VLOOKUP(E29,'Data base'!$A:$B,2,FALSE),"") -> Brassica napus L. ssp. Oleifera | G30: =IFERROR(VLOOKUP(G29,'Data base'!$A:$B,2,FALSE),"") -> Brassica napus L. | I30: =IFERROR(VLOOKUP(I29,'Data base'!$A:$B,2,FALSE),"") -> Raphanus sativus L | K30: =IFERROR(VLOOKUP(K29,'Data base'!$A:$B,2,FALSE),"") -> Brassica rapa subsp. rapa | M30: =IFERROR(VLOOKUP(M29,'Data base'!$A:$B,2,FALSE),"") -> Secale cereale L
A34: SĖJOS IR PRIEŽIŪROS REKOMENDACIJOS
A36: REKOMENDUOJAMAS SĖJOS LAIKOTARPIS
A37: Žemiau pateiktoje lentelėje pasitikrinkite rekomenduojamas sėjos datas
C39: =IF(C29="","",C29) -> Baltosios garstyčios | E39: =IF(E29="","",E29) -> Vasariniai rapsai | G39: =IF(G29="","",G29) -> Žieminiai rapsai | I39: =IF(I29="","",I29) -> Aliejiniai ridikai | K39: =IF(K29="","",K29) -> Žieminiai rapsiukai | M39: =IF(M29="","",M29) -> Žieminiai rugiai
A40: =IF(C29="","","BIRŽELIS / 1-a savaitė") -> BIRŽELIS / 1-a savaitė | C40: =IF($C$29="","",VLOOKUP($C$29,'Data base'!$A:$AK,26,FALSE)) -> 0 | E40: =IF($E$29="","",VLOOKUP($E$29,'Data base'!$A:$AK,26,FALSE)) -> 0 | G40: =IF($G$29="","",VLOOKUP($G$29,'Data base'!$A:$AK,26,FALSE)) -> 0 | I40: =IF($I$29="","",VLOOKUP($I$29,'Data base'!$A:$AK,26,FALSE)) -> 0 | K40: =IF($K$29="","",VLOOKUP($K$29,'Data base'!$A:$AK,26,FALSE)) -> 0 | M40: =IF($M$29="","",VLOOKUP($M$29,'Data base'!$A:$AK,26,FALSE)) -> 0
A41: =IF(C29="","","BIRŽELIS /2-a savaitė") -> BIRŽELIS /2-a savaitė | C41: =IF($C$29="","",VLOOKUP($C$29,'Data base'!$A:$AK,27,FALSE)) -> 0 | E41: =IF($E$29="","",VLOOKUP($E$29,'Data base'!$A:$AK,27,FALSE)) -> 0 | G41: =IF($G$29="","",VLOOKUP($G$29,'Data base'!$A:$AK,27,FALSE)) -> ٧ | I41: =IF($I$29="","",VLOOKUP($I$29,'Data base'!$A:$AK,27,FALSE)) -> 0 | K41: =IF($K$29="","",VLOOKUP($K$29,'Data base'!$A:$AK,27,FALSE)) -> 0 | M41: =IF($M$29="","",VLOOKUP($M$29,'Data base'!$A:$AK,27,FALSE)) -> 0
A42: =IF(C29="","","BIRŽELIS/ 3-ia savaitė") -> BIRŽELIS/ 3-ia savaitė | C42: =IF($C$29="","",VLOOKUP($C$29,'Data base'!$A:$AK,28,FALSE)) -> 0 | E42: =IF($E$29="","",VLOOKUP($E$29,'Data base'!$A:$AK,28,FALSE)) -> 0 | G42: =IF($G$29="","",VLOOKUP($G$29,'Data base'!$A:$AK,28,FALSE)) -> ٧ | I42: =IF($I$29="","",VLOOKUP($I$29,'Data base'!$A:$AK,28,FALSE)) -> 0 | K42: =IF($K$29="","",VLOOKUP($K$29,'Data base'!$A:$AK,28,FALSE)) -> ٧ | M42: =IF($M$29="","",VLOOKUP($M$29,'Data base'!$A:$AK,28,FALSE)) -> 0
A43: =IF(C29="","","BIRŽELIS / 4-a savaitė") -> BIRŽELIS / 4-a savaitė | C43: =IF($C$29="","",VLOOKUP($C$29,'Data base'!$A:$AK,29,FALSE)) -> 0 | E43: =IF($E$29="","",VLOOKUP($E$29,'Data base'!$A:$AK,29,FALSE)) -> ٧ | G43: =IF($G$29="","",VLOOKUP($G$29,'Data base'!$A:$AK,29,FALSE)) -> ٧ | I43: =IF($I$29="","",VLOOKUP($I$29,'Data base'!$A:$AK,29,FALSE)) -> ٧ | K43: =IF($K$29="","",VLOOKUP($K$29,'Data base'!$A:$AK,29,FALSE)) -> ٧ | M43: =IF($M$29="","",VLOOKUP($M$29,'Data base'!$A:$AK,29,FALSE)) -> ٧
A44: =IF(C29="","","LIEPA / 1-a savaitė") -> LIEPA / 1-a savaitė | C44: =IF($C$29="","",VLOOKUP($C$29,'Data base'!$A:$AK,30,FALSE)) -> ٧ | E44: =IF($E$29="","",VLOOKUP($E$29,'Data base'!$A:$AK,30,FALSE)) -> ٧ | G44: =IF($G$29="","",VLOOKUP($G$29,'Data base'!$A:$AK,30,FALSE)) -> ٧ | I44: =IF($I$29="","",VLOOKUP($I$29,'Data base'!$A:$AK,30,FALSE)) -> ٧ | K44: =IF($K$29="","",VLOOKUP($K$29,'Data base'!$A:$AK,30,FALSE)) -> ٧ | M44: =IF($M$29="","",VLOOKUP($M$29,'Data base'!$A:$AK,30,FALSE)) -> ٧
A45: =IF(C29="","","LIEPA / 2-a savaitė") -> LIEPA / 2-a savaitė | C45: =IF($C$29="","",VLOOKUP($C$29,'Data base'!$A:$AK,31,FALSE)) -> ٧ | E45: =IF($E$29="","",VLOOKUP($E$29,'Data base'!$A:$AK,31,FALSE)) -> ٧ | G45: =IF($G$29="","",VLOOKUP($G$29,'Data base'!$A:$AK,31,FALSE)) -> ٧ | I45: =IF($I$29="","",VLOOKUP($I$29,'Data base'!$A:$AK,31,FALSE)) -> ٧ | K45: =IF($K$29="","",VLOOKUP($K$29,'Data base'!$A:$AK,31,FALSE)) -> ٧ | M45: =IF($M$29="","",VLOOKUP($M$29,'Data base'!$A:$AK,31,FALSE)) -> ٧
A46: =IF(C29="","","LIEPA / 3-ia savaitė") -> LIEPA / 3-ia savaitė | C46: =IF($C$29="","",VLOOKUP($C$29,'Data base'!$A:$AK,32,FALSE)) -> ٧ | E46: =IF($E$29="","",VLOOKUP($E$29,'Data base'!$A:$AK,32,FALSE)) -> ٧ | G46: =IF($G$29="","",VLOOKUP($G$29,'Data base'!$A:$AK,32,FALSE)) -> ٧ | I46: =IF($I$29="","",VLOOKUP($I$29,'Data base'!$A:$AK,32,FALSE)) -> ٧ | K46: =IF($K$29="","",VLOOKUP($K$29,'Data base'!$A:$AK,32,FALSE)) -> ٧ | M46: =IF($M$29="","",VLOOKUP($M$29,'Data base'!$A:$AK,32,FALSE)) -> ٧
A47: =IF(C29="","","LIEPA / 4-a savaitė") -> LIEPA / 4-a savaitė | C47: =IF($C$29="","",VLOOKUP($C$29,'Data base'!$A:$AK,33,FALSE)) -> ٧ | E47: =IF($E$29="","",VLOOKUP($E$29,'Data base'!$A:$AK,33,FALSE)) -> ٧ | G47: =IF($G$29="","",VLOOKUP($G$29,'Data base'!$A:$AK,33,FALSE)) -> ٧ | I47: =IF($I$29="","",VLOOKUP($I$29,'Data base'!$A:$AK,33,FALSE)) -> ٧ | K47: =IF($K$29="","",VLOOKUP($K$29,'Data base'!$A:$AK,33,FALSE)) -> ٧ | M47: =IF($M$29="","",VLOOKUP($M$29,'Data base'!$A:$AK,33,FALSE)) -> ٧
A48: =IF(C29="","","RUGPJŪTIS / 1-a savaitė") -> RUGPJŪTIS / 1-a savaitė | C48: =IF($C$29="","",VLOOKUP($C$29,'Data base'!$A:$AK,34,FALSE)) -> ٧ | E48: =IF($E$29="","",VLOOKUP($E$29,'Data base'!$A:$AK,34,FALSE)) -> ٧ | G48: =IF($G$29="","",VLOOKUP($G$29,'Data base'!$A:$AK,34,FALSE)) -> ٧ | I48: =IF($I$29="","",VLOOKUP($I$29,'Data base'!$A:$AK,34,FALSE)) -> ٧ | K48: =IF($K$29="","",VLOOKUP($K$29,'Data base'!$A:$AK,34,FALSE)) -> ٧ | M48: =IF($M$29="","",VLOOKUP($M$29,'Data base'!$A:$AK,34,FALSE)) -> ٧
A49: =IF(C29="","","RUGPJŪTIS / 2-a savaitė") -> RUGPJŪTIS / 2-a savaitė | C49: =IF($C$29="","",VLOOKUP($C$29,'Data base'!$A:$AK,35,FALSE)) -> ٧ | E49: =IF($E$29="","",VLOOKUP($E$29,'Data base'!$A:$AK,35,FALSE)) -> ٧ | G49: =IF($G$29="","",VLOOKUP($G$29,'Data base'!$A:$AK,35,FALSE)) -> ٧ | I49: =IF($I$29="","",VLOOKUP($I$29,'Data base'!$A:$AK,35,FALSE)) -> ٧ | K49: =IF($K$29="","",VLOOKUP($K$29,'Data base'!$A:$AK,35,FALSE)) -> ٧ | M49: =IF($M$29="","",VLOOKUP($M$29,'Data base'!$A:$AK,35,FALSE)) -> ٧
A50: =IF(C29="","","RUGPJŪTIS / 3-ia savaitė") -> RUGPJŪTIS / 3-ia savaitė | C50: =IF($C$29="","",VLOOKUP($C$29,'Data base'!$A:$AK,36,FALSE)) -> ٧ | E50: =IF($E$29="","",VLOOKUP($E$29,'Data base'!$A:$AK,36,FALSE)) -> 0 | G50: =IF($G$29="","",VLOOKUP($G$29,'Data base'!$A:$AK,36,FALSE)) -> 0 | I50: =IF($I$29="","",VLOOKUP($I$29,'Data base'!$A:$AK,36,FALSE)) -> 0 | K50: =IF($K$29="","",VLOOKUP($K$29,'Data base'!$A:$AK,36,FALSE)) -> 0 | M50: =IF($M$29="","",VLOOKUP($M$29,'Data base'!$A:$AK,36,FALSE)) -> ٧
A51: =IF(C29="","","RUGPJŪTIS / 4-a savaitė") -> RUGPJŪTIS / 4-a savaitė | C51: =IF($C$29="","",VLOOKUP($C$29,'Data base'!$A:$AK,37,FALSE)) -> 0 | E51: =IF($E$29="","",VLOOKUP($E$29,'Data base'!$A:$AK,37,FALSE)) -> 0 | G51: =IF($G$29="","",VLOOKUP($G$29,'Data base'!$A:$AK,37,FALSE)) -> 0 | I51: =IF($I$29="","",VLOOKUP($I$29,'Data base'!$A:$AK,37,FALSE)) -> 0 | K51: =IF($K$29="","",VLOOKUP($K$29,'Data base'!$A:$AK,37,FALSE)) -> 0 | M51: =IF($M$29="","",VLOOKUP($M$29,'Data base'!$A:$AK,37,FALSE)) -> 0
A53: SĖJOS NORMOS IR REKOMENDACIJOS
A54: Žemiau pateiktoje lentelėje sužinokite rekomenduojamas sėjos normas
C56: =IF(C29="","",C29) -> Baltosios garstyčios | E56: =IF(E29="","",E29) -> Vasariniai rapsai | G56: =IF(G29="","",G29) -> Žieminiai rapsai | I56: =IF(I29="","",I29) -> Aliejiniai ridikai | K56: =IF(K29="","",K29) -> Žieminiai rapsiukai | M56: =IF(M29="","",M29) -> Žieminiai rugiai
A58: NORMA SĖKLAS IŠBARSTANT, kg/ha | C58: =IF(C29="","",VLOOKUP(C29,'Data base'!$A:$AN,40,FALSE)) -> 30 | E58: =IF(E29="","",VLOOKUP(E29,'Data base'!$A:$AN,40,FALSE)) -> 20 | G58: =IF(G29="","",VLOOKUP(G29,'Data base'!$A:$AN,40,FALSE)) -> 20 | I58: =IF(I29="","",VLOOKUP(I29,'Data base'!$A:$AN,40,FALSE)) -> Nerekomenduojama | K58: =IF(K29="","",VLOOKUP(K29,'Data base'!$A:$AN,40,FALSE)) -> Nerekomenduojama | M58: =IF(M29="","",VLOOKUP(M29,'Data base'!$A:$AN,40,FALSE)) -> Nerekomenduojama
A60: NORMA SĖKLAS ĮTERPIANT, kg/ha | C60: =IF(C29="","",VLOOKUP(C29,'Data base'!$A:$AN,39,FALSE)) -> 10-15 | E60: =IF(E29="","",VLOOKUP(E29,'Data base'!$A:$AN,39,FALSE)) -> 10-20 | G60: =IF(G29="","",VLOOKUP(G29,'Data base'!$A:$AN,39,FALSE)) -> 8-20 | I60: =IF(I29="","",VLOOKUP(I29,'Data base'!$A:$AN,39,FALSE)) -> 10-25 | K60: =IF(K29="","",VLOOKUP(K29,'Data base'!$A:$AN,39,FALSE)) -> 5-10 | M60: =IF(M29="","",VLOOKUP(M29,'Data base'!$A:$AN,39,FALSE)) -> 70-90
A62: SĖJOS PATARIMAI IR REKOMENDACIJOS | C62: =IF($C$29="","",VLOOKUP($C$29,'Data base'!$A:$AW,49,FALSE)) -> Gali būti sėjamos sėklą išberiant ant paruoštos dirvos paviršiaus, arba naudojant įprastą sėjamąją. Guoliavietės pagrindas turi būti kietas, joje neturėtų būti piktžolių pradų. Privoluokite dirvą, kad pagerintumėte sėklų ir dirvožemio kontaktą, bet nesuardykite dirvožemio agregatų. Sėjos gylis 1-2 cm. Gali būti auginamos mišiniuose su ankštiniais (pvz. dobilais, vikiais) arba žolėmis. | E62: =IF($E$29="","",VLOOKUP($E$29,'Data base'!$A:$AW,49,FALSE)) -> Sėkla gali būti sėjama sėjamosiomis arba išberiama skutant ar kultivuojant dirvą po pagrindinių augalų nuėmimo. Paruoškite lygią, be piktžolių pradų sėklos guoliavietę, kurioje dygimui netrūktų drėgmės. Po sėjos privoluokite dirvą, kad pagerintumėte sėklų ir dirvožemio sąlytį. Gali būti auginami mišiniuose su ankštiniais (pvz. vikiais, žirniais, pupomis) arba žolėmis (pvz. svidrėmis). | G62: =IF($G$29="","",VLOOKUP($G$29,'Data base'!$A:$AW,49,FALSE)) -> Paruoškite lygią, be piktžolių pradų sėklos guoliavietę, kurioje dygimui netrūktų drėgmės. Po sėjos privoluokite dirvą, kad pagerintumėte sėklų ir dirvožemio sąlytį, bet nesuardykite dirvožemio agregatų. Gali būti auginami mišiniuose su ankštiniais (pvz. vikiais, žirniais, pupomis) arba žolėmis (pvz. svidrėmis). | I62: =IF($I$29="","",VLOOKUP($I$29,'Data base'!$A:$AW,49,FALSE)) -> Sėti kiek galima anksčiau. Sėjant sėjamosiomis pasėlis daug geresnis, todėl berti ant paviršiaus tikslinga tik kai dirvožemis per daug šlapias sėti sėjamąja. Po sėjos privoluokite dirvą, kad pagerintumėte sėklų ir dirvožemio sąlytį, bet nesutraiškykite dirvožemio agregatų. Gali būti auginami mišiniuose su ankštiniais. | K62: =IF($K$29="","",VLOOKUP($K$29,'Data base'!$A:$AW,49,FALSE)) -> Paruoškite lygią, be piktžolių pradų sėklos guoliavietę, kurioje dygimui netrūktų drėgmės. Po sėjos privoluokite dirvą, kad pagerintumėte sėklų ir dirvožemio sąlytį, bet nesutraiškykite dirvožemio agregatų. Galite auginti kaip pavienį tarpinį pasėlį arba mišiniuose su ankštiniais (pvz., vikiais, žirniais). | M62: =IF($M$29="","",VLOOKUP($M$29,'Data base'!$A:$AW,49,FALSE)) -> Paruoškite sėklos guoliavietę be grumstų ir piktžolių. Jei žemės dirbimas neįmanomas, rugiai gali būti išberiami ant drėgnos, neįdirbtos dirvos. Gali būti auginami mišiniuose su ankštiniais (pvz., žirniais, vikiais, pupomis).
A64: GALIMOS PROBLEMOS | C64: =IF($C$29="","",VLOOKUP($C$29,'Data base'!$A:$AW,48,FALSE)) -> Neleiskite subrandinti sėklų. Neauginkite sėjomainose su bastutinių šeimos augalais. Labiau tinka lengvi, vandeniui laidūs dirvožemiai. Drėgnuose dirvožemiuose auga prastai. Sausose ir šiltose vietose vystymąsis gali būti greitas, dėl to kyla sumedėjimo rizika. Jautrios kenkėjams, tokiems kaip pjūklelių lervos, aruodiniai straubliukai, spragės. | E64: =IF($E$29="","",VLOOKUP($E$29,'Data base'!$A:$AW,48,FALSE)) -> Linkę užsikrėsti įvairiomis ligomis. Kad jų išvengtumėte, neauginkite sėjomainose su bastutinių šeimos augalais. Būtina gerai paruošta dirva. Dirvos suslėgimas riboja šaknijimąsi, tai gali sumažinti maisto medžiagių ir vandens įsisavinimą. | G64: =IF($G$29="","",VLOOKUP($G$29,'Data base'!$A:$AW,48,FALSE)) -> Gali platinti bastutinių šeimos augalų ligas, todėl nenaudokite sėjomainose su bastutinių šeimos augalais. Dygti gali lėtai. Jautresni dirvos suspaudimui nei javai. | I64: =IF($I$29="","",VLOOKUP($I$29,'Data base'!$A:$AW,48,FALSE)) -> Nenaudokite sėjomainoje su bastutinių šeimos daržovėmis. Ridikai pritraukia sprages, tačiau rudens laikotarpiu kiek mažiau. Ridikai prastai toleruoja drėgnas dirvas. Jautriai reaguoja į azoto kiekį dirvožemyje. Esant azoto deficitui prastai konkuruoja su piktžolėmis. | K64: =IF($K$29="","",VLOOKUP($K$29,'Data base'!$A:$AW,48,FALSE)) -> Gali platinti bastutinių šeimos augalų ligas. Nenaudokite sėjomainose su bastutinių šeimos augalais. Dygti gali lėtai. Dirvožemio drėgmės išsaugojimas užtikrina gerą rapsiukų sudygimą. | M64: =IF($M$29="","",VLOOKUP($M$29,'Data base'!$A:$AW,48,FALSE)) -> Yrant rugių biomasei gali būti imobilizuojamas dirvožemio azotas. Azoto imobilizavimą apsprendžia rugių subrendimo laipsnis. Rugių biomasėje sukaupto azoto mineralizacija yra labai lėta, tad neverta tikėtis, kad peržiemojusių rugių sukauptas azotas greitai bus prieinamas kitiems augalams. Augalus, kuriems yra reikalingas azotas, reikėtų sėti ne anksčiau kaip 2 savaitės po rugių įterpimo.
A66: GALIMI AUGINIMO SUNKUMAI
A67: Susipažinkite su kokiais tarpinių pasėlių auginimo iššūkiais galite susidurti
C69: =IF(C29="","",C29) -> Baltosios garstyčios | E69: =IF(E29="","",E29) -> Vasariniai rapsai | G69: =IF(G29="","",G29) -> Žieminiai rapsai | I69: =IF(I29="","",I29) -> Aliejiniai ridikai | K69: =IF(K29="","",K29) -> Žieminiai rapsiukai | M69: =IF(M29="","",M29) -> Žieminiai rugiai
A71: Sudygimas, susiformavimas | C71: =IF($C$29="","",VLOOKUP($C$29,'Data base'!$A:$AU,43,FALSE)) -> 0 | E71: =IF($E$29="","",VLOOKUP($E$29,'Data base'!$A:$AU,43,FALSE)) -> 0 | G71: =IF($G$29="","",VLOOKUP($G$29,'Data base'!$A:$AU,43,FALSE)) -> 0 | I71: =IF($I$29="","",VLOOKUP($I$29,'Data base'!$A:$AU,43,FALSE)) -> 0 | K71: =IF($K$29="","",VLOOKUP($K$29,'Data base'!$A:$AU,43,FALSE)) -> 0 | M71: =IF($M$29="","",VLOOKUP($M$29,'Data base'!$A:$AU,43,FALSE)) -> 1
A73: Trukdymas kultūrinimas augalams | C73: =IF($C$29="","",VLOOKUP($C$29,'Data base'!$A:$AU,44,FALSE)) -> 2 | E73: =IF($E$29="","",VLOOKUP($E$29,'Data base'!$A:$AU,44,FALSE)) -> 2 | G73: =IF($G$29="","",VLOOKUP($G$29,'Data base'!$A:$AU,44,FALSE)) -> 2 | I73: =IF($I$29="","",VLOOKUP($I$29,'Data base'!$A:$AU,44,FALSE)) -> 0 | K73: =IF($K$29="","",VLOOKUP($K$29,'Data base'!$A:$AU,44,FALSE)) -> 2 | M73: =IF($M$29="","",VLOOKUP($M$29,'Data base'!$A:$AU,44,FALSE)) -> 3
A75: Panaikinimas žemės dirbimu | C75: =IF($C$29="","",VLOOKUP($C$29,'Data base'!$A:$AU,45,FALSE)) -> 0 | E75: =IF($E$29="","",VLOOKUP($E$29,'Data base'!$A:$AU,45,FALSE)) -> 2 | G75: =IF($G$29="","",VLOOKUP($G$29,'Data base'!$A:$AU,45,FALSE)) -> 2 | I75: =IF($I$29="","",VLOOKUP($I$29,'Data base'!$A:$AU,45,FALSE)) -> 0 | K75: =IF($K$29="","",VLOOKUP($K$29,'Data base'!$A:$AU,45,FALSE)) -> 2 | M75: =IF($M$29="","",VLOOKUP($M$29,'Data base'!$A:$AU,45,FALSE)) -> 1
A77: Panaikinimas nupjaunant | C77: =IF($C$29="","",VLOOKUP($C$29,'Data base'!$A:$AU,46,FALSE)) -> 3 | E77: =IF($E$29="","",VLOOKUP($E$29,'Data base'!$A:$AU,46,FALSE)) -> 3 | G77: =IF($G$29="","",VLOOKUP($G$29,'Data base'!$A:$AU,46,FALSE)) -> 3 | I77: =IF($I$29="","",VLOOKUP($I$29,'Data base'!$A:$AU,46,FALSE)) -> 1 | K77: =IF($K$29="","",VLOOKUP($K$29,'Data base'!$A:$AU,46,FALSE)) -> 3 | M77: =IF($M$29="","",VLOOKUP($M$29,'Data base'!$A:$AU,46,FALSE)) -> 0
A79: Subrendusio pasėlio įterpimas | C79: =IF($C$29="","",VLOOKUP($C$29,'Data base'!$A:$AU,47,FALSE)) -> 0 | E79: =IF($E$29="","",VLOOKUP($E$29,'Data base'!$A:$AU,47,FALSE)) -> 1 | G79: =IF($G$29="","",VLOOKUP($G$29,'Data base'!$A:$AU,47,FALSE)) -> 1 | I79: =IF($I$29="","",VLOOKUP($I$29,'Data base'!$A:$AU,47,FALSE)) -> 0 | K79: =IF($K$29="","",VLOOKUP($K$29,'Data base'!$A:$AU,47,FALSE)) -> 1 | M79: =IF($M$29="","",VLOOKUP($M$29,'Data base'!$A:$AU,47,FALSE)) -> 4
C81: Įvertis: Problema Gali būti problema Gali būti nedidelė problema Retkarčiais būna nedidelė problema Problemų nekelia
A83: REKOMENDUOJAMŲ TARPINIŲ PASĖLIŲ AUGALŲ SAVYBĖS
A85: Langelyje kairėje pasirinkite vieną iš jums rekomenduojamų augalų ir sužinokite jo atsparumą/ toleranciją aplinkos veiksniams, privalumus ir trūkumus, veiksmingumą ir funkcijas
E90: PivotTableUpdate
K91: =IF(' Pivot-Features'!$A$5="Trūkumai: žaladarių pavojus", "0 - Problema","0 - Prastas") -> 0 - Prastas
K92: =IF(' Pivot-Features'!$A$5="Trūkumai: žaladarių pavojus", "1 - Gali būti problema","1 - Pusėtinas") -> 1 - Pusėtinas
K93: =IF(' Pivot-Features'!$A$5="Trūkumai: žaladarių pavojus", "2 - Gali būti nedidelė problema","2 - Geras") -> 2 - Geras
K94: =IF(' Pivot-Features'!$A$5="Trūkumai: žaladarių pavojus", "3 - Kartais būna nedidelė problema","3 - Labai geras") -> 3 - Labai geras
K95: =IF(' Pivot-Features'!$A$5="Trūkumai: žaladarių pavojus", "4 - Problemų nekelia","4 - Puikus") -> 4 - Puikus
A108: TIKĖTINAS REKOMENDUOJAMŲ AUGALŲ POVEIKIS
A110: UŽAUGINAMA BIOMASĖ
A111: Sužinokite įprastai užauginamą sausos biomasės kiekį ir, jei reikia, pakoreguokite jį atsižvelgdami į prognozuojamą produktyvumą savo ūkyje
C113: =IF(C29="","",C29) -> Baltosios garstyčios | E113: =IF(E29="","",E29) -> Vasariniai rapsai | G113: =IF(G29="","",G29) -> Žieminiai rapsai | I113: =IF(I29="","",I29) -> Aliejiniai ridikai | K113: =IF(K29="","",K29) -> Žieminiai rapsiukai | M113: =IF(M29="","",M29) -> Žieminiai rugiai
A115: TIKĖTINAS SAUSOS BIOMASĖS KIEKIS, T/HA | C115: 2.3 | E115: 1.55 | G115: 1.55 | I115: 2.95 | K115: 1.65 | M115: 1.25
A117: AZOTO KREDITAS (t.y. KITAM AUGALUI PERDUODAMAS AZOTO KIEKIS)
A118: Žemiau pateiktoje lentelėje sužinokite, kiek mineralinio azoto ateinančio sezono metu tarpinių pasėlių augalai perduos kitam pagrindiniam pasėliui
C120: =IF(C29="","",C29) -> Baltosios garstyčios | E120: =IF(E29="","",E29) -> Vasariniai rapsai | G120: =IF(G29="","",G29) -> Žieminiai rapsai | I120: =IF(I29="","",I29) -> Aliejiniai ridikai | K120: =IF(K29="","",K29) -> Žieminiai rapsiukai | M120: =IF(M29="","",M29) -> Žieminiai rugiai
A122: AZOTO KREDITAS, KG/HA | C122: =IF(C29="","",VLOOKUP(C29,'Data base'!$A:$BV,74,FALSE)/VLOOKUP(C29,'Data base'!$A:$AP,41,FALSE)*Tool!C115) -> 36.45976601 | E122: =IF(E29="","",VLOOKUP(E29,'Data base'!$A:$BV,74,FALSE)/VLOOKUP(E29,'Data base'!$A:$AP,41,FALSE)*Tool!E115) -> 21.80239767 | G122: =IF(G29="","",VLOOKUP(G29,'Data base'!$A:$BV,74,FALSE)/VLOOKUP(G29,'Data base'!$A:$AP,41,FALSE)*Tool!G115) -> 21.80239767 | I122: =IF(I29="","",VLOOKUP(I29,'Data base'!$A:$BV,74,FALSE)/VLOOKUP(I29,'Data base'!$A:$AP,41,FALSE)*Tool!I115) -> 44.12525581 | K122: =IF(K29="","",VLOOKUP(K29,'Data base'!$A:$BV,74,FALSE)/VLOOKUP(K29,'Data base'!$A:$AP,41,FALSE)*Tool!K115) -> 20.28066207 | M122: =IF(M29="","",VLOOKUP(M29,'Data base'!$A:$BV,74,FALSE)/VLOOKUP(M29,'Data base'!$A:$AP,41,FALSE)*Tool!M115) -> 11.08273028
A124: Iš žemiau pateikto paveiksliuko sužinokite mineralinio azoto susidarymo dinamiką
I127: Pastabos:
I128: Neigiami skaičiai rodo laikiną azoto imobilizaciją dirvožemyje
I129: Teigiami skaičiai rodo mineralinio azoto susidarymą
I130: Dienos atspindi laikotarpį nuo mineralizacijos proceso pradžios
I131: (mineralizacija prasideda kuomet temperatūra pakyla aukščiau 50C)
I133: Tręšimo normą galite sumažinti tokiu azoto kiekiu, kiek jo susidaro iš tarpinių pasėlių augalų !
A140: PIKTŽOLĖTUMO MAŽINIMAS
A141: Sužinokite tarpinių pasėlių augalų potencialą mažinti pasėlių piktžolėtumą
C143: =IF(C29="","",C29) -> Baltosios garstyčios | E143: =IF(E29="","",E29) -> Vasariniai rapsai | G143: =IF(G29="","",G29) -> Žieminiai rapsai | I143: =IF(I29="","",I29) -> Aliejiniai ridikai | K143: =IF(K29="","",K29) -> Žieminiai rapsiukai | M143: =IF(M29="","",M29) -> Žieminiai rugiai
A145: PIKTŽOLĖTUMO MAŽINIMAS, % | C145: =IF(C29="","",VLOOKUP(C143,'Data base'!$A:$BZ,75,FALSE)) -> 90 | E145: =IF(E29="","",VLOOKUP(E143,'Data base'!$A:$BZ,75,FALSE)) -> 80 | G145: =IF(G29="","",VLOOKUP(G143,'Data base'!$A:$BZ,75,FALSE)) -> 80 | I145: =IF(I29="","",VLOOKUP(I143,'Data base'!$A:$BZ,75,FALSE)) -> 90 | K145: =IF(K29="","",VLOOKUP(K143,'Data base'!$A:$BZ,75,FALSE)) -> 80 | M145: =IF(M29="","",VLOOKUP(M143,'Data base'!$A:$BZ,75,FALSE)) -> 75
A147: DIRVOŽEMIO ORGANINĖS ANGLIES (DOA) SUSIDARYMAS
A148: Sužinokite dirvožemio organinės anglies kiekį, kuris gali susidaryti iš tarpinių pasėlių augalų liekanų
C150: =IF(C29="","",C29) -> Baltosios garstyčios | E150: =IF(E29="","",E29) -> Vasariniai rapsai | G150: =IF(G29="","",G29) -> Žieminiai rapsai | I150: =IF(I29="","",I29) -> Aliejiniai ridikai | K150: =IF(K29="","",K29) -> Žieminiai rapsiukai | M150: =IF(M29="","",M29) -> Žieminiai rugiai
A152: TIKĖTINAS DOA SUSIDARYMAS, kg/ha | C152: =IF(C29="","",VLOOKUP(C150,'Data base'!$A:$CB,80,FALSE)/VLOOKUP(C150,'Data base'!$A:$AO,41,FALSE)*Tool!C115) -> 200 | E152: =IF(E29="","",VLOOKUP(E150,'Data base'!$A:$CB,80,FALSE)/VLOOKUP(E150,'Data base'!$A:$AO,41,FALSE)*Tool!E115) -> 150 | G152: =IF(G29="","",VLOOKUP(G150,'Data base'!$A:$CB,80,FALSE)/VLOOKUP(G150,'Data base'!$A:$AO,41,FALSE)*Tool!G115) -> 150 | I152: =IF(I29="","",VLOOKUP(I150,'Data base'!$A:$CB,80,FALSE)/VLOOKUP(I150,'Data base'!$A:$AO,41,FALSE)*Tool!I115) -> 250 | K152: =IF(K29="","",VLOOKUP(K150,'Data base'!$A:$CB,80,FALSE)/VLOOKUP(K150,'Data base'!$A:$AO,41,FALSE)*Tool!K115) -> 150 | M152: =IF(M29="","",VLOOKUP(M150,'Data base'!$A:$CB,80,FALSE)/VLOOKUP(M150,'Data base'!$A:$AO,41,FALSE)*Tool!M115) -> 160
A154: SĖJOS IR PANAIKINIMO SĄNAUDOS
A156: Žemiau pateiktoje lentelėje pasitikrinkite sėklos kainą ir sėjos normą. Jei pateikti duomenys jums netinka, nurodykite savo sėklos kainą ir sėklos normą.
C158: =IF(C29="","",C29) -> Baltosios garstyčios | E158: =IF(E29="","",E29) -> Vasariniai rapsai | G158: =IF(G29="","",G29) -> Žieminiai rapsai | I158: =IF(I29="","",I29) -> Aliejiniai ridikai | K158: =IF(K29="","",K29) -> Žieminiai rapsiukai | M158: =IF(M29="","",M29) -> Žieminiai rugiai
A160: SĖKLOS KAINA, €/kg | C160: 1.78 | E160: 1.5 | G160: 1.5 | I160: 1.69 | K160: 1.5 | M160: 0.5
A162: SĖJOS NORMA, kg/ha | C162: 12 | E162: 10 | G162: 8 | I162: 15 | K162: 8 | M162: 70
A164: Iš pateikto sąrašo pasirinkite sėjos ir panaikinimo būdą | G164: Technikos kainas galite pasitikslinti čia
C166: =IF(C29="","",C29) -> Baltosios garstyčios | E166: =IF(E29="","",E29) -> Vasariniai rapsai | G166: =IF(G29="","",G29) -> Žieminiai rapsai | I166: =IF(I29="","",I29) -> Aliejiniai ridikai | K166: =IF(K29="","",K29) -> Žieminiai rapsiukai | M166: =IF(M29="","",M29) -> Žieminiai rugiai
A168: SĖJOS BŪDAS | C168: Sėklų išbarstymas | E168: Sėklų išbarstymas | G168: Tiesioginės sėjos (ražieninė) rapsų sėjamoji | I168: Tiesioginės sėjos (ražieninė) rapsų sėjamoji | K168: Tiesioginės sėjos (ražieninė) rapsų sėjamoji | M168: Tiesioginės sėjos (ražieninė) javų sėjamoji
A170: PANAIKINIMO BŪDAS | C170: Nereikia atskiro panaikinimo | E170: Nereikia atskiro panaikinimo | G170: Kitas | I170: Nereikia atskiro panaikinimo | K170: Seklusis ražienų skutimas | M170: Seklusis ražienų skutimas
A172: SĄNAUDOS, €/ha | C172: =IF(C29="","",(VLOOKUP(Tool!C168,'Technikos kainos'!$A:$B,2,FALSE)+VLOOKUP(Tool!C170,'Technikos kainos'!$A:$B,2,FALSE)+(C160*C162))) -> 22.91 | E172: =IF(E29="","",(VLOOKUP(Tool!E168,'Technikos kainos'!$A:$B,2,FALSE)+VLOOKUP(Tool!E170,'Technikos kainos'!$A:$B,2,FALSE)+(E160*E162))) -> 16.55 | G172: =IF(G29="","",(VLOOKUP(Tool!G168,'Technikos kainos'!$A:$B,2,FALSE)+VLOOKUP(Tool!G170,'Technikos kainos'!$A:$B,2,FALSE)+(G160*G162))) -> 47.34 | I172: =IF(I29="","",(VLOOKUP(Tool!I168,'Technikos kainos'!$A:$B,2,FALSE)+VLOOKUP(Tool!I170,'Technikos kainos'!$A:$B,2,FALSE)+(I160*I162))) -> 50.69 | K172: =IF(K29="","",(VLOOKUP(Tool!K168,'Technikos kainos'!$A:$B,2,FALSE)+VLOOKUP(Tool!K170,'Technikos kainos'!$A:$B,2,FALSE)+(K160*K162))) -> 57.72 | M172: =IF(M166="","",(VLOOKUP(Tool!M168,'Technikos kainos'!$A:$B,2,FALSE)+VLOOKUP(Tool!M170,'Technikos kainos'!$A:$B,2,FALSE)+(M160*M162))) -> 81.94
A174: GALIMI SUTAUPYMAI
A176: SUTAUPYMAS TRĘŠIMUI AZOTU
A177: Sužinokite galimą sutaupymą tręšimui azotu
C179: =IF(C29="","",C29) -> Baltosios garstyčios | E179: =IF(E29="","",E29) -> Vasariniai rapsai | G179: =IF(G29="","",G29) -> Žieminiai rapsai | I179: =IF(I29="","",I29) -> Aliejiniai ridikai | K179: =IF(K29="","",K29) -> Žieminiai rapsiukai | M179: =IF(M29="","",M29) -> Žieminiai rugiai
A181: SUTAUPYMAS TRĘŠIMUI AZOTU, €/ha | C181: =IF(C29="","",C122*0.8) -> 29.16781281 | E181: =IF(E29="","",E122*0.8) -> 17.44191813 | G181: =IF(G29="","",G122*0.8) -> 17.44191813 | I181: =IF(I29="","",I122*0.8) -> 35.30020465 | K181: =IF(K29="","",K122*0.8) -> 16.22452966 | M181: =IF(M29="","",M122*0.8) -> 8.866184223
A183: SUTAUPYMAS HERBICIDAMS
A184: Nurodykite naudojamų herbicidų kainą ir sužinokite galimą sutaupymą herbicidams
A186: HERBICIDO KAINA, €/ha | C186: 20 | E186: nurodykite naudojamo herbicido kainą
C188: =IF(C29="","",C29) -> Baltosios garstyčios | E188: =IF(E29="","",E29) -> Vasariniai rapsai | G188: =IF(G29="","",G29) -> Žieminiai rapsai | I188: =IF(I29="","",I29) -> Aliejiniai ridikai | K188: =IF(K29="","",K29) -> Žieminiai rapsiukai | M188: =IF(M29="","",M29) -> Žieminiai rugiai
A190: SUTAUPYMAS HERBICIDAMS, €/ha | C190: =IF(C29="","",VLOOKUP(C29,'Data base'!$A:$BZ,75,FALSE)*Tool!$C$186/100) -> 18 | E190: =IF(E29="","",VLOOKUP(E29,'Data base'!$A:$BZ,75,FALSE)*Tool!$C$186/100) -> 16 | G190: =IF(G29="","",VLOOKUP(G29,'Data base'!$A:$BZ,75,FALSE)*Tool!$C$186/100) -> 16 | I190: =IF(I29="","",VLOOKUP(I29,'Data base'!$A:$BZ,75,FALSE)*Tool!$C$186/100) -> 18 | K190: =IF(K29="","",VLOOKUP(K29,'Data base'!$A:$BZ,75,FALSE)*Tool!$C$186/100) -> 16 | M190: =IF(M29="","",VLOOKUP(M29,'Data base'!$A:$BZ,75,FALSE)*Tool!$C$186/100) -> 15
A192: GALIMOS IŠMOKOS
A194: Sužinokite apie galimą išmoką pagal KPP Agrarinės aplinkosaugos ir klimato priemonę | G194: Paramos sąlygas galite sužinoti čia
A196: DALYVAVIMAS KPP AGRARINĖS APLINKOSAUGOS IR KLIMATO PROGRAMOJE | C196: Taip | E196: pasirinkite iš sąrašo
C199: =IF(C29="","",C29) -> Baltosios garstyčios | E199: =IF(E29="","",E29) -> Vasariniai rapsai | G199: =IF(G29="","",G29) -> Žieminiai rapsai | I199: =IF(I29="","",I29) -> Aliejiniai ridikai | K199: =IF(K29="","",K29) -> Žieminiai rapsiukai | M199: =IF(M29="","",M29) -> Žieminiai rugiai
A201: IŠMOKOS DYDIS, €/ha | C201: =IF(C29="","",IF($C$196="Ne",0,VLOOKUP(C29,'Data base'!$A:$BU,73,FALSE))) -> 134 | E201: =IF(E29="","",IF($C$196="Ne",0,VLOOKUP(E29,'Data base'!$A:$BU,73,FALSE))) -> 0 | G201: =IF(G29="","",IF($C$196="Ne",0,VLOOKUP(G29,'Data base'!$A:$BU,73,FALSE))) -> 0 | I201: =IF(I29="","",IF($C$196="Ne",0,VLOOKUP(I29,'Data base'!$A:$BU,73,FALSE))) -> 134 | K201: =IF(K29="","",IF($C$196="Ne",0,VLOOKUP(K29,'Data base'!$A:$BU,73,FALSE))) -> 0 | M201: =IF(M29="","",IF($C$196="Ne",0,VLOOKUP(M29,'Data base'!$A:$BU,73,FALSE))) -> 0
A203: APIBENDRINIMAS
A205: Susipažinkite su apibendrinta informaciją apie rekomenduojamų augalų sėjos ir panaikinimo sąnaudas bei teikiamą naudą
C207: =IF(C29="","",C29) -> Baltosios garstyčios | E207: =IF(E29="","",E29) -> Vasariniai rapsai | G207: =IF(G29="","",G29) -> Žieminiai rapsai | I207: =IF(I29="","",I29) -> Aliejiniai ridikai | K207: =IF(K29="","",K29) -> Žieminiai rapsiukai | M207: =IF(M29="","",M29) -> Žieminiai rugiai
A209: BENDROS SĄNAUDOS, €/ha | C209: =IF(C29="","",C172) -> 22.91 | E209: =IF(E29="","",E172) -> 16.55 | G209: =IF(G29="","",G172) -> 47.34 | I209: =IF(I29="","",I172) -> 50.69 | K209: =IF(K29="","",K172) -> 57.72 | M209: =IF(M29="","",M172) -> 81.94
A211: GALIMA IŠMOKA, €/ha | C211: =IF(C29="","",C201) -> 134 | E211: =IF(E29="","",E201) -> 0 | G211: =IF(G29="","",G201) -> 0 | I211: =IF(I29="","",I201) -> 134 | K211: =IF(K29="","",K201) -> 0 | M211: =IF(M29="","",M201) -> 0
A213: SUTAUPYMAI N IR HERBICIDAMS, €/ha | C213: =C181+C190 -> 47.16781281 | E213: =E181+E190 -> 33.44191813 | G213: =G181+G190 -> 33.44191813 | I213: =I181+I190 -> 53.30020465 | K213: =K181+K190 -> 32.22452966 | M213: =M181+M190 -> 23.86618422
A216: NAUDA, €/ha | C216: =IF(C29="","",(C211+C213)-C209) -> 158.2578128 | E216: =IF(E29="","",(E211+E213)-E209) -> 16.89191813 | G216: =IF(G29="","",(G211+G213)-G209) -> -13.89808187 | I216: =IF(I29="","",(I211+I213)-I209) -> 136.6102046 | K216: =IF(K29="","",(K211+K213)-K209) -> -25.49547034 | M216: =IF(M29="","",(M211+M213)-M209) -> -58.07381578
M233: į viršų

Sheet Sheet2 (hidden)
A3: Sum of Value | B3: Column Labels
A4: Row Labels | B4: NAUDA, €/ha
A5: Baltosios garstyčios | B5: 158.2578128
A6: Vasariniai rapsai | B6: 16.89191813
A7: Žieminiai rapsai | B7: -13.89808187
A8: Aliejiniai ridikai | B8: 136.6102046
A9: Žieminiai rapsiukai | B9: -25.49547034
A10: Žieminiai rugiai | B10: -58.07381578

Sheet Sheet1 (hidden)
A1: Cost item | B1: Catch crop | C1: Value
A2: Sąnaudos, €/ha | B2: =IF(Tool!$C$207="",0,Tool!$C$207) -> Baltosios garstyčios | C2: =Tool!C209 -> 22.91
A3: Sąnaudos, €/ha | B3: =IF(Tool!$E$207="",0,Tool!$E$207) -> Vasariniai rapsai | C3: =Tool!E209 -> 16.55
A4: Sąnaudos, €/ha | B4: =IF(Tool!$G$207="",0,Tool!$G$207) -> Žieminiai rapsai | C4: =Tool!G209 -> 47.34
A5: Sąnaudos, €/ha | B5: =IF(Tool!$I$207="",0,Tool!$I$207) -> Aliejiniai ridikai | C5: =Tool!I209 -> 50.69
A6: Sąnaudos, €/ha | B6: =IF(Tool!$K$207="",0,Tool!$K$207) -> Žieminiai rapsiukai | C6: =Tool!K209 -> 57.72
A7: Sąnaudos, €/ha | B7: =IF(Tool!$M$207="",0,Tool!$M$207) -> Žieminiai rugiai | C7: =Tool!M209 -> 81.94
A8: Galima išmoka, €/ha | B8: =IF(Tool!$C$207="",0,Tool!$C$207) -> Baltosios garstyčios | C8: =Tool!C211 -> 134
A9: Galima išmoka, €/ha | B9: =IF(Tool!$E$207="",0,Tool!$E$207) -> Vasariniai rapsai | C9: =Tool!E211 -> 0
A10: Galima išmoka, €/ha | B10: =IF(Tool!$G$207="",0,Tool!$G$207) -> Žieminiai rapsai | C10: =Tool!G211 -> 0
A11: Galima išmoka, €/ha | B11: =IF(Tool!$I$207="",0,Tool!$I$207) -> Aliejiniai ridikai | C11: =Tool!I211 -> 134
A12: Galima išmoka, €/ha | B12: =IF(Tool!$K$207="",0,Tool!$K$207) -> Žieminiai rapsiukai | C12: =Tool!K211 -> 0 | I12: 5
A13: Galima išmoka, €/ha | B13: =IF(Tool!$M$207="",0,Tool!$M$207) -> Žieminiai rugiai | C13: =Tool!M211 -> 0
A14: Sutaupymai, €/ha | B14: =IF(Tool!$C$207="",0,Tool!$C$207) -> Baltosios garstyčios | C14: =Tool!C181+Tool!C190 -> 47.16781281
A15: Sutaupymai, €/ha | B15: =IF(Tool!$E$207="",0,Tool!$E$207) -> Vasariniai rapsai | C15: =Tool!E181+Tool!E190 -> 33.44191813
A16: Sutaupymai, €/ha | B16: =IF(Tool!$G$207="",0,Tool!$G$207) -> Žieminiai rapsai | C16: =Tool!G181+Tool!G190 -> 33.44191813
A17: Sutaupymai, €/ha | B17: =IF(Tool!$I$207="",0,Tool!$I$207) -> Aliejiniai ridikai | C17: =Tool!I181+Tool!I190 -> 53.30020465
A18: Sutaupymai, €/ha | B18: =IF(Tool!$K$207="",0,Tool!$K$207) -> Žieminiai rapsiukai | C18: =Tool!K181+Tool!K190 -> 32.22452966
A19: Sutaupymai, €/ha | B19: =IF(Tool!$M$207="",0,Tool!$M$207) -> Žieminiai rugiai | C19: =Tool!M181+Tool!M190 -> 23.86618422
A20: NAUDA, €/ha | B20: =IF(Tool!$C$207="",0,Tool!$C$207) -> Baltosios garstyčios | C20: =Tool!C216 -> 158.2578128
A21: NAUDA, €/ha | B21: =IF(Tool!$E$207="",0,Tool!$E$207) -> Vasariniai rapsai | C21: =Tool!E216 -> 16.89191813
A22: NAUDA, €/ha | B22: =IF(Tool!$G$207="",0,Tool!$G$207) -> Žieminiai rapsai | C22: =Tool!G216 -> -13.89808187
A23: NAUDA, €/ha | B23: =IF(Tool!$I$207="",0,Tool!$I$207) -> Aliejiniai ridikai | C23: =Tool!I216 -> 136.6102046
A24: NAUDA, €/ha | B24: =IF(Tool!$K$207="",0,Tool!$K$207) -> Žieminiai rapsiukai | C24: =Tool!K216 -> -25.49547034
A25: NAUDA, €/ha | B25: =IF(Tool!$M$207="",0,Tool!$M$207) -> Žieminiai rugiai | C25: =Tool!M216 -> -58.07381578

Sheet APIE
B1: APIE SPRENDIMŲ PRIĖMIMO ĮRANKĮ
B3: Šis spendimų priėmimo įrankis buvo sukurtas glaudžiai bendradarbiaujant VŠĮ “Aplinkos apsaugos politikos centras” (Lietuva) aplinkosaugos ekspertams ir žemės ūkio ekspertams iš Žemės ūkio išteklių ir ekonomikos instituto (Latvija) bei Vytauto Didžiojo universiteto Žemės ūkio akademijos (Lietuva), įgyvendinant projektą CATCH POLLUTION (LLI-49), kurį finansavo 2014 – 2020 m. Ineterreg Latvijos – Lietuvos bendradarbiavimo programa.
B4: Pagrindinis įrankio tikslas – pateikti išsamią informaciją apie tarpinius pasėlius ir pagelbėti ūkininkams pasirenkant tinkamiausius tarpinių pasėlių augalus, geriausiai atitinkančius jų ūkio poreikius. Praplėsdamas žinias apie tarpinius pasėlius ir pateikdamas informaciją apie jų teikiamą naudą ir trūkumus, įrankis skatina platesnį tarpinių pasėlių, kaip perspektyvios agrarinės aplinkosaugos priemonės, naudingos tiek ūkininkui, tiek aplinkai, taikymą Lietuvoje ir Latvijoje.
B5: Įrankis apibendrina daugybės mokslinių studijų informaciją, Lietuvos ir Latvijos žemės ūkio ekspertų patirtis bei projekto CATCH POLLUTION rezultatus. Jis apima išsamius duomenis apie 20 augalų, kurie projekto ekspertų buvo įvardinti kaip tinkamiausi augalai posėliniams tarpiniams pasėliams Lietuvoje ir Latvijoje.
B6: Atsižvelgiant į nišą tarp pagrindinių pasėlių, sėjomainos rotacijose auginamus augalus, lauko savybes (tokias kaip dirvožemio tipas ir pH), įrankis pasiūlo tinkamiausius posėlinių tarpinių pasėlių augalus konkrečiam laukui. Įrankis taip pat pateikia informaciją apie tikėtiną rekomenduojamų augalų poveikį azoto bei organinės anglies kiekiui dirvožemyje, piktžolėtumo mažinimo galimybes. Šie poveikiai buvo įvertinti projekto metu.
B7: Atsižvelgiant į vartotojo pateiktą informaciją apie planuojamus tarpinių pasėlių sėjos ir panaikinimo metodus, sėjos normą ir kainą, įrankis padeda įvertinti ir palyginti skirtingų augalų sėjos ir panaikinimo sąnaudas. Taip pateikia informaciją apie galimus sutaupymus tręšimui azotu bei herbicidams, kuriuos lemia tarpiniuose pasėliuose auginamų augalų geba sulaikyti ir kaupti perteklinį dirvožemio azotą bei stelbti piktžolių augimą. Remiantis įrankyje pateikiamais duomenimis ir skaičiavimais, vartotojas gali palyginti skirtingų augalų savybes, teikiamą naudą, sėjos ir panaikinimo sąnaudas ir pasirinkti tinkamiausią variantą savo ūkiui.
B8: Įrankis gali pasitarnauti sudarant tarpinių pasėlių augalų mišinius, kuriuos specialistai rekomenduoja auginti siekiant didesnio ir platesnio efekto. Atsižvelgiant į individualias rekomenduojamų augalų savybes, vartotojas gali sudaryti 3-5 geriausiai jo ūkio poreikius atitinkančių augalų mišinį.
B10: Galiausiai, labai svarbu pabrėžti, kad visi įrankio pateikiami duomenys ir rezultatai turi būti vertinami atsargiai, kaip indikatyvūs, nes tarpinių pasėlių poveikis gali labai smarkiai varijuoti priklausomai nuo vietos sąlygų, ūkininkavimo praktikos bei daugelio kitų faktorių. Taip pat reikėtų atsižvelgti į tai, jog įrankis vertina tarpinių pasėlių naudą trumpuoju (vienerių metų) laikotarpiu. Ilgesnėje perspektyvoje tarpiniai pasėliai neabejotinai atneš dar daugiau naudos, tokios kaip pagerėjusi dirvožemio kokybė, biologinė įvairovė, sumažėję erozijos nuostoliai, kurie lems papildomus sutaupymus ūkyje bei geresnį pagrindinių pasėlių derlių. Ir, be abejo, svarbiausia tarpinių pasėlių auginimo nauda yra ta, jog jie sumažina perteklinio dirvožemio azoto išsiplovimą į vandens telkinius ir taip prisideda prie vandens telkinių taršos mažinimo.
B12: PAGRINDINIAI LITERATŪROS ŠALTINIAI
B14: SARE (Sustainable Agriculture, Research and Education Programme). 2012. Managing Cover Crops Profitably. Third Edition.
B15: Environmental effects of catch crops. 2019. Joint report of Activity A.T.1.1 of LLI-49 project "Optimal catch crop solutions to reduce pollution in the transboundary Venta and Lielupe river basins" (CATCH POLLUTION).
B16: Choosing and managing cover crops in organic agricultural systems. A complementary resource to the technical guide "Choosing and managing cover crops in organic agricultural systems" (www.itab.asso.fr)
B17: http://www.covercrop.com/
B18: http://covercrop.org/
B21: Šis įrankis parengtas naudojant Europos Sąjungos finansinę paramą. Už šio įrankio turinį atsako VŠĮ „Aplinkos apsaugos centras“ (Lietuva), Vytauto Didžiojo universiteto Žemės ūkio akademija (Lietuva) ir Žemės ūkio išteklių ir ekonomikos institutas (Latvija). Jokiomis aplinkybėmis negali būti laikoma, kad jis atspindi Europos Sąjungos nuomonę.
B23: © VŠĮ "Aplinkos apsaugos politikos centras", 2019

Sheet Augalų aprašymas
B1: TARPINIŲ PASĖLIŲ AUGALAI
B3: Susipažinkite su rekomenduojamais tarpinių pasėlių augalais
B5: BASTUTINIŲ ŠEIMOS AUGALAI: | D5: PUPINIŲ ŠEIMOS AUGALAI: | I5: VARPINIŲ ŠEIMOS AUGALAI: | N5: KITI:
B6: BALTOJI GARSTYČIA | D6: BALTIEJI DOBILAI | I6: ŽIEMINIAI RUGIAI | N6: GRIKIAI
B7: RUDOJI GARSTYČIA | D7: RAUDONIEJI DOBILAI | I7: GAUSIAŽIEDĖ SVIDRĖ | N7: FACELIJA
B8: VASARINIS RAPSAS | D8: BALTAŽIEDIS BARKŪNAS | I8: DAUGIAMETĖ SVIDRĖ
B9: ŽIEMINIS RAPSAS | D9: VIKIAI | I9: AVIŽOS IR JUODOSIOS AVIŽOS
B10: ALIEJINIS RIDIKAS | D10: ŽIRNIAI
B11: PAŠARINIS RIDIKAS | D11: PUPOS
B12: RAPSUKAS | D12: SIAURALAPIAI LUBINAI
B15: BALTOJI GARSTYČIA (Sinapis alba L.)
D17: Vienmetis žolinis augalas. Sėklos - gelsvos arba šiek tiek rudos, 0.2 cm skersmens, vidinis sėklų sluoksnis gleivėtas. Vaisiai - daugiasėklė, tankiai plaukuota, 2 – 4 cm ilgio ankštara. Stiebas - vertikalus, šakotas, standus, šiurkštus. Lapai - skiautėti, sudaryti iš 3 - 5 apvalių segmentų, švelniai plaukuoti, 8 cm ilgio ir 4 cm pločio. Žiedai - spinduliški, taisyklingos, platėjančios formos, geltoni, plaukuoti, atviri, iš keturių žiedlapių, 0.7 – 0.1 cm ilgio. Šaknys - plačiai išsišakoję, 30 – 90 cm ilgio. | N17: Rekomenduojamas sėjos laikotarpis: liepa – rugpjūtis
N18: Aukštis: 30 - 60 cm
N19: Sėjos gylis: 1 - 2 cm
N20: Sėjos norma: 10 - 15 kg/ha
N21: Atsparumas šalčiui: ne
D24: Auginimas. Baltosios garstyčios gerai auga lengvame dirvožemyje, kuriame yra tinkamas drenažas, bet gali augti ir sunkiose dirvose. Tinkamas dirvožemio pH svyruoja tarp 4,5 ir 8,2. Šiam augalui netinka labai drėgnos dirvos.Geros kokybės baltosios garstyčios užauga dirvožemyje, kuriame yra daug maistinių medžiagų. Tai vienmetis augalas, kuris greitai auga. Sėklos sudygsta mažiau nei per savaitę. Privalumai: greitai auga, sulaiko ir nuo išsiplovimo apsaugo daug azoto, liekanos greitai mineralizuojasi palikdamos dirvožemyje daug augalams prieinamo mineralinio azoto, teigiamai veikia dirvožemio struktūrą, mažina eroziją, gerai stelbia piktžoles, naikina nematodus, leidžia išvengti gybelinių ligų. Trūkumai: netoleruoja vandens ir maistinių medžiagų trūkumo, sausose ir šiltose vietovėse per greitai vystosi ir yra pavojus sumedėti, jautrios kenkėjams ir ligoms, ypatingai jei nesilaikoma sėjomainos reikalavimų.
B31: RUDOJI GARSTYČIA (Brassica juncea L. Czern.)
D33: Stiebas - vertikalus, pilkai žalias, plaukuotas, šakos išsibarsčiusios, viršutinėje dalyje ilgėjančios ir kylančios į viršų. Lapai - ovalūs, platėjantys toliau nuo stiebo, pilkai žali, įvairiai dantytais, karpytais arba klostuotais kraštais. Žiedai - taisyklingos, platėjančios formos, geltoni, iš keturių žiedlapių, 0.7 – 0.1 cm ilgio. Vaisiai - ankštara, 2 – 6.5 cm ilgio. Šaknys - plačiai išsišakoję, 30 – 90 cm ilgio. Sėklos - apvalios, 0.1 – 0.15 cm skersmens, smulkiai tinkliškos, šviesiai arba tamsiai rudos spalvos. | N33: Rekomenduojamas sėjos laikotarpis: birželis - liepa
N34: Aukštis: 90 - 200 cm
N35: Sėjos gylis: 1-2 cm
N36: Sėjos norma: 5 - 10 kg/ha
N37: Atsparumas šalčiui: ne
D40: Auginimas. Gerai auga sunkiame, nusausintame, derlingame dirvožemyje. Toleruoja didelį kritulių kiekį ir, nors ir gana giliai įsišakniję, nėra atsparūs sausrai. Tinkamas dirvožemio pH - 4,3 - 8,3. Gerai auga kai oro temperatūra yra aukšta ir stabili. Augalas yra prisitaikęs augti prie trumpų dienų. Privalumai: sulaiko ir nuo išsiplovimo apsaugo daug azoto, liekanos greitai mineralizuojasi palikdamos dirvožemyje daug augalams prieinamo mineralinio azoto, teigiamai veikia dirvožemio struktūrą, mažina eroziją, gerai stelbia piktžoles, turi stiprų alelopatinį poveikį, leidžia išvengti grybelinių ligų, naikina parazitus, mažina nematodų skaičių. Trūkumai: netoleruoja vandens ir maistinių medžiagų trūkumo, prastai auga blogai sausinamose žemėse, jei nesilaikoma sėjomainos reikalavimų, atsiranda ligų rizika.
B47: VASARINIS RAPSAS (Brassica napus L. ssp. oleifera)
D49: Vienmetis arba dvimetis augalas. Stiebas - vertikalus, šakotas. Lapai - melsvai žali, pakaitiniai, su trumpais lapkočiais apačioje ir be lapkočių viršuje, blizgūs, pailgi, apatiniai - lengvai skiautėti, viršutiniai - lygiais kraštais. Žiedai - spinduliški, taisyklingos formos, geltoni, 1 – 1.5 cm ilgio, atviri, iš keturių žiedlapių, kurių ilgis 0.1 – 0.15 cm. Vaisius - daugiasėklė, 5 – 8 cm ilgio ankštara. Sėklos - taisyklingai išdėstytos ankštaroje, 0.35 – 0.5 cm storio. Šaknys - ilgos, plačiai išsišakojusios, pailgos ir gumbuotos. | N49: Rekomenduojamas sėjos laikotarpis: birželis – rugpjūtis
N50: Aukštis: 100 - 150 cm
N51: Sėjos gylis: 1– 2,5 cm
N52: Sėjos norma: 10-20 kg/ha
N53: Atsparumas šalčiui: ne
D56: Auginimas. Augalas gali augti įvairiuose dirvožemiuose, tačiau, labiausiai tinka lengvos ir gerai drenuotos dirvos, kurių pH aukštesnis nei 5.5. Tankus dirvožemis riboja įsišaknijimą, kas gali lemti mažesnį maistinių medžiagų ir vandens įsisavinimą. Privalumai: labai gerai stelbia piktžoles, gerina dirvožemio struktūrą, sulaiko ir apsaugo nuo išsiplovimo azotą.Trūkumai: kenkėjų ir ligų (šaknų gumbo) rizika, ypatingai jei nesilaikoma sėjomainos reikalavimų.
B63: ŽIEMINIS RAPSAS (Brassica napus L. napus)
D65: Vienmetis arba dvimetis augalas. Stiebas - vertikalus, šakotas, šiek tiek purpurinis apačioje. Lapai - vaškiniai, apačia lygi, platėjantys, apglėbiantys stiebą, beplaukiai, mėsingi ir melsvai žali. Žiedai - šviesiai geltoni, 1.2 – 1.5 cm ilgio, atviri, neužgožiantys žiedyno pumpurų. Sėklos - taisyklingai išdėstytos ankštaroje, 0.35 – 0.5 cm storio. Šaknys - ilgos, plačiai išsišakojusios pailgos ir gumbuotos. | N65: Rekomenduojamas sėjos laikotarpis: birželis – rugpjūtis
N66: Aukštis: 66 - 150 cm
N67: Sėjos gylis: 1 – 2,5 cm
N68: Sėjos norma: 8-20 kg / ha
N69: Atsparumas šalčiui: taip
D72: Auginimas. Labiausiai tinka lengvos ir gerai drenuotos dirvos, kurių pH yra nuo 5,5 iki 8,3. Privalumai: išaugina daug biomasės, sulaiko ir nuo išsiplovimo apsaugo daug azoto, gerai stelbia piktžoles, gerina dirvožemio struktūrą. Trūkumai: gali būti sudėtinga panaikinti ir išvengti atžėlimo, ligų (t.y. šaknų gumbo) rizika, jei nesilaikoma sėjomainos reikalavimų.
B79: ALIEJINIS RIDIKAS (Raphanus sativus L.)
D81: Vienmetis augalas. Stiebas - šakotas, lygus. Lapai - giliai įkirpti, augantys aplink stiebą. Šaknys - šakotos, storos, baltos, 2 - 5 cm skersmens, 30 cm ilgio. Žiedai - rausvi, balti ar melsvi, keturi žiedlapiai. Sėklos – 0.25 – 0.4 cm, sferinės formos. | N81: Rekomenduojamas sėjos laikotarpis: birželis – rugpjūtis
N82: Aukštis: 90 - 130 cm
N83: Sėjos gylis: 1 - 2 cm
N84: Sėjos norma: 10 - 25 kg/ha
N85: Atsparumas šalčiui: ne
D88: Auginimas. Nereiklūs dirvai, gerai auga priemolio, priesmėlio ir netgi smėlio dirvose. Tinkamiausias dirvožemio pH - nuo 6 iki 7,5. Sparčiai auga, kai pasėjamas vasaros pabaigoje. Po 3 savaičių jau uždengia dirvožemį. Privalumai: tolerantiškas sausrai, sukaupia ir nuo išsiplovimo apsaugo daug azoto, liekanos greitai mineralizuojasi dirvožemyje palikdamos daug augalams prieinamo mineralinio azoto, gerai stelbia piktžoles, naikina nematodus. Trūkumai: augalui netinka šlapios dirvos, azoto trūkumas gali riboti gebėjimą konkuruoti su piktžolėmis, nesilaikant sėjomainos reikalavimų kyla ligų rizika.
B95: PAŠARINIS RIDIKAS (Raphanus sativus var.oleifer)
D97: Vienmetis augalas. Stiebas - šakotas, lygus. Lapai - giliai įkirpti, augantys aplink stiebą. Šaknys - šakotos, storos, baltos, 5 - 15 cm ilgio. Žiedai - rausvi, balti ar melsvi, keturi žiedlapiai. Sėklos – 0.25 – 0.4 cm, sferinės formos. | N97: Rekomenduojamas sėjos laikotarpis: liepa
N98: Aukštis: 50 - 90 cm
N99: Sėjos gylis: 1 - 2 cm
N100: Sėjos norma: 8 - 12 kg/ha
N101: Atsparumas šalčiui: ne
D104: Auginimas. Ridikas greitai auga jeigu dirvožemyje yra daug maisto medžiagų ir pakanka drėgmės. Tinkamiausias dirvožemio pH - nuo 6,0 iki 7,5. Privalumai: sukaupia ir nuo išsiplovimo apsaugo daug azoto, liekanos greitai mineralizuojasi dirvožemyje palikdamos daug augalams prieinamo mineralinio azoto, mažina eroziją, dėl greitos infiltracijos, kurią palengvina atviros šaknų padarytos skylės, sumažėja nuotėkis ir dirvožemio dalelių pernešimas, purenamas dirvožemis, naikina nematodus. Trūkumai: netoleruoja pavėsio, stovinčio vandens, azoto trūkumo dirvožemyje ir -7 ⁰C ar žemesnių temperatūrų, nesilaikant sėjomainos reikalavimų kyla ligų rizika.
B111: RAPSUKAS (Brassica rapa L. ssp. rapa)
D113: Vienmetis ir dvimetis augalas. Stiebas - plačiai šakotas. Lapai - šviesiai arba vidutiniškai žali, plaukuoti arba šėriuoti, 30 – 50 cm ilgio, pilkai žalias lapkotis kartais prigludęs prie stiebo. Šaknys - plačiai šakotos, 15 – 17 cm ilgio. Žiedai - ryškiai geltoni, dažniausiai stiebo viršūnėje, iš keturių 0.06 – 0.12 cm ilgio žiedlapių. Sėklos – 0.15 – 0.2 cm skersmens, juodos arba rausvai rudos, apvalios. | N113: Rekomenduojamas sėjos laikotarpis: birželis – rugpjūtis
N114: Aukštis: 30 - 90 cm
N115: Sėjos gylis: 2 cm
N116: Sėjos norma: 5 - 10 kg/ha
N117: Atsparumas šalčiui: taip
D120: Auginimas. Gerai auga priemolyje, derlingame ir šiek tiek rūgščiame dirvožemyje. Tinkmas pH - nuo 5,3 iki 6,8. Augimą riboja molis ir šlapios dirvos. Augalas yra atsparus šalčiui ir sausrai. Pasėti liepos mėnesį, biomasę augina nuo rugsėjo iki lapkričio. Sparčiausiai šaknys auga rudenį, esant žemai temperatūrai. Privalumai: sulaiko ir nuo išsiplovimo apsaugo azotą, šaknys gerina dirvožemio struktūrą, gerai stelbia piktžoles. Trūkumai: netinka užmirkusiose, nederlingose dirvose, netoleruoja pavėsio, nesilaikant sėjomainos reikalavimų kyla ligų rizika.
B127: BALTIEJI DOBILAI (Trifolium repens L)
D129: Daugiametis augalas. Stiebas - labai arti žemės paviršiaus, šaknys auga iš bamblių, lygus. Lapai - iš 3 ovalių, plačių lapelių, su baltomis dėmelėmis. Šaknys – ant vienos pagrindinės auga šakniaplaukiai. Žiedai - apvalus žiedynas ilgo stiebo viršuje, baltais arba rožiniais atspalviais. Sėklos - širdies formos, lygiu paviršiumi, nuo ryškiai geltonų iki gelsvai rudų atspalvių. | N129: Rekomenduojamas sėjos laikotarpis: birželis
N130: Aukštis: 10 - 30 cm
N131: Sėjos gylis: 0,4 - 0,5 cm
N132: Sėjos norma: 8 - 10 kg/ha
N133: Atsparumas šalčiui: taip
D136: Auginimas. Tai - daugiametis, žemaūgis augalas, toleruojantis pavėsį ir šiek tiek rūgščią dirvą, šaltį ir drėgmę. Auga įvairiuose dirvožemiuose, bet geriausiai molyje ar priemolyje. Tinkamas pH intervalas yra nuo 5,5 iki 7,0. Privalumai: iš atmosferos fiksuoja daug azoto, liekanoms mineralizuojantis palieka sukauptą azotą dirvožemyje, gerina dirvožemio struktūrą, patveresni ir tvirtesni nei kti dobilai. Trūkumai: lėtas įsitvirtinimas ir augimas, gali pernešti šaknų puvinį, pritraukia peles ir kitus graužikus.
B143: RAUDONIEJI DOBILAI (Trifolium pratense L.)
D145: Daugiametis augalas. Stiebas - cilindrinis, tuščiaviduris, plaukuotas, 4 šakos viename stiebe. Lapai - iš 3 ovalių, plačių lapelių, su baltomis dėmelėmis. Šaknys – ant vienos pagrindinės auga šakniaplaukiai. Žiedai - violetinei raudoni, 0.12 – 0.18 cm ilgio, žiedynas - viršuje stiebo. Sėklos - trumpos, ovalios, geltonos arba tamsiai violetinės. | N145: Rekomenduojamas sėjos laikotarpis: birželis
N146: Aukštis: 15 - 50 cm
N147: Sėjos gylis: 0,4 - 0,5 cm
N148: Sėjos norma: 10 - 15 kg/ha
N149: Atsparumas šalčiui: taip
D152: Auginimas. Geriausiai auga drėgnose, vėsiose sąlygose, optimalios augti yra humusingos molio ir priemolio nerūgščios dirvos, kurių pH yra nuo 6,0 iki 7,0. Toleruoja šešėlį. Pradžioje auga lėtai. Privalumai: gerai įsišaknija, išaugina didelę biomasę (ypatingai mišiniuose), iš atmosferos fiksuoja daug azoto, liekanoms mineralizuojantis palieka mineralinį azotą dirvožemyje, gerai kovoja su piktžolėmis, pluoštinė šaknų sistema teigiamai veikia dirvožemio struktūrą. Trūkumai: lėtas augimas pradžioje, platina šaknų puvinį.
B159: BALTAŽIEDIS BARKŪNAS (Melilotus alba L.)
D161: Dvimetis augalas. Stiebas - vertikalus, vienas, gerai šakotas, šeriuotas. Lapai - pakaitiniai, iš trijų dalių, ovalūs, dantyti, 1 - 2.5 cm ilgio. Šaknys - giliai ir plačiai įsišakniję. Žiedai - pailgi, balti žiedynai, 0.4 - 0. 5 cm ilgio, išsidėstę ant ilgo stiebo. Sėklos - kūginės, 0.3 – 0.5 cm ilgio, nuo rusvai geltonos iki rudos spalvos, raukšlėto paviršiaus. | N161: Rekomenduojamas sėjos laikotarpis: birželis
N162: Aukštis: 30 - 150 cm
N163: Sėjos gylis: 2-3 cm
N164: Sėjos norma: 20 kg/ha
N165: Atsparumas šalčiui: taip
D168: Auginimas. Dirvožemiams nereiklus, gerai auga priesmėlio, priemolio ir molio dirvožemiuose. Optimalus pH intervalas yra 6,5 - 7,5. Įsitvirtinana lėtai. Jautriai reaguoja į dirvožemio derlingumą, ypatingai P ir K atsargas. Privalumai: turi ilgas ir stiprias šaknis, gerai pakenčia sausras, purena dirvožemį ir leidžia išvengti suslėgimo problemų, praturtina dirvą azotu, žydėdamas gausiai išskiria nektarą ir pritraukia bites. Trūkumai: dėl lėto įsitvirtinimo gali kilti problemų su piktžolėmis.
B175: VIKIAI (Vicia villosa Roth)
D177: Vienmetis ar dvimetis augalas. Stiebas – plonas, 0.2 – 0.6 cm skersmens, 80 - 100 cm ilgio, lankstus, tankiai plaukuotas, šakotas (3-10 atšakos), turi ūselius. Lapai - sudėtiniai, iš 5 - 10 siaurai pailgų, atskirų, porinių lapelių, plunksniški, plaukuoti. Šaknys - seklios, plačiai šakotos. Žiedai - violetiniai ar nuo baltų iki rožinių atspalvių, nuo 10 iki 40 kekių, ilgesni nei lapai. Sėklos - apvalios, juodos, auga pailgose ir plokščiose ankštyse, kurių skersmuo 0.2 – 0.5 cm. | N177: Rekomenduojamas sėjos laikotarpis: birželis - rugpjūtis
N178: Aukštis: 45 - 70 cm
N179: Sėjos gylis: 2-4 cm
N180: Sėjos norma: 30 - 50 kg/ha
N181: Atsparumas šalčiui: taip
D184: Auginimas. Gali augti įvairiose dirvožemiuose nuo smėlio iki sunkaus molio. Toleruoja pH nuo 5 iki 7,5, tačiau geriausiai auga dirvožemiuose, kurių pH yra 6 - 7. Reikalauja nemažo fosforo ir kalio kiekio. Iš dalies toleruoja pavėsį. Privalumai: sukaupia daug azoto, liekanos greitai mineralizuojasi dirvožemyje palikdamos daug kitiems augalams prieinamo mineralinio azoto, gerina vandens infiltraciją, purena dirvožemį, turi alelopatinį poveikį, stelbia piktžoles. Trūkumai: gali tapti piktžole, perneša šaknų puvinį.
B191: ŽIRNIAI (Pisum sativum L.)
D193: Vienmetis augalas. Stiebas - tuščiaviduris, negali augti į viršų be atramos, turi ūselius. Lapai - sudėtiniai, pakaitiniai, ovalūs, išsidėstę vienas priešais kitą, nuo 1 iki 4 porų. Žiedai - skirtingų dydžių (nuo 1.3 iki 3.5 cm), 1 - 4 žiedynai, kurie išauga iš lapų pažastų. Sėklos - apvalios, lygios arba raukšlėtos, žalios, geltonos, rudos, raudonos oranžinės, neryškios, tamsiai violetinės ar beveik juodos, taškuotos. Šaknys - seklios, viena pagrindinė šaknis su šoninėmis, 150 cm. ilgio. | N193: Rekomenduojamas sėjos laikotarpis: birželis - rugpjūtis
N194: Aukštis: 45 - 70 cm
N195: Sėjos gylis: 4 - 6 cm
N196: Sėjos norma: 100 - 250 kg/ha
N197: Atsparumas šalčiui: ne
D200: Auginimas. Gerai auga įvairiuose dirvožemiuose, bet geriausiai - derlinguose, gerai nusausintuose, kuriuose yra daug fosforo ir kalio. Jautrūs dirvožemio druskingumui ir rūgštingumui. Tinkamas dirvožemio pH žirnių augimui yra 5,5 – 7,0. Privalumai: išaugina didelę biomasę, sukaupia daug azoto, liekanos greitai mineralizuojasi dirvožemyje palikdamos daug kitiems augalams prieinamo mineralinio azoto.Trūkumai: daigai neatsparūs sausrai, prastai stelbia piktžoles, perneša šaknų puvinį.
B207: PUPOS (Vicia faba)
D209: Vienmetis žolinis augalas. Turi ilgą liemeninę šaknį ir statų stiebą. Lapai poromis priešiškai plunksniški. Žiedai balti, ant papėdlapių juodomis aksominėmis dėmėmis, po 5-8 susitelkę kekėse. Vaisius – nuo 4 iki 20 cm ilgio ankštis. | N209: Rekomenduojamas sėjos laikotarpis: birželis - rugpjūtis
N210: Aukštis: 60 - 180 cm
N211: Sėjos gylis: 6 - 10 cm
N212: Sėjos norma: 180 - 220 kg/ha
N213: Atsparumas šalčiui: ne
D216: Auginimas. Auga molio ir priemolio dirvožemiuose, gerai supurentoje dirvoje, toleruoja gana didelį pH intervalą (nuo 4,5 iki 8,3), tačiau geriausiai auga mažo rūgštingumo, neutralios reakcijos dirvožemiuose, kurių pH 6,5 - 7. Netoleruoja sausros ir ilgo užmirkimo. Privalumai: išaugina didelę biomasę, sukaupia daug azoto, liekanos greitai mineralizuojasi dirvožemyje palikdamos daug kitiems augalams prieinamo mineralinio azoto, šaknų sistema gerina dirvožemio struktūrą. Trūkumai: sėklos didelės, tad sudėtinga sėti ir ruošti mišinius, prastai stelbia piktžoles.
B223: SIAURALAPIAI LUBINAI (Lupinus angustifolius)
D225: Žolinis savidulkis augalas. Stiebai statūs, nešakoti, lapai pirštiški. Žiedai sukrauti daugiažiedėse kekėse. Ankštys pūkuotos, pailgos ir atsidarančios. Jose yra įstrižos pertvaros tarp sėklų. | N225: Rekomenduojamas sėjos laikotarpis: birželis
N226: Aukštis: 60 - 100 cm
N227: Sėjos gylis: 3 - 4 cm
N228: Sėjos norma: 100 - 150 kg/ha
N229: Atsparumas šalčiui: ne
D232: Auginimas. Geriausiai auga lengvuose, šiek tiek rūgščiuose dirvožemiuose. Privalumai: išaugina didelę biomasę, sukaupia daug azoto, liekanos greitai mineralizuojasi dirvožemyje palikdamos daug kitiems augalams prieinamo mineralinio azoto, asimiliuoja fosforą, šaknų sistema gerina dirvožemio struktūrą, mažina suslėgimą. Trūkumai: prastai stelbia piktžoles, jautrūs virusinėms ir grybelinėms ligoms.
B239: ŽIEMINIAI RUGIAI (Secale cereale L.)
D241: Vienmetis augalas. Stiebas - vertikalus, tuščiaviduris, 6 - 7 tarpubambliai, geltonas (subrendęs), blizgus. Lapai - siauri, pailgi, auga pakaitomis ant stiebo. Šaknys - kuokštinės, 3 – 4 pirminės, 0.5 – 2 cm ilgio. Žiedai - sudėtinė varpa, ne tipinės struktūros. Sėklos - pailgi, ovalūs, plokšti grūdai, baltos, geltonos, rudos arba žalios spalvos. Vaisiai - ovalus grūdas, 0.8 – 1 cm ilgio. | N241: Rekomenduojamas sėjos laikotarpis: birželis – rugpjūtis
N242: Aukštis: 70 - 140 cm
N243: Sėjos gylis: 2 - 5 cm
N244: Sėjos norma: 70 - 90 kg/ha
N245: Atsparumas šalčiui: taip
D248: Auginimas. Auginimui tinka lengvi priemoliai arba smėliai, sudygsta net ir palyginti sausame dirvožemyje. Auga ir sunkiuose moliuose, nusausintuose ar drėgnose dirvožemiuose. Gali sudygti ir labai vėsiu oru. Privalumai: sulaiko perteklinį azotą, labai gerai stelbia piktžoles, pluoštinė šaknų sistema saugo dirvožemį nuo erozijos, liekanos praturtina dirvožemį organine anglimi. Trūkumai: po įterpimo kuriam laikui gali imobilizuoti dirvožemio azotą.
B255: GAUSIAŽIEDĖ SVIDRĖ (Lolium perenne L. ssp. multiflorum)
D257: Vienmetis ar dvimetis augalas. Stiebas - vertikalus. Lapai - ilgi, siauri, tvirti, ryškus, nuo šviesiai žalių iki šviesiai rausvai žalių, blizgūs, lygūs. Šaknys – pluoštinės. Žiedai - atviri. Sėklos – 0.3 – 0.55 cm ilgio, 0.07 – 0.15 cm pločio. | N257: Rekomenduojamas sėjos laikotarpis: birželis
N258: Aukštis: 30 - 65 cm
N259: Sėjos gylis: 1 cm
N260: Sėjos norma: 20 - 30 kg/ha
N261: Atsparumas šalčiui: taip
D264: Auginimas. Toleruoja suspaustus dirvožemius, geriausiai auga priemoliuose ir derlingose, drėgnose dirvose. Privalumai: kaupia azoto perteklių, tanki pluoštinė šaknų sistema mažina dirvožemio eroziją, gerina dirvožemio struktūrą, mažina suslėgimą, didina organinės anglies kiekį dirvožemyje. Trūkumai: laiku neįterpta barsto sėklas ir savaime atsisėja, gali virsti piktožole, neatsparios vainikuotosiomis ir rudosiomis rūdimis (Puccinia spp.), pritraukia amarus, po įterpimo kuriam laikui imobilizuoja dirvožemio azotą.
B271: DAUGIAMETĖ SVIDRĖ (Lolium perenne L.)
D273: Daugiametis augalas. Stiebas - vertikalus, tvirtas, lygus. Lapai - ilgi, siauri, tvirti, tamsiai žali, lygaus paviršiaus. Šaknys - kuokštinės. Žiedai - atviri. Sėklos – 0.3 – 0.55 cm. ilgio, siauros, pailgos, gelsvai rudos. | N273: Rekomenduojamas sėjos laikotarpis: birželis
N274: Aukštis: 80 - 90 cm
N275: Sėjos gylis: 1 - 2 cm
N276: Sėjos norma: 20-25 kg/ha
N277: Atsparumas šalčiui: taip
D280: Auginimas. Geriausiai auga nusausintuose, derlinguose, neutralaus pH, molinguose dirvožemiuose. Netoleruoja perdžiuvusios arba įmirkusios dirvos. Dirvožemio struktūra nėra svarbi. Gali augti ir smėlinguose dirvose, bet turi pakakti vandens ir maistinių medžiagų. Rečiau auga durpynuose. Privalumai: greitai dygsta, atspari ligoms bei sausra, mažina eroziją, gerina dirvožemio struktūrą, didina organinės anglies kiekį. Trūkumai: laiku neįterpta gali virsti piktožole, po įterpimo kuriam laikui imobilizuoja dirvožemio azotą.
B287: AVIŽOS IR JUODOSIOS AVIŽOS (Avena sativa L & Avena strigosa L.)
D289: Vienmetis augalas. Stiebas - vertikalus, pasviręs, švelnus, lygus, 0.3 – 0.6 cm storio. Lapai - pailgi, smailėjantys, plokšti, grublėti, žali arba melsvai pilki, 20 - 45 cm ilgio. Šaknys - kuokštinės. Žiedai - atviri, piramidiniai, nulinkę. | N289: Rekomenduojamas sėjos laikotarpis: birželis - rugpjūtis
N290: Aukštis: 80 - 150 cm
N291: Sėjos gylis: 2 - 3 cm
N292: Sėjos norma: 100 - 120 kg/ha
N293: Atsparumas šalčiui: ne
D296: Auginimas. Augalas geriausiai auga vėsiose, drėgnose vietose, vidutiniškai derlingose dirvose. Gali augti visuose dirvožemiuose, toleruoja pH nuo 5 iki 6,5. Karštos, sausos oro sąlygos gali pažeisti augalą. Jautrios herbicidų pertekliui. Privalumai: greitai auga, sulaiko perteklinį azotą, teigiamai veikia dirvožemio struktūrą, didina organinės anglies kiekį, gerai stelbia piktžoles, turi alelopatinių savybių, javų sėjomainose mažina stiebo ir pašaknio ligų plitimą. Trūkumai: neatsparios vainikuotosiomis rūdimis, pritraukia amarus.
B303: GRIKIAI (Fagopyrum esculentum Moench)
D305: Vienmetis augalas. Stiebas - žalias su raudonu atspalviu, su tarpubambliais, tuščiaviduris, vertikalus, plačiai lapuotas, sultingas, lygus neskaitant bamblių. Lapai - skirtingo dydžio, išdėstymo ir formos, 1.7 – 6.5 cm ilgio. Šaknys – kuokštinė, paviršinės. Žiedai - ryškiai arba šiek tiek rožiniai, labai retai raudoni arba balti, be žiedlapių, auga kekėmis. Sėklos - iš trijų dalių, 0.5 – 0.7 cm ilgio, lygios, rudos, pilkos arba juodos. | N305: Rekomenduojamas sėjos laikotarpis: birželis - liepa
N306: Aukštis: 60 - 130 cm
N307: Sėjos gylis: 3 - 5 cm
N308: Sėjos norma: 40 - 70 kg/ha
N309: Atsparumas šalčiui: ne (labai jautrūs)
D312: Auginimas. Augalas geriausiai auga lengvos arba vidutinės tekstūros, gerai drenuotame, rūgščiame dirvožemyje, kurio pH 5 - 6,5. Augimą riboja suspaustos, drėgnos dirvos. Privalumai: įsisavina fosforą ir padaro jį prieinamą kitiems augalams, labai gerai stelbia piktžoles, turi alelopatinį poveikį, pritraukia naudingus vabzdžius, tankios šaknys gerai purena dirvožemį. Trūkumai: netoleruoja stresinių sąlygų - suslėgtų dirvožemių, sausros, užmirkimo.
B319: FACELIJA (Phacelia tanacetifolia Benth.)
D321: Gali augti kaip vienmetis, dvimetis ar daugiametis augalas. Stiebas - vertikalus, trumpas, tvirtas, plaukuotas. Lapai - pailgai ovalūs, sudėtiniai, dantyti. Šaknys - plačiai kuokštinės, 75 cm ilgio. Žiedai - tankūs, 2 – 4 kekės, vamzdinės arba varpo formos, mėlynos, baltos arba geltonos spalvos. Sėklos – 0.2 – 0.3 cm ilgio, raukšlėtos, plikos. | N321: Rekomenduojamas sėjos laikotarpis: birželis - rugpjūtis
N322: Aukštis: 30 - 70 cm
N323: Sėjos gylis: 1-2 cm
N324: Sėjos norma: 10 - 12 kg/ha
N325: Atsparumas šalčiui: taip
D328: Auginimas. Gali augti visuose dirvožemiuose, sudygsta žemoje temperatūroje, toleruoja šaltį. Tinkamas dirvožemio pH svyruoja nuo 6,1 iki 7,8. Privalumai: greitai auga, kaupia perteklinį azotą ir kalcį, pritaukia bites, didina dirvožemio organinės anglies kiekį, teigiamai veikia dirvožemio struktūrą, sėjant didesne norma gerai stelbia piktžoles. Trūkumai: gali atsisėti ir virsti piktžole.

Sheet Technikos kainos
A1: Technikos kainos
A3: Sužinokite programėlės skaičiavimuose naudojamas technikos kainas ir, jei reikia, jas patikslinkite
A5: Sėjos būdas | B5: Kaina, EUR/ha
A6: Seklusis ražienų skutimas + sėklų išbarstymas | B6: 23
A7: Seklusis ražienų skutimas + pakabinamoji pneumatinė javų sėjamoji | B7: 50.93
A8: Seklusis ražienų skutimas + pakabinamoji pneumatinė rapsų sėjamoji | B8: 50.09
A9: Seklusis ražienų skutimas + pakabinamoji pneumatinė žolių sėjamoji | B9: 51.15
A10: Kombinuotoji javų sėjamoji įdirbant dirvą | B10: 35.92
A11: Kombinuotoji rapsų sėjamoji įdirbant dirvą | B11: 33.97
A12: Tiesioginės sėjos (ražieninė) javų sėjamoji | B12: 26.56
A13: Tiesioginės sėjos (ražieninė) rapsų sėjamoji | B13: 25.34
A14: Sėklų išbarstymas | B14: 1.55
A15: Kitas | B15: 10
A16: Panaikinimo būdas
A17: Seklusis ražienų skutimas | B17: 20.38
A18: Dirvos lėkščiavimas (žemės ūkio mašinos darbinis plotis 3 m) | B18: 26.84
A19: Dirvos lėkščiavimas (žemės ūkio mašinos darbinis plotis 5 m) | B19: 21.82
A20: Dirvos lėkščiavimas (žemės ūkio mašinos darbinis plotis 3 m) + dirvos dirbimas pakabinamaisiais apverčiamaisiais plūgais | B20: 91.22
A21: Dirvos lėkščiavimas (žemės ūkio mašinos darbinis plotis 3 m) + dirvos dirbimas prikabinamaisiais apverčiamaisiais plūgais | B21: 91.02
A22: Dirvos lėkščiavimas (žemės ūkio mašinos darbinis plotis 5 m) + dirvos dirbimas pakabinamaisiais apverčiamaisiais plūgais | B22: 86.2
A23: Dirvos lėkščiavimas (žemės ūkio mašinos darbinis plotis 5 m) + dirvos dirbimas prikabinamaisiais apverčiamaisiais plūgais | B23: 86
A24: Dirvos volavimas + dirvos dirbimas pakabinamaisiais apverčiamaisiais plūgais | B24: 72.39
A25: Dirvos volavimas + dirvos dirbimas prikabinamaisiais apverčiamaisiais plūgais | B25: 72.19
A26: Nereikia atskiro panaikinimo | B26: 0
A27: Dirvos dirbimas pakabinamaisiais apverčiamaisiais plūgais | B27: 64.38
A28: Dirvos dirbimas prikabinamaisiais apverčiamaisiais plūgais | B28: 64.18
A29: Kitas | B29: 10
B30: atgal į programą

Sheet Paramos sąlygos
B1: KPP Agrarinės aplinkosaugos ir klimato priemonės veiklos
B2: "Tarpinių pasėlių auginimas ariamojoje žemėje" įgyvendinimo sąlygos
B4: Susipažinkite su paramos tarpinių pasėlių auginimui sąlygomis
B7: Mažiausias lauko plotas, už kurį mokamos kompensacinės išmokos - 1 ha.
B9: Vykdydami veiklą „Tarpinių pasėlių auginimas ariamojoje žemėje“, pareiškėjai ir (arba) paramos gavėjai įsipareigoja:
B10: - po pagrindinio derliaus nuėmimo tarpinius pasėlius rekomenduojama pasėti per savaitę, bet ne vėliau kaip iki rugsėjo 15 d.;
B11: - išlaikyti tarpinius pasėlius ant dirvos paviršiaus iki kovo 1 d.;
B12: - įterpti tarpinius augalus į dirvą prieš pagrindinės kultūros sėją;
B13: - neganyti gyvulių, neruošti pašaro, nešienauti ir nesmulkinti tarpinių pasėlių auginimo laikotarpiu pagal veiklą deklaruotuose plotuose;
B14: - nenaudoti augalų apsaugos produktų, mineralinių trąšų ir srutų tarpinių pasėlių auginimo laikotarpiu pagal veiklą deklaruotuose plotuose;
B15: - įskaičiuoti tarpinių pasėlių plotus, kuriuose įgyvendinama veikla „Tarpinių pasėlių auginimas ariamojoje žemėje“, vertinant pareiškėjo tinkamumą gauti paramą už žalinimo reikalavimų, nurodytų Tiesioginių išmokų administravimo bei kontrolės taisyklių V skyriuje, įgyvendinimą. Už tą patį lauką, už kurį mokama parama pagal veiklą „Tarpinių pasėlių auginimas ariamojoje žemėje“, negali būti mokama žalinimo išmoka.
B17: Augalų, tinkamų paramai gauti pagal veiklą "Tarpinių pasėlių auginimas ariamojoje žemėje" sąrašas:
B18: - aliejiniai ridikai,
B19: - avižos,
B20: - garstyčios,
B21: - dobilai,
B22: - facelijos,
B23: - gausiažiedės svidrės,
B24: - liucerna,
B25: - lubinai,
B26: - paprastosios šunažolės,
B27: - paprastieji gargždeniai,
B28: - pupos,
B29: - saulėgrąža,
B30: - seradelės,
B31: - sėjamasis grikis,
B32: - sėjamasis vikis,
B33: - šakniniai ridikai,
B34: - vienmečiai lubinai,
B35: - minėtų augalų mišiniai.
B37: Paramos dydis - 134 Eur/ha.
B39: Daugiau informacijos:
B40: https://www.nma.lt/index.php/parama/lietuvos-kaimo-pletros-20142020-m-programa/administravimo-ir-igyvendinimo-taisykles/agrarine-aplinkosauga-ir-klimatas/8730
B42: atgal į programą

Sheet Data base (hidden)
C1: Sėjos būdas | E1: Soils | H1: pH | P1: Vegetation period | S1: Crops in rotation | Z1: Sowing period | AL1: Seeding rate, kg/ha | AQ1: Management challenges | AZ1: Establishment costs | BI1: Termination costs | BU1: Possible RDP payment | BV1: Benefits
A2: Tarpinis augalas | B2: Lotyniškas pavadinimas | C2: Undersown | D2: Post harvest | E2: Priesmėlis | F2: Priemolis | G2: Molis | H2: pH | I2: < 4,5 | J2: 4,6 - 5 | K2: 5,1 - 5,5 | L2: 5,6 - 6 | M2: 6,1-6,5 | N2: 6,6 - 7 | O2: >7 | P2: range | Q2: min | R2: max | S2: Kukurūzai | T2: Javai | U2: Rapsai | V2: Cukriniai runkeliai | W2: Bulvės | X2: Intensive crops | Y2: Ankštiniai | Z2: June | AD2: July | AH2: August | AL2: Seeding rate, kg/ha | AM2: Seeding rate (drilled), kg/ha | AN2: Seeding rate (brodcasted), kg/ha | AO2: Potential biomass, t/ha | AP2: N in the residue, kg/ha | AQ2: Establishment | AR2: Hinder crops | AS2: Killing by tillage | AT2: Killing by mow | AU2: Incorporation of mature stand | AV2: Warnings/ Potential problems | AW2: Establishment guidance | AX2: Positives/ benefits | AY2: Seed cost, EUR/kg | AZ2: Shallow stubble cultivation + seed broadcasting | BA2: Shallow stubble cultivation + hanged pneumatic cereal seeder | BB2: Shallow stubble cultivation + hanged pneumatic rape seeder | BC2: Shallow stubble cultivation + hanged pneumatic herb seeder | BD2: Combined cereal seeder with soil cultivation | BE2: Combined rape seeder with soil cultivation | BF2: Direct sowing (stubbly) cereal seeder | BG2: Direct sowing (stubbly) rape seeder | BH2: Seed broadcasting | BI2: Shallow stubble cultivation | BJ2: Disk harrowing (working width of the machine 3 m) | BK2: Disk harrowing (working width of the machine 5 m) | BL2: Disk harrowing (working width of the machine 3 m) + reversible hanged plough | BM2: Disk harrowing (working width of the machine 3 m) + reversible trailing plough | BN2: Disk harrowing (working width of the machine 5 m) + reversible hanged plough | BO2: Disk harrowing (working width of the machine 5 m) + reversible trailing plough | BP2: Rolling + reversible hanged plough | BQ2: Rolling + reversible trailing plough | BR2: No separate termination | BS2: Reversable hanged plough | BT2: Reversable trailing plough | BU2: Payment, EUR/ha | BV2: Transferring of nitrogen, kg/ha | BW2: Reduction of weed density, % | BX2: Weed reduction capacity | BY2: Suppression of diseases: biological impact | BZ2: Suppression of diseases: affected main crop | CA2: Latest sowing date | CB2: Production of SOC, kg/ha
A3: Baltosios garstyčios | B3: Sinapis alba L | C3: No | D3: Yes | E3: No | F3: Yes | G3: Yes | H3: 4,5-8,2 | I3: No | J3: Yes | K3: Yes | L3: Yes | M3: Yes | N3: Yes | O3: Yes | P3: 45-50 | Q3: 45 | R3: 50 | S3: SR | T3: SR | Y3: SR | AD3: ٧ | AE3: ٧ | AF3: ٧ | AG3: ٧ | AH3: ٧ | AI3: ٧ | AJ3: ٧ | AL3: 12 | AM3: 10-15 | AN3: 30 | AO3: 2.3 | AP3: 87.4 | AQ3: 0 | AR3: 2 | AS3: 0 | AT3: 3 | AU3: 0 | AV3: Neleiskite subrandinti sėklų. Neauginkite sėjomainose su bastutinių šeimos augalais. Labiau tinka lengvi, vandeniui laidūs dirvožemiai. Drėgnuose dirvožemiuose auga prastai. Sausose ir šiltose vietose vystymąsis gali būti greitas, dėl to kyla sumedėjimo rizika. Jautrios kenkėjams, tokiems kaip pjūklelių lervos, aruodiniai straubliukai, spragės. | AW3: Gali būti sėjamos sėklą išberiant ant paruoštos dirvos paviršiaus, arba naudojant įprastą sėjamąją. Guoliavietės pagrindas turi būti kietas, joje neturėtų būti piktžolių pradų. Privoluokite dirvą, kad pagerintumėte sėklų ir dirvožemio kontaktą, bet nesuardykite dirvožemio agregatų. Sėjos gylis 1-2 cm. Gali būti auginamos mišiniuose su ankštiniais (pvz. dobilais, vikiais) arba žolėmis. | AY3: 1.78 | AZ3: 23 | BE3: 33.97 | BG3: 25.34 | BH3: 1.55 | BI3: 20.38 | BR3: 0 | BU3: 134 | BV3: 36.45976601 | BW3: 90 | BX3: Large | BY3: Reduces number of nematodes in the soil; Has toxic effect on a range of fungal and soil borne diseases. | BZ3: Potatoe, carrots, sugar beat | CA3: =DATE((YEAR(Tool!$C$10)),8,20) -> 2020-08-20 | CB3: 200
A4: Rudosios garstyčios | B4: Brassica juncea (L.) Czern. | C4: No | D4: Yes | E4: No | F4: No | G4: Yes | H4: 4,3-8,3 | I4: Yes | J4: Yes | K4: Yes | L4: Yes | M4: Yes | N4: Yes | O4: Yes | P4: 60-70 | Q4: 60 | R4: 70 | S4: SR | T4: SR | X4: SR | Y4: SR | AA4: ٧ | AB4: ٧ | AC4: ٧ | AD4: ٧ | AE4: ٧ | AF4: ٧ | AL4: 5 | AM4: 5-10 | AN4: 20 | AO4: 2.3 | AP4: 87.4 | AQ4: 0 | AR4: 2 | AS4: 0 | AT4: 3 | AU4: 0 | AV4: Neleiskite garstyčioms subrandinti sėklų. Neauginkite sėjomainose su bastutinių šeimos augalais. | AW4: Gali būti sėjamos arba sėklą išberiant ant paruoštos dirvos paviršiaus, arba naudojant įprastą sėjamąją. Guoliavietės pagrindas turi būti kietas, joje neturėtų būti piktžolių pradų. Privoluokite dirvą, kad pagerintumėte sėklų ir dirvožemio kontaktą, bet nesuardykite dirvožemio agregatų. Sėjos gylis 1-2 cm. Gali būti auginamos mišiniuose su ankštiniais (pvz. dobilais, vikiais) arba žolėmis. | AY4: 3.3 | AZ4: 23 | BE4: 33.97 | BG4: 25.34 | BH4: 1.55 | BI4: 20.38 | BR4: 0 | BU4: 134 | BV4: 36.45976601 | BW4: 50 | BX4: Medium | BY4: - | BZ4: - | CA4: =DATE((YEAR(Tool!$C$10)),7,23) -> 2020-07-23 | CB4: 200
A5: Vasariniai rapsai | B5: Brassica napus L. ssp. Oleifera | C5: No | D5: Yes | E5: No | F5: Yes | G5: Yes | H5: 5,5-7,4 | I5: No | J5: No | K5: No | L5: Yes | M5: Yes | N5: Yes | O5: Yes | P5: 50-60 | Q5: 50 | R5: 60 | S5: SR | T5: SR | V5: S | W5: S | Y5: S | AC5: ٧ | AD5: ٧ | AE5: ٧ | AF5: ٧ | AG5: ٧ | AH5: ٧ | AI5: ٧ | AL5: 10 | AM5: 10-20 | AN5: 20 | AO5: 1.55 | AP5: 55.8 | AQ5: 0 | AR5: 2 | AS5: 2 | AT5: 3 | AU5: 1 | AV5: Linkę užsikrėsti įvairiomis ligomis. Kad jų išvengtumėte, neauginkite sėjomainose su bastutinių šeimos augalais. Būtina gerai paruošta dirva. Dirvos suslėgimas riboja šaknijimąsi, tai gali sumažinti maisto medžiagių ir vandens įsisavinimą. | AW5: Sėkla gali būti sėjama sėjamosiomis arba išberiama skutant ar kultivuojant dirvą po pagrindinių augalų nuėmimo. Paruoškite lygią, be piktžolių pradų sėklos guoliavietę, kurioje dygimui netrūktų drėgmės. Po sėjos privoluokite dirvą, kad pagerintumėte sėklų ir dirvožemio sąlytį. Gali būti auginami mišiniuose su ankštiniais (pvz. vikiais, žirniais, pupomis) arba žolėmis (pvz. svidrėmis). | AY5: 1.5 | AZ5: 23 | BE5: 33.97 | BG5: 25.34 | BH5: 1.55 | BI5: 20.38 | BR5: 0 | BV5: 21.80239767 | BW5: 80 | BX5: Large | BY5: - | BZ5: - | CA5: =DATE((YEAR(Tool!$C$10)),8,15) -> 2020-08-15 | CB5: 150
A6: Žieminiai rapsai | B6: Brassica napus L. | C6: No | D6: Yes | E6: No | F6: Yes | G6: Yes | H6: 5,5-7,4 | I6: No | J6: No | K6: No | L6: Yes | M6: Yes | N6: Yes | O6: Yes | P6: 50-70 | Q6: 50 | R6: 70 | S6: SR | T6: SR | V6: S | W6: S | Y6: S | AA6: ٧ | AB6: ٧ | AC6: ٧ | AD6: ٧ | AE6: ٧ | AF6: ٧ | AG6: ٧ | AH6: ٧ | AI6: ٧ | AL6: 8 | AM6: 8-20 | AN6: 20 | AO6: 1.55 | AP6: 55.8 | AQ6: 0 | AR6: 2 | AS6: 2 | AT6: 3 | AU6: 1 | AV6: Gali platinti bastutinių šeimos augalų ligas, todėl nenaudokite sėjomainose su bastutinių šeimos augalais. Dygti gali lėtai. Jautresni dirvos suspaudimui nei javai. | AW6: Paruoškite lygią, be piktžolių pradų sėklos guoliavietę, kurioje dygimui netrūktų drėgmės. Po sėjos privoluokite dirvą, kad pagerintumėte sėklų ir dirvožemio sąlytį, bet nesuardykite dirvožemio agregatų. Gali būti auginami mišiniuose su ankštiniais (pvz. vikiais, žirniais, pupomis) arba žolėmis (pvz. svidrėmis). | AY6: 1.5 | BB6: 50.09 | BC6: 51.15 | BE6: 33.97 | BG6: 25.34 | BH6: 1.55 | BL6: 91.22 | BM6: 91.02 | BN6: 86.2 | BO6: 86 | BP6: 72.39 | BQ6: 72.19 | BS6: 64.38 | BT6: 64.18 | BV6: 21.80239767 | BW6: 80 | BX6: Large | BY6: - | BZ6: - | CA6: =DATE((YEAR(Tool!$C$10)),8,15) -> 2020-08-15 | CB6: 150
A7: Aliejiniai ridikai | B7: Raphanus sativus L | C7: No | D7: Yes | E7: Yes | F7: Yes | G7: Yes | H7: 6-7,4 | I7: No | J7: No | K7: No | L7: No | M7: Yes | N7: Yes | O7: Yes | P7: 50-65 | Q7: 50 | R7: 65 | S7: SR | T7: SR | W7: S | X7: S | Y7: SR | AC7: ٧ | AD7: ٧ | AE7: ٧ | AF7: ٧ | AG7: ٧ | AH7: ٧ | AI7: ٧ | AL7: 15 | AM7: 10-25 | AN7: Nerekomenduojama | AO7: 2.95 | AP7: 109.15 | AQ7: 0 | AR7: 0 | AS7: 0 | AT7: 1 | AU7: 0 | AV7: Nenaudokite sėjomainoje su bastutinių šeimos daržovėmis. Ridikai pritraukia sprages, tačiau rudens laikotarpiu kiek mažiau. Ridikai prastai toleruoja drėgnas dirvas. Jautriai reaguoja į azoto kiekį dirvožemyje. Esant azoto deficitui prastai konkuruoja su piktžolėmis. | AW7: Sėti kiek galima anksčiau. Sėjant sėjamosiomis pasėlis daug geresnis, todėl berti ant paviršiaus tikslinga tik kai dirvožemis per daug šlapias sėti sėjamąja. Po sėjos privoluokite dirvą, kad pagerintumėte sėklų ir dirvožemio sąlytį, bet nesutraiškykite dirvožemio agregatų. Gali būti auginami mišiniuose su ankštiniais. | AX7: The plant contains raphanin, which is antibacterial and antifungal, contain chemicals that help suppress nematodes e.g. cyst nematodes which attack potatoes. Forage radishes also suppress fall weeds. | AY7: 1.69 | BB7: 50.09 | BC7: 51.15 | BE7: 33.97 | BG7: 25.34 | BI7: 20.38 | BR7: 0 | BU7: 134 | BV7: 44.12525581 | BW7: 90 | BX7: Large | BY7: Reduces number of nematodes in the soil; Has toxic effect on a range of fungal and soil borne diseases. | BZ7: Potatoe, carrots, sugar beat | CA7: =DATE((YEAR(Tool!$C$10)),8,15) -> 2020-08-15 | CB7: 250
A8: Šakniniai ridikai | B8: Raphanus sativus var.oleifer | C8: No | D8: Yes | E8: No | F8: Yes | G8: Yes | H8: 6-7,5 | I8: No | J8: No | K8: No | L8: No | M8: Yes | N8: Yes | O8: Yes | P8: 55-70 | Q8: 55 | R8: 70 | S8: SR | T8: SR | Y8: SR | AD8: ٧ | AE8: ٧ | AF8: ٧ | AG8: ٧ | AL8: 10 | AM8: 8-12 | AN8: Nerekomenduojama | AO8: 2.05 | AP8: 69.7 | AQ8: 0 | AR8: 0 | AS8: 0 | AT8: 0 | AU8: 1 | AV8: Gali platinti bastutinių šeimos augalų ligas, todėl nenaudokite sėjomainose su bastutinių šeimos augalais. Jei šaknys gerai išsivysčiusios, gali būti sudėtinga panaikinti. | AW8: Sėkla gali būti sėjama sėjamosiomis arba išberiama skutant ar kultivuojant dirvą po pagrindinių augalų nuėmimo. Siekiant paskatinti augimą, gali būti auginami mišiniuose su ankštiniais. | AX8: The roots die over the winter and leave channels so that the soil dries and warms up faster in the spring. | AY8: 7.5 | BB8: 50.09 | BC8: 51.15 | BE8: 33.97 | BG8: 25.34 | BI8: 20.38 | BJ8: 26.84 | BK8: 21.82 | BR8: 0 | BU8: 134 | BV8: 25.19718621 | BW8: 80 | BX8: Large | BY8: - | BZ8: - | CA8: =DATE((YEAR(Tool!$C$10)),8,1) -> 2020-08-01 | CB8: 180
A9: Žieminiai rapsiukai | B9: Brassica rapa subsp. rapa | C9: No | D9: Yes | E9: Yes | F9: Yes | G9: No | H9: 5,3 - 6.8 | I9: No | J9: No | K9: No | L9: Yes | M9: Yes | N9: Yes | O9: No | P9: 50-60 | Q9: 50 | R9: 60 | S9: SR | T9: SR | V9: S | W9: S | Y9: S | AB9: ٧ | AC9: ٧ | AD9: ٧ | AE9: ٧ | AF9: ٧ | AG9: ٧ | AH9: ٧ | AI9: ٧ | AL9: 8 | AM9: 5-10 | AN9: Nerekomenduojama | AO9: 1.65 | AP9: 56.1 | AQ9: 0 | AR9: 2 | AS9: 2 | AT9: 3 | AU9: 1 | AV9: Gali platinti bastutinių šeimos augalų ligas. Nenaudokite sėjomainose su bastutinių šeimos augalais. Dygti gali lėtai. Dirvožemio drėgmės išsaugojimas užtikrina gerą rapsiukų sudygimą. | AW9: Paruoškite lygią, be piktžolių pradų sėklos guoliavietę, kurioje dygimui netrūktų drėgmės. Po sėjos privoluokite dirvą, kad pagerintumėte sėklų ir dirvožemio sąlytį, bet nesutraiškykite dirvožemio agregatų. Galite auginti kaip pavienį tarpinį pasėlį arba mišiniuose su ankštiniais (pvz., vikiais, žirniais). | AX9: Useful for suppressing Sclerotinia in lettuce. | AY9: 1.5 | BB9: 50.09 | BC9: 51.15 | BE9: 33.97 | BG9: 25.34 | BI9: 20.38 | BV9: 20.28066207 | BW9: 80 | BX9: Large | BY9: Suppress Sclerotinia | BZ9: Lettuce | CA9: =DATE((YEAR(Tool!$C$10)),8,15) -> 2020-08-15 | CB9: 150
A10: Žieminiai rugiai | B10: Secale cereale L | C10: No | D10: Yes | E10: Yes | F10: Yes | G10: No | H10: 5 - 7 | I10: No | J10: No | K10: Yes | L10: Yes | M10: Yes | N10: Yes | O10: No | P10: 45-50 | Q10: 45 | R10: 50 | S10: SR | T10: S | U10: S | V10: S | W10: S | X10: S | Y10: S | AC10: ٧ | AD10: ٧ | AE10: ٧ | AF10: ٧ | AG10: ٧ | AH10: ٧ | AI10: ٧ | AJ10: ٧ | AL10: 70 | AM10: 70-90 | AN10: Nerekomenduojama | AO10: 1.25 | AP10: 37.5 | AQ10: 1 | AR10: 3 | AS10: 1 | AT10: 0 | AU10: 4 | AV10: Yrant rugių biomasei gali būti imobilizuojamas dirvožemio azotas. Azoto imobilizavimą apsprendžia rugių subrendimo laipsnis. Rugių biomasėje sukaupto azoto mineralizacija yra labai lėta, tad neverta tikėtis, kad peržiemojusių rugių sukauptas azotas greitai bus prieinamas kitiems augalams. Augalus, kuriems yra reikalingas azotas, reikėtų sėti ne anksčiau kaip 2 savaitės po rugių įterpimo. | AW10: Paruoškite sėklos guoliavietę be grumstų ir piktžolių. Jei žemės dirbimas neįmanomas, rugiai gali būti išberiami ant drėgnos, neįdirbtos dirvos. Gali būti auginami mišiniuose su ankštiniais (pvz., žirniais, vikiais, pupomis). | AY10: 0.5 | BA10: 50.93 | BD10: 35.92 | BF10: 26.56 | BI10: 20.38 | BL10: 91.22 | BM10: 91.02 | BN10: 86.2 | BO10: 86 | BP10: 72.39 | BQ10: 72.19 | BS10: 64.38 | BT10: 64.18 | BV10: 11.08273028 | BW10: 75 | BX10: Large | BY10: - | BZ10: - | CA10: =DATE((YEAR(Tool!$C$10)),8,20) -> 2020-08-20 | CB10: 160
A11: Baltieji dobilai | B11: Trifolium repens L | C11: Yes | D11: Yes | E11: Yes | F11: Yes | G11: Yes | H11: 5,6-7,0 | I11: No | J11: No | K11: No | L11: Yes | M11: Yes | N11: Yes | O11: No | P11: 60-80 | Q11: 60 | R11: 80 | S11: SR | T11: SR | U11: S | V11: S | Z11: ٧ | AA11: ٧ | AB11: ٧ | AC11: ٧ | AL11: 9 | AM11: 8-10 | AN11: Nerekomenduojama | AO11: 2.05 | AP11: 65.6 | AQ11: 1 | AR11: 3 | AS11: 4 | AT11: 2 | AU11: 1 | AV11: Dobilai labai jautrūs kalio ir fosforo kiekiui dirvožemyje, todėl pakankami šių maistinių medžiagų kiekiai yra būtini sėkmingam sudygimui, susiformavimui bei produktyvumui užtikrinti. Dygti gali sunkiai ir lėtai. Ankštines daržoves sodinkite tik praėjus dviems metams, nes baltieji dobilai platina šaknų puvinius, tokius kaip Pythium ir Rhizoctonia. | AW11: Naudokite įprastinį žemės dirbimą, paruoškite sėklos guoliavietę tvirtu pagrindu. Po sėjos, privoluokite dirvą, kad pagerintumėte sėklų ir dirvožemio sąlytį, bet nesunaikinkite dirvožemio agregatų. Baltieji dobilai gerai toleruoja šlapias dirvas. Gali būti auginami mišiniuose su garstyčiomis ir rugiais. | AY11: 6 | BC11: 51.15 | BS11: 64.38 | BT11: 64.18 | BU11: 134 | BV11: 21.58388496 | BW11: 15 | BX11: Low | BY11: - | BZ11: - | CA11: =DATE((YEAR(Tool!$C$10)),7,1) -> 2020-07-01 | CB11: 180
A12: Raudonieji dobilai | B12: Trifolium pratense L | C12: Yes | D12: Yes | E12: Yes | F12: Yes | G12: Yes | H12: 6,0-7,0 | I12: No | J12: No | K12: No | L12: No | M12: Yes | N12: Yes | O12: No | P12: 60-80 | Q12: 60 | R12: 80 | S12: SR | T12: SR | U12: S | V12: S | Z12: ٧ | AA12: ٧ | AB12: ٧ | AC12: ٧ | AL12: 12 | AM12: 10-15 | AN12: Nerekomenduojama | AO12: 2.05 | AP12: 65.6 | AQ12: 1 | AR12: 0 | AS12: 2 | AT12: 3 | AU12: 1 | AV12: Raudonieji dobilai skatina amarais mintančių vabzdžių (boružių, auksaakių lervų, žiedmusių lervų) plitimą. Platina šaknų puvinį (Aphanomyces). Pradžioje auga lėtai. Geriau auga vėsiose ir drėgnose vietose. | AW12: Pirkite didelio daigumo sėklas. Sėjant svarbu išlaikyti tvirtą sėklos guoliavietę. Po sėjos privoluokite dirvą, kad pagerintumėte sėklų ir dirvožemio sąlytį, bet nesutraiškykite dirvožemio agregatų. Galite auginti mišiniuose su avižomis, svidrėmis. | AY12: 4.5 | BC12: 51.15 | BS12: 64.38 | BT12: 64.18 | BU12: 134 | BV12: 21.58388496 | BW12: 60 | BX12: Medium | BY12: - | BZ12: - | CA12: =DATE((YEAR(Tool!$C$10)),7,1) -> 2020-07-01 | CB12: 180
A13: Baltažiedžiai barkūnai | B13: Melilotus alba L | C13: Yes | D13: Yes | E13: Yes | F13: Yes | G13: Yes | H13: 6,5 - 7,5 | I13: No | J13: No | K13: No | L13: No | M13: No | N13: Yes | O13: Yes | P13: 65-80 | Q13: 65 | R13: 80 | S13: SR | T13: SR | U13: S | V13: S | Z13: ٧ | AA13: ٧ | AB13: ٧ | AC13: ٧ | AL13: 20 | AM13: 20 | AN13: Nerekomenduojama | AO13: 1.95 | AP13: 62.4 | AQ13: 0 | AR13: 2 | AS13: 2 | AT13: 1 | AU13: 3 | AV13: Balatąjį barkūną gali būti sudėtinga įterpti. Jis gali atsisėti, tad svarbu užtikrinti, kad nevirstų piktžole. | AW13: Kadangi barkūno sėkla yra kietalukštė, prieš sėją ją reikia skarifikuoti. Sėklą patariama apvelti nitraginu, ypatingai sėjant laukuose, kuriuose barkūnas niekada neaugo. Sėjamas anksti, į drėgną dirvą. Gali būti auginamas mišiniuose su avižomis. | AY13: 2.8 | BC13: 51.15 | BS13: 64.38 | BT13: 64.18 | BV13: 20.53101252 | BW13: 60 | BX13: Medium | BY13: - | BZ13: - | CA13: =DATE((YEAR(Tool!$C$10)),7,1) -> 2020-07-01 | CB13: 180
A14: Gausiažiedės svidrės | B14: Lolium multiflorum | C14: Yes | D14: Yes | E14: No | F14: Yes | G14: Yes | H14: 5,8-7,1 | I14: No | J14: No | K14: No | L14: Yes | M14: Yes | N14: Yes | O14: No | P14: 50-75 | Q14: 50 | R14: 75 | S14: SR | T14: S | U14: S | V14: S | W14: S | X14: S | Y14: S | AA14: ٧ | AB14: ٧ | AC14: ٧ | AL14: 20 | AM14: 20-30 | AN14: Nerekomenduojama | AO14: 1.4 | AP14: 35 | AQ14: 0 | AR14: 2 | AS14: 0 | AT14: 0 | AU14: 2 | AV14: Venkite šiuos tarpinius pasėlius sėti esant karštam, sausam orui. Laiku neįterptos barsto sėklas ir savaime atsisėja. Svarbu imtis priemonių, kad neplistų kaip piktžolė. Po įterpimo biomasės suirimui reikia tam tikro laiko. Svidrės neatsparios vainikuotosioms ir rudosioms rūdims (Puccinia spp.). Pritraukia amarus. | AW14: Įdirbkite žemę ir ir pašalinkite visas piktžoles. Kuomet įmanoma, sėklas įterpkite. Esant pakankamai drėgmės, sėklas galima ir išbarstyti. Gali būti auginamos mišiniuose su ankštiniais (pvz., vikiais). Mišiniai su ankštiniais gali padėti išvengti dirvožemio azoto imobilizavimo biomasei yrant. | AX14: Italian ryegrass tolerates compacted soils. | AY14: 1.7 | BC14: 51.15 | BI14: 20.38 | BT14: 64.18 | BU14: 134 | BV14: 7.791751702 | BW14: 30 | BX14: Low | BY14: - | BZ14: - | CA14: =DATE((YEAR(Tool!$C$10)),7,1) -> 2020-07-01 | CB14: 180
A15: Daugiametės svidrės | B15: Lolium perenne L. | C15: Yes | D15: Yes | E15: No | F15: Yes | G15: Yes | H15: 5,5-7,0 | I15: No | J15: No | K15: No | L15: Yes | M15: Yes | N15: Yes | O15: No | P15: 60-80 | Q15: 60 | R15: 80 | S15: SR | T15: S | U15: S | V15: S | W15: S | X15: S | Y15: S | AA15: ٧ | AB15: ٧ | AC15: ٧ | AL15: 20 | AM15: 20-25 | AN15: Nerekomenduojama | AO15: 1.4 | AP15: 35 | AQ15: 0 | AR15: 2 | AS15: 0 | AT15: 0 | AU15: 2 | AV15: Daugiametės svidrės jautrios temperatūros ekstremumams. Joms netinka sausi ir šlapi dirvožemiai. Svarbu užtikrinti, kad svidrė neplistų kaip piktžolė (kad neliktų nesudygusių sėklų). Įterpta biomasė gali kuriam laikui imobilizuoti dirvožemio azotą. | AW15: Lengvai suspauskite žemę, tada tolygiai išberkite sėklas, kad būtų užtikrintas geras padengimas. Gerai suakėkite. Tvirta, be piktžolių sėklos guoliavietė užtikrina geriausius rezultatus. Gali būti auginamos mišiniuose su ankštiniais (pvz., dobilais). Mišiniai su ankštiniais gali padėti išvengti dirvožemio azoto imobilizavimo biomasei skaidantis. | AY15: 2.36 | BC15: 51.15 | BS15: 64.38 | BV15: 7.791751702 | BW15: 14 | BX15: Low | BY15: Delayes the apothecia formation of Sclerotinia sclerotiorum | BZ15: Winter rape, spring rape, peas, beans | CA15: =DATE((YEAR(Tool!$C$10)),7,1) -> 2020-07-01 | CB15: 180
A16: Facelijos | B16: Phacelia tanacetifolia Benth. | C16: No | D16: Yes | E16: Yes | F16: Yes | G16: Yes | H16: 6.1 - 7.8 | I16: No | J16: No | K16: No | L16: No | M16: Yes | N16: Yes | O16: Yes | P16: 55-70 | Q16: 55 | R16: 70 | S16: SR | T16: SR | U16: SR | V16: S | Y16: S | AA16: ٧ | AB16: ٧ | AC16: ٧ | AD16: ٧ | AE16: ٧ | AF16: ٧ | AG16: ٧ | AH16: ٧ | AI16: ٧ | AL16: 10 | AM16: 10-12 | AN16: Nerekomenduojama | AO16: 2.05 | AP16: 65.6 | AQ16: 2 | AR16: 0 | AS16: 1 | AT16: 1 | AU16: 1 | AV16: Geriausiai auga derlingose, gerai sausinamose dirvose, neužpavėsintos. Reikėtų neleisti subrandinti sėklų, nes gali atsisėti. | AW16: Sėkla gali būti sėjama sėjamosiomis arba išberiama skutant ar kultivuojant dirvą po pagrindinių augalų nuėmimo.Sėklos turi būti tolygiai paskleidžiamos ant gerai paruoštos sėklos guoliavietės. Pašalinkite piktžoles, ypač daugiametes, ir išakėkite dirvožemio paviršių. Sėkla turi atsidurti maždaug 1 cm gylyje. Facelijos gali būti auginamos mišiniuose su grikiais. | AY16: 5 | BB16: 50.09 | BC16: 51.15 | BE16: 33.97 | BG16: 25.34 | BI16: 20.38 | BR16: 0 | BU16: 134 | BV16: 21.58388496 | BW16: 30 | BX16: Low | BY16: Reduces club root disease | BZ16: Brassica | CA16: =DATE((YEAR(Tool!$C$10)),8,15) -> 2020-08-15 | CB16: 180
A17: Paprastosios šunažolės | B17: Dactilis Glomerata | C17: Yes | D17: No | E17: No | F17: Yes | G17: Yes | H17: 5,7-7,5 | I17: No | J17: No | K17: No | L17: Yes | M17: Yes | N17: Yes | O17: Yes | P17: 60-80 | Q17: 60 | R17: 80 | S17: ? | T17: ? | U17: ? | V17: ? | W17: ? | X17: ? | Y17: ? | AD17: ٧ | AE17: ٧ | AF17: ٧ | AG17: ٧ | AL17: 12 | AM17: 12-14 | AN17: Nerekomenduojama | AO17: 1.85 | AP17: 48.1 | AQ17: ? | AR17: ? | AS17: ? | AT17: ? | AU17: ? | AW17: After seeding it is usefull to roll the ground to improve seed-to-soil contact but do not break up soil aggregates. | AY17: 5.23 | BC17: 51.15 | BM17: 91.02 | BN17: 86.2 | BO17: 86 | BS17: 64.38 | BT17: 64.18 | BV17: 11.54527055 | BW17: 40 | BX17: Medium | BY17: - | BZ17: - | CA17: =DATE((YEAR(Tool!$C$10)),8,1) -> 2020-08-01 | CB17: 220
A18: Sėjamosios ir netikšės avižos | B18: Avena sativa L & Avena strigosa L. | C18: No | D18: Yes | E18: Yes | F18: Yes | G18: Yes | H18: 5,3-6,5 | I18: No | J18: No | K18: Yes | L18: Yes | M18: Yes | N18: No | O18: No | P18: 50-80 | Q18: 50 | R18: 80 | S18: SR | T18: S | U18: SR | V18: SR | W18: SR | X18: SR | Y18: S | Z18: ٧ | AA18: ٧ | AB18: ٧ | AC18: ٧ | AD18: ٧ | AE18: ٧ | AF18: ٧ | AG18: ٧ | AH18: ٧ | AI18: ٧ | AL18: 100 | AM18: 100-120 | AN18: Nerekomenduojama | AO18: 1.85 | AP18: 48.1 | AQ18: 0 | AR18: 2 | AS18: 0 | AT18: 3 | AU18: 2 | AV18: Po stipraus lietaus susidarius plutai avižos gali žūti, todėl jas gali tekti atsėti. Avižų šaknų sistema neparsiskverbia per suslėgtą dirvožemį. Avižos neatsparios vainikuotosioms rūdims, pritraukia amarus. | AW18: Gali būti sėjamos sėjamosiomis arba išberiamos skutant ar kultivuojant dirvą po pagrindinių augalų nuėmimo. Įdirbkite žemę ir sunaikinkite piktžoles guoliavietėje. Po sėjos privoluokite dirvą. Gali būti auginamos mišiniuose su vikiais, žirniais, pupomis. | AY18: 0.63 | BA18: 50.93 | BD18: 35.92 | BF18: 26.56 | BI18: 20.38 | BR18: 0 | BU18: 134 | BV18: 11.54527055 | BW18: 90 | BX18: Large | BY18: Reduces club root disease | BZ18: Brassica | CA18: =DATE((YEAR(Tool!$C$10)),8,15) -> 2020-08-15 | CB18: 220
A19: Grikiai | B19: Fagopyrum esculentum Moench | C19: No | D19: Yes | E19: Yes | F19: Yes | G19: No | H19: 4,5-6,5 | I19: No | J19: Yes | K19: Yes | L19: Yes | M19: Yes | N19: No | O19: No | P19: 60-80 | Q19: 60 | R19: 80 | S19: S | T19: S | U19: S | W19: S | X19: S | Y19: S | AC19: ٧ | AD19: ٧ | AE19: ٧ | AF19: ٧ | AL19: 40 | AM19: 40-70 | AN19: Nerekomenduojama | AO19: 1.85 | AP19: 44.4 | AQ19: 0 | AR19: 0 | AS19: 0 | AT19: 0 | AU19: 0 | AV19: Venkite sėti drėgnose vietose, grikiai nepakenčia užmirkimo. Nesėkite sunkiame dirvožemyje. Grikiai neįveikia armens pado. Jei tarp augalų susidarys didesni nei 60 cm tarpai, juose plis piktožolės. Grikių pasėliai privilioja ne tik naudingus vabzdžius, tačiau ir kenkėjus, pavyzdžiui amarus. Grikiai yra ypatingai jautrūs nepalankioms oro sąlygoms, žūva esant mažiausioms šalnoms. | AW19: Norint užtikrinti greitą pasėlių sudygimą, būtina gerai paruošti sėklos guoliavietę. Mažai derlingose dirvose grikiai augs geriau nei daugelis kitų tarpinių pasėlių. Jie sparčiai auga ir greitai užbaigia vegetacijos ciklą (po pirmųjų šalnų). | AY19: 0.8 | BA19: 50.93 | BD19: 35.92 | BF19: 26.56 | BI19: 20.38 | BR19: 0 | BU19: 134 | BV19: 9.037800562 | BW19: 90 | BX19: Large | BY19: - | BZ19: - | CA19: =DATE((YEAR(Tool!$C$10)),7,23) -> 2020-07-23 | CB19: 220
A20: Žieminiai (ruginiai) vikiai | B20: Vicia villosa Roth | C20: No | D20: Yes | E20: Yes | F20: Yes | G20: Yes | H20: 5 - 7,5 | I20: No | J20: No | K20: Yes | L20: Yes | M20: Yes | N20: Yes | O20: Yes | P20: 50-80 | Q20: 50 | R20: 80 | S20: SR | T20: SR | U20: SR | V20: S | W20: S | X20: S | Z20: ٧ | AA20: ٧ | AB20: ٧ | AC20: ٧ | AD20: ٧ | AE20: ٧ | AF20: ٧ | AG20: ٧ | AH20: ٧ | AL20: 45 | AM20: 30-50 | AN20: Nerekomenduojama | AO20: 1.65 | AP20: 74.25 | AQ20: 2 | AR20: 0 | AS20: 3 | AT20: 0 | AU20: 2 | AV20: Vikiai prastai auga suslėgtuose dirvožemiuose. Reikalauja daug fosforo ir kalio. Jei subrandina sėklas, gali plisti kaip piktžolė. Prieš sėdami kitus ankštinius augalus palaukite bent trejus metus, nes vikiai platina šaknų puvinius, yra pažeidžiami nematodų. Gali būti miltligės šaltinis. | AW20: Paruoškite gerai nusausintą, be piktžolių ir grumstų sėklos guoliavietę. Norint užtikrinti pasėlio vientisumą, pirmenybė teikiama sėjai sėjamosiomis. Gali būti auginami mišiniuose su varpiniais javais, pvz. rugiais, avižomis. | AY20: 1.18 | BA20: 50.93 | BD20: 35.92 | BF20: 26.56 | BI20: 20.38 | BS20: 64.38 | BT20: 64.18 | BU20: 134 | BV20: 36.59793083 | BW20: 30 | BX20: Low | BY20: - | BZ20: - | CA20: =DATE((YEAR(Tool!$C$10)),8,7) -> 2020-08-07 | CB20: 100
A21: Sėjamieji žirniai | B21: Pisum sativum L | C21: No | D21: Yes | E21: No | F21: Yes | G21: Yes | H21: 5,5-7,0 | I21: No | J21: No | K21: No | L21: Yes | M21: Yes | N21: Yes | O21: No | P21: 50-80 | Q21: 50 | R21: 80 | S21: SR | T21: SR | U21: SR | V21: SR | W21: S | X21: S | Z21: ٧ | AA21: ٧ | AB21: ٧ | AC21: ٧ | AD21: ٧ | AE21: ٧ | AF21: ٧ | AG21: ٧ | AH21: ٧ | AI21: ٧ | AL21: 150 | AM21: 100-250 | AN21: Nerekomenduojama | AO21: 1.85 | AP21: 74 | AQ21: 0 | AR21: 0 | AS21: 0 | AT21: 0 | AU21: 1 | AV21: Žirniai prastai konkuruoja su piktžolėmis. | AW21: Žirniai gali būti sėjami įprastomis javų sėjamosiomis. Paprastai sėjami 4–6 cm gyliu. Gali būti auginami mišiniuose su varpiniais augalais, pvz. rugiais, avižomis. | AY21: 0.2 | BA21: 50.93 | BD21: 35.92 | BF21: 26.56 | BI21: 20.38 | BR21: 0 | BV21: 32.64975475 | BW21: 10 | BX21: Low | BY21: - | BZ21: - | CA21: =DATE((YEAR(Tool!$C$10)),8,15) -> 2020-08-15 | CB21: 100
A22: Siauralapiai lubinai | B22: Lupinus angustifolius | C22: No | D22: Yes | E22: Yes | F22: Yes | G22: No | H22: 4,5-6,5 | I22: Yes | J22: Yes | K22: Yes | L22: Yes | M22: Yes | N22: No | O22: No | P22: 75-100 | Q22: 75 | R22: 100 | S22: SR | T22: SR | U22: SR | V22: S | W22: S | X22: S | Z22: ٧ | AA22: ٧ | AB22: ٧ | AC22: ٧ | AL22: 100 | AM22: 100-150 | AN22: Nerekomenduojama | AO22: 2.05 | AP22: 82 | AQ22: 2 | AR22: 0 | AS22: 0 | AT22: 0 | AU22: 1 | AV22: Sėkloms dirvoje išbrinkti reikia daug drėgmės. Auga lėtai, blogai stelbia piktžoles. | AW22: Mažai derlingose dirvose augs geriau nei daugelis kitų tarpinių pasėlių. Kad pradėtų dygti, reikia daug vandens. Gali būti auginami mišiniuose su avižomis. | AY22: 0.9 | BR22: 0 | BU22: 134 | BV22: 36.17945797 | BW22: 20 | BX22: Low | BY22: - | BZ22: - | CA22: =DATE((YEAR(Tool!$C$10)),7,1) -> 2020-07-01 | CB22: 110
A23: Pupos | B23: Vicia faba | C23: No | D23: Yes | E23: No | F23: Yes | G23: Yes | H23: 5,5-7,5 | I23: No | J23: No | K23: No | L23: Yes | M23: Yes | N23: Yes | O23: Yes | P23: 70-90 | Q23: 70 | R23: 90 | S23: SR | T23: SR | U23: SR | V23: SR | W23: S | X23: S | Z23: ٧ | AA23: ٧ | AB23: ٧ | AC23: ٧ | AD23: ٧ | AE23: ٧ | AF23: ٧ | AG23: ٧ | AH23: ٧ | AI23: ٧ | AL23: 180 | AM23: 180-220 | AN23: Nerekomenduojama | AO23: 1.95 | AP23: 87.75 | AQ23: 1 | AR23: 0 | AS23: 0 | AT23: 0 | AU23: 1 | AV23: Ankstyvose vystymosi stadijose pupos prastai konkuruoja su piktžolėmis. Sėklos didelės, tad sudėtinga sėti ir sudaryti mišinius. | AW23: Pupos paprastai sėjamos 6-10 cm gyliu. Esant sausoms sąlygoms, rekomenduojama sėti giliau. Sėjos norma turi būti pakankamai didelė. Pasėjus, dirvą rekomenduojama privoluoti. Gali būti auginamos mišiniuose su varpiniais augalais (pvz. avižomis), kitais ankštiniais (pvz., vikiais), arba bastutiniais (pvz. rapsais). | AY23: 0.28 | BA23: 50.93 | BD23: 35.92 | BF23: 26.56 | BI23: 20.38 | BR23: 0 | BU23: 134 | BV23: 43.25210008 | BW23: 40 | BX23: Medium | BY23: - | BZ23: - | CA23: =DATE((YEAR(Tool!$C$10)),8,15) -> 2020-08-15 | CB23: 110
S25: SR - strongly recommended
S26: S - suitable

Sheet Lists (hidden)
A1: Way of catch crop growing | C1: Soil type | E1: Soil pH | G1: Establishment methods | AC1: Slope of the field | AD1: Coefficient | AE1: Obstacles | AF1: Coefficient | AG1: Stones | AH1: Coefficient | AI1: Bar length | AJ1: Coefficient | AL1: Todays date
A2: Undersown | C2: Priesmėlis | E2: < 4,5 | G2: Baltosios garstyčios | H2: Rudosios garstyčios | I2: Vasariniai rapsai | J2: Žieminiai rapsai | K2: Aliejiniai ridikai | L2: Šakniniai ridikai | M2: Žieminiai rapsiukai | N2: Žieminiai rugiai | O2: Baltieji dobilai | P2: Raudonieji dobilai | Q2: Baltažiedžiai barkūnai | R2: Gausiažiedės svidrės | S2: Daugiametės svidrės | T2: Facelijos | U2: Paprastosios šunažolės | V2: Sėjamosios ir netikšės avižos | W2: Grikiai | X2: Žieminiai (ruginiai) vikiai | Y2: Sėjamieji žirniai | Z2: Siauralapiai lubinai | AA2: Pupos | AC2: 1-3 | AD2: 0.98 | AE2: <5 | AF2: 0.96 | AG2: <10 | AH2: 0.98 | AI2: >600 | AJ2: 0.97 | AL2: =TODAY() -> 2020-07-07
A3: Post harvest | C3: Molis | E3: 4,6 - 5 | G3: Sėklų išbarstymas | H3: Sėklų išbarstymas | I3: Sėklų išbarstymas | J3: Tiesioginės sėjos (ražieninė) rapsų sėjamoji | K3: Tiesioginės sėjos (ražieninė) rapsų sėjamoji | L3: Tiesioginės sėjos (ražieninė) rapsų sėjamoji | M3: Tiesioginės sėjos (ražieninė) rapsų sėjamoji | N3: Tiesioginės sėjos (ražieninė) javų sėjamoji | O3: Seklusis ražienų skutimas + pakabinamoji pneumatinė žolių sėjamoji | P3: Seklusis ražienų skutimas + pakabinamoji pneumatinė žolių sėjamoji | Q3: Seklusis ražienų skutimas + pakabinamoji pneumatinė žolių sėjamoji | R3: Seklusis ražienų skutimas + pakabinamoji pneumatinė žolių sėjamoji | S3: Seklusis ražienų skutimas + pakabinamoji pneumatinė žolių sėjamoji | T3: Tiesioginės sėjos (ražieninė) rapsų sėjamoji | U3: Seklusis ražienų skutimas + pakabinamoji pneumatinė žolių sėjamoji | V3: Tiesioginės sėjos (ražieninė) javų sėjamoji | W3: Tiesioginės sėjos (ražieninė) javų sėjamoji | X3: Tiesioginės sėjos (ražieninė) javų sėjamoji | Y3: Tiesioginės sėjos (ražieninė) javų sėjamoji | Z3: Seklusis ražienų skutimas + pakabinamoji pneumatinė žolių sėjamoji | AA3: Tiesioginės sėjos (ražieninė) javų sėjamoji | AC3: 3-5 | AD3: 0.94 | AE3: 5-15 | AF3: 0.91 | AG3: 10-25 | AH3: 0.92 | AI3: 400-600 | AJ3: 0.92
C4: Priemolis | E4: 5,1 - 5,5 | G4: Tiesioginės sėjos (ražieninė) rapsų sėjamoji | H4: Tiesioginės sėjos (ražieninė) rapsų sėjamoji | I4: Tiesioginės sėjos (ražieninė) rapsų sėjamoji | J4: Kombinuotoji rapsų sėjamoji įdirbant dirvą | K4: Kombinuotoji rapsų sėjamoji įdirbant dirvą | L4: Kombinuotoji rapsų sėjamoji įdirbant dirvą | M4: Kombinuotoji rapsų sėjamoji įdirbant dirvą | N4: Kombinuotoji javų sėjamoji įdirbant dirvą | O4: Kitas | P4: Kitas | Q4: Kitas | R4: Kitas | S4: Kitas | T4: Kombinuotoji rapsų sėjamoji įdirbant dirvą | U4: Kitas | V4: Kombinuotoji javų sėjamoji įdirbant dirvą | W4: Kombinuotoji javų sėjamoji įdirbant dirvą | X4: Kombinuotoji javų sėjamoji įdirbant dirvą | Y4: Kombinuotoji javų sėjamoji įdirbant dirvą | Z4: Kitas | AA4: Kombinuotoji javų sėjamoji įdirbant dirvą | AC4: 5-7 | AD4: 0.91 | AE4: 5-25 | AF4: 0.84 | AG4: 25-50 | AH4: 0.9 | AI4: 300-400 | AJ4: 0.87
A5: Participation in RDP | E5: 5,6 - 6 | G5: Kombinuotoji rapsų sėjamoji įdirbant dirvą | H5: Kombinuotoji rapsų sėjamoji įdirbant dirvą | I5: Kombinuotoji rapsų sėjamoji įdirbant dirvą | J5: Seklusis ražienų skutimas + pakabinamoji pneumatinė rapsų sėjamoji | K5: Seklusis ražienų skutimas + pakabinamoji pneumatinė rapsų sėjamoji | L5: Seklusis ražienų skutimas + pakabinamoji pneumatinė žolių sėjamoji | M5: Seklusis ražienų skutimas + pakabinamoji pneumatinė žolių sėjamoji | N5: Seklusis ražienų skutimas + pakabinamoji pneumatinė javų sėjamoji | T5: Seklusis ražienų skutimas + pakabinamoji pneumatinė žolių sėjamoji | V5: Seklusis ražienų skutimas + pakabinamoji pneumatinė javų sėjamoji | W5: Seklusis ražienų skutimas + pakabinamoji pneumatinė javų sėjamoji | X5: Seklusis ražienų skutimas + pakabinamoji pneumatinė javų sėjamoji | Y5: Seklusis ražienų skutimas + pakabinamoji pneumatinė javų sėjamoji | AA5: Seklusis ražienų skutimas + pakabinamoji pneumatinė javų sėjamoji | AC5: 7-9 | AD5: 0.84 | AE5: 25-39 | AF5: 0.77 | AG5: >50 | AH5: 0.85 | AI5: 200-300 | AJ5: 0.82
A6: Taip | E6: 6,1-6,5 | G6: Seklusis ražienų skutimas + sėklų išbarstymas | H6: Seklusis ražienų skutimas + sėklų išbarstymas | I6: Seklusis ražienų skutimas + sėklų išbarstymas | J6: Seklusis ražienų skutimas + pakabinamoji pneumatinė žolių sėjamoji | K6: Seklusis ražienų skutimas + pakabinamoji pneumatinė žolių sėjamoji | L6: Seklusis ražienų skutimas + pakabinamoji pneumatinė rapsų sėjamoji | M6: Seklusis ražienų skutimas + pakabinamoji pneumatinė rapsų sėjamoji | N6: Kitas | T6: Seklusis ražienų skutimas + pakabinamoji pneumatinė rapsų sėjamoji | V6: Kitas | W6: Kitas | X6: Kitas | Y6: Kitas | AA6: Kitas | AI6: <200 | AJ6: 0.78
A7: Ne | E7: 6,6 - 7 | G7: Kitas | H7: Kitas | I7: Kitas | J7: Kitas | K7: Kitas | L7: Kitas | M7: Kitas | T7: Kitas
E8: >7 | AC8: Correction coefficient | AF8: =VLOOKUP(Tool!#REF!,Lists!AC1:AD5,2,FALSE)*VLOOKUP(Tool!#REF!,Lists!AE1:AF5,2,FALSE)*VLOOKUP(Tool!#REF!,Lists!AG1:AH5,2,FALSE)*VLOOKUP(Tool!#REF!,Lists!AI1:AJ6,2,FALSE) -> 
G11: Termination methods
G12: Baltosios garstyčios | H12: Rudosios garstyčios | I12: Vasariniai rapsai | J12: Žieminiai rapsai | K12: Aliejiniai ridikai | L12: Šakniniai ridikai | M12: Žieminiai rapsiukai | N12: Žieminiai rugiai | O12: Baltieji dobilai | P12: Raudonieji dobilai | Q12: Baltažiedžiai barkūnai | R12: Gausiažiedės svidrės | S12: Daugiametės svidrės | T12: Facelijos | U12: Paprastosios šunažolės | V12: Sėjamosios ir netikšės avižos | W12: Grikiai | X12: Žieminiai (ruginiai) vikiai | Y12: Sėjamieji žirniai | Z12: Siauralapiai lubinai | AA12: Pupos
G13: Nereikia atskiro panaikinimo | H13: Nereikia atskiro panaikinimo | I13: Nereikia atskiro panaikinimo | J13: Dirvos dirbimas pakabinamaisiais apverčiamaisiais plūgais | K13: Nereikia atskiro panaikinimo | L13: Nereikia atskiro panaikinimo | M13: Seklusis ražienų skutimas | N13: Seklusis ražienų skutimas | O13: Dirvos dirbimas pakabinamaisiais apverčiamaisiais plūgais | P13: Dirvos dirbimas pakabinamaisiais apverčiamaisiais plūgais | Q13: Dirvos dirbimas pakabinamaisiais apverčiamaisiais plūgais | R13: Seklusis ražienų skutimas | S13: Dirvos dirbimas pakabinamaisiais apverčiamaisiais plūgais | T13: Nereikia atskiro panaikinimo | U13: Dirvos dirbimas pakabinamaisiais apverčiamaisiais plūgais | V13: Nereikia atskiro panaikinimo | W13: Nereikia atskiro panaikinimo | X13: Seklusis ražienų skutimas | Y13: Nereikia atskiro panaikinimo | Z13: Nereikia atskiro panaikinimo | AA13: Nereikia atskiro panaikinimo
G14: Seklusis ražienų skutimas | H14: Seklusis ražienų skutimas | I14: Seklusis ražienų skutimas | J14: Dirvos dirbimas prikabinamaisiais apverčiamaisiais plūgais | K14: Seklusis ražienų skutimas | L14: Seklusis ražienų skutimas | M14: Kitas | N14: Dirvos lėkščiavimas (žemės ūkio mašinos darbinis plotis 3 m) + dirvos dirbimas pakabinamaisiais apverčiamaisiais plūgais | O14: Dirvos dirbimas prikabinamaisiais apverčiamaisiais plūgais | P14: Dirvos dirbimas prikabinamaisiais apverčiamaisiais plūgais | Q14: Dirvos dirbimas prikabinamaisiais apverčiamaisiais plūgais | R14: Dirvos dirbimas prikabinamaisiais apverčiamaisiais plūgais | S14: Kitas | T14: Seklusis ražienų skutimas | U14: Dirvos dirbimas prikabinamaisiais apverčiamaisiais plūgais | V14: Seklusis ražienų skutimas | W14: Seklusis ražienų skutimas | X14: Dirvos dirbimas pakabinamaisiais apverčiamaisiais plūgais | Y14: Seklusis ražienų skutimas | Z14: Kitas | AA14: Seklusis ražienų skutimas
G15: Kitas | H15: Kitas | I15: Kitas | J15: Dirvos lėkščiavimas (žemės ūkio mašinos darbinis plotis 3 m) + dirvos dirbimas pakabinamaisiais apverčiamaisiais plūgais | K15: Kitas | L15: Dirvos lėkščiavimas (žemės ūkio mašinos darbinis plotis 3 m) | N15: Dirvos lėkščiavimas (žemės ūkio mašinos darbinis plotis 3 m) + dirvos dirbimas prikabinamaisiais apverčiamaisiais plūgais | O15: Kitas | P15: Kitas | Q15: Kitas | R15: Kitas | T15: Kitas | U15: Dirvos lėkščiavimas (žemės ūkio mašinos darbinis plotis 3 m) + dirvos dirbimas prikabinamaisiais apverčiamaisiais plūgais | V15: Kitas | W15: Kitas | X15: Dirvos dirbimas prikabinamaisiais apverčiamaisiais plūgais | Y15: Kitas | AA15: Kitas
J16: Dirvos lėkščiavimas (žemės ūkio mašinos darbinis plotis 3 m) + dirvos dirbimas prikabinamaisiais apverčiamaisiais plūgais | L16: Dirvos lėkščiavimas (žemės ūkio mašinos darbinis plotis 5 m) | N16: Dirvos lėkščiavimas (žemės ūkio mašinos darbinis plotis 5 m) + dirvos dirbimas pakabinamaisiais apverčiamaisiais plūgais | U16: Dirvos lėkščiavimas (žemės ūkio mašinos darbinis plotis 5 m) + dirvos dirbimas pakabinamaisiais apverčiamaisiais plūgais | X16: Kitas
J17: Dirvos lėkščiavimas (žemės ūkio mašinos darbinis plotis 5 m) + dirvos dirbimas pakabinamaisiais apverčiamaisiais plūgais | L17: Kitas | N17: Dirvos lėkščiavimas (žemės ūkio mašinos darbinis plotis 5 m) + dirvos dirbimas prikabinamaisiais apverčiamaisiais plūgais | U17: Dirvos lėkščiavimas (žemės ūkio mašinos darbinis plotis 5 m) + dirvos dirbimas prikabinamaisiais apverčiamaisiais plūgais
J18: Dirvos lėkščiavimas (žemės ūkio mašinos darbinis plotis 5 m) + dirvos dirbimas prikabinamaisiais apverčiamaisiais plūgais | N18: Dirvos volavimas + dirvos dirbimas pakabinamaisiais apverčiamaisiais plūgais | U18: Kitas
J19: Dirvos volavimas + dirvos dirbimas pakabinamaisiais apverčiamaisiais plūgais | N19: Dirvos volavimas + dirvos dirbimas prikabinamaisiais apverčiamaisiais plūgais
J20: Dirvos volavimas + dirvos dirbimas prikabinamaisiais apverčiamaisiais plūgais | N20: Dirvos dirbimas pakabinamaisiais apverčiamaisiais plūgais
J21: Kitas | N21: Dirvos dirbimas prikabinamaisiais apverčiamaisiais plūgais
N22: Kitas

Sheet Niche for catch crops (hidden)
A2: Harvest date | B2: =Tool!C10 -> 2020-08-05 | D2: Date | E2: Pagrindinio pasėlio augimo laikotarpis | F2: Niša tarpiniams posėliniams pasėliams | G2: Niche for post harvest catch crops - too short | H2: Vėliausia rekomendauojama tarpinių pasėlių sėjos data
A3: Sowing date | B3: =Tool!C12 -> 2021-04-15 | D3: =B2-10 -> 2020-07-26 | E3: =IF((OR(D3<$B$2, D3>$B$3)),1,0) -> 1 | F3: =IF($B$3-$B$2>60,1-E3,0) -> 0 | G3: =IF($B$3-$B$2<60,1-E3,0) -> 0 | H3: =IF(Tool!$C$12-DATE((YEAR(Tool!$C$10)),8,20)<50,IF('Niche for catch crops'!D3=Tool!$C$12-50,1,""),IF(D3=DATE(YEAR(Tool!$C$10),8,20),1,"")) -> 
D4: =D3+1 -> 2020-07-27 | E4: 1 | F4: =IF($B$3-$B$2>60,1-E4,0) -> 0 | G4: =IF($B$3-$B$2<60,1-E4,0) -> 0 | H4: =IF(Tool!$C$12-DATE((YEAR(Tool!$C$10)),8,20)<50,IF('Niche for catch crops'!D4=Tool!$C$12-50,1,""),IF(D4=DATE(YEAR(Tool!$C$10),8,20),1,"")) -> 
D5: =D4+1 -> 2020-07-28 | E5: 1 | F5: 0 | G5: 0 | H5: =IF(Tool!$C$12-DATE((YEAR(Tool!$C$10)),8,20)<50,IF('Niche for catch crops'!D5=Tool!$C$12-50,1,""),IF(D5=DATE(YEAR(Tool!$C$10),8,20),1,"")) -> 
D6: 2020-07-29 | E6: 1 | F6: 0 | G6: 0 | H6: =IF(Tool!$C$12-DATE((YEAR(Tool!$C$10)),8,20)<50,IF('Niche for catch crops'!D6=Tool!$C$12-50,1,""),IF(D6=DATE(YEAR(Tool!$C$10),8,20),1,"")) -> 
D7: 2020-07-30 | E7: 1 | F7: 0 | G7: 0 | H7: =IF(Tool!$C$12-DATE((YEAR(Tool!$C$10)),8,20)<50,IF('Niche for catch crops'!D7=Tool!$C$12-50,1,""),IF(D7=DATE(YEAR(Tool!$C$10),8,20),1,"")) -> 
D8: 2020-07-31 | E8: 1 | F8: 0 | G8: 0 | H8: =IF(Tool!$C$12-DATE((YEAR(Tool!$C$10)),8,20)<50,IF('Niche for catch crops'!D8=Tool!$C$12-50,1,""),IF(D8=DATE(YEAR(Tool!$C$10),8,20),1,"")) -> 
D9: 2020-08-01 | E9: 1 | F9: 0 | G9: 0 | H9: =IF(Tool!$C$12-DATE((YEAR(Tool!$C$10)),8,20)<50,IF('Niche for catch crops'!D9=Tool!$C$12-50,1,""),IF(D9=DATE(YEAR(Tool!$C$10),8,20),1,"")) -> 
D10: 2020-08-02 | E10: 1 | F10: 0 | G10: 0 | H10: =IF(Tool!$C$12-DATE((YEAR(Tool!$C$10)),8,20)<50,IF('Niche for catch crops'!D10=Tool!$C$12-50,1,""),IF(D10=DATE(YEAR(Tool!$C$10),8,20),1,"")) -> 
D11: 2020-08-03 | E11: 1 | F11: 0 | G11: 0 | H11: =IF(Tool!$C$12-DATE((YEAR(Tool!$C$10)),8,20)<50,IF('Niche for catch crops'!D11=Tool!$C$12-50,1,""),IF(D11=DATE(YEAR(Tool!$C$10),8,20),1,"")) -> 
D12: 2020-08-04 | E12: 1 | F12: 0 | G12: 0 | H12: =IF(Tool!$C$12-DATE((YEAR(Tool!$C$10)),8,20)<50,IF('Niche for catch crops'!D12=Tool!$C$12-50,1,""),IF(D12=DATE(YEAR(Tool!$C$10),8,20),1,"")) -> 
D13: 2020-08-05 | E13: 0 | F13: 1 | G13: 0 | H13: =IF(Tool!$C$12-DATE((YEAR(Tool!$C$10)),8,20)<50,IF('Niche for catch crops'!D13=Tool!$C$12-50,1,""),IF(D13=DATE(YEAR(Tool!$C$10),8,20),1,"")) -> 
D14: 2020-08-06 | E14: 0 | F14: 1 | G14: 0 | H14: =IF(Tool!$C$12-DATE((YEAR(Tool!$C$10)),8,20)<50,IF('Niche for catch crops'!D14=Tool!$C$12-50,1,""),IF(D14=DATE(YEAR(Tool!$C$10),8,20),1,"")) -> 
D15: 2020-08-07 | E15: 0 | F15: 1 | G15: 0 | H15: =IF(Tool!$C$12-DATE((YEAR(Tool!$C$10)),8,20)<50,IF('Niche for catch crops'!D15=Tool!$C$12-50,1,""),IF(D15=DATE(YEAR(Tool!$C$10),8,20),1,"")) -> 
D16: 2020-08-08 | E16: 0 | F16: 1 | G16: 0 | H16: =IF(Tool!$C$12-DATE((YEAR(Tool!$C$10)),8,20)<50,IF('Niche for catch crops'!D16=Tool!$C$12-50,1,""),IF(D16=DATE(YEAR(Tool!$C$10),8,20),1,"")) -> 
D17: 2020-08-09 | E17: 0 | F17: 1 | G17: 0 | H17: =IF(Tool!$C$12-DATE((YEAR(Tool!$C$10)),8,20)<50,IF('Niche for catch crops'!D17=Tool!$C$12-50,1,""),IF(D17=DATE(YEAR(Tool!$C$10),8,20),1,"")) -> 
D18: 2020-08-10 | E18: 0 | F18: 1 | G18: 0 | H18: =IF(Tool!$C$12-DATE((YEAR(Tool!$C$10)),8,20)<50,IF('Niche for catch crops'!D18=Tool!$C$12-50,1,""),IF(D18=DATE(YEAR(Tool!$C$10),8,20),1,"")) -> 
D19: 2020-08-11 | E19: 0 | F19: 1 | G19: 0 | H19: =IF(Tool!$C$12-DATE((YEAR(Tool!$C$10)),8,20)<50,IF('Niche for catch crops'!D19=Tool!$C$12-50,1,""),IF(D19=DATE(YEAR(Tool!$C$10),8,20),1,"")) -> 
D20: 2020-08-12 | E20: 0 | F20: 1 | G20: 0 | H20: =IF(Tool!$C$12-DATE((YEAR(Tool!$C$10)),8,20)<50,IF('Niche for catch crops'!D20=Tool!$C$12-50,1,""),IF(D20=DATE(YEAR(Tool!$C$10),8,20),1,"")) -> 
D21: 2020-08-13 | E21: 0 | F21: 1 | G21: 0 | H21: =IF(Tool!$C$12-DATE((YEAR(Tool!$C$10)),8,20)<50,IF('Niche for catch crops'!D21=Tool!$C$12-50,1,""),IF(D21=DATE(YEAR(Tool!$C$10),8,20),1,"")) -> 
D22: 2020-08-14 | E22: 0 | F22: 1 | G22: 0 | H22: =IF(Tool!$C$12-DATE((YEAR(Tool!$C$10)),8,20)<50,IF('Niche for catch crops'!D22=Tool!$C$12-50,1,""),IF(D22=DATE(YEAR(Tool!$C$10),8,20),1,"")) -> 
D23: 2020-08-15 | E23: 0 | F23: 1 | G23: 0 | H23: =IF(Tool!$C$12-DATE((YEAR(Tool!$C$10)),8,20)<50,IF('Niche for catch crops'!D23=Tool!$C$12-50,1,""),IF(D23=DATE(YEAR(Tool!$C$10),8,20),1,"")) -> 
D24: 2020-08-16 | E24: 0 | F24: 1 | G24: 0 | H24: =IF(Tool!$C$12-DATE((YEAR(Tool!$C$10)),8,20)<50,IF('Niche for catch crops'!D24=Tool!$C$12-50,1,""),IF(D24=DATE(YEAR(Tool!$C$10),8,20),1,"")) -> 
D25: 2020-08-17 | E25: 0 | F25: 1 | G25: 0 | H25: =IF(Tool!$C$12-DATE((YEAR(Tool!$C$10)),8,20)<50,IF('Niche for catch crops'!D25=Tool!$C$12-50,1,""),IF(D25=DATE(YEAR(Tool!$C$10),8,20),1,"")) -> 
D26: 2020-08-18 | E26: 0 | F26: 1 | G26: 0 | H26: =IF(Tool!$C$12-DATE((YEAR(Tool!$C$10)),8,20)<50,IF('Niche for catch crops'!D26=Tool!$C$12-50,1,""),IF(D26=DATE(YEAR(Tool!$C$10),8,20),1,"")) -> 
D27: 2020-08-19 | E27: 0 | F27: 1 | G27: 0 | H27: =IF(Tool!$C$12-DATE((YEAR(Tool!$C$10)),8,20)<50,IF('Niche for catch crops'!D27=Tool!$C$12-50,1,""),IF(D27=DATE(YEAR(Tool!$C$10),8,20),1,"")) -> 
D28: 2020-08-20 | E28: 0 | F28: 1 | G28: 0 | H28: =IF(Tool!$C$12-DATE((YEAR(Tool!$C$10)),8,20)<50,IF('Niche for catch crops'!D28=Tool!$C$12-50,1,""),IF(D28=DATE(YEAR(Tool!$C$10),8,20),1,"")) -> 1
D29: 2020-08-21 | E29: 0 | F29: 1 | G29: 0 | H29: =IF(Tool!$C$12-DATE((YEAR(Tool!$C$10)),8,20)<50,IF('Niche for catch crops'!D29=Tool!$C$12-50,1,""),IF(D29=DATE(YEAR(Tool!$C$10),8,20),1,"")) -> 
D30: 2020-08-22 | E30: 0 | F30: 1 | G30: 0 | H30: =IF(Tool!$C$12-DATE((YEAR(Tool!$C$10)),8,20)<50,IF('Niche for catch crops'!D30=Tool!$C$12-50,1,""),IF(D30=DATE(YEAR(Tool!$C$10),8,20),1,"")) -> 
D31: 2020-08-23 | E31: 0 | F31: 1 | G31: 0 | H31: =IF(Tool!$C$12-DATE((YEAR(Tool!$C$10)),8,20)<50,IF('Niche for catch crops'!D31=Tool!$C$12-50,1,""),IF(D31=DATE(YEAR(Tool!$C$10),8,20),1,"")) -> 
D32: 2020-08-24 | E32: 0 | F32: 1 | G32: 0 | H32: =IF(Tool!$C$12-DATE((YEAR(Tool!$C$10)),8,20)<50,IF('Niche for catch crops'!D32=Tool!$C$12-50,1,""),IF(D32=DATE(YEAR(Tool!$C$10),8,20),1,"")) -> 
D33: 2020-08-25 | E33: 0 | F33: 1 | G33: 0 | H33: =IF(Tool!$C$12-DATE((YEAR(Tool!$C$10)),8,20)<50,IF('Niche for catch crops'!D33=Tool!$C$12-50,1,""),IF(D33=DATE(YEAR(Tool!$C$10),8,20),1,"")) -> 
D34: 2020-08-26 | E34: 0 | F34: 1 | G34: 0 | H34: =IF(Tool!$C$12-DATE((YEAR(Tool!$C$10)),8,20)<50,IF('Niche for catch crops'!D34=Tool!$C$12-50,1,""),IF(D34=DATE(YEAR(Tool!$C$10),8,20),1,"")) -> 
D35: 2020-08-27 | E35: =IF((OR(D35<$B$2, D35>$B$3)),1,0) -> 0 | F35: 1 | G35: 0 | H35: =IF(Tool!$C$12-DATE((YEAR(Tool!$C$10)),8,20)<50,IF('Niche for catch crops'!D35=Tool!$C$12-50,1,""),IF(D35=DATE(YEAR(Tool!$C$10),8,20),1,"")) -> 
D36: 2020-08-28 | E36: 0 | F36: 1 | G36: 0 | H36: =IF(Tool!$C$12-DATE((YEAR(Tool!$C$10)),8,20)<50,IF('Niche for catch crops'!D36=Tool!$C$12-50,1,""),IF(D36=DATE(YEAR(Tool!$C$10),8,20),1,"")) -> 
D37: 2020-08-29 | E37: 0 | F37: 1 | G37: 0 | H37: =IF(Tool!$C$12-DATE((YEAR(Tool!$C$10)),8,20)<50,IF('Niche for catch crops'!D37=Tool!$C$12-50,1,""),IF(D37=DATE(YEAR(Tool!$C$10),8,20),1,"")) -> 
D38: 2020-08-30 | E38: 0 | F38: 1 | G38: 0 | H38: =IF(Tool!$C$12-DATE((YEAR(Tool!$C$10)),8,20)<50,IF('Niche for catch crops'!D38=Tool!$C$12-50,1,""),IF(D38=DATE(YEAR(Tool!$C$10),8,20),1,"")) -> 
D39: 2020-08-31 | E39: 0 | F39: 1 | G39: 0 | H39: =IF(Tool!$C$12-DATE((YEAR(Tool!$C$10)),8,20)<50,IF('Niche for catch crops'!D39=Tool!$C$12-50,1,""),IF(D39=DATE(YEAR(Tool!$C$10),8,20),1,"")) -> 
D40: 2020-09-01 | E40: 0 | F40: 1 | G40: 0 | H40: =IF(Tool!$C$12-DATE((YEAR(Tool!$C$10)),8,20)<50,IF('Niche for catch crops'!D40=Tool!$C$12-50,1,""),IF(D40=DATE(YEAR(Tool!$C$10),8,20),1,"")) -> 
D41: 2020-09-02 | E41: 0 | F41: 1 | G41: 0 | H41: =IF(Tool!$C$12-DATE((YEAR(Tool!$C$10)),8,20)<50,IF('Niche for catch crops'!D41=Tool!$C$12-50,1,""),IF(D41=DATE(YEAR(Tool!$C$10),8,20),1,"")) -> 
D42: 2020-09-03 | E42: 0 | F42: 1 | G42: 0 | H42: =IF(Tool!$C$12-DATE((YEAR(Tool!$C$10)),8,20)<50,IF('Niche for catch crops'!D42=Tool!$C$12-50,1,""),IF(D42=DATE(YEAR(Tool!$C$10),8,20),1,"")) -> 
D43: 2020-09-04 | E43: 0 | F43: 1 | G43: 0 | H43: =IF(Tool!$C$12-DATE((YEAR(Tool!$C$10)),8,20)<50,IF('Niche for catch crops'!D43=Tool!$C$12-50,1,""),IF(D43=DATE(YEAR(Tool!$C$10),8,20),1,"")) -> 
D44: 2020-09-05 | E44: 0 | F44: 1 | G44: 0 | H44: =IF(Tool!$C$12-DATE((YEAR(Tool!$C$10)),8,20)<50,IF('Niche for catch crops'!D44=Tool!$C$12-50,1,""),IF(D44=DATE(YEAR(Tool!$C$10),8,20),1,"")) -> 
D45: 2020-09-06 | E45: 0 | F45: 1 | G45: 0 | H45: =IF(Tool!$C$12-DATE((YEAR(Tool!$C$10)),8,20)<50,IF('Niche for catch crops'!D45=Tool!$C$12-50,1,""),IF(D45=DATE(YEAR(Tool!$C$10),8,20),1,"")) -> 
D46: 2020-09-07 | E46: 0 | F46: 1 | G46: 0 | H46: =IF(Tool!$C$12-DATE((YEAR(Tool!$C$10)),8,20)<50,IF('Niche for catch crops'!D46=Tool!$C$12-50,1,""),IF(D46=DATE(YEAR(Tool!$C$10),8,20),1,"")) -> 
D47: 2020-09-08 | E47: 0 | F47: 1 | G47: 0 | H47: =IF(Tool!$C$12-DATE((YEAR(Tool!$C$10)),8,20)<50,IF('Niche for catch crops'!D47=Tool!$C$12-50,1,""),IF(D47=DATE(YEAR(Tool!$C$10),8,20),1,"")) -> 
D48: 2020-09-09 | E48: 0 | F48: 1 | G48: 0 | H48: =IF(Tool!$C$12-DATE((YEAR(Tool!$C$10)),8,20)<50,IF('Niche for catch crops'!D48=Tool!$C$12-50,1,""),IF(D48=DATE(YEAR(Tool!$C$10),8,20),1,"")) -> 
D49: 2020-09-10 | E49: 0 | F49: 1 | H49: =IF(Tool!$C$12-DATE((YEAR(Tool!$C$10)),8,20)<50,IF('Niche for catch crops'!D49=Tool!$C$12-50,1,""),IF(D49=DATE(YEAR(Tool!$C$10),8,20),1,"")) -> 
D50: 2020-09-11 | E50: 0 | F50: 1 | G50: 0 | H50: =IF(Tool!$C$12-DATE((YEAR(Tool!$C$10)),8,20)<50,IF('Niche for catch crops'!D50=Tool!$C$12-50,1,""),IF(D50=DATE(YEAR(Tool!$C$10),8,20),1,"")) -> 
D51: 2020-09-12 | E51: 0 | F51: 1 | G51: 0 | H51: =IF(Tool!$C$12-DATE((YEAR(Tool!$C$10)),8,20)<50,IF('Niche for catch crops'!D51=Tool!$C$12-50,1,""),IF(D51=DATE(YEAR(Tool!$C$10),8,20),1,"")) -> 
D52: 2020-09-13 | E52: 0 | F52: 1 | G52: 0 | H52: =IF(Tool!$C$12-DATE((YEAR(Tool!$C$10)),8,20)<50,IF('Niche for catch crops'!D52=Tool!$C$12-50,1,""),IF(D52=DATE(YEAR(Tool!$C$10),8,20),1,"")) -> 
D53: 2020-09-14 | E53: 0 | F53: 1 | G53: 0 | H53: =IF(Tool!$C$12-DATE((YEAR(Tool!$C$10)),8,20)<50,IF('Niche for catch crops'!D53=Tool!$C$12-50,1,""),IF(D53=DATE(YEAR(Tool!$C$10),8,20),1,"")) -> 
D54: 2020-09-15 | E54: 0 | F54: 1 | G54: 0 | H54: =IF(Tool!$C$12-DATE((YEAR(Tool!$C$10)),8,20)<50,IF('Niche for catch crops'!D54=Tool!$C$12-50,1,""),IF(D54=DATE(YEAR(Tool!$C$10),8,20),1,"")) -> 
D55: 2020-09-16 | E55: 0 | F55: 1 | G55: 0 | H55: =IF(Tool!$C$12-DATE((YEAR(Tool!$C$10)),8,20)<50,IF('Niche for catch crops'!D55=Tool!$C$12-50,1,""),IF(D55=DATE(YEAR(Tool!$C$10),8,20),1,"")) -> 
D56: 2020-09-17 | E56: 0 | F56: 1 | G56: 0 | H56: =IF(Tool!$C$12-DATE((YEAR(Tool!$C$10)),8,20)<50,IF('Niche for catch crops'!D56=Tool!$C$12-50,1,""),IF(D56=DATE(YEAR(Tool!$C$10),8,20),1,"")) -> 
D57: 2020-09-18 | E57: 0 | F57: 1 | G57: 0 | H57: =IF(Tool!$C$12-DATE((YEAR(Tool!$C$10)),8,20)<50,IF('Niche for catch crops'!D57=Tool!$C$12-50,1,""),IF(D57=DATE(YEAR(Tool!$C$10),8,20),1,"")) -> 
D58: 2020-09-19 | E58: 0 | F58: 1 | G58: 0 | H58: =IF(Tool!$C$12-DATE((YEAR(Tool!$C$10)),8,20)<50,IF('Niche for catch crops'!D58=Tool!$C$12-50,1,""),IF(D58=DATE(YEAR(Tool!$C$10),8,20),1,"")) -> 
D59: 2020-09-20 | E59: 0 | F59: 1 | G59: 0 | H59: =IF(Tool!$C$12-DATE((YEAR(Tool!$C$10)),8,20)<50,IF('Niche for catch crops'!D59=Tool!$C$12-50,1,""),IF(D59=DATE(YEAR(Tool!$C$10),8,20),1,"")) -> 
D60: 2020-09-21 | E60: 0 | F60: 1 | G60: 0 | H60: =IF(Tool!$C$12-DATE((YEAR(Tool!$C$10)),8,20)<50,IF('Niche for catch crops'!D60=Tool!$C$12-50,1,""),IF(D60=DATE(YEAR(Tool!$C$10),8,20),1,"")) -> 
D61: 2020-09-22 | E61: 0 | F61: 1 | G61: 0 | H61: =IF(Tool!$C$12-DATE((YEAR(Tool!$C$10)),8,20)<50,IF('Niche for catch crops'!D61=Tool!$C$12-50,1,""),IF(D61=DATE(YEAR(Tool!$C$10),8,20),1,"")) -> 
D62: 2020-09-23 | E62: 0 | F62: 1 | G62: 0 | H62: =IF(Tool!$C$12-DATE((YEAR(Tool!$C$10)),8,20)<50,IF('Niche for catch crops'!D62=Tool!$C$12-50,1,""),IF(D62=DATE(YEAR(Tool!$C$10),8,20),1,"")) -> 
D63: 2020-09-24 | E63: 0 | F63: 1 | G63: 0 | H63: =IF(Tool!$C$12-DATE((YEAR(Tool!$C$10)),8,20)<50,IF('Niche for catch crops'!D63=Tool!$C$12-50,1,""),IF(D63=DATE(YEAR(Tool!$C$10),8,20),1,"")) -> 
D64: 2020-09-25 | E64: 0 | F64: 1 | G64: 0 | H64: =IF(Tool!$C$12-DATE((YEAR(Tool!$C$10)),8,20)<50,IF('Niche for catch crops'!D64=Tool!$C$12-50,1,""),IF(D64=DATE(YEAR(Tool!$C$10),8,20),1,"")) -> 
D65: 2020-09-26 | E65: 0 | F65: 1 | G65: 0 | H65: =IF(Tool!$C$12-DATE((YEAR(Tool!$C$10)),8,20)<50,IF('Niche for catch crops'!D65=Tool!$C$12-50,1,""),IF(D65=DATE(YEAR(Tool!$C$10),8,20),1,"")) -> 
D66: 2020-09-27 | E66: 0 | F66: 1 | G66: 0 | H66: =IF(Tool!$C$12-DATE((YEAR(Tool!$C$10)),8,20)<50,IF('Niche for catch crops'!D66=Tool!$C$12-50,1,""),IF(D66=DATE(YEAR(Tool!$C$10),8,20),1,"")) -> 
D67: 2020-09-28 | E67: =IF((OR(D67<$B$2, D67>$B$3)),1,0) -> 0 | F67: 1 | G67: 0 | H67: =IF(Tool!$C$12-DATE((YEAR(Tool!$C$10)),8,20)<50,IF('Niche for catch crops'!D67=Tool!$C$12-50,1,""),IF(D67=DATE(YEAR(Tool!$C$10),8,20),1,"")) -> 
D68: 2020-09-29 | E68: 0 | F68: =IF($B$3-$B$2>60,1-E68,0) -> 1 | G68: =IF($B$3-$B$2<60,1-E68,0) -> 0 | H68: =IF(Tool!$C$12-DATE((YEAR(Tool!$C$10)),8,20)<50,IF('Niche for catch crops'!D68=Tool!$C$12-50,1,""),IF(D68=DATE(YEAR(Tool!$C$10),8,20),1,"")) -> 
D69: =D68+1 -> 2020-09-30 | E69: 0 | F69: 1 | G69: 0 | H69: =IF(Tool!$C$12-DATE((YEAR(Tool!$C$10)),8,20)<50,IF('Niche for catch crops'!D69=Tool!$C$12-50,1,""),IF(D69=DATE(YEAR(Tool!$C$10),8,20),1,"")) -> 
D70: 2020-10-01 | E70: 0 | F70: 1 | G70: 0 | H70: =IF(Tool!$C$12-DATE((YEAR(Tool!$C$10)),8,20)<50,IF('Niche for catch crops'!D70=Tool!$C$12-50,1,""),IF(D70=DATE(YEAR(Tool!$C$10),8,20),1,"")) -> 
D71: 2020-10-02 | E71: 0 | F71: 1 | G71: 0 | H71: =IF(Tool!$C$12-DATE((YEAR(Tool!$C$10)),8,20)<50,IF('Niche for catch crops'!D71=Tool!$C$12-50,1,""),IF(D71=DATE(YEAR(Tool!$C$10),8,20),1,"")) -> 
D72: 2020-10-03 | E72: 0 | F72: 1 | G72: 0 | H72: =IF(Tool!$C$12-DATE((YEAR(Tool!$C$10)),8,20)<50,IF('Niche for catch crops'!D72=Tool!$C$12-50,1,""),IF(D72=DATE(YEAR(Tool!$C$10),8,20),1,"")) -> 
D73: 2020-10-04 | E73: 0 | F73: 1 | G73: 0 | H73: =IF(Tool!$C$12-DATE((YEAR(Tool!$C$10)),8,20)<50,IF('Niche for catch crops'!D73=Tool!$C$12-50,1,""),IF(D73=DATE(YEAR(Tool!$C$10),8,20),1,"")) -> 
D74: 2020-10-05 | E74: 0 | F74: 1 | G74: 0 | H74: =IF(Tool!$C$12-DATE((YEAR(Tool!$C$10)),8,20)<50,IF('Niche for catch crops'!D74=Tool!$C$12-50,1,""),IF(D74=DATE(YEAR(Tool!$C$10),8,20),1,"")) -> 
D75: 2020-10-06 | E75: 0 | F75: 1 | G75: 0 | H75: =IF(Tool!$C$12-DATE((YEAR(Tool!$C$10)),8,20)<50,IF('Niche for catch crops'!D75=Tool!$C$12-50,1,""),IF(D75=DATE(YEAR(Tool!$C$10),8,20),1,"")) -> 
D76: 2020-10-07 | E76: 0 | F76: 1 | G76: 0 | H76: =IF(Tool!$C$12-DATE((YEAR(Tool!$C$10)),8,20)<50,IF('Niche for catch crops'!D76=Tool!$C$12-50,1,""),IF(D76=DATE(YEAR(Tool!$C$10),8,20),1,"")) -> 
D77: 2020-10-08 | E77: 0 | F77: 1 | G77: 0 | H77: =IF(Tool!$C$12-DATE((YEAR(Tool!$C$10)),8,20)<50,IF('Niche for catch crops'!D77=Tool!$C$12-50,1,""),IF(D77=DATE(YEAR(Tool!$C$10),8,20),1,"")) -> 
D78: 2020-10-09 | E78: 0 | F78: 1 | G78: 0 | H78: =IF(Tool!$C$12-DATE((YEAR(Tool!$C$10)),8,20)<50,IF('Niche for catch crops'!D78=Tool!$C$12-50,1,""),IF(D78=DATE(YEAR(Tool!$C$10),8,20),1,"")) -> 
D79: 2020-10-10 | E79: 0 | F79: 1 | G79: 0 | H79: =IF(Tool!$C$12-DATE((YEAR(Tool!$C$10)),8,20)<50,IF('Niche for catch crops'!D79=Tool!$C$12-50,1,""),IF(D79=DATE(YEAR(Tool!$C$10),8,20),1,"")) -> 
D80: 2020-10-11 | E80: 0 | F80: 1 | G80: 0 | H80: =IF(Tool!$C$12-DATE((YEAR(Tool!$C$10)),8,20)<50,IF('Niche for catch crops'!D80=Tool!$C$12-50,1,""),IF(D80=DATE(YEAR(Tool!$C$10),8,20),1,"")) -> 
D81: 2020-10-12 | E81: 0 | F81: 1 | G81: 0 | H81: =IF(Tool!$C$12-DATE((YEAR(Tool!$C$10)),8,20)<50,IF('Niche for catch crops'!D81=Tool!$C$12-50,1,""),IF(D81=DATE(YEAR(Tool!$C$10),8,20),1,"")) -> 
D82: 2020-10-13 | E82: 0 | F82: 1 | G82: 0 | H82: =IF(Tool!$C$12-DATE((YEAR(Tool!$C$10)),8,20)<50,IF('Niche for catch crops'!D82=Tool!$C$12-50,1,""),IF(D82=DATE(YEAR(Tool!$C$10),8,20),1,"")) -> 
D83: 2020-10-14 | E83: 0 | F83: 1 | G83: 0 | H83: =IF(Tool!$C$12-DATE((YEAR(Tool!$C$10)),8,20)<50,IF('Niche for catch crops'!D83=Tool!$C$12-50,1,""),IF(D83=DATE(YEAR(Tool!$C$10),8,20),1,"")) -> 
D84: 2020-10-15 | E84: 0 | F84: 1 | G84: 0 | H84: =IF(Tool!$C$12-DATE((YEAR(Tool!$C$10)),8,20)<50,IF('Niche for catch crops'!D84=Tool!$C$12-50,1,""),IF(D84=DATE(YEAR(Tool!$C$10),8,20),1,"")) -> 
D85: 2020-10-16 | E85: 0 | F85: 1 | G85: 0 | H85: =IF(Tool!$C$12-DATE((YEAR(Tool!$C$10)),8,20)<50,IF('Niche for catch crops'!D85=Tool!$C$12-50,1,""),IF(D85=DATE(YEAR(Tool!$C$10),8,20),1,"")) -> 
D86: 2020-10-17 | E86: 0 | F86: 1 | G86: 0 | H86: =IF(Tool!$C$12-DATE((YEAR(Tool!$C$10)),8,20)<50,IF('Niche for catch crops'!D86=Tool!$C$12-50,1,""),IF(D86=DATE(YEAR(Tool!$C$10),8,20),1,"")) -> 
D87: 2020-10-18 | E87: 0 | F87: 1 | G87: 0 | H87: =IF(Tool!$C$12-DATE((YEAR(Tool!$C$10)),8,20)<50,IF('Niche for catch crops'!D87=Tool!$C$12-50,1,""),IF(D87=DATE(YEAR(Tool!$C$10),8,20),1,"")) -> 
D88: 2020-10-19 | E88: 0 | F88: 1 | G88: 0 | H88: =IF(Tool!$C$12-DATE((YEAR(Tool!$C$10)),8,20)<50,IF('Niche for catch crops'!D88=Tool!$C$12-50,1,""),IF(D88=DATE(YEAR(Tool!$C$10),8,20),1,"")) -> 
D89: 2020-10-20 | E89: 0 | F89: 1 | G89: 0 | H89: =IF(Tool!$C$12-DATE((YEAR(Tool!$C$10)),8,20)<50,IF('Niche for catch crops'!D89=Tool!$C$12-50,1,""),IF(D89=DATE(YEAR(Tool!$C$10),8,20),1,"")) -> 
D90: 2020-10-21 | E90: 0 | F90: 1 | G90: 0 | H90: =IF(Tool!$C$12-DATE((YEAR(Tool!$C$10)),8,20)<50,IF('Niche for catch crops'!D90=Tool!$C$12-50,1,""),IF(D90=DATE(YEAR(Tool!$C$10),8,20),1,"")) -> 
D91: 2020-10-22 | E91: 0 | F91: 1 | G91: 0 | H91: =IF(Tool!$C$12-DATE((YEAR(Tool!$C$10)),8,20)<50,IF('Niche for catch crops'!D91=Tool!$C$12-50,1,""),IF(D91=DATE(YEAR(Tool!$C$10),8,20),1,"")) -> 
D92: 2020-10-23 | E92: 0 | F92: 1 | G92: 0 | H92: =IF(Tool!$C$12-DATE((YEAR(Tool!$C$10)),8,20)<50,IF('Niche for catch crops'!D92=Tool!$C$12-50,1,""),IF(D92=DATE(YEAR(Tool!$C$10),8,20),1,"")) -> 
D93: 2020-10-24 | E93: 0 | F93: 1 | G93: 0 | H93: =IF(Tool!$C$12-DATE((YEAR(Tool!$C$10)),8,20)<50,IF('Niche for catch crops'!D93=Tool!$C$12-50,1,""),IF(D93=DATE(YEAR(Tool!$C$10),8,20),1,"")) -> 
D94: 2020-10-25 | E94: 0 | F94: 1 | G94: 0 | H94: =IF(Tool!$C$12-DATE((YEAR(Tool!$C$10)),8,20)<50,IF('Niche for catch crops'!D94=Tool!$C$12-50,1,""),IF(D94=DATE(YEAR(Tool!$C$10),8,20),1,"")) -> 
D95: 2020-10-26 | E95: 0 | F95: 1 | G95: 0 | H95: =IF(Tool!$C$12-DATE((YEAR(Tool!$C$10)),8,20)<50,IF('Niche for catch crops'!D95=Tool!$C$12-50,1,""),IF(D95=DATE(YEAR(Tool!$C$10),8,20),1,"")) -> 
D96: 2020-10-27 | E96: 0 | F96: 1 | G96: 0 | H96: =IF(Tool!$C$12-DATE((YEAR(Tool!$C$10)),8,20)<50,IF('Niche for catch crops'!D96=Tool!$C$12-50,1,""),IF(D96=DATE(YEAR(Tool!$C$10),8,20),1,"")) -> 
D97: 2020-10-28 | E97: 0 | F97: 1 | G97: 0 | H97: =IF(Tool!$C$12-DATE((YEAR(Tool!$C$10)),8,20)<50,IF('Niche for catch crops'!D97=Tool!$C$12-50,1,""),IF(D97=DATE(YEAR(Tool!$C$10),8,20),1,"")) -> 
D98: 2020-10-29 | E98: 0 | F98: 1 | G98: 0 | H98: =IF(Tool!$C$12-DATE((YEAR(Tool!$C$10)),8,20)<50,IF('Niche for catch crops'!D98=Tool!$C$12-50,1,""),IF(D98=DATE(YEAR(Tool!$C$10),8,20),1,"")) -> 
D99: 2020-10-30 | E99: =IF((OR(D99<$B$2, D99>$B$3)),1,0) -> 0 | F99: 1 | G99: 0 | H99: =IF(Tool!$C$12-DATE((YEAR(Tool!$C$10)),8,20)<50,IF('Niche for catch crops'!D99=Tool!$C$12-50,1,""),IF(D99=DATE(YEAR(Tool!$C$10),8,20),1,"")) -> 
D100: 2020-10-31 | E100: 0 | F100: 1 | G100: 0 | H100: =IF(Tool!$C$12-DATE((YEAR(Tool!$C$10)),8,20)<50,IF('Niche for catch crops'!D100=Tool!$C$12-50,1,""),IF(D100=DATE(YEAR(Tool!$C$10),8,20),1,"")) -> 
D101: 2020-11-01 | E101: 0 | F101: 1 | G101: 0 | H101: =IF(Tool!$C$12-DATE((YEAR(Tool!$C$10)),8,20)<50,IF('Niche for catch crops'!D101=Tool!$C$12-50,1,""),IF(D101=DATE(YEAR(Tool!$C$10),8,20),1,"")) -> 
D102: 2020-11-02 | E102: 0 | F102: 1 | G102: 0 | H102: =IF(Tool!$C$12-DATE((YEAR(Tool!$C$10)),8,20)<50,IF('Niche for catch crops'!D102=Tool!$C$12-50,1,""),IF(D102=DATE(YEAR(Tool!$C$10),8,20),1,"")) -> 
D103: 2020-11-03 | E103: 0 | F103: 1 | G103: 0 | H103: =IF(Tool!$C$12-DATE((YEAR(Tool!$C$10)),8,20)<50,IF('Niche for catch crops'!D103=Tool!$C$12-50,1,""),IF(D103=DATE(YEAR(Tool!$C$10),8,20),1,"")) -> 
D104: 2020-11-04 | E104: 0 | F104: 1 | G104: 0 | H104: =IF(Tool!$C$12-DATE((YEAR(Tool!$C$10)),8,20)<50,IF('Niche for catch crops'!D104=Tool!$C$12-50,1,""),IF(D104=DATE(YEAR(Tool!$C$10),8,20),1,"")) -> 
D105: 2020-11-05 | E105: 0 | F105: 1 | G105: 0 | H105: =IF(Tool!$C$12-DATE((YEAR(Tool!$C$10)),8,20)<50,IF('Niche for catch crops'!D105=Tool!$C$12-50,1,""),IF(D105=DATE(YEAR(Tool!$C$10),8,20),1,"")) -> 
D106: 2020-11-06 | E106: 0 | F106: 1 | G106: 0 | H106: =IF(Tool!$C$12-DATE((YEAR(Tool!$C$10)),8,20)<50,IF('Niche for catch crops'!D106=Tool!$C$12-50,1,""),IF(D106=DATE(YEAR(Tool!$C$10),8,20),1,"")) -> 
D107: 2020-11-07 | E107: 0 | F107: 1 | G107: 0 | H107: =IF(Tool!$C$12-DATE((YEAR(Tool!$C$10)),8,20)<50,IF('Niche for catch crops'!D107=Tool!$C$12-50,1,""),IF(D107=DATE(YEAR(Tool!$C$10),8,20),1,"")) -> 
D108: 2020-11-08 | E108: 0 | F108: 1 | G108: 0 | H108: =IF(Tool!$C$12-DATE((YEAR(Tool!$C$10)),8,20)<50,IF('Niche for catch crops'!D108=Tool!$C$12-50,1,""),IF(D108=DATE(YEAR(Tool!$C$10),8,20),1,"")) -> 
D109: 2020-11-09 | E109: 0 | F109: 1 | G109: 0 | H109: =IF(Tool!$C$12-DATE((YEAR(Tool!$C$10)),8,20)<50,IF('Niche for catch crops'!D109=Tool!$C$12-50,1,""),IF(D109=DATE(YEAR(Tool!$C$10),8,20),1,"")) -> 
D110: 2020-11-10 | E110: 0 | F110: 1 | G110: 0 | H110: =IF(Tool!$C$12-DATE((YEAR(Tool!$C$10)),8,20)<50,IF('Niche for catch crops'!D110=Tool!$C$12-50,1,""),IF(D110=DATE(YEAR(Tool!$C$10),8,20),1,"")) -> 
D111: 2020-11-11 | E111: 0 | F111: 1 | G111: 0 | H111: =IF(Tool!$C$12-DATE((YEAR(Tool!$C$10)),8,20)<50,IF('Niche for catch crops'!D111=Tool!$C$12-50,1,""),IF(D111=DATE(YEAR(Tool!$C$10),8,20),1,"")) -> 
D112: 2020-11-12 | E112: 0 | F112: 1 | G112: 0 | H112: =IF(Tool!$C$12-DATE((YEAR(Tool!$C$10)),8,20)<50,IF('Niche for catch crops'!D112=Tool!$C$12-50,1,""),IF(D112=DATE(YEAR(Tool!$C$10),8,20),1,"")) -> 
D113: 2020-11-13 | E113: 0 | F113: 1 | G113: 0 | H113: =IF(Tool!$C$12-DATE((YEAR(Tool!$C$10)),8,20)<50,IF('Niche for catch crops'!D113=Tool!$C$12-50,1,""),IF(D113=DATE(YEAR(Tool!$C$10),8,20),1,"")) -> 
D114: 2020-11-14 | E114: 0 | F114: 1 | G114: 0 | H114: =IF(Tool!$C$12-DATE((YEAR(Tool!$C$10)),8,20)<50,IF('Niche for catch crops'!D114=Tool!$C$12-50,1,""),IF(D114=DATE(YEAR(Tool!$C$10),8,20),1,"")) -> 
D115: 2020-11-15 | E115: 0 | F115: 1 | G115: 0 | H115: =IF(Tool!$C$12-DATE((YEAR(Tool!$C$10)),8,20)<50,IF('Niche for catch crops'!D115=Tool!$C$12-50,1,""),IF(D115=DATE(YEAR(Tool!$C$10),8,20),1,"")) -> 
D116: 2020-11-16 | E116: 0 | F116: 1 | G116: 0 | H116: =IF(Tool!$C$12-DATE((YEAR(Tool!$C$10)),8,20)<50,IF('Niche for catch crops'!D116=Tool!$C$12-50,1,""),IF(D116=DATE(YEAR(Tool!$C$10),8,20),1,"")) -> 
D117: 2020-11-17 | E117: 0 | F117: 1 | G117: 0 | H117: =IF(Tool!$C$12-DATE((YEAR(Tool!$C$10)),8,20)<50,IF('Niche for catch crops'!D117=Tool!$C$12-50,1,""),IF(D117=DATE(YEAR(Tool!$C$10),8,20),1,"")) -> 
D118: 2020-11-18 | E118: 0 | F118: 1 | G118: 0 | H118: =IF(Tool!$C$12-DATE((YEAR(Tool!$C$10)),8,20)<50,IF('Niche for catch crops'!D118=Tool!$C$12-50,1,""),IF(D118=DATE(YEAR(Tool!$C$10),8,20),1,"")) -> 
D119: 2020-11-19 | E119: 0 | F119: 1 | G119: 0 | H119: =IF(Tool!$C$12-DATE((YEAR(Tool!$C$10)),8,20)<50,IF('Niche for catch crops'!D119=Tool!$C$12-50,1,""),IF(D119=DATE(YEAR(Tool!$C$10),8,20),1,"")) -> 
D120: 2020-11-20 | E120: 0 | F120: 1 | G120: 0 | H120: =IF(Tool!$C$12-DATE((YEAR(Tool!$C$10)),8,20)<50,IF('Niche for catch crops'!D120=Tool!$C$12-50,1,""),IF(D120=DATE(YEAR(Tool!$C$10),8,20),1,"")) -> 
D121: 2020-11-21 | E121: 0 | F121: 1 | G121: 0 | H121: =IF(Tool!$C$12-DATE((YEAR(Tool!$C$10)),8,20)<50,IF('Niche for catch crops'!D121=Tool!$C$12-50,1,""),IF(D121=DATE(YEAR(Tool!$C$10),8,20),1,"")) -> 
D122: 2020-11-22 | E122: 0 | F122: 1 | G122: 0 | H122: =IF(Tool!$C$12-DATE((YEAR(Tool!$C$10)),8,20)<50,IF('Niche for catch crops'!D122=Tool!$C$12-50,1,""),IF(D122=DATE(YEAR(Tool!$C$10),8,20),1,"")) -> 
D123: 2020-11-23 | E123: 0 | F123: 1 | G123: 0 | H123: =IF(Tool!$C$12-DATE((YEAR(Tool!$C$10)),8,20)<50,IF('Niche for catch crops'!D123=Tool!$C$12-50,1,""),IF(D123=DATE(YEAR(Tool!$C$10),8,20),1,"")) -> 
D124: 2020-11-24 | E124: 0 | F124: 1 | G124: 0 | H124: =IF(Tool!$C$12-DATE((YEAR(Tool!$C$10)),8,20)<50,IF('Niche for catch crops'!D124=Tool!$C$12-50,1,""),IF(D124=DATE(YEAR(Tool!$C$10),8,20),1,"")) -> 
D125: 2020-11-25 | E125: 0 | F125: 1 | G125: 0 | H125: =IF(Tool!$C$12-DATE((YEAR(Tool!$C$10)),8,20)<50,IF('Niche for catch crops'!D125=Tool!$C$12-50,1,""),IF(D125=DATE(YEAR(Tool!$C$10),8,20),1,"")) -> 
D126: 2020-11-26 | E126: 0 | F126: 1 | G126: 0 | H126: =IF(Tool!$C$12-DATE((YEAR(Tool!$C$10)),8,20)<50,IF('Niche for catch crops'!D126=Tool!$C$12-50,1,""),IF(D126=DATE(YEAR(Tool!$C$10),8,20),1,"")) -> 
D127: 2020-11-27 | E127: 0 | F127: 1 | G127: 0 | H127: =IF(Tool!$C$12-DATE((YEAR(Tool!$C$10)),8,20)<50,IF('Niche for catch crops'!D127=Tool!$C$12-50,1,""),IF(D127=DATE(YEAR(Tool!$C$10),8,20),1,"")) -> 
D128: 2020-11-28 | E128: 0 | F128: 1 | G128: 0 | H128: =IF(Tool!$C$12-DATE((YEAR(Tool!$C$10)),8,20)<50,IF('Niche for catch crops'!D128=Tool!$C$12-50,1,""),IF(D128=DATE(YEAR(Tool!$C$10),8,20),1,"")) -> 
D129: 2020-11-29 | E129: 0 | F129: 1 | G129: 0 | H129: =IF(Tool!$C$12-DATE((YEAR(Tool!$C$10)),8,20)<50,IF('Niche for catch crops'!D129=Tool!$C$12-50,1,""),IF(D129=DATE(YEAR(Tool!$C$10),8,20),1,"")) -> 
D130: 2020-11-30 | E130: 0 | F130: 1 | G130: 0 | H130: =IF(Tool!$C$12-DATE((YEAR(Tool!$C$10)),8,20)<50,IF('Niche for catch crops'!D130=Tool!$C$12-50,1,""),IF(D130=DATE(YEAR(Tool!$C$10),8,20),1,"")) -> 
D131: 2020-12-01 | E131: =IF((OR(D131<$B$2, D131>$B$3)),1,0) -> 0 | F131: 1 | G131: 0 | H131: =IF(Tool!$C$12-DATE((YEAR(Tool!$C$10)),8,20)<50,IF('Niche for catch crops'!D131=Tool!$C$12-50,1,""),IF(D131=DATE(YEAR(Tool!$C$10),8,20),1,"")) -> 
D132: 2020-12-02 | E132: 0 | F132: =IF($B$3-$B$2>60,1-E132,0) -> 1 | G132: =IF($B$3-$B$2<60,1-E132,0) -> 0 | H132: =IF(Tool!$C$12-DATE((YEAR(Tool!$C$10)),8,20)<50,IF('Niche for catch crops'!D132=Tool!$C$12-50,1,""),IF(D132=DATE(YEAR(Tool!$C$10),8,20),1,"")) -> 
D133: =D132+1 -> 2020-12-03 | E133: 0 | F133: 1 | G133: 0 | H133: =IF(Tool!$C$12-DATE((YEAR(Tool!$C$10)),8,20)<50,IF('Niche for catch crops'!D133=Tool!$C$12-50,1,""),IF(D133=DATE(YEAR(Tool!$C$10),8,20),1,"")) -> 
D134: 2020-12-04 | E134: 0 | F134: 1 | G134: 0 | H134: =IF(Tool!$C$12-DATE((YEAR(Tool!$C$10)),8,20)<50,IF('Niche for catch crops'!D134=Tool!$C$12-50,1,""),IF(D134=DATE(YEAR(Tool!$C$10),8,20),1,"")) -> 
D135: 2020-12-05 | E135: 0 | F135: 1 | G135: 0 | H135: =IF(Tool!$C$12-DATE((YEAR(Tool!$C$10)),8,20)<50,IF('Niche for catch crops'!D135=Tool!$C$12-50,1,""),IF(D135=DATE(YEAR(Tool!$C$10),8,20),1,"")) -> 
D136: 2020-12-06 | E136: 0 | F136: 1 | G136: 0 | H136: =IF(Tool!$C$12-DATE((YEAR(Tool!$C$10)),8,20)<50,IF('Niche for catch crops'!D136=Tool!$C$12-50,1,""),IF(D136=DATE(YEAR(Tool!$C$10),8,20),1,"")) -> 
D137: 2020-12-07 | E137: 0 | F137: 1 | G137: 0 | H137: =IF(Tool!$C$12-DATE((YEAR(Tool!$C$10)),8,20)<50,IF('Niche for catch crops'!D137=Tool!$C$12-50,1,""),IF(D137=DATE(YEAR(Tool!$C$10),8,20),1,"")) -> 
D138: 2020-12-08 | E138: 0 | F138: 1 | G138: 0 | H138: =IF(Tool!$C$12-DATE((YEAR(Tool!$C$10)),8,20)<50,IF('Niche for catch crops'!D138=Tool!$C$12-50,1,""),IF(D138=DATE(YEAR(Tool!$C$10),8,20),1,"")) -> 
D139: 2020-12-09 | E139: 0 | F139: 1 | G139: 0 | H139: =IF(Tool!$C$12-DATE((YEAR(Tool!$C$10)),8,20)<50,IF('Niche for catch crops'!D139=Tool!$C$12-50,1,""),IF(D139=DATE(YEAR(Tool!$C$10),8,20),1,"")) -> 
D140: 2020-12-10 | E140: 0 | F140: 1 | G140: 0 | H140: =IF(Tool!$C$12-DATE((YEAR(Tool!$C$10)),8,20)<50,IF('Niche for catch crops'!D140=Tool!$C$12-50,1,""),IF(D140=DATE(YEAR(Tool!$C$10),8,20),1,"")) -> 
D141: 2020-12-11 | E141: 0 | F141: 1 | G141: 0 | H141: =IF(Tool!$C$12-DATE((YEAR(Tool!$C$10)),8,20)<50,IF('Niche for catch crops'!D141=Tool!$C$12-50,1,""),IF(D141=DATE(YEAR(Tool!$C$10),8,20),1,"")) -> 
D142: 2020-12-12 | E142: 0 | F142: 1 | G142: 0 | H142: =IF(Tool!$C$12-DATE((YEAR(Tool!$C$10)),8,20)<50,IF('Niche for catch crops'!D142=Tool!$C$12-50,1,""),IF(D142=DATE(YEAR(Tool!$C$10),8,20),1,"")) -> 
D143: 2020-12-13 | E143: 0 | F143: 1 | G143: 0 | H143: =IF(Tool!$C$12-DATE((YEAR(Tool!$C$10)),8,20)<50,IF('Niche for catch crops'!D143=Tool!$C$12-50,1,""),IF(D143=DATE(YEAR(Tool!$C$10),8,20),1,"")) -> 
D144: 2020-12-14 | E144: 0 | F144: 1 | G144: 0 | H144: =IF(Tool!$C$12-DATE((YEAR(Tool!$C$10)),8,20)<50,IF('Niche for catch crops'!D144=Tool!$C$12-50,1,""),IF(D144=DATE(YEAR(Tool!$C$10),8,20),1,"")) -> 
D145: 2020-12-15 | E145: 0 | F145: 1 | G145: 0 | H145: =IF(Tool!$C$12-DATE((YEAR(Tool!$C$10)),8,20)<50,IF('Niche for catch crops'!D145=Tool!$C$12-50,1,""),IF(D145=DATE(YEAR(Tool!$C$10),8,20),1,"")) -> 
D146: 2020-12-16 | E146: 0 | F146: 1 | G146: 0 | H146: =IF(Tool!$C$12-DATE((YEAR(Tool!$C$10)),8,20)<50,IF('Niche for catch crops'!D146=Tool!$C$12-50,1,""),IF(D146=DATE(YEAR(Tool!$C$10),8,20),1,"")) -> 
D147: 2020-12-17 | E147: 0 | F147: 1 | G147: 0 | H147: =IF(Tool!$C$12-DATE((YEAR(Tool!$C$10)),8,20)<50,IF('Niche for catch crops'!D147=Tool!$C$12-50,1,""),IF(D147=DATE(YEAR(Tool!$C$10),8,20),1,"")) -> 
D148: 2020-12-18 | E148: 0 | F148: 1 | G148: 0 | H148: =IF(Tool!$C$12-DATE((YEAR(Tool!$C$10)),8,20)<50,IF('Niche for catch crops'!D148=Tool!$C$12-50,1,""),IF(D148=DATE(YEAR(Tool!$C$10),8,20),1,"")) -> 
D149: 2020-12-19 | E149: 0 | F149: 1 | G149: 0 | H149: =IF(Tool!$C$12-DATE((YEAR(Tool!$C$10)),8,20)<50,IF('Niche for catch crops'!D149=Tool!$C$12-50,1,""),IF(D149=DATE(YEAR(Tool!$C$10),8,20),1,"")) -> 
D150: 2020-12-20 | E150: 0 | F150: 1 | G150: 0 | H150: =IF(Tool!$C$12-DATE((YEAR(Tool!$C$10)),8,20)<50,IF('Niche for catch crops'!D150=Tool!$C$12-50,1,""),IF(D150=DATE(YEAR(Tool!$C$10),8,20),1,"")) -> 
D151: 2020-12-21 | E151: 0 | F151: 1 | G151: 0 | H151: =IF(Tool!$C$12-DATE((YEAR(Tool!$C$10)),8,20)<50,IF('Niche for catch crops'!D151=Tool!$C$12-50,1,""),IF(D151=DATE(YEAR(Tool!$C$10),8,20),1,"")) -> 
D152: 2020-12-22 | E152: 0 | F152: 1 | G152: 0 | H152: =IF(Tool!$C$12-DATE((YEAR(Tool!$C$10)),8,20)<50,IF('Niche for catch crops'!D152=Tool!$C$12-50,1,""),IF(D152=DATE(YEAR(Tool!$C$10),8,20),1,"")) -> 
D153: 2020-12-23 | E153: 0 | F153: 1 | G153: 0 | H153: =IF(Tool!$C$12-DATE((YEAR(Tool!$C$10)),8,20)<50,IF('Niche for catch crops'!D153=Tool!$C$12-50,1,""),IF(D153=DATE(YEAR(Tool!$C$10),8,20),1,"")) -> 
D154: 2020-12-24 | E154: 0 | F154: 1 | G154: 0 | H154: =IF(Tool!$C$12-DATE((YEAR(Tool!$C$10)),8,20)<50,IF('Niche for catch crops'!D154=Tool!$C$12-50,1,""),IF(D154=DATE(YEAR(Tool!$C$10),8,20),1,"")) -> 
D155: 2020-12-25 | E155: 0 | F155: 1 | G155: 0 | H155: =IF(Tool!$C$12-DATE((YEAR(Tool!$C$10)),8,20)<50,IF('Niche for catch crops'!D155=Tool!$C$12-50,1,""),IF(D155=DATE(YEAR(Tool!$C$10),8,20),1,"")) -> 
D156: 2020-12-26 | E156: 0 | F156: 1 | G156: 0 | H156: =IF(Tool!$C$12-DATE((YEAR(Tool!$C$10)),8,20)<50,IF('Niche for catch crops'!D156=Tool!$C$12-50,1,""),IF(D156=DATE(YEAR(Tool!$C$10),8,20),1,"")) -> 
D157: 2020-12-27 | E157: 0 | F157: 1 | G157: 0 | H157: =IF(Tool!$C$12-DATE((YEAR(Tool!$C$10)),8,20)<50,IF('Niche for catch crops'!D157=Tool!$C$12-50,1,""),IF(D157=DATE(YEAR(Tool!$C$10),8,20),1,"")) -> 
D158: 2020-12-28 | E158: 0 | F158: 1 | G158: 0 | H158: =IF(Tool!$C$12-DATE((YEAR(Tool!$C$10)),8,20)<50,IF('Niche for catch crops'!D158=Tool!$C$12-50,1,""),IF(D158=DATE(YEAR(Tool!$C$10),8,20),1,"")) -> 
D159: 2020-12-29 | E159: 0 | F159: 1 | G159: 0 | H159: =IF(Tool!$C$12-DATE((YEAR(Tool!$C$10)),8,20)<50,IF('Niche for catch crops'!D159=Tool!$C$12-50,1,""),IF(D159=DATE(YEAR(Tool!$C$10),8,20),1,"")) -> 
D160: 2020-12-30 | E160: 0 | F160: 1 | G160: 0 | H160: =IF(Tool!$C$12-DATE((YEAR(Tool!$C$10)),8,20)<50,IF('Niche for catch crops'!D160=Tool!$C$12-50,1,""),IF(D160=DATE(YEAR(Tool!$C$10),8,20),1,"")) -> 
D161: 2020-12-31 | E161: 0 | F161: 1 | G161: 0 | H161: =IF(Tool!$C$12-DATE((YEAR(Tool!$C$10)),8,20)<50,IF('Niche for catch crops'!D161=Tool!$C$12-50,1,""),IF(D161=DATE(YEAR(Tool!$C$10),8,20),1,"")) -> 
D162: 2021-01-01 | E162: 0 | F162: 1 | G162: 0 | H162: =IF(Tool!$C$12-DATE((YEAR(Tool!$C$10)),8,20)<50,IF('Niche for catch crops'!D162=Tool!$C$12-50,1,""),IF(D162=DATE(YEAR(Tool!$C$10),8,20),1,"")) -> 
D163: 2021-01-02 | E163: =IF((OR(D163<$B$2, D163>$B$3)),1,0) -> 0 | F163: 1 | G163: 0 | H163: =IF(Tool!$C$12-DATE((YEAR(Tool!$C$10)),8,20)<50,IF('Niche for catch crops'!D163=Tool!$C$12-50,1,""),IF(D163=DATE(YEAR(Tool!$C$10),8,20),1,"")) -> 
D164: 2021-01-03 | E164: 0 | F164: 1 | G164: 0 | H164: =IF(Tool!$C$12-DATE((YEAR(Tool!$C$10)),8,20)<50,IF('Niche for catch crops'!D164=Tool!$C$12-50,1,""),IF(D164=DATE(YEAR(Tool!$C$10),8,20),1,"")) -> 
D165: 2021-01-04 | E165: 0 | F165: 1 | G165: 0 | H165: =IF(Tool!$C$12-DATE((YEAR(Tool!$C$10)),8,20)<50,IF('Niche for catch crops'!D165=Tool!$C$12-50,1,""),IF(D165=DATE(YEAR(Tool!$C$10),8,20),1,"")) -> 
D166: 2021-01-05 | E166: 0 | F166: 1 | G166: 0 | H166: =IF(Tool!$C$12-DATE((YEAR(Tool!$C$10)),8,20)<50,IF('Niche for catch crops'!D166=Tool!$C$12-50,1,""),IF(D166=DATE(YEAR(Tool!$C$10),8,20),1,"")) -> 
D167: 2021-01-06 | E167: 0 | F167: 1 | G167: 0 | H167: =IF(Tool!$C$12-DATE((YEAR(Tool!$C$10)),8,20)<50,IF('Niche for catch crops'!D167=Tool!$C$12-50,1,""),IF(D167=DATE(YEAR(Tool!$C$10),8,20),1,"")) -> 
D168: 2021-01-07 | E168: 0 | F168: 1 | G168: 0 | H168: =IF(Tool!$C$12-DATE((YEAR(Tool!$C$10)),8,20)<50,IF('Niche for catch crops'!D168=Tool!$C$12-50,1,""),IF(D168=DATE(YEAR(Tool!$C$10),8,20),1,"")) -> 
D169: 2021-01-08 | E169: 0 | F169: 1 | G169: 0 | H169: =IF(Tool!$C$12-DATE((YEAR(Tool!$C$10)),8,20)<50,IF('Niche for catch crops'!D169=Tool!$C$12-50,1,""),IF(D169=DATE(YEAR(Tool!$C$10),8,20),1,"")) -> 
D170: 2021-01-09 | E170: 0 | F170: 1 | G170: 0 | H170: =IF(Tool!$C$12-DATE((YEAR(Tool!$C$10)),8,20)<50,IF('Niche for catch crops'!D170=Tool!$C$12-50,1,""),IF(D170=DATE(YEAR(Tool!$C$10),8,20),1,"")) -> 
D171: 2021-01-10 | E171: 0 | F171: 1 | G171: 0 | H171: =IF(Tool!$C$12-DATE((YEAR(Tool!$C$10)),8,20)<50,IF('Niche for catch crops'!D171=Tool!$C$12-50,1,""),IF(D171=DATE(YEAR(Tool!$C$10),8,20),1,"")) -> 
D172: 2021-01-11 | E172: 0 | F172: 1 | G172: 0 | H172: =IF(Tool!$C$12-DATE((YEAR(Tool!$C$10)),8,20)<50,IF('Niche for catch crops'!D172=Tool!$C$12-50,1,""),IF(D172=DATE(YEAR(Tool!$C$10),8,20),1,"")) -> 
D173: 2021-01-12 | E173: 0 | F173: 1 | G173: 0 | H173: =IF(Tool!$C$12-DATE((YEAR(Tool!$C$10)),8,20)<50,IF('Niche for catch crops'!D173=Tool!$C$12-50,1,""),IF(D173=DATE(YEAR(Tool!$C$10),8,20),1,"")) -> 
D174: 2021-01-13 | E174: 0 | F174: 1 | G174: 0 | H174: =IF(Tool!$C$12-DATE((YEAR(Tool!$C$10)),8,20)<50,IF('Niche for catch crops'!D174=Tool!$C$12-50,1,""),IF(D174=DATE(YEAR(Tool!$C$10),8,20),1,"")) -> 
D175: 2021-01-14 | E175: 0 | F175: 1 | G175: 0 | H175: =IF(Tool!$C$12-DATE((YEAR(Tool!$C$10)),8,20)<50,IF('Niche for catch crops'!D175=Tool!$C$12-50,1,""),IF(D175=DATE(YEAR(Tool!$C$10),8,20),1,"")) -> 
D176: 2021-01-15 | E176: 0 | F176: 1 | G176: 0 | H176: =IF(Tool!$C$12-DATE((YEAR(Tool!$C$10)),8,20)<50,IF('Niche for catch crops'!D176=Tool!$C$12-50,1,""),IF(D176=DATE(YEAR(Tool!$C$10),8,20),1,"")) -> 
D177: 2021-01-16 | E177: 0 | F177: 1 | G177: 0 | H177: =IF(Tool!$C$12-DATE((YEAR(Tool!$C$10)),8,20)<50,IF('Niche for catch crops'!D177=Tool!$C$12-50,1,""),IF(D177=DATE(YEAR(Tool!$C$10),8,20),1,"")) -> 
D178: 2021-01-17 | E178: 0 | F178: 1 | G178: 0 | H178: =IF(Tool!$C$12-DATE((YEAR(Tool!$C$10)),8,20)<50,IF('Niche for catch crops'!D178=Tool!$C$12-50,1,""),IF(D178=DATE(YEAR(Tool!$C$10),8,20),1,"")) -> 
D179: 2021-01-18 | E179: 0 | F179: 1 | G179: 0 | H179: =IF(Tool!$C$12-DATE((YEAR(Tool!$C$10)),8,20)<50,IF('Niche for catch crops'!D179=Tool!$C$12-50,1,""),IF(D179=DATE(YEAR(Tool!$C$10),8,20),1,"")) -> 
D180: 2021-01-19 | E180: 0 | F180: 1 | G180: 0 | H180: =IF(Tool!$C$12-DATE((YEAR(Tool!$C$10)),8,20)<50,IF('Niche for catch crops'!D180=Tool!$C$12-50,1,""),IF(D180=DATE(YEAR(Tool!$C$10),8,20),1,"")) -> 
D181: 2021-01-20 | E181: 0 | F181: 1 | G181: 0 | H181: =IF(Tool!$C$12-DATE((YEAR(Tool!$C$10)),8,20)<50,IF('Niche for catch crops'!D181=Tool!$C$12-50,1,""),IF(D181=DATE(YEAR(Tool!$C$10),8,20),1,"")) -> 
D182: 2021-01-21 | E182: 0 | F182: 1 | G182: 0 | H182: =IF(Tool!$C$12-DATE((YEAR(Tool!$C$10)),8,20)<50,IF('Niche for catch crops'!D182=Tool!$C$12-50,1,""),IF(D182=DATE(YEAR(Tool!$C$10),8,20),1,"")) -> 
D183: 2021-01-22 | E183: 0 | F183: 1 | G183: 0 | H183: =IF(Tool!$C$12-DATE((YEAR(Tool!$C$10)),8,20)<50,IF('Niche for catch crops'!D183=Tool!$C$12-50,1,""),IF(D183=DATE(YEAR(Tool!$C$10),8,20),1,"")) -> 
D184: 2021-01-23 | E184: 0 | F184: 1 | G184: 0 | H184: =IF(Tool!$C$12-DATE((YEAR(Tool!$C$10)),8,20)<50,IF('Niche for catch crops'!D184=Tool!$C$12-50,1,""),IF(D184=DATE(YEAR(Tool!$C$10),8,20),1,"")) -> 
D185: 2021-01-24 | E185: 0 | F185: 1 | G185: 0 | H185: =IF(Tool!$C$12-DATE((YEAR(Tool!$C$10)),8,20)<50,IF('Niche for catch crops'!D185=Tool!$C$12-50,1,""),IF(D185=DATE(YEAR(Tool!$C$10),8,20),1,"")) -> 
D186: 2021-01-25 | E186: 0 | F186: 1 | G186: 0 | H186: =IF(Tool!$C$12-DATE((YEAR(Tool!$C$10)),8,20)<50,IF('Niche for catch crops'!D186=Tool!$C$12-50,1,""),IF(D186=DATE(YEAR(Tool!$C$10),8,20),1,"")) -> 
D187: 2021-01-26 | E187: 0 | F187: 1 | G187: 0 | H187: =IF(Tool!$C$12-DATE((YEAR(Tool!$C$10)),8,20)<50,IF('Niche for catch crops'!D187=Tool!$C$12-50,1,""),IF(D187=DATE(YEAR(Tool!$C$10),8,20),1,"")) -> 
D188: 2021-01-27 | E188: 0 | F188: 1 | G188: 0 | H188: =IF(Tool!$C$12-DATE((YEAR(Tool!$C$10)),8,20)<50,IF('Niche for catch crops'!D188=Tool!$C$12-50,1,""),IF(D188=DATE(YEAR(Tool!$C$10),8,20),1,"")) -> 
D189: 2021-01-28 | E189: 0 | F189: 1 | G189: 0 | H189: =IF(Tool!$C$12-DATE((YEAR(Tool!$C$10)),8,20)<50,IF('Niche for catch crops'!D189=Tool!$C$12-50,1,""),IF(D189=DATE(YEAR(Tool!$C$10),8,20),1,"")) -> 
D190: 2021-01-29 | E190: 0 | F190: 1 | G190: 0 | H190: =IF(Tool!$C$12-DATE((YEAR(Tool!$C$10)),8,20)<50,IF('Niche for catch crops'!D190=Tool!$C$12-50,1,""),IF(D190=DATE(YEAR(Tool!$C$10),8,20),1,"")) -> 
D191: 2021-01-30 | E191: 0 | F191: 1 | G191: 0 | H191: =IF(Tool!$C$12-DATE((YEAR(Tool!$C$10)),8,20)<50,IF('Niche for catch crops'!D191=Tool!$C$12-50,1,""),IF(D191=DATE(YEAR(Tool!$C$10),8,20),1,"")) -> 
D192: 2021-01-31 | E192: 0 | F192: 1 | G192: 0 | H192: =IF(Tool!$C$12-DATE((YEAR(Tool!$C$10)),8,20)<50,IF('Niche for catch crops'!D192=Tool!$C$12-50,1,""),IF(D192=DATE(YEAR(Tool!$C$10),8,20),1,"")) -> 
D193: 2021-02-01 | E193: 0 | F193: 1 | G193: 0 | H193: =IF(Tool!$C$12-DATE((YEAR(Tool!$C$10)),8,20)<50,IF('Niche for catch crops'!D193=Tool!$C$12-50,1,""),IF(D193=DATE(YEAR(Tool!$C$10),8,20),1,"")) -> 
D194: 2021-02-02 | E194: 0 | F194: 1 | G194: 0 | H194: =IF(Tool!$C$12-DATE((YEAR(Tool!$C$10)),8,20)<50,IF('Niche for catch crops'!D194=Tool!$C$12-50,1,""),IF(D194=DATE(YEAR(Tool!$C$10),8,20),1,"")) -> 
D195: 2021-02-03 | E195: =IF((OR(D195<$B$2, D195>$B$3)),1,0) -> 0 | F195: 1 | G195: 0 | H195: =IF(Tool!$C$12-DATE((YEAR(Tool!$C$10)),8,20)<50,IF('Niche for catch crops'!D195=Tool!$C$12-50,1,""),IF(D195=DATE(YEAR(Tool!$C$10),8,20),1,"")) -> 
D196: 2021-02-04 | E196: 0 | F196: =IF($B$3-$B$2>60,1-E196,0) -> 1 | G196: =IF($B$3-$B$2<60,1-E196,0) -> 0 | H196: =IF(Tool!$C$12-DATE((YEAR(Tool!$C$10)),8,20)<50,IF('Niche for catch crops'!D196=Tool!$C$12-50,1,""),IF(D196=DATE(YEAR(Tool!$C$10),8,20),1,"")) -> 
D197: =D196+1 -> 2021-02-05 | E197: 0 | F197: 1 | G197: 0 | H197: =IF(Tool!$C$12-DATE((YEAR(Tool!$C$10)),8,20)<50,IF('Niche for catch crops'!D197=Tool!$C$12-50,1,""),IF(D197=DATE(YEAR(Tool!$C$10),8,20),1,"")) -> 
D198: 2021-02-06 | E198: 0 | F198: 1 | G198: 0 | H198: =IF(Tool!$C$12-DATE((YEAR(Tool!$C$10)),8,20)<50,IF('Niche for catch crops'!D198=Tool!$C$12-50,1,""),IF(D198=DATE(YEAR(Tool!$C$10),8,20),1,"")) -> 
D199: 2021-02-07 | E199: 0 | F199: 1 | G199: 0 | H199: =IF(Tool!$C$12-DATE((YEAR(Tool!$C$10)),8,20)<50,IF('Niche for catch crops'!D199=Tool!$C$12-50,1,""),IF(D199=DATE(YEAR(Tool!$C$10),8,20),1,"")) -> 
D200: 2021-02-08 | E200: 0 | F200: 1 | G200: 0 | H200: =IF(Tool!$C$12-DATE((YEAR(Tool!$C$10)),8,20)<50,IF('Niche for catch crops'!D200=Tool!$C$12-50,1,""),IF(D200=DATE(YEAR(Tool!$C$10),8,20),1,"")) -> 
D201: 2021-02-09 | E201: 0 | F201: 1 | G201: 0 | H201: =IF(Tool!$C$12-DATE((YEAR(Tool!$C$10)),8,20)<50,IF('Niche for catch crops'!D201=Tool!$C$12-50,1,""),IF(D201=DATE(YEAR(Tool!$C$10),8,20),1,"")) -> 
... 1 more rows

Sheet Data for Pivots (hidden)
A1: Feature | B1: Title | C1: Catch crop | D1: Value_text | E1: Value | F1: Filter
A2: Store excess N | B2: Performance and role | C2: Baltosios garstyčios | D2: Good | E2: 2 | F2: =HLOOKUP(Table1[[#This Row],[Catch crop]], Tool!C$29:M$29,1,0) -> Baltosios garstyčios
A3: Organic matter improvement | B3: Performance and role | C3: Baltosios garstyčios | D3: Very good | E3: 3 | F3: =HLOOKUP(Table1[[#This Row],[Catch crop]], Tool!C$29:M$29,1,0) -> Baltosios garstyčios
A4: Erosion fighter | B4: Performance and role | C4: Baltosios garstyčios | D4: Very good | E4: 3 | F4: =HLOOKUP(Table1[[#This Row],[Catch crop]], Tool!C$29:M$29,1,0) -> Baltosios garstyčios
A5: Weed fighter | B5: Performance and role | C5: Baltosios garstyčios | D5: Very good | E5: 3 | F5: =HLOOKUP(Table1[[#This Row],[Catch crop]], Tool!C$29:M$29,1,0) -> Baltosios garstyčios
A6: Good grazing | B6: Performance and role | C6: Baltosios garstyčios | D6: Good | E6: 2 | F6: =HLOOKUP(Table1[[#This Row],[Catch crop]], Tool!C$29:M$29,1,0) -> Baltosios garstyčios
A7: Quick growth | B7: Performance and role | C7: Baltosios garstyčios | D7: Very good | E7: 3 | F7: =HLOOKUP(Table1[[#This Row],[Catch crop]], Tool!C$29:M$29,1,0) -> Baltosios garstyčios
A8: Lasting residue | B8: Performance and role | C8: Baltosios garstyčios | D8: Fair | E8: 1 | F8: =HLOOKUP(Table1[[#This Row],[Catch crop]], Tool!C$29:M$29,1,0) -> Baltosios garstyčios
A9: Length of vegetative stage | B9: Performance and role | C9: Baltosios garstyčios | D9: Good | E9: 2 | F9: =HLOOKUP(Table1[[#This Row],[Catch crop]], Tool!C$29:M$29,1,0) -> Baltosios garstyčios
A10: Serving as a companion crop | B10: Performance and role | C10: Baltosios garstyčios | D10: Poor | E10: 0 | F10: =HLOOKUP(Table1[[#This Row],[Catch crop]], Tool!C$29:M$29,1,0) -> Baltosios garstyčios
A11: Cold/frost resistance | B11: Tolerances | C11: Baltosios garstyčios | D11: Poor | E11: 0 | F11: =HLOOKUP(Table1[[#This Row],[Catch crop]], Tool!C$29:M$29,1,0) -> Baltosios garstyčios
A12: Tolerance to heat | B12: Tolerances | C12: Baltosios garstyčios | D12: Good | E12: 2 | F12: =HLOOKUP(Table1[[#This Row],[Catch crop]], Tool!C$29:M$29,1,0) -> Baltosios garstyčios
A13: Tolerance to drought | B13: Tolerances | C13: Baltosios garstyčios | D13: Very good | E13: 3 | F13: =HLOOKUP(Table1[[#This Row],[Catch crop]], Tool!C$29:M$29,1,0) -> Baltosios garstyčios
A14: Tolerance to shade | B14: Tolerances | C14: Baltosios garstyčios | D14: Good | E14: 2 | F14: =HLOOKUP(Table1[[#This Row],[Catch crop]], Tool!C$29:M$29,1,0) -> Baltosios garstyčios
A15: Tolerance to flood | B15: Tolerances | C15: Baltosios garstyčios | D15: Fair | E15: 1 | F15: =HLOOKUP(Table1[[#This Row],[Catch crop]], Tool!C$29:M$29,1,0) -> Baltosios garstyčios
A16: Tolerance to low fertility | B16: Tolerances | C16: Baltosios garstyčios | D16: Fair | E16: 1 | F16: =HLOOKUP(Table1[[#This Row],[Catch crop]], Tool!C$29:M$29,1,0) -> Baltosios garstyčios
A17: Min. germination temperature, C | B17: Tolerances | C17: Baltosios garstyčios | F17: =HLOOKUP(Table1[[#This Row],[Catch crop]], Tool!C$29:M$29,1,0) -> Baltosios garstyčios
A18: Subsoiler | B18: Potential advantages: soil impact | C18: Baltosios garstyčios | D18: Fair | E18: 1 | F18: =HLOOKUP(Table1[[#This Row],[Catch crop]], Tool!C$29:M$29,1,0) -> Baltosios garstyčios
A19: Free P and K | B19: Potential advantages: soil impact | C19: Baltosios garstyčios | D19: Good | E19: 2 | F19: =HLOOKUP(Table1[[#This Row],[Catch crop]], Tool!C$29:M$29,1,0) -> Baltosios garstyčios
A20: Loosen topsoil | B20: Potential advantages: soil impact | C20: Baltosios garstyčios | D20: Very good | E20: 3 | F20: =HLOOKUP(Table1[[#This Row],[Catch crop]], Tool!C$29:M$29,1,0) -> Baltosios garstyčios
A21: Nematodes | B21: Potential advantages: soil ecology | C21: Baltosios garstyčios | D21: Very good | E21: 3 | F21: =HLOOKUP(Table1[[#This Row],[Catch crop]], Tool!C$29:M$29,1,0) -> Baltosios garstyčios
A22: Disease | B22: Potential advantages: soil ecology | C22: Baltosios garstyčios | D22: Very good | E22: 3 | F22: =HLOOKUP(Table1[[#This Row],[Catch crop]], Tool!C$29:M$29,1,0) -> Baltosios garstyčios
A23: Allelopathic | B23: Potential advantages: soil ecology | C23: Baltosios garstyčios | D23: Very good | E23: 3 | F23: =HLOOKUP(Table1[[#This Row],[Catch crop]], Tool!C$29:M$29,1,0) -> Baltosios garstyčios
A24: Choke weeds | B24: Potential advantages: soil ecology | C24: Baltosios garstyčios | D24: Very good | E24: 3 | F24: =HLOOKUP(Table1[[#This Row],[Catch crop]], Tool!C$29:M$29,1,0) -> Baltosios garstyčios
A25: Attract beneficials | B25: Potential advantages: other | C25: Baltosios garstyčios | D25: Good | E25: 2 | F25: =HLOOKUP(Table1[[#This Row],[Catch crop]], Tool!C$29:M$29,1,0) -> Baltosios garstyčios
A26: Bears traffic | B26: Potential advantages: other | C26: Baltosios garstyčios | D26: Good | E26: 2 | F26: =HLOOKUP(Table1[[#This Row],[Catch crop]], Tool!C$29:M$29,1,0) -> Baltosios garstyčios
A27: Short windows | B27: Potential advantages: other | C27: Baltosios garstyčios | D27: Very good | E27: 3 | F27: =HLOOKUP(Table1[[#This Row],[Catch crop]], Tool!C$29:M$29,1,0) -> Baltosios garstyčios
A28: Weed potential | B28: Potential disadvantages: increase pest risks | C28: Baltosios garstyčios | D28: Could be a moderate problem | E28: 1 | F28: =HLOOKUP(Table1[[#This Row],[Catch crop]], Tool!C$29:M$29,1,0) -> Baltosios garstyčios
A29: Insects/ nematodes | B29: Potential disadvantages: increase pest risks | C29: Baltosios garstyčios | D29: Occasionally a minor problem | E29: 3 | F29: =HLOOKUP(Table1[[#This Row],[Catch crop]], Tool!C$29:M$29,1,0) -> Baltosios garstyčios
A30: Crop disease | B30: Potential disadvantages: increase pest risks | C30: Baltosios garstyčios | D30: Not a problem | E30: 4 | F30: =HLOOKUP(Table1[[#This Row],[Catch crop]], Tool!C$29:M$29,1,0) -> Baltosios garstyčios
A31: Hinder crops | B31: Potential disadvantages: management challenges | C31: Baltosios garstyčios | D31: Could be a minor problem | E31: 2 | F31: =HLOOKUP(Table1[[#This Row],[Catch crop]], Tool!C$29:M$29,1,0) -> Baltosios garstyčios
A32: Establishing | B32: Potential disadvantages: management challenges | C32: Baltosios garstyčios | D32: Not a problem | E32: 4 | F32: =HLOOKUP(Table1[[#This Row],[Catch crop]], Tool!C$29:M$29,1,0) -> Baltosios garstyčios
A33: Killing by tillage | B33: Potential disadvantages: management challenges | C33: Baltosios garstyčios | D33: Not a problem | E33: 4 | F33: =HLOOKUP(Table1[[#This Row],[Catch crop]], Tool!C$29:M$29,1,0) -> Baltosios garstyčios
A34: Killing by mow | B34: Potential disadvantages: management challenges | C34: Baltosios garstyčios | D34: Could be a moderate problem | E34: 1 | F34: =HLOOKUP(Table1[[#This Row],[Catch crop]], Tool!C$29:M$29,1,0) -> Baltosios garstyčios
A35: Incorporation of mature stand | B35: Potential disadvantages: management challenges | C35: Baltosios garstyčios | D35: Not a problem | E35: 4 | F35: =HLOOKUP(Table1[[#This Row],[Catch crop]], Tool!C$29:M$29,1,0) -> Baltosios garstyčios
A36: Store excess N | B36: Performance and role | C36: Brown mustrard | D36: Very good | E36: 3 | F36: =HLOOKUP(Table1[[#This Row],[Catch crop]], Tool!C$29:M$29,1,0) -> 
A37: Organic matter improvement | B37: Performance and role | C37: Brown mustrard | D37: Very good | E37: 3 | F37: =HLOOKUP(Table1[[#This Row],[Catch crop]], Tool!C$29:M$29,1,0) -> 
A38: Erosion fighter | B38: Performance and role | C38: Brown mustrard | D38: Very good | E38: 3 | F38: =HLOOKUP(Table1[[#This Row],[Catch crop]], Tool!C$29:M$29,1,0) -> 
A39: Weed fighter | B39: Performance and role | C39: Brown mustrard | D39: Very good | E39: 3 | F39: =HLOOKUP(Table1[[#This Row],[Catch crop]], Tool!C$29:M$29,1,0) -> 
A40: Good grazing | B40: Performance and role | C40: Brown mustrard | D40: Fair | E40: 1 | F40: =HLOOKUP(Table1[[#This Row],[Catch crop]], Tool!C$29:M$29,1,0) -> 
A41: Quick growth | B41: Performance and role | C41: Brown mustrard | D41: Good | E41: 2 | F41: =HLOOKUP(Table1[[#This Row],[Catch crop]], Tool!C$29:M$29,1,0) -> 
A42: Lasting residue | B42: Performance and role | C42: Brown mustrard | D42: Fair | E42: 1 | F42: =HLOOKUP(Table1[[#This Row],[Catch crop]], Tool!C$29:M$29,1,0) -> 
A43: Length of vegetative stage | B43: Performance and role | C43: Brown mustrard | D43: Good | E43: 2 | F43: =HLOOKUP(Table1[[#This Row],[Catch crop]], Tool!C$29:M$29,1,0) -> 
A44: Serving as a companion crop | B44: Performance and role | C44: Brown mustrard | D44: Poor | E44: 0 | F44: =HLOOKUP(Table1[[#This Row],[Catch crop]], Tool!C$29:M$29,1,0) -> 
A45: Cold/frost resistance | B45: Tolerances | C45: Brown mustrard | D45: Poor | E45: 0 | F45: =HLOOKUP(Table1[[#This Row],[Catch crop]], Tool!C$29:M$29,1,0) -> 
A46: Tolerance to heat | B46: Tolerances | C46: Brown mustrard | D46: Very good | E46: 3 | F46: =HLOOKUP(Table1[[#This Row],[Catch crop]], Tool!C$29:M$29,1,0) -> 
A47: Tolerance to drought | B47: Tolerances | C47: Brown mustrard | D47: Excellent | E47: 4 | F47: =HLOOKUP(Table1[[#This Row],[Catch crop]], Tool!C$29:M$29,1,0) -> 
A48: Tolerance to shade | B48: Tolerances | C48: Brown mustrard | D48: Good | E48: 2 | F48: =HLOOKUP(Table1[[#This Row],[Catch crop]], Tool!C$29:M$29,1,0) -> 
A49: Tolerance to flood | B49: Tolerances | C49: Brown mustrard | D49: Fair | E49: 1 | F49: =HLOOKUP(Table1[[#This Row],[Catch crop]], Tool!C$29:M$29,1,0) -> 
A50: Tolerance to low fertility | B50: Tolerances | C50: Brown mustrard | D50: Fair | E50: 1 | F50: =HLOOKUP(Table1[[#This Row],[Catch crop]], Tool!C$29:M$29,1,0) -> 
A51: Min. germination temperature, C | B51: Tolerances | C51: Brown mustrard | F51: =HLOOKUP(Table1[[#This Row],[Catch crop]], Tool!C$29:M$29,1,0) -> 
A52: Subsoiler | B52: Potential advantages: soil impact | C52: Brown mustrard | D52: Very good | E52: 3 | F52: =HLOOKUP(Table1[[#This Row],[Catch crop]], Tool!C$29:M$29,1,0) -> 
A53: Free P and K | B53: Potential advantages: soil impact | C53: Brown mustrard | D53: Good | E53: 2 | F53: =HLOOKUP(Table1[[#This Row],[Catch crop]], Tool!C$29:M$29,1,0) -> 
A54: Loosen topsoil | B54: Potential advantages: soil impact | C54: Brown mustrard | D54: Very good | E54: 3 | F54: =HLOOKUP(Table1[[#This Row],[Catch crop]], Tool!C$29:M$29,1,0) -> 
A55: Nematodes | B55: Potential advantages: soil ecology | C55: Brown mustrard | D55: Very good | E55: 3 | F55: =HLOOKUP(Table1[[#This Row],[Catch crop]], Tool!C$29:M$29,1,0) -> 
A56: Disease | B56: Potential advantages: soil ecology | C56: Brown mustrard | D56: Excellent | E56: 4 | F56: =HLOOKUP(Table1[[#This Row],[Catch crop]], Tool!C$29:M$29,1,0) -> 
A57: Allelopathic | B57: Potential advantages: soil ecology | C57: Brown mustrard | D57: Very good | E57: 3 | F57: =HLOOKUP(Table1[[#This Row],[Catch crop]], Tool!C$29:M$29,1,0) -> 
A58: Choke weeds | B58: Potential advantages: soil ecology | C58: Brown mustrard | D58: Very good | E58: 3 | F58: =HLOOKUP(Table1[[#This Row],[Catch crop]], Tool!C$29:M$29,1,0) -> 
A59: Attract beneficials | B59: Potential advantages: other | C59: Brown mustrard | D59: Good | E59: 2 | F59: =HLOOKUP(Table1[[#This Row],[Catch crop]], Tool!C$29:M$29,1,0) -> 
A60: Bears traffic | B60: Potential advantages: other | C60: Brown mustrard | D60: Good | E60: 2 | F60: =HLOOKUP(Table1[[#This Row],[Catch crop]], Tool!C$29:M$29,1,0) -> 
A61: Short windows | B61: Potential advantages: other | C61: Brown mustrard | D61: Very good | E61: 3 | F61: =HLOOKUP(Table1[[#This Row],[Catch crop]], Tool!C$29:M$29,1,0) -> 
A62: Weed potential | B62: Potential disadvantages: increase pest risks | C62: Brown mustrard | D62: Could be a moderate problem | E62: 1 | F62: =HLOOKUP(Table1[[#This Row],[Catch crop]], Tool!C$29:M$29,1,0) -> 
A63: Insects/ nematodes | B63: Potential disadvantages: increase pest risks | C63: Brown mustrard | D63: Occasionally a minor problem | E63: 3 | F63: =HLOOKUP(Table1[[#This Row],[Catch crop]], Tool!C$29:M$29,1,0) -> 
A64: Crop disease | B64: Potential disadvantages: increase pest risks | C64: Brown mustrard | D64: Not a problem | E64: 4 | F64: =HLOOKUP(Table1[[#This Row],[Catch crop]], Tool!C$29:M$29,1,0) -> 
A65: Hinder crops | B65: Potential disadvantages: management challenges | C65: Brown mustrard | D65: Could be a minor problem | E65: 2 | F65: =HLOOKUP(Table1[[#This Row],[Catch crop]], Tool!C$29:M$29,1,0) -> 
A66: Establishing | B66: Potential disadvantages: management challenges | C66: Brown mustrard | D66: Not a problem | E66: 4 | F66: =HLOOKUP(Table1[[#This Row],[Catch crop]], Tool!C$29:M$29,1,0) -> 
A67: Killing by tillage | B67: Potential disadvantages: management challenges | C67: Brown mustrard | D67: Not a problem | E67: 4 | F67: =HLOOKUP(Table1[[#This Row],[Catch crop]], Tool!C$29:M$29,1,0) -> 
A68: Killing by mow | B68: Potential disadvantages: management challenges | C68: Brown mustrard | D68: Could be a moderate problem | E68: 1 | F68: =HLOOKUP(Table1[[#This Row],[Catch crop]], Tool!C$29:M$29,1,0) -> 
A69: Incorporation of mature stand | B69: Potential disadvantages: management challenges | C69: Brown mustrard | D69: Not a problem | E69: 4 | F69: =HLOOKUP(Table1[[#This Row],[Catch crop]], Tool!C$29:M$29,1,0) -> 
A70: Store excess N | B70: Performance and role | C70: Spring rape | D70: Very good | E70: 3 | F70: =HLOOKUP(Table1[[#This Row],[Catch crop]], Tool!C$29:M$29,1,0) -> 
A71: Organic matter improvement | B71: Performance and role | C71: Spring rape | D71: Good | E71: 2 | F71: =HLOOKUP(Table1[[#This Row],[Catch crop]], Tool!C$29:M$29,1,0) -> 
A72: Erosion fighter | B72: Performance and role | C72: Spring rape | D72: Very good | E72: 3 | F72: =HLOOKUP(Table1[[#This Row],[Catch crop]], Tool!C$29:M$29,1,0) -> 
A73: Weed fighter | B73: Performance and role | C73: Spring rape | D73: Very good | E73: 3 | F73: =HLOOKUP(Table1[[#This Row],[Catch crop]], Tool!C$29:M$29,1,0) -> 
A74: Good grazing | B74: Performance and role | C74: Spring rape | D74: Good | E74: 2 | F74: =HLOOKUP(Table1[[#This Row],[Catch crop]], Tool!C$29:M$29,1,0) -> 
A75: Quick growth | B75: Performance and role | C75: Spring rape | D75: Very good | E75: 3 | F75: =HLOOKUP(Table1[[#This Row],[Catch crop]], Tool!C$29:M$29,1,0) -> 
A76: Lasting residue | B76: Performance and role | C76: Spring rape | D76: Good | E76: 2 | F76: =HLOOKUP(Table1[[#This Row],[Catch crop]], Tool!C$29:M$29,1,0) -> 
A77: Length of vegetative stage | B77: Performance and role | C77: Spring rape | D77: Very good | E77: 3 | F77: =HLOOKUP(Table1[[#This Row],[Catch crop]], Tool!C$29:M$29,1,0) -> 
A78: Serving as a companion crop | B78: Performance and role | C78: Spring rape | D78: Poor | E78: 0 | F78: =HLOOKUP(Table1[[#This Row],[Catch crop]], Tool!C$29:M$29,1,0) -> 
A79: Cold/frost resistance | B79: Tolerances | C79: Spring rape | D79: Fair | E79: 1 | F79: =HLOOKUP(Table1[[#This Row],[Catch crop]], Tool!C$29:M$29,1,0) -> 
A80: Tolerance to heat | B80: Tolerances | C80: Spring rape | D80: Fair | E80: 1 | F80: =HLOOKUP(Table1[[#This Row],[Catch crop]], Tool!C$29:M$29,1,0) -> 
A81: Tolerance to drought | B81: Tolerances | C81: Spring rape | D81: Good | E81: 2 | F81: =HLOOKUP(Table1[[#This Row],[Catch crop]], Tool!C$29:M$29,1,0) -> 
A82: Tolerance to shade | B82: Tolerances | C82: Spring rape | D82: Good | E82: 2 | F82: =HLOOKUP(Table1[[#This Row],[Catch crop]], Tool!C$29:M$29,1,0) -> 
A83: Tolerance to flood | B83: Tolerances | C83: Spring rape | D83: Fair | E83: 1 | F83: =HLOOKUP(Table1[[#This Row],[Catch crop]], Tool!C$29:M$29,1,0) -> 
A84: Tolerance to low fertility | B84: Tolerances | C84: Spring rape | D84: Very good | E84: 3 | F84: =HLOOKUP(Table1[[#This Row],[Catch crop]], Tool!C$29:M$29,1,0) -> 
A85: Min. germination temperature, C | B85: Tolerances | C85: Spring rape | F85: =HLOOKUP(Table1[[#This Row],[Catch crop]], Tool!C$29:M$29,1,0) -> 
A86: Subsoiler | B86: Potential advantages: soil impact | C86: Spring rape | D86: Good | E86: 2 | F86: =HLOOKUP(Table1[[#This Row],[Catch crop]], Tool!C$29:M$29,1,0) -> 
A87: Free P and K | B87: Potential advantages: soil impact | C87: Spring rape | D87: Fair | E87: 1 | F87: =HLOOKUP(Table1[[#This Row],[Catch crop]], Tool!C$29:M$29,1,0) -> 
A88: Loosen topsoil | B88: Potential advantages: soil impact | C88: Spring rape | D88: Good | E88: 2 | F88: =HLOOKUP(Table1[[#This Row],[Catch crop]], Tool!C$29:M$29,1,0) -> 
A89: Nematodes | B89: Potential advantages: soil ecology | C89: Spring rape | D89: Very good | E89: 3 | F89: =HLOOKUP(Table1[[#This Row],[Catch crop]], Tool!C$29:M$29,1,0) -> 
A90: Disease | B90: Potential advantages: soil ecology | C90: Spring rape | D90: Good | E90: 2 | F90: =HLOOKUP(Table1[[#This Row],[Catch crop]], Tool!C$29:M$29,1,0) -> 
A91: Allelopathic | B91: Potential advantages: soil ecology | C91: Spring rape | D91: Very good | E91: 3 | F91: =HLOOKUP(Table1[[#This Row],[Catch crop]], Tool!C$29:M$29,1,0) -> 
A92: Choke weeds | B92: Potential advantages: soil ecology | C92: Spring rape | D92: Very good | E92: 3 | F92: =HLOOKUP(Table1[[#This Row],[Catch crop]], Tool!C$29:M$29,1,0) -> 
A93: Attract beneficials | B93: Potential advantages: other | C93: Spring rape | D93: Good | E93: 2 | F93: =HLOOKUP(Table1[[#This Row],[Catch crop]], Tool!C$29:M$29,1,0) -> 
A94: Bears traffic | B94: Potential advantages: other | C94: Spring rape | D94: Fair | E94: 1 | F94: =HLOOKUP(Table1[[#This Row],[Catch crop]], Tool!C$29:M$29,1,0) -> 
A95: Short windows | B95: Potential advantages: other | C95: Spring rape | D95: Good | E95: 2 | F95: =HLOOKUP(Table1[[#This Row],[Catch crop]], Tool!C$29:M$29,1,0) -> 
A96: Weed potential | B96: Potential disadvantages: increase pest risks | C96: Spring rape | D96: Could be a moderate problem | E96: 1 | F96: =HLOOKUP(Table1[[#This Row],[Catch crop]], Tool!C$29:M$29,1,0) -> 
A97: Insects/ nematodes | B97: Potential disadvantages: increase pest risks | C97: Spring rape | D97: Could be a moderate problem | E97: 1 | F97: =HLOOKUP(Table1[[#This Row],[Catch crop]], Tool!C$29:M$29,1,0) -> 
A98: Crop disease | B98: Potential disadvantages: increase pest risks | C98: Spring rape | D98: Not a problem | E98: 4 | F98: =HLOOKUP(Table1[[#This Row],[Catch crop]], Tool!C$29:M$29,1,0) -> 
A99: Hinder crops | B99: Potential disadvantages: management challenges | C99: Spring rape | D99: Could be a minor problem | E99: 2 | F99: =HLOOKUP(Table1[[#This Row],[Catch crop]], Tool!C$29:M$29,1,0) -> 
A100: Establishing | B100: Potential disadvantages: management challenges | C100: Spring rape | D100: Not a problem | E100: 4 | F100: =HLOOKUP(Table1[[#This Row],[Catch crop]], Tool!C$29:M$29,1,0) -> 
A101: Killing by tillage | B101: Potential disadvantages: management challenges | C101: Spring rape | D101: Could be a minor problem | E101: 2 | F101: =HLOOKUP(Table1[[#This Row],[Catch crop]], Tool!C$29:M$29,1,0) -> 
A102: Killing by mow | B102: Potential disadvantages: management challenges | C102: Spring rape | D102: Could be a moderate problem | E102: 1 | F102: =HLOOKUP(Table1[[#This Row],[Catch crop]], Tool!C$29:M$29,1,0) -> 
A103: Incorporation of mature stand | B103: Potential disadvantages: management challenges | C103: Spring rape | D103: Occasionally a minor problem | E103: 3 | F103: =HLOOKUP(Table1[[#This Row],[Catch crop]], Tool!C$29:M$29,1,0) -> 
A104: Store excess N | B104: Performance and role | C104: Winter rape | D104: Very good | E104: 3 | F104: =HLOOKUP(Table1[[#This Row],[Catch crop]], Tool!C$29:M$29,1,0) -> 
A105: Organic matter improvement | B105: Performance and role | C105: Winter rape | D105: Good | E105: 2 | F105: =HLOOKUP(Table1[[#This Row],[Catch crop]], Tool!C$29:M$29,1,0) -> 
A106: Erosion fighter | B106: Performance and role | C106: Winter rape | D106: Very good | E106: 3 | F106: =HLOOKUP(Table1[[#This Row],[Catch crop]], Tool!C$29:M$29,1,0) -> 
A107: Weed fighter | B107: Performance and role | C107: Winter rape | D107: Very good | E107: 3 | F107: =HLOOKUP(Table1[[#This Row],[Catch crop]], Tool!C$29:M$29,1,0) -> 
A108: Good grazing | B108: Performance and role | C108: Winter rape | D108: Good | E108: 2 | F108: =HLOOKUP(Table1[[#This Row],[Catch crop]], Tool!C$29:M$29,1,0) -> 
A109: Quick growth | B109: Performance and role | C109: Winter rape | D109: Very good | E109: 3 | F109: =HLOOKUP(Table1[[#This Row],[Catch crop]], Tool!C$29:M$29,1,0) -> 
A110: Lasting residue | B110: Performance and role | C110: Winter rape | D110: Good | E110: 2 | F110: =HLOOKUP(Table1[[#This Row],[Catch crop]], Tool!C$29:M$29,1,0) -> 
A111: Length of vegetative stage | B111: Performance and role | C111: Winter rape | D111: Very good | E111: 3 | F111: =HLOOKUP(Table1[[#This Row],[Catch crop]], Tool!C$29:M$29,1,0) -> 
A112: Serving as a companion crop | B112: Performance and role | C112: Winter rape | D112: Poor | E112: 0 | F112: =HLOOKUP(Table1[[#This Row],[Catch crop]], Tool!C$29:M$29,1,0) -> 
A113: Cold/frost resistance | B113: Tolerances | C113: Winter rape | D113: Excellent | E113: 4 | F113: =HLOOKUP(Table1[[#This Row],[Catch crop]], Tool!C$29:M$29,1,0) -> 
A114: Tolerance to heat | B114: Tolerances | C114: Winter rape | D114: Fair | E114: 1 | F114: =HLOOKUP(Table1[[#This Row],[Catch crop]], Tool!C$29:M$29,1,0) -> 
A115: Tolerance to drought | B115: Tolerances | C115: Winter rape | D115: Good | E115: 2 | F115: =HLOOKUP(Table1[[#This Row],[Catch crop]], Tool!C$29:M$29,1,0) -> 
A116: Tolerance to shade | B116: Tolerances | C116: Winter rape | D116: Good | E116: 2 | F116: =HLOOKUP(Table1[[#This Row],[Catch crop]], Tool!C$29:M$29,1,0) -> 
A117: Tolerance to flood | B117: Tolerances | C117: Winter rape | D117: Fair | E117: 1 | F117: =HLOOKUP(Table1[[#This Row],[Catch crop]], Tool!C$29:M$29,1,0) -> 
A118: Tolerance to low fertility | B118: Tolerances | C118: Winter rape | D118: Fair | E118: 1 | F118: =HLOOKUP(Table1[[#This Row],[Catch crop]], Tool!C$29:M$29,1,0) -> 
A119: Min. germination temperature, C | B119: Tolerances | C119: Winter rape | E119: 5 | F119: =HLOOKUP(Table1[[#This Row],[Catch crop]], Tool!C$29:M$29,1,0) -> 
A120: Subsoiler | B120: Potential advantages: soil impact | C120: Winter rape | D120: Very good | E120: 3 | F120: =HLOOKUP(Table1[[#This Row],[Catch crop]], Tool!C$29:M$29,1,0) -> 
A121: Free P and K | B121: Potential advantages: soil impact | C121: Winter rape | D121: Fair | E121: 1 | F121: =HLOOKUP(Table1[[#This Row],[Catch crop]], Tool!C$29:M$29,1,0) -> 
A122: Loosen topsoil | B122: Potential advantages: soil impact | C122: Winter rape | D122: Good | E122: 2 | F122: =HLOOKUP(Table1[[#This Row],[Catch crop]], Tool!C$29:M$29,1,0) -> 
A123: Nematodes | B123: Potential advantages: soil ecology | C123: Winter rape | D123: Very good | E123: 3 | F123: =HLOOKUP(Table1[[#This Row],[Catch crop]], Tool!C$29:M$29,1,0) -> 
A124: Disease | B124: Potential advantages: soil ecology | C124: Winter rape | D124: Good | E124: 2 | F124: =HLOOKUP(Table1[[#This Row],[Catch crop]], Tool!C$29:M$29,1,0) -> 
A125: Allelopathic | B125: Potential advantages: soil ecology | C125: Winter rape | D125: Very good | E125: 3 | F125: =HLOOKUP(Table1[[#This Row],[Catch crop]], Tool!C$29:M$29,1,0) -> 
A126: Choke weeds | B126: Potential advantages: soil ecology | C126: Winter rape | D126: Good | E126: 2 | F126: =HLOOKUP(Table1[[#This Row],[Catch crop]], Tool!C$29:M$29,1,0) -> 
A127: Attract beneficials | B127: Potential advantages: other | C127: Winter rape | D127: Good | E127: 2 | F127: =HLOOKUP(Table1[[#This Row],[Catch crop]], Tool!C$29:M$29,1,0) -> 
A128: Bears traffic | B128: Potential advantages: other | C128: Winter rape | D128: Fair | E128: 1 | F128: =HLOOKUP(Table1[[#This Row],[Catch crop]], Tool!C$29:M$29,1,0) -> 
A129: Short windows | B129: Potential advantages: other | C129: Winter rape | D129: Good | E129: 2 | F129: =HLOOKUP(Table1[[#This Row],[Catch crop]], Tool!C$29:M$29,1,0) -> 
A130: Weed potential | B130: Potential disadvantages: increase pest risks | C130: Winter rape | D130: Could be a moderate problem | E130: 1 | F130: =HLOOKUP(Table1[[#This Row],[Catch crop]], Tool!C$29:M$29,1,0) -> 
A131: Insects/ nematodes | B131: Potential disadvantages: increase pest risks | C131: Winter rape | D131: Could be a moderate problem | E131: 1 | F131: =HLOOKUP(Table1[[#This Row],[Catch crop]], Tool!C$29:M$29,1,0) -> 
A132: Crop disease | B132: Potential disadvantages: increase pest risks | C132: Winter rape | D132: Not a problem | E132: 4 | F132: =HLOOKUP(Table1[[#This Row],[Catch crop]], Tool!C$29:M$29,1,0) -> 
A133: Hinder crops | B133: Potential disadvantages: management challenges | C133: Winter rape | D133: Could be a minor problem | E133: 2 | F133: =HLOOKUP(Table1[[#This Row],[Catch crop]], Tool!C$29:M$29,1,0) -> 
A134: Establishing | B134: Potential disadvantages: management challenges | C134: Winter rape | D134: Not a problem | E134: 4 | F134: =HLOOKUP(Table1[[#This Row],[Catch crop]], Tool!C$29:M$29,1,0) -> 
A135: Killing by tillage | B135: Potential disadvantages: management challenges | C135: Winter rape | D135: Could be a minor problem | E135: 2 | F135: =HLOOKUP(Table1[[#This Row],[Catch crop]], Tool!C$29:M$29,1,0) -> 
A136: Killing by mow | B136: Potential disadvantages: management challenges | C136: Winter rape | D136: Could be a moderate problem | E136: 1 | F136: =HLOOKUP(Table1[[#This Row],[Catch crop]], Tool!C$29:M$29,1,0) -> 
A137: Incorporation of mature stand | B137: Potential disadvantages: management challenges | C137: Winter rape | D137: Occasionally a minor problem | E137: 3 | F137: =HLOOKUP(Table1[[#This Row],[Catch crop]], Tool!C$29:M$29,1,0) -> 
A138: Store excess N | B138: Performance and role | C138: Oil (forage) radish | D138: Excellent | E138: 4 | F138: =HLOOKUP(Table1[[#This Row],[Catch crop]], Tool!C$29:M$29,1,0) -> 
A139: Organic matter improvement | B139: Performance and role | C139: Oil (forage) radish | D139: Very good | E139: 3 | F139: =HLOOKUP(Table1[[#This Row],[Catch crop]], Tool!C$29:M$29,1,0) -> 
A140: Erosion fighter | B140: Performance and role | C140: Oil (forage) radish | D140: Very good | E140: 3 | F140: =HLOOKUP(Table1[[#This Row],[Catch crop]], Tool!C$29:M$29,1,0) -> 
A141: Weed fighter | B141: Performance and role | C141: Oil (forage) radish | D141: Excellent | E141: 4 | F141: =HLOOKUP(Table1[[#This Row],[Catch crop]], Tool!C$29:M$29,1,0) -> 
A142: Good grazing | B142: Performance and role | C142: Oil (forage) radish | D142: Good | E142: 2 | F142: =HLOOKUP(Table1[[#This Row],[Catch crop]], Tool!C$29:M$29,1,0) -> 
A143: Quick growth | B143: Performance and role | C143: Oil (forage) radish | D143: Very good | E143: 3 | F143: =HLOOKUP(Table1[[#This Row],[Catch crop]], Tool!C$29:M$29,1,0) -> 
A144: Lasting residue | B144: Performance and role | C144: Oil (forage) radish | D144: Fair | E144: 1 | F144: =HLOOKUP(Table1[[#This Row],[Catch crop]], Tool!C$29:M$29,1,0) -> 
A145: Length of vegetative stage | B145: Performance and role | C145: Oil (forage) radish | D145: Good | E145: 2 | F145: =HLOOKUP(Table1[[#This Row],[Catch crop]], Tool!C$29:M$29,1,0) -> 
A146: Serving as a companion crop | B146: Performance and role | C146: Oil (forage) radish | D146: Fair | E146: 1 | F146: =HLOOKUP(Table1[[#This Row],[Catch crop]], Tool!C$29:M$29,1,0) -> 
A147: Cold/frost resistance | B147: Tolerances | C147: Oil (forage) radish | D147: Good | E147: 2 | F147: =HLOOKUP(Table1[[#This Row],[Catch crop]], Tool!C$29:M$29,1,0) -> 
A148: Tolerance to heat | B148: Tolerances | C148: Oil (forage) radish | D148: Good | E148: 2 | F148: =HLOOKUP(Table1[[#This Row],[Catch crop]], Tool!C$29:M$29,1,0) -> 
A149: Tolerance to drought | B149: Tolerances | C149: Oil (forage) radish | D149: Fair | E149: 1 | F149: =HLOOKUP(Table1[[#This Row],[Catch crop]], Tool!C$29:M$29,1,0) -> 
A150: Tolerance to shade | B150: Tolerances | C150: Oil (forage) radish | D150: Good | E150: 2 | F150: =HLOOKUP(Table1[[#This Row],[Catch crop]], Tool!C$29:M$29,1,0) -> 
A151: Tolerance to flood | B151: Tolerances | C151: Oil (forage) radish | D151: Fair | E151: 1 | F151: =HLOOKUP(Table1[[#This Row],[Catch crop]], Tool!C$29:M$29,1,0) -> 
A152: Tolerance to low fertility | B152: Tolerances | C152: Oil (forage) radish | D152: Fair | E152: 1 | F152: =HLOOKUP(Table1[[#This Row],[Catch crop]], Tool!C$29:M$29,1,0) -> 
A153: Min. germination temperature, C | B153: Tolerances | C153: Oil (forage) radish | E153: 7.2 | F153: =HLOOKUP(Table1[[#This Row],[Catch crop]], Tool!C$29:M$29,1,0) -> 
A154: Subsoiler | B154: Potential advantages: soil impact | C154: Oil (forage) radish | D154: Excellent | E154: 4 | F154: =HLOOKUP(Table1[[#This Row],[Catch crop]], Tool!C$29:M$29,1,0) -> 
A155: Free P and K | B155: Potential advantages: soil impact | C155: Oil (forage) radish | D155: Very good | E155: 3 | F155: =HLOOKUP(Table1[[#This Row],[Catch crop]], Tool!C$29:M$29,1,0) -> 
A156: Loosen topsoil | B156: Potential advantages: soil impact | C156: Oil (forage) radish | D156: Good | E156: 2 | F156: =HLOOKUP(Table1[[#This Row],[Catch crop]], Tool!C$29:M$29,1,0) -> 
A157: Nematodes | B157: Potential advantages: soil ecology | C157: Oil (forage) radish | D157: Very good | E157: 3 | F157: =HLOOKUP(Table1[[#This Row],[Catch crop]], Tool!C$29:M$29,1,0) -> 
A158: Disease | B158: Potential advantages: soil ecology | C158: Oil (forage) radish | D158: Good | E158: 2 | F158: =HLOOKUP(Table1[[#This Row],[Catch crop]], Tool!C$29:M$29,1,0) -> 
A159: Allelopathic | B159: Potential advantages: soil ecology | C159: Oil (forage) radish | D159: Very good | E159: 3 | F159: =HLOOKUP(Table1[[#This Row],[Catch crop]], Tool!C$29:M$29,1,0) -> 
A160: Choke weeds | B160: Potential advantages: soil ecology | C160: Oil (forage) radish | D160: Excellent | E160: 4 | F160: =HLOOKUP(Table1[[#This Row],[Catch crop]], Tool!C$29:M$29,1,0) -> 
A161: Attract beneficials | B161: Potential advantages: other | C161: Oil (forage) radish | D161: Fair | E161: 1 | F161: =HLOOKUP(Table1[[#This Row],[Catch crop]], Tool!C$29:M$29,1,0) -> 
A162: Bears traffic | B162: Potential advantages: other | C162: Oil (forage) radish | D162: Fair | E162: 1 | F162: =HLOOKUP(Table1[[#This Row],[Catch crop]], Tool!C$29:M$29,1,0) -> 
A163: Short windows | B163: Potential advantages: other | C163: Oil (forage) radish | D163: Very good | E163: 3 | F163: =HLOOKUP(Table1[[#This Row],[Catch crop]], Tool!C$29:M$29,1,0) -> 
A164: Weed potential | B164: Potential disadvantages: increase pest risks | C164: Oil (forage) radish | D164: Could be a minor problem | E164: 2 | F164: =HLOOKUP(Table1[[#This Row],[Catch crop]], Tool!C$29:M$29,1,0) -> 
A165: Insects/ nematodes | B165: Potential disadvantages: increase pest risks | C165: Oil (forage) radish | D165: Occasionally a minor problem | E165: 3 | F165: =HLOOKUP(Table1[[#This Row],[Catch crop]], Tool!C$29:M$29,1,0) -> 
A166: Crop disease | B166: Potential disadvantages: increase pest risks | C166: Oil (forage) radish | D166: Not a problem | E166: 4 | F166: =HLOOKUP(Table1[[#This Row],[Catch crop]], Tool!C$29:M$29,1,0) -> 
A167: Hinder crops | B167: Potential disadvantages: management challenges | C167: Oil (forage) radish | D167: Not a problem | E167: 4 | F167: =HLOOKUP(Table1[[#This Row],[Catch crop]], Tool!C$29:M$29,1,0) -> 
A168: Establishing | B168: Potential disadvantages: management challenges | C168: Oil (forage) radish | D168: Not a problem | E168: 4 | F168: =HLOOKUP(Table1[[#This Row],[Catch crop]], Tool!C$29:M$29,1,0) -> 
A169: Killing by tillage | B169: Potential disadvantages: management challenges | C169: Oil (forage) radish | D169: Not a problem | E169: 4 | F169: =HLOOKUP(Table1[[#This Row],[Catch crop]], Tool!C$29:M$29,1,0) -> 
A170: Killing by mow | B170: Potential disadvantages: management challenges | C170: Oil (forage) radish | D170: Not a problem | E170: 4 | F170: =HLOOKUP(Table1[[#This Row],[Catch crop]], Tool!C$29:M$29,1,0) -> 
A171: Incorporation of mature stand | B171: Potential disadvantages: management challenges | C171: Oil (forage) radish | D171: Not a problem | E171: 4 | F171: =HLOOKUP(Table1[[#This Row],[Catch crop]], Tool!C$29:M$29,1,0) -> 
A172: Store excess N | B172: Performance and role | C172: Root (tillage) radish | D172: Excellent | E172: 4 | F172: =HLOOKUP(Table1[[#This Row],[Catch crop]], Tool!C$29:M$29,1,0) -> 
A173: Organic matter improvement | B173: Performance and role | C173: Root (tillage) radish | D173: Excellent | E173: 4 | F173: =HLOOKUP(Table1[[#This Row],[Catch crop]], Tool!C$29:M$29,1,0) -> 
A174: Erosion fighter | B174: Performance and role | C174: Root (tillage) radish | D174: Very good | E174: 3 | F174: =HLOOKUP(Table1[[#This Row],[Catch crop]], Tool!C$29:M$29,1,0) -> 
A175: Weed fighter | B175: Performance and role | C175: Root (tillage) radish | D175: Very good | E175: 3 | F175: =HLOOKUP(Table1[[#This Row],[Catch crop]], Tool!C$29:M$29,1,0) -> 
A176: Good grazing | B176: Performance and role | C176: Root (tillage) radish | D176: Very good | E176: 3 | F176: =HLOOKUP(Table1[[#This Row],[Catch crop]], Tool!C$29:M$29,1,0) -> 
A177: Quick growth | B177: Performance and role | C177: Root (tillage) radish | D177: Very good | E177: 3 | F177: =HLOOKUP(Table1[[#This Row],[Catch crop]], Tool!C$29:M$29,1,0) -> 
A178: Lasting residue | B178: Performance and role | C178: Root (tillage) radish | D178: Very good | E178: 3 | F178: =HLOOKUP(Table1[[#This Row],[Catch crop]], Tool!C$29:M$29,1,0) -> 
A179: Length of vegetative stage | B179: Performance and role | C179: Root (tillage) radish | D179: Good | E179: 2 | F179: =HLOOKUP(Table1[[#This Row],[Catch crop]], Tool!C$29:M$29,1,0) -> 
A180: Serving as a companion crop | B180: Performance and role | C180: Root (tillage) radish | D180: Excellent | E180: 4 | F180: =HLOOKUP(Table1[[#This Row],[Catch crop]], Tool!C$29:M$29,1,0) -> 
A181: Cold/frost resistance | B181: Tolerances | C181: Root (tillage) radish | D181: Fair | E181: 1 | F181: =HLOOKUP(Table1[[#This Row],[Catch crop]], Tool!C$29:M$29,1,0) -> 
A182: Tolerance to heat | B182: Tolerances | C182: Root (tillage) radish | D182: Good | E182: 2 | F182: =HLOOKUP(Table1[[#This Row],[Catch crop]], Tool!C$29:M$29,1,0) -> 
A183: Tolerance to drought | B183: Tolerances | C183: Root (tillage) radish | D183: Good | E183: 2 | F183: =HLOOKUP(Table1[[#This Row],[Catch crop]], Tool!C$29:M$29,1,0) -> 
A184: Tolerance to shade | B184: Tolerances | C184: Root (tillage) radish | D184: Good | E184: 2 | F184: =HLOOKUP(Table1[[#This Row],[Catch crop]], Tool!C$29:M$29,1,0) -> 
A185: Tolerance to flood | B185: Tolerances | C185: Root (tillage) radish | D185: Fair | E185: 1 | F185: =HLOOKUP(Table1[[#This Row],[Catch crop]], Tool!C$29:M$29,1,0) -> 
A186: Tolerance to low fertility | B186: Tolerances | C186: Root (tillage) radish | D186: Fair | E186: 1 | F186: =HLOOKUP(Table1[[#This Row],[Catch crop]], Tool!C$29:M$29,1,0) -> 
A187: Min. germination temperature, C | B187: Tolerances | C187: Root (tillage) radish | F187: =HLOOKUP(Table1[[#This Row],[Catch crop]], Tool!C$29:M$29,1,0) -> 
A188: Subsoiler | B188: Potential advantages: soil impact | C188: Root (tillage) radish | D188: Excellent | E188: 4 | F188: =HLOOKUP(Table1[[#This Row],[Catch crop]], Tool!C$29:M$29,1,0) -> 
A189: Free P and K | B189: Potential advantages: soil impact | C189: Root (tillage) radish | D189: Very good | E189: 3 | F189: =HLOOKUP(Table1[[#This Row],[Catch crop]], Tool!C$29:M$29,1,0) -> 
A190: Loosen topsoil | B190: Potential advantages: soil impact | C190: Root (tillage) radish | D190: Excellent | E190: 4 | F190: =HLOOKUP(Table1[[#This Row],[Catch crop]], Tool!C$29:M$29,1,0) -> 
A191: Nematodes | B191: Potential advantages: soil ecology | C191: Root (tillage) radish | D191: Very good | E191: 3 | F191: =HLOOKUP(Table1[[#This Row],[Catch crop]], Tool!C$29:M$29,1,0) -> 
A192: Disease | B192: Potential advantages: soil ecology | C192: Root (tillage) radish | D192: Good | E192: 2 | F192: =HLOOKUP(Table1[[#This Row],[Catch crop]], Tool!C$29:M$29,1,0) -> 
A193: Allelopathic | B193: Potential advantages: soil ecology | C193: Root (tillage) radish | D193: Very good | E193: 3 | F193: =HLOOKUP(Table1[[#This Row],[Catch crop]], Tool!C$29:M$29,1,0) -> 
A194: Choke weeds | B194: Potential advantages: soil ecology | C194: Root (tillage) radish | D194: Very good | E194: 3 | F194: =HLOOKUP(Table1[[#This Row],[Catch crop]], Tool!C$29:M$29,1,0) -> 
A195: Attract beneficials | B195: Potential advantages: other | C195: Root (tillage) radish | D195: Fair | E195: 1 | F195: =HLOOKUP(Table1[[#This Row],[Catch crop]], Tool!C$29:M$29,1,0) -> 
A196: Bears traffic | B196: Potential advantages: other | C196: Root (tillage) radish | D196: Fair | E196: 1 | F196: =HLOOKUP(Table1[[#This Row],[Catch crop]], Tool!C$29:M$29,1,0) -> 
A197: Short windows | B197: Potential advantages: other | C197: Root (tillage) radish | D197: Very good | E197: 3 | F197: =HLOOKUP(Table1[[#This Row],[Catch crop]], Tool!C$29:M$29,1,0) -> 
A198: Weed potential | B198: Potential disadvantages: increase pest risks | C198: Root (tillage) radish | D198: Could be a minor problem | E198: 2 | F198: =HLOOKUP(Table1[[#This Row],[Catch crop]], Tool!C$29:M$29,1,0) -> 
A199: Insects/ nematodes | B199: Potential disadvantages: increase pest risks | C199: Root (tillage) radish | D199: Occasionally a minor problem | E199: 3 | F199: =HLOOKUP(Table1[[#This Row],[Catch crop]], Tool!C$29:M$29,1,0) -> 
A200: Crop disease | B200: Potential disadvantages: increase pest risks | C200: Root (tillage) radish | D200: Not a problem | E200: 4 | F200: =HLOOKUP(Table1[[#This Row],[Catch crop]], Tool!C$29:M$29,1,0) -> 
... 515 more rows

Sheet Catch crop features (hidden)
A1: Feature | B1: Title | C1: Catch crop | D1: Value_text | E1: Value | F1: Filter | G1: Achieved | H1: Remaining
A2: Perteklinio azoto sulaikymas | B2: Veiksmingumas ir funkcijos | C2: Baltosios garstyčios | D2: Excellent | E2: 4 | F2: =HLOOKUP(Table2[[#This Row],[Catch crop]], Tool!C$29:M$29,1,0) -> Baltosios garstyčios | G2: 50 | H2: =100-Table2[[#This Row],[Achieved]] -> 50
A3: Organinės medžiagos kiekio didinimas | B3: Veiksmingumas ir funkcijos | C3: Baltosios garstyčios | D3: Very good | E3: 3 | F3: =HLOOKUP(Table2[[#This Row],[Catch crop]], Tool!C$29:M$29,1,0) -> Baltosios garstyčios | G3: 75 | H3: =100-Table2[[#This Row],[Achieved]] -> 25
A4: Erozijos mažinimas | B4: Veiksmingumas ir funkcijos | C4: Baltosios garstyčios | D4: Very good | E4: 3 | F4: =HLOOKUP(Table2[[#This Row],[Catch crop]], Tool!C$29:M$29,1,0) -> Baltosios garstyčios | G4: 75 | H4: =100-Table2[[#This Row],[Achieved]] -> 25
A5: Piktžolėtumo mažinimas | B5: Veiksmingumas ir funkcijos | C5: Baltosios garstyčios | D5: Very good | E5: 3 | F5: =HLOOKUP(Table2[[#This Row],[Catch crop]], Tool!C$29:M$29,1,0) -> Baltosios garstyčios | G5: 75 | H5: =100-Table2[[#This Row],[Achieved]] -> 25
A6: Greitas augimas | B6: Veiksmingumas ir funkcijos | C6: Baltosios garstyčios | D6: Very good | E6: 3 | F6: =HLOOKUP(Table2[[#This Row],[Catch crop]], Tool!C$29:M$29,1,0) -> Baltosios garstyčios | G6: 75 | H6: =100-Table2[[#This Row],[Achieved]] -> 25
A7: Liekanų ilgaamžiškumas | B7: Veiksmingumas ir funkcijos | C7: Baltosios garstyčios | D7: Fair | E7: 1 | F7: =HLOOKUP(Table2[[#This Row],[Catch crop]], Tool!C$29:M$29,1,0) -> Baltosios garstyčios | G7: 25 | H7: =100-Table2[[#This Row],[Achieved]] -> 75
A8: Tinkamumas augti su pagrindiniu pasėliu | B8: Veiksmingumas ir funkcijos | C8: Baltosios garstyčios | D8: Poor | E8: 0 | F8: =HLOOKUP(Table2[[#This Row],[Catch crop]], Tool!C$29:M$29,1,0) -> Baltosios garstyčios | G8: 0 | H8: =100-Table2[[#This Row],[Achieved]] -> 100
A9: Atsparumas šalčiui/ šalnoms | B9: Atsparumas/ pakantumas | C9: Baltosios garstyčios | D9: Poor | E9: 0 | F9: =HLOOKUP(Table2[[#This Row],[Catch crop]], Tool!C$29:M$29,1,0) -> Baltosios garstyčios | G9: 75 | H9: =100-Table2[[#This Row],[Achieved]] -> 25
A10: Pakantumas kaitrai | B10: Atsparumas/ pakantumas | C10: Baltosios garstyčios | D10: Good | E10: 2 | F10: =HLOOKUP(Table2[[#This Row],[Catch crop]], Tool!C$29:M$29,1,0) -> Baltosios garstyčios | G10: 75 | H10: =100-Table2[[#This Row],[Achieved]] -> 25
A11: Pakantumas sausrai | B11: Atsparumas/ pakantumas | C11: Baltosios garstyčios | D11: Very good | E11: 3 | F11: =HLOOKUP(Table2[[#This Row],[Catch crop]], Tool!C$29:M$29,1,0) -> Baltosios garstyčios | G11: 75 | H11: =100-Table2[[#This Row],[Achieved]] -> 25
A12: Paunksmės toleravimas | B12: Atsparumas/ pakantumas | C12: Baltosios garstyčios | D12: Good | E12: 2 | F12: =HLOOKUP(Table2[[#This Row],[Catch crop]], Tool!C$29:M$29,1,0) -> Baltosios garstyčios | G12: 75 | H12: =100-Table2[[#This Row],[Achieved]] -> 25
A13: Pakantumas užtvindymui | B13: Atsparumas/ pakantumas | C13: Baltosios garstyčios | D13: Fair | E13: 1 | F13: =HLOOKUP(Table2[[#This Row],[Catch crop]], Tool!C$29:M$29,1,0) -> Baltosios garstyčios | G13: 50 | H13: =100-Table2[[#This Row],[Achieved]] -> 50
A14: Pakantumas nederlingoms dirvoms | B14: Atsparumas/ pakantumas | C14: Baltosios garstyčios | D14: Fair | E14: 1 | F14: =HLOOKUP(Table2[[#This Row],[Catch crop]], Tool!C$29:M$29,1,0) -> Baltosios garstyčios | G14: 25 | H14: =100-Table2[[#This Row],[Achieved]] -> 75
A15: Podirvio purenimas | B15: Privalumai: poveikis dirvožemiui | C15: Baltosios garstyčios | D15: Fair | E15: 1 | F15: =HLOOKUP(Table2[[#This Row],[Catch crop]], Tool!C$29:M$29,1,0) -> Baltosios garstyčios | G15: 0 | H15: =100-Table2[[#This Row],[Achieved]] -> 100
A16: Judriųjų P ir K gausinimas | B16: Privalumai: poveikis dirvožemiui | C16: Baltosios garstyčios | D16: Good | E16: 2 | F16: =HLOOKUP(Table2[[#This Row],[Catch crop]], Tool!C$29:M$29,1,0) -> Baltosios garstyčios | G16: 75 | H16: =100-Table2[[#This Row],[Achieved]] -> 25
A17: Armens purenimas | B17: Privalumai: poveikis dirvožemiui | C17: Baltosios garstyčios | D17: Very good | E17: 3 | F17: =HLOOKUP(Table2[[#This Row],[Catch crop]], Tool!C$29:M$29,1,0) -> Baltosios garstyčios | G17: 50 | H17: =100-Table2[[#This Row],[Achieved]] -> 50
A18: Nematodų kontrolė | B18: Privalumai: ligų ir piktžolių kontrolė | C18: Baltosios garstyčios | D18: Very good | E18: 3 | F18: =HLOOKUP(Table2[[#This Row],[Catch crop]], Tool!C$29:M$29,1,0) -> Baltosios garstyčios | G18: 75 | H18: =100-Table2[[#This Row],[Achieved]] -> 25
A19: Ligų kontrolė | B19: Privalumai: ligų ir piktžolių kontrolė | C19: Baltosios garstyčios | D19: Very good | E19: 3 | F19: =HLOOKUP(Table2[[#This Row],[Catch crop]], Tool!C$29:M$29,1,0) -> Baltosios garstyčios | G19: 75 | H19: =100-Table2[[#This Row],[Achieved]] -> 25
A20: Alelopatinis poveikis | B20: Privalumai: ligų ir piktžolių kontrolė | C20: Baltosios garstyčios | D20: Very good | E20: 3 | F20: =HLOOKUP(Table2[[#This Row],[Catch crop]], Tool!C$29:M$29,1,0) -> Baltosios garstyčios | G20: 75 | H20: =100-Table2[[#This Row],[Achieved]] -> 25
A21: Piktžolių stelbimas | B21: Privalumai: ligų ir piktžolių kontrolė | C21: Baltosios garstyčios | D21: Very good | E21: 3 | F21: =HLOOKUP(Table2[[#This Row],[Catch crop]], Tool!C$29:M$29,1,0) -> Baltosios garstyčios | G21: 50 | H21: =100-Table2[[#This Row],[Achieved]] -> 50
A22: Naudingų vabzdžių pritraukimas | B22: Privalumai: poveikis dirvožemiui | C22: Baltosios garstyčios | D22: Good | E22: 2 | F22: =HLOOKUP(Table2[[#This Row],[Catch crop]], Tool!C$29:M$29,1,0) -> Baltosios garstyčios | G22: 0 | H22: =100-Table2[[#This Row],[Achieved]] -> 100
A23: Tinkamumas trumpam laikotarpiui | B23: Privalumai: poveikis dirvožemiui | C23: Baltosios garstyčios | D23: Very good | E23: 3 | F23: =HLOOKUP(Table2[[#This Row],[Catch crop]], Tool!C$29:M$29,1,0) -> Baltosios garstyčios | G23: 75 | H23: =100-Table2[[#This Row],[Achieved]] -> 25
A24: Perteklinio azoto sulaikymas | B24: Veiksmingumas ir funkcijos | C24: Rudosios garstyčios | D24: Excellent | E24: 4 | F24: =HLOOKUP(Table2[[#This Row],[Catch crop]], Tool!C$29:M$29,1,0) ->  | G24: 50 | H24: =100-Table2[[#This Row],[Achieved]] -> 50
A25: Organinės medžiagos kiekio didinimas | B25: Veiksmingumas ir funkcijos | C25: Rudosios garstyčios | D25: Very good | E25: 3 | F25: =HLOOKUP(Table2[[#This Row],[Catch crop]], Tool!C$29:M$29,1,0) ->  | G25: 75 | H25: =100-Table2[[#This Row],[Achieved]] -> 25
A26: Erozijos mažinimas | B26: Veiksmingumas ir funkcijos | C26: Rudosios garstyčios | D26: Very good | E26: 3 | F26: =HLOOKUP(Table2[[#This Row],[Catch crop]], Tool!C$29:M$29,1,0) ->  | G26: 75 | H26: =100-Table2[[#This Row],[Achieved]] -> 25
A27: Piktžolėtumo mažinimas | B27: Veiksmingumas ir funkcijos | C27: Rudosios garstyčios | D27: Very good | E27: 3 | F27: =HLOOKUP(Table2[[#This Row],[Catch crop]], Tool!C$29:M$29,1,0) ->  | G27: 75 | H27: =100-Table2[[#This Row],[Achieved]] -> 25
A28: Greitas augimas | B28: Veiksmingumas ir funkcijos | C28: Rudosios garstyčios | D28: Good | E28: 2 | F28: =HLOOKUP(Table2[[#This Row],[Catch crop]], Tool!C$29:M$29,1,0) ->  | G28: 50 | H28: =100-Table2[[#This Row],[Achieved]] -> 50
A29: Liekanų ilgaamžiškumas | B29: Veiksmingumas ir funkcijos | C29: Rudosios garstyčios | D29: Fair | E29: 1 | F29: =HLOOKUP(Table2[[#This Row],[Catch crop]], Tool!C$29:M$29,1,0) ->  | G29: 0 | H29: =100-Table2[[#This Row],[Achieved]] -> 100
A30: Tinkamumas augti su pagrindiniu pasėliu | B30: Veiksmingumas ir funkcijos | C30: Rudosios garstyčios | D30: Poor | E30: 0 | F30: =HLOOKUP(Table2[[#This Row],[Catch crop]], Tool!C$29:M$29,1,0) ->  | G30: 100 | H30: =100-Table2[[#This Row],[Achieved]] -> 0
A31: Atsparumas šalčiui/ šalnoms | B31: Atsparumas/ pakantumas | C31: Rudosios garstyčios | D31: Poor | E31: 0 | F31: =HLOOKUP(Table2[[#This Row],[Catch crop]], Tool!C$29:M$29,1,0) ->  | G31: 75 | H31: =100-Table2[[#This Row],[Achieved]] -> 25
A32: Pakantumas kaitrai | B32: Atsparumas/ pakantumas | C32: Rudosios garstyčios | D32: Very good | E32: 3 | F32: =HLOOKUP(Table2[[#This Row],[Catch crop]], Tool!C$29:M$29,1,0) ->  | G32: 75 | H32: =100-Table2[[#This Row],[Achieved]] -> 25
A33: Pakantumas sausrai | B33: Atsparumas/ pakantumas | C33: Rudosios garstyčios | D33: Excellent | E33: 4 | F33: =HLOOKUP(Table2[[#This Row],[Catch crop]], Tool!C$29:M$29,1,0) ->  | G33: 100 | H33: =100-Table2[[#This Row],[Achieved]] -> 0
A34: Paunksmės toleravimas | B34: Atsparumas/ pakantumas | C34: Rudosios garstyčios | D34: Good | E34: 2 | F34: =HLOOKUP(Table2[[#This Row],[Catch crop]], Tool!C$29:M$29,1,0) ->  | G34: 75 | H34: =100-Table2[[#This Row],[Achieved]] -> 25
A35: Pakantumas užtvindymui | B35: Atsparumas/ pakantumas | C35: Rudosios garstyčios | D35: Fair | E35: 1 | F35: =HLOOKUP(Table2[[#This Row],[Catch crop]], Tool!C$29:M$29,1,0) ->  | G35: 25 | H35: =100-Table2[[#This Row],[Achieved]] -> 75
A36: Pakantumas nederlingoms dirvoms | B36: Atsparumas/ pakantumas | C36: Rudosios garstyčios | D36: Fair | E36: 1 | F36: =HLOOKUP(Table2[[#This Row],[Catch crop]], Tool!C$29:M$29,1,0) ->  | G36: 25 | H36: =100-Table2[[#This Row],[Achieved]] -> 75
A37: Podirvio purenimas | B37: Privalumai: poveikis dirvožemiui | C37: Rudosios garstyčios | D37: Very good | E37: 3 | F37: =HLOOKUP(Table2[[#This Row],[Catch crop]], Tool!C$29:M$29,1,0) ->  | G37: 100 | H37: =100-Table2[[#This Row],[Achieved]] -> 0
A38: Judriųjų P ir K gausinimas | B38: Privalumai: poveikis dirvožemiui | C38: Rudosios garstyčios | D38: Good | E38: 2 | F38: =HLOOKUP(Table2[[#This Row],[Catch crop]], Tool!C$29:M$29,1,0) ->  | G38: 100 | H38: =100-Table2[[#This Row],[Achieved]] -> 0
A39: Armens purenimas | B39: Privalumai: poveikis dirvožemiui | C39: Rudosios garstyčios | D39: Very good | E39: 3 | F39: =HLOOKUP(Table2[[#This Row],[Catch crop]], Tool!C$29:M$29,1,0) ->  | G39: 75 | H39: =100-Table2[[#This Row],[Achieved]] -> 25
A40: Nematodų kontrolė | B40: Privalumai: ligų ir piktžolių kontrolė | C40: Rudosios garstyčios | D40: Very good | E40: 3 | F40: =HLOOKUP(Table2[[#This Row],[Catch crop]], Tool!C$29:M$29,1,0) ->  | G40: 75 | H40: =100-Table2[[#This Row],[Achieved]] -> 25
A41: Ligų kontrolė | B41: Privalumai: ligų ir piktžolių kontrolė | C41: Rudosios garstyčios | D41: Excellent | E41: 4 | F41: =HLOOKUP(Table2[[#This Row],[Catch crop]], Tool!C$29:M$29,1,0) ->  | G41: 75 | H41: =100-Table2[[#This Row],[Achieved]] -> 25
A42: Alelopatinis poveikis | B42: Privalumai: ligų ir piktžolių kontrolė | C42: Rudosios garstyčios | D42: Very good | E42: 3 | F42: =HLOOKUP(Table2[[#This Row],[Catch crop]], Tool!C$29:M$29,1,0) ->  | G42: 75 | H42: =100-Table2[[#This Row],[Achieved]] -> 25
A43: Piktžolių stelbimas | B43: Privalumai: ligų ir piktžolių kontrolė | C43: Rudosios garstyčios | D43: Very good | E43: 3 | F43: =HLOOKUP(Table2[[#This Row],[Catch crop]], Tool!C$29:M$29,1,0) ->  | G43: 100 | H43: =100-Table2[[#This Row],[Achieved]] -> 0
A44: Naudingų vabzdžių pritraukimas | B44: Privalumai: poveikis dirvožemiui | C44: Rudosios garstyčios | D44: Good | E44: 2 | F44: =HLOOKUP(Table2[[#This Row],[Catch crop]], Tool!C$29:M$29,1,0) ->  | G44: 100 | H44: =100-Table2[[#This Row],[Achieved]] -> 0
A45: Tinkamumas trumpam laikotarpiui | B45: Privalumai: poveikis dirvožemiui | C45: Rudosios garstyčios | D45: Very good | E45: 3 | F45: =HLOOKUP(Table2[[#This Row],[Catch crop]], Tool!C$29:M$29,1,0) ->  | G45: 75 | H45: =100-Table2[[#This Row],[Achieved]] -> 25
A46: Perteklinio azoto sulaikymas | B46: Veiksmingumas ir funkcijos | C46: Vasariniai rapsai | D46: Very good | E46: 3 | F46: =HLOOKUP(Table2[[#This Row],[Catch crop]], Tool!C$29:M$29,1,0) -> Vasariniai rapsai | G46: 100 | H46: =100-Table2[[#This Row],[Achieved]] -> 0
A47: Organinės medžiagos kiekio didinimas | B47: Veiksmingumas ir funkcijos | C47: Vasariniai rapsai | D47: Good | E47: 2 | F47: =HLOOKUP(Table2[[#This Row],[Catch crop]], Tool!C$29:M$29,1,0) -> Vasariniai rapsai | G47: 75 | H47: =100-Table2[[#This Row],[Achieved]] -> 25
A48: Erozijos mažinimas | B48: Veiksmingumas ir funkcijos | C48: Vasariniai rapsai | D48: Very good | E48: 3 | F48: =HLOOKUP(Table2[[#This Row],[Catch crop]], Tool!C$29:M$29,1,0) -> Vasariniai rapsai | G48: 100 | H48: =100-Table2[[#This Row],[Achieved]] -> 0
A49: Piktžolėtumo mažinimas | B49: Veiksmingumas ir funkcijos | C49: Vasariniai rapsai | D49: Very good | E49: 3 | F49: =HLOOKUP(Table2[[#This Row],[Catch crop]], Tool!C$29:M$29,1,0) -> Vasariniai rapsai | G49: 100 | H49: =100-Table2[[#This Row],[Achieved]] -> 0
A50: Greitas augimas | B50: Veiksmingumas ir funkcijos | C50: Vasariniai rapsai | D50: Very good | E50: 3 | F50: =HLOOKUP(Table2[[#This Row],[Catch crop]], Tool!C$29:M$29,1,0) -> Vasariniai rapsai | G50: 25 | H50: =100-Table2[[#This Row],[Achieved]] -> 75
A51: Liekanų ilgaamžiškumas | B51: Veiksmingumas ir funkcijos | C51: Vasariniai rapsai | D51: Good | E51: 2 | F51: =HLOOKUP(Table2[[#This Row],[Catch crop]], Tool!C$29:M$29,1,0) -> Vasariniai rapsai | G51: 100 | H51: =100-Table2[[#This Row],[Achieved]] -> 0
A52: Tinkamumas augti su pagrindiniu pasėliu | B52: Veiksmingumas ir funkcijos | C52: Vasariniai rapsai | D52: Poor | E52: 0 | F52: =HLOOKUP(Table2[[#This Row],[Catch crop]], Tool!C$29:M$29,1,0) -> Vasariniai rapsai | G52: 100 | H52: =100-Table2[[#This Row],[Achieved]] -> 0
A53: Atsparumas šalčiui/ šalnoms | B53: Atsparumas/ pakantumas | C53: Vasariniai rapsai | D53: Fair | E53: 1 | F53: =HLOOKUP(Table2[[#This Row],[Catch crop]], Tool!C$29:M$29,1,0) -> Vasariniai rapsai | G53: 100 | H53: =100-Table2[[#This Row],[Achieved]] -> 0
A54: Pakantumas kaitrai | B54: Atsparumas/ pakantumas | C54: Vasariniai rapsai | D54: Fair | E54: 1 | F54: =HLOOKUP(Table2[[#This Row],[Catch crop]], Tool!C$29:M$29,1,0) -> Vasariniai rapsai | G54: 100 | H54: =100-Table2[[#This Row],[Achieved]] -> 0
A55: Pakantumas sausrai | B55: Atsparumas/ pakantumas | C55: Vasariniai rapsai | D55: Good | E55: 2 | F55: =HLOOKUP(Table2[[#This Row],[Catch crop]], Tool!C$29:M$29,1,0) -> Vasariniai rapsai | G55: 100 | H55: =100-Table2[[#This Row],[Achieved]] -> 0
A56: Paunksmės toleravimas | B56: Atsparumas/ pakantumas | C56: Vasariniai rapsai | D56: Good | E56: 2 | F56: =HLOOKUP(Table2[[#This Row],[Catch crop]], Tool!C$29:M$29,1,0) -> Vasariniai rapsai | G56: 100 | H56: =100-Table2[[#This Row],[Achieved]] -> 0
A57: Pakantumas užtvindymui | B57: Atsparumas/ pakantumas | C57: Vasariniai rapsai | D57: Fair | E57: 1 | F57: =HLOOKUP(Table2[[#This Row],[Catch crop]], Tool!C$29:M$29,1,0) -> Vasariniai rapsai | G57: 75 | H57: =100-Table2[[#This Row],[Achieved]] -> 25
A58: Pakantumas nederlingoms dirvoms | B58: Atsparumas/ pakantumas | C58: Vasariniai rapsai | D58: Very good | E58: 3 | F58: =HLOOKUP(Table2[[#This Row],[Catch crop]], Tool!C$29:M$29,1,0) -> Vasariniai rapsai | G58: 25 | H58: =100-Table2[[#This Row],[Achieved]] -> 75
A59: Podirvio purenimas | B59: Privalumai: poveikis dirvožemiui | C59: Vasariniai rapsai | D59: Good | E59: 2 | F59: =HLOOKUP(Table2[[#This Row],[Catch crop]], Tool!C$29:M$29,1,0) -> Vasariniai rapsai | G59: 50 | H59: =100-Table2[[#This Row],[Achieved]] -> 50
A60: Judriųjų P ir K gausinimas | B60: Privalumai: poveikis dirvožemiui | C60: Vasariniai rapsai | D60: Fair | E60: 1 | F60: =HLOOKUP(Table2[[#This Row],[Catch crop]], Tool!C$29:M$29,1,0) -> Vasariniai rapsai | G60: 75 | H60: =100-Table2[[#This Row],[Achieved]] -> 25
A61: Armens purenimas | B61: Privalumai: poveikis dirvožemiui | C61: Vasariniai rapsai | D61: Good | E61: 2 | F61: =HLOOKUP(Table2[[#This Row],[Catch crop]], Tool!C$29:M$29,1,0) -> Vasariniai rapsai | G61: 75 | H61: =100-Table2[[#This Row],[Achieved]] -> 25
A62: Nematodų kontrolė | B62: Privalumai: ligų ir piktžolių kontrolė | C62: Vasariniai rapsai | D62: Very good | E62: 3 | F62: =HLOOKUP(Table2[[#This Row],[Catch crop]], Tool!C$29:M$29,1,0) -> Vasariniai rapsai | G62: 25 | H62: =100-Table2[[#This Row],[Achieved]] -> 75
A63: Ligų kontrolė | B63: Privalumai: ligų ir piktžolių kontrolė | C63: Vasariniai rapsai | D63: Good | E63: 2 | F63: =HLOOKUP(Table2[[#This Row],[Catch crop]], Tool!C$29:M$29,1,0) -> Vasariniai rapsai | G63: 25 | H63: =100-Table2[[#This Row],[Achieved]] -> 75
A64: Alelopatinis poveikis | B64: Privalumai: ligų ir piktžolių kontrolė | C64: Vasariniai rapsai | D64: Very good | E64: 3 | F64: =HLOOKUP(Table2[[#This Row],[Catch crop]], Tool!C$29:M$29,1,0) -> Vasariniai rapsai | G64: 75 | H64: =100-Table2[[#This Row],[Achieved]] -> 25
A65: Piktžolių stelbimas | B65: Privalumai: ligų ir piktžolių kontrolė | C65: Vasariniai rapsai | D65: Very good | E65: 3 | F65: =HLOOKUP(Table2[[#This Row],[Catch crop]], Tool!C$29:M$29,1,0) -> Vasariniai rapsai | G65: 50 | H65: =100-Table2[[#This Row],[Achieved]] -> 50
A66: Naudingų vabzdžių pritraukimas | B66: Privalumai: poveikis dirvožemiui | C66: Vasariniai rapsai | D66: Good | E66: 2 | F66: =HLOOKUP(Table2[[#This Row],[Catch crop]], Tool!C$29:M$29,1,0) -> Vasariniai rapsai | G66: 75 | H66: =100-Table2[[#This Row],[Achieved]] -> 25
A67: Tinkamumas trumpam laikotarpiui | B67: Privalumai: poveikis dirvožemiui | C67: Vasariniai rapsai | D67: Good | E67: 2 | F67: =HLOOKUP(Table2[[#This Row],[Catch crop]], Tool!C$29:M$29,1,0) -> Vasariniai rapsai | G67: 50 | H67: =100-Table2[[#This Row],[Achieved]] -> 50
A68: Perteklinio azoto sulaikymas | B68: Veiksmingumas ir funkcijos | C68: Žieminiai rapsai | D68: Excellent | E68: 4 | F68: =HLOOKUP(Table2[[#This Row],[Catch crop]], Tool!C$29:M$29,1,0) -> Žieminiai rapsai | G68: 75 | H68: =100-Table2[[#This Row],[Achieved]] -> 25
A69: Organinės medžiagos kiekio didinimas | B69: Veiksmingumas ir funkcijos | C69: Žieminiai rapsai | D69: Good | E69: 2 | F69: =HLOOKUP(Table2[[#This Row],[Catch crop]], Tool!C$29:M$29,1,0) -> Žieminiai rapsai | G69: 25 | H69: =100-Table2[[#This Row],[Achieved]] -> 75
A70: Erozijos mažinimas | B70: Veiksmingumas ir funkcijos | C70: Žieminiai rapsai | D70: Very good | E70: 3 | F70: =HLOOKUP(Table2[[#This Row],[Catch crop]], Tool!C$29:M$29,1,0) -> Žieminiai rapsai | G70: 25 | H70: =100-Table2[[#This Row],[Achieved]] -> 75
A71: Piktžolėtumo mažinimas | B71: Veiksmingumas ir funkcijos | C71: Žieminiai rapsai | D71: Very good | E71: 3 | F71: =HLOOKUP(Table2[[#This Row],[Catch crop]], Tool!C$29:M$29,1,0) -> Žieminiai rapsai | G71: 100 | H71: =100-Table2[[#This Row],[Achieved]] -> 0
A72: Greitas augimas | B72: Veiksmingumas ir funkcijos | C72: Žieminiai rapsai | D72: Very good | E72: 3 | F72: =HLOOKUP(Table2[[#This Row],[Catch crop]], Tool!C$29:M$29,1,0) -> Žieminiai rapsai | G72: 25 | H72: =100-Table2[[#This Row],[Achieved]] -> 75
A73: Liekanų ilgaamžiškumas | B73: Veiksmingumas ir funkcijos | C73: Žieminiai rapsai | D73: Good | E73: 2 | F73: =HLOOKUP(Table2[[#This Row],[Catch crop]], Tool!C$29:M$29,1,0) -> Žieminiai rapsai | G73: 100 | H73: =100-Table2[[#This Row],[Achieved]] -> 0
A74: Tinkamumas augti su pagrindiniu pasėliu | B74: Veiksmingumas ir funkcijos | C74: Žieminiai rapsai | D74: Poor | E74: 0 | F74: =HLOOKUP(Table2[[#This Row],[Catch crop]], Tool!C$29:M$29,1,0) -> Žieminiai rapsai | G74: 75 | H74: =100-Table2[[#This Row],[Achieved]] -> 25
A75: Atsparumas šalčiui/ šalnoms | B75: Atsparumas/ pakantumas | C75: Žieminiai rapsai | D75: Excellent | E75: 4 | F75: =HLOOKUP(Table2[[#This Row],[Catch crop]], Tool!C$29:M$29,1,0) -> Žieminiai rapsai | G75: 75 | H75: =100-Table2[[#This Row],[Achieved]] -> 25
A76: Pakantumas kaitrai | B76: Atsparumas/ pakantumas | C76: Žieminiai rapsai | D76: Fair | E76: 1 | F76: =HLOOKUP(Table2[[#This Row],[Catch crop]], Tool!C$29:M$29,1,0) -> Žieminiai rapsai | G76: 50 | H76: =100-Table2[[#This Row],[Achieved]] -> 50
A77: Pakantumas sausrai | B77: Atsparumas/ pakantumas | C77: Žieminiai rapsai | D77: Good | E77: 2 | F77: =HLOOKUP(Table2[[#This Row],[Catch crop]], Tool!C$29:M$29,1,0) -> Žieminiai rapsai | G77: 75 | H77: =100-Table2[[#This Row],[Achieved]] -> 25
A78: Paunksmės toleravimas | B78: Atsparumas/ pakantumas | C78: Žieminiai rapsai | D78: Good | E78: 2 | F78: =HLOOKUP(Table2[[#This Row],[Catch crop]], Tool!C$29:M$29,1,0) -> Žieminiai rapsai | G78: 50 | H78: =100-Table2[[#This Row],[Achieved]] -> 50
A79: Pakantumas užtvindymui | B79: Atsparumas/ pakantumas | C79: Žieminiai rapsai | D79: Fair | E79: 1 | F79: =HLOOKUP(Table2[[#This Row],[Catch crop]], Tool!C$29:M$29,1,0) -> Žieminiai rapsai | G79: 75 | H79: =100-Table2[[#This Row],[Achieved]] -> 25
A80: Pakantumas nederlingoms dirvoms | B80: Atsparumas/ pakantumas | C80: Žieminiai rapsai | D80: Fair | E80: 1 | F80: =HLOOKUP(Table2[[#This Row],[Catch crop]], Tool!C$29:M$29,1,0) -> Žieminiai rapsai | G80: 75 | H80: =100-Table2[[#This Row],[Achieved]] -> 25
A81: Podirvio purenimas | B81: Privalumai: poveikis dirvožemiui | C81: Žieminiai rapsai | D81: Very good | E81: 3 | F81: =HLOOKUP(Table2[[#This Row],[Catch crop]], Tool!C$29:M$29,1,0) -> Žieminiai rapsai | G81: 75 | H81: =100-Table2[[#This Row],[Achieved]] -> 25
A82: Judriųjų P ir K gausinimas | B82: Privalumai: poveikis dirvožemiui | C82: Žieminiai rapsai | D82: Fair | E82: 1 | F82: =HLOOKUP(Table2[[#This Row],[Catch crop]], Tool!C$29:M$29,1,0) -> Žieminiai rapsai | G82: 75 | H82: =100-Table2[[#This Row],[Achieved]] -> 25
A83: Armens purenimas | B83: Privalumai: poveikis dirvožemiui | C83: Žieminiai rapsai | D83: Good | E83: 2 | F83: =HLOOKUP(Table2[[#This Row],[Catch crop]], Tool!C$29:M$29,1,0) -> Žieminiai rapsai | G83: 75 | H83: =100-Table2[[#This Row],[Achieved]] -> 25
A84: Nematodų kontrolė | B84: Privalumai: ligų ir piktžolių kontrolė | C84: Žieminiai rapsai | D84: Very good | E84: 3 | F84: =HLOOKUP(Table2[[#This Row],[Catch crop]], Tool!C$29:M$29,1,0) -> Žieminiai rapsai | G84: 75 | H84: =100-Table2[[#This Row],[Achieved]] -> 25
A85: Ligų kontrolė | B85: Privalumai: ligų ir piktžolių kontrolė | C85: Žieminiai rapsai | D85: Good | E85: 2 | F85: =HLOOKUP(Table2[[#This Row],[Catch crop]], Tool!C$29:M$29,1,0) -> Žieminiai rapsai | G85: 100 | H85: =100-Table2[[#This Row],[Achieved]] -> 0
A86: Alelopatinis poveikis | B86: Privalumai: ligų ir piktžolių kontrolė | C86: Žieminiai rapsai | D86: Very good | E86: 3 | F86: =HLOOKUP(Table2[[#This Row],[Catch crop]], Tool!C$29:M$29,1,0) -> Žieminiai rapsai | H86: =100-Table2[[#This Row],[Achieved]] -> 100
A87: Piktžolių stelbimas | B87: Privalumai: ligų ir piktžolių kontrolė | C87: Žieminiai rapsai | D87: Good | E87: 2 | F87: =HLOOKUP(Table2[[#This Row],[Catch crop]], Tool!C$29:M$29,1,0) -> Žieminiai rapsai | H87: =100-Table2[[#This Row],[Achieved]] -> 100
A88: Naudingų vabzdžių pritraukimas | B88: Privalumai: poveikis dirvožemiui | C88: Žieminiai rapsai | D88: Good | E88: 2 | F88: =HLOOKUP(Table2[[#This Row],[Catch crop]], Tool!C$29:M$29,1,0) -> Žieminiai rapsai | H88: =100-Table2[[#This Row],[Achieved]] -> 100
A89: Tinkamumas trumpam laikotarpiui | B89: Privalumai: poveikis dirvožemiui | C89: Žieminiai rapsai | D89: Good | E89: 2 | F89: =HLOOKUP(Table2[[#This Row],[Catch crop]], Tool!C$29:M$29,1,0) -> Žieminiai rapsai | H89: =100-Table2[[#This Row],[Achieved]] -> 100
A90: Perteklinio azoto sulaikymas | B90: Veiksmingumas ir funkcijos | C90: Aliejiniai ridikai | D90: Excellent | E90: 4 | F90: =HLOOKUP(Table2[[#This Row],[Catch crop]], Tool!C$29:M$29,1,0) -> Aliejiniai ridikai | H90: =100-Table2[[#This Row],[Achieved]] -> 100
A91: Organinės medžiagos kiekio didinimas | B91: Veiksmingumas ir funkcijos | C91: Aliejiniai ridikai | D91: Very good | E91: 3 | F91: =HLOOKUP(Table2[[#This Row],[Catch crop]], Tool!C$29:M$29,1,0) -> Aliejiniai ridikai | H91: =100-Table2[[#This Row],[Achieved]] -> 100
A92: Erozijos mažinimas | B92: Veiksmingumas ir funkcijos | C92: Aliejiniai ridikai | D92: Very good | E92: 3 | F92: =HLOOKUP(Table2[[#This Row],[Catch crop]], Tool!C$29:M$29,1,0) -> Aliejiniai ridikai | H92: =100-Table2[[#This Row],[Achieved]] -> 100
A93: Piktžolėtumo mažinimas | B93: Veiksmingumas ir funkcijos | C93: Aliejiniai ridikai | D93: Excellent | E93: 4 | F93: =HLOOKUP(Table2[[#This Row],[Catch crop]], Tool!C$29:M$29,1,0) -> Aliejiniai ridikai | G93: 25 | H93: =100-Table2[[#This Row],[Achieved]] -> 75
A94: Greitas augimas | B94: Veiksmingumas ir funkcijos | C94: Aliejiniai ridikai | D94: Very good | E94: 3 | F94: =HLOOKUP(Table2[[#This Row],[Catch crop]], Tool!C$29:M$29,1,0) -> Aliejiniai ridikai | G94: 75 | H94: =100-Table2[[#This Row],[Achieved]] -> 25
A95: Liekanų ilgaamžiškumas | B95: Veiksmingumas ir funkcijos | C95: Aliejiniai ridikai | D95: Fair | E95: 1 | F95: =HLOOKUP(Table2[[#This Row],[Catch crop]], Tool!C$29:M$29,1,0) -> Aliejiniai ridikai | G95: 75 | H95: =100-Table2[[#This Row],[Achieved]] -> 25
A96: Tinkamumas augti su pagrindiniu pasėliu | B96: Veiksmingumas ir funkcijos | C96: Aliejiniai ridikai | D96: Fair | E96: 1 | F96: =HLOOKUP(Table2[[#This Row],[Catch crop]], Tool!C$29:M$29,1,0) -> Aliejiniai ridikai | G96: 75 | H96: =100-Table2[[#This Row],[Achieved]] -> 25
A97: Atsparumas šalčiui/ šalnoms | B97: Atsparumas/ pakantumas | C97: Aliejiniai ridikai | D97: Good | E97: 2 | F97: =HLOOKUP(Table2[[#This Row],[Catch crop]], Tool!C$29:M$29,1,0) -> Aliejiniai ridikai | G97: 75 | H97: =100-Table2[[#This Row],[Achieved]] -> 25
A98: Pakantumas kaitrai | B98: Atsparumas/ pakantumas | C98: Aliejiniai ridikai | D98: Good | E98: 2 | F98: =HLOOKUP(Table2[[#This Row],[Catch crop]], Tool!C$29:M$29,1,0) -> Aliejiniai ridikai | G98: 50 | H98: =100-Table2[[#This Row],[Achieved]] -> 50
A99: Pakantumas sausrai | B99: Atsparumas/ pakantumas | C99: Aliejiniai ridikai | D99: Fair | E99: 1 | F99: =HLOOKUP(Table2[[#This Row],[Catch crop]], Tool!C$29:M$29,1,0) -> Aliejiniai ridikai | G99: 100 | H99: =100-Table2[[#This Row],[Achieved]] -> 0
A100: Paunksmės toleravimas | B100: Atsparumas/ pakantumas | C100: Aliejiniai ridikai | D100: Good | E100: 2 | F100: =HLOOKUP(Table2[[#This Row],[Catch crop]], Tool!C$29:M$29,1,0) -> Aliejiniai ridikai | H100: =100-Table2[[#This Row],[Achieved]] -> 100
A101: Pakantumas užtvindymui | B101: Atsparumas/ pakantumas | C101: Aliejiniai ridikai | D101: Fair | E101: 1 | F101: =HLOOKUP(Table2[[#This Row],[Catch crop]], Tool!C$29:M$29,1,0) -> Aliejiniai ridikai | H101: =100-Table2[[#This Row],[Achieved]] -> 100
A102: Pakantumas nederlingoms dirvoms | B102: Atsparumas/ pakantumas | C102: Aliejiniai ridikai | D102: Fair | E102: 1 | F102: =HLOOKUP(Table2[[#This Row],[Catch crop]], Tool!C$29:M$29,1,0) -> Aliejiniai ridikai | H102: =100-Table2[[#This Row],[Achieved]] -> 100
A103: Podirvio purenimas | B103: Privalumai: poveikis dirvožemiui | C103: Aliejiniai ridikai | D103: Excellent | E103: 4 | F103: =HLOOKUP(Table2[[#This Row],[Catch crop]], Tool!C$29:M$29,1,0) -> Aliejiniai ridikai | H103: =100-Table2[[#This Row],[Achieved]] -> 100
A104: Judriųjų P ir K gausinimas | B104: Privalumai: poveikis dirvožemiui | C104: Aliejiniai ridikai | D104: Very good | E104: 3 | F104: =HLOOKUP(Table2[[#This Row],[Catch crop]], Tool!C$29:M$29,1,0) -> Aliejiniai ridikai | H104: =100-Table2[[#This Row],[Achieved]] -> 100
A105: Armens purenimas | B105: Privalumai: poveikis dirvožemiui | C105: Aliejiniai ridikai | D105: Good | E105: 2 | F105: =HLOOKUP(Table2[[#This Row],[Catch crop]], Tool!C$29:M$29,1,0) -> Aliejiniai ridikai | H105: =100-Table2[[#This Row],[Achieved]] -> 100
A106: Nematodų kontrolė | B106: Privalumai: ligų ir piktžolių kontrolė | C106: Aliejiniai ridikai | D106: Very good | E106: 3 | F106: =HLOOKUP(Table2[[#This Row],[Catch crop]], Tool!C$29:M$29,1,0) -> Aliejiniai ridikai | H106: =100-Table2[[#This Row],[Achieved]] -> 100
A107: Ligų kontrolė | B107: Privalumai: ligų ir piktžolių kontrolė | C107: Aliejiniai ridikai | D107: Good | E107: 2 | F107: =HLOOKUP(Table2[[#This Row],[Catch crop]], Tool!C$29:M$29,1,0) -> Aliejiniai ridikai | G107: 75 | H107: =100-Table2[[#This Row],[Achieved]] -> 25
A108: Alelopatinis poveikis | B108: Privalumai: ligų ir piktžolių kontrolė | C108: Aliejiniai ridikai | D108: Very good | E108: 3 | F108: =HLOOKUP(Table2[[#This Row],[Catch crop]], Tool!C$29:M$29,1,0) -> Aliejiniai ridikai | G108: 50 | H108: =100-Table2[[#This Row],[Achieved]] -> 50
A109: Piktžolių stelbimas | B109: Privalumai: ligų ir piktžolių kontrolė | C109: Aliejiniai ridikai | D109: Excellent | E109: 4 | F109: =HLOOKUP(Table2[[#This Row],[Catch crop]], Tool!C$29:M$29,1,0) -> Aliejiniai ridikai | G109: 75 | H109: =100-Table2[[#This Row],[Achieved]] -> 25
A110: Naudingų vabzdžių pritraukimas | B110: Privalumai: poveikis dirvožemiui | C110: Aliejiniai ridikai | D110: Fair | E110: 1 | F110: =HLOOKUP(Table2[[#This Row],[Catch crop]], Tool!C$29:M$29,1,0) -> Aliejiniai ridikai | G110: 100 | H110: =100-Table2[[#This Row],[Achieved]] -> 0
A111: Tinkamumas trumpam laikotarpiui | B111: Privalumai: poveikis dirvožemiui | C111: Aliejiniai ridikai | D111: Very good | E111: 3 | F111: =HLOOKUP(Table2[[#This Row],[Catch crop]], Tool!C$29:M$29,1,0) -> Aliejiniai ridikai | G111: 100 | H111: =100-Table2[[#This Row],[Achieved]] -> 0
A112: Perteklinio azoto sulaikymas | B112: Veiksmingumas ir funkcijos | C112: Šakniniai ridikai | D112: Excellent | E112: 4 | F112: =HLOOKUP(Table2[[#This Row],[Catch crop]], Tool!C$29:M$29,1,0) ->  | G112: 50 | H112: =100-Table2[[#This Row],[Achieved]] -> 50
A113: Organinės medžiagos kiekio didinimas | B113: Veiksmingumas ir funkcijos | C113: Šakniniai ridikai | D113: Very good | E113: 3 | F113: =HLOOKUP(Table2[[#This Row],[Catch crop]], Tool!C$29:M$29,1,0) ->  | G113: 100 | H113: =100-Table2[[#This Row],[Achieved]] -> 0
A114: Erozijos mažinimas | B114: Veiksmingumas ir funkcijos | C114: Šakniniai ridikai | D114: Very good | E114: 3 | F114: =HLOOKUP(Table2[[#This Row],[Catch crop]], Tool!C$29:M$29,1,0) ->  | G114: 0 | H114: =100-Table2[[#This Row],[Achieved]] -> 100
A115: Piktžolėtumo mažinimas | B115: Veiksmingumas ir funkcijos | C115: Šakniniai ridikai | D115: Very good | E115: 3 | F115: =HLOOKUP(Table2[[#This Row],[Catch crop]], Tool!C$29:M$29,1,0) ->  | G115: 50 | H115: =100-Table2[[#This Row],[Achieved]] -> 50
A116: Greitas augimas | B116: Veiksmingumas ir funkcijos | C116: Šakniniai ridikai | D116: Very good | E116: 3 | F116: =HLOOKUP(Table2[[#This Row],[Catch crop]], Tool!C$29:M$29,1,0) ->  | G116: 25 | H116: =100-Table2[[#This Row],[Achieved]] -> 75
A117: Liekanų ilgaamžiškumas | B117: Veiksmingumas ir funkcijos | C117: Šakniniai ridikai | D117: Very good | E117: 3 | F117: =HLOOKUP(Table2[[#This Row],[Catch crop]], Tool!C$29:M$29,1,0) ->  | G117: 100 | H117: =100-Table2[[#This Row],[Achieved]] -> 0
A118: Tinkamumas augti su pagrindiniu pasėliu | B118: Veiksmingumas ir funkcijos | C118: Šakniniai ridikai | D118: Excellent | E118: 4 | F118: =HLOOKUP(Table2[[#This Row],[Catch crop]], Tool!C$29:M$29,1,0) ->  | G118: 100 | H118: =100-Table2[[#This Row],[Achieved]] -> 0
A119: Atsparumas šalčiui/ šalnoms | B119: Atsparumas/ pakantumas | C119: Šakniniai ridikai | D119: Fair | E119: 1 | F119: =HLOOKUP(Table2[[#This Row],[Catch crop]], Tool!C$29:M$29,1,0) ->  | G119: 0 | H119: =100-Table2[[#This Row],[Achieved]] -> 100
A120: Pakantumas kaitrai | B120: Atsparumas/ pakantumas | C120: Šakniniai ridikai | D120: Good | E120: 2 | F120: =HLOOKUP(Table2[[#This Row],[Catch crop]], Tool!C$29:M$29,1,0) ->  | G120: 100 | H120: =100-Table2[[#This Row],[Achieved]] -> 0
A121: Pakantumas sausrai | B121: Atsparumas/ pakantumas | C121: Šakniniai ridikai | D121: Good | E121: 2 | F121: =HLOOKUP(Table2[[#This Row],[Catch crop]], Tool!C$29:M$29,1,0) ->  | G121: 25 | H121: =100-Table2[[#This Row],[Achieved]] -> 75
A122: Paunksmės toleravimas | B122: Atsparumas/ pakantumas | C122: Šakniniai ridikai | D122: Good | E122: 2 | F122: =HLOOKUP(Table2[[#This Row],[Catch crop]], Tool!C$29:M$29,1,0) ->  | G122: 75 | H122: =100-Table2[[#This Row],[Achieved]] -> 25
A123: Pakantumas užtvindymui | B123: Atsparumas/ pakantumas | C123: Šakniniai ridikai | D123: Fair | E123: 1 | F123: =HLOOKUP(Table2[[#This Row],[Catch crop]], Tool!C$29:M$29,1,0) ->  | G123: 50 | H123: =100-Table2[[#This Row],[Achieved]] -> 50
A124: Pakantumas nederlingoms dirvoms | B124: Atsparumas/ pakantumas | C124: Šakniniai ridikai | D124: Fair | E124: 1 | F124: =HLOOKUP(Table2[[#This Row],[Catch crop]], Tool!C$29:M$29,1,0) ->  | G124: 50 | H124: =100-Table2[[#This Row],[Achieved]] -> 50
A125: Podirvio purenimas | B125: Privalumai: poveikis dirvožemiui | C125: Šakniniai ridikai | D125: Excellent | E125: 4 | F125: =HLOOKUP(Table2[[#This Row],[Catch crop]], Tool!C$29:M$29,1,0) ->  | G125: 25 | H125: =100-Table2[[#This Row],[Achieved]] -> 75
A126: Judriųjų P ir K gausinimas | B126: Privalumai: poveikis dirvožemiui | C126: Šakniniai ridikai | D126: Very good | E126: 3 | F126: =HLOOKUP(Table2[[#This Row],[Catch crop]], Tool!C$29:M$29,1,0) ->  | G126: 25 | H126: =100-Table2[[#This Row],[Achieved]] -> 75
A127: Armens purenimas | B127: Privalumai: poveikis dirvožemiui | C127: Šakniniai ridikai | D127: Excellent | E127: 4 | F127: =HLOOKUP(Table2[[#This Row],[Catch crop]], Tool!C$29:M$29,1,0) ->  | G127: 50 | H127: =100-Table2[[#This Row],[Achieved]] -> 50
A128: Nematodų kontrolė | B128: Privalumai: ligų ir piktžolių kontrolė | C128: Šakniniai ridikai | D128: Very good | E128: 3 | F128: =HLOOKUP(Table2[[#This Row],[Catch crop]], Tool!C$29:M$29,1,0) ->  | G128: 25 | H128: =100-Table2[[#This Row],[Achieved]] -> 75
A129: Ligų kontrolė | B129: Privalumai: ligų ir piktžolių kontrolė | C129: Šakniniai ridikai | D129: Good | E129: 2 | F129: =HLOOKUP(Table2[[#This Row],[Catch crop]], Tool!C$29:M$29,1,0) ->  | G129: 50 | H129: =100-Table2[[#This Row],[Achieved]] -> 50
A130: Alelopatinis poveikis | B130: Privalumai: ligų ir piktžolių kontrolė | C130: Šakniniai ridikai | D130: Very good | E130: 3 | F130: =HLOOKUP(Table2[[#This Row],[Catch crop]], Tool!C$29:M$29,1,0) ->  | G130: 75 | H130: =100-Table2[[#This Row],[Achieved]] -> 25
A131: Piktžolių stelbimas | B131: Privalumai: ligų ir piktžolių kontrolė | C131: Šakniniai ridikai | D131: Very good | E131: 3 | F131: =HLOOKUP(Table2[[#This Row],[Catch crop]], Tool!C$29:M$29,1,0) ->  | G131: 50 | H131: =100-Table2[[#This Row],[Achieved]] -> 50
A132: Naudingų vabzdžių pritraukimas | B132: Privalumai: poveikis dirvožemiui | C132: Šakniniai ridikai | D132: Fair | E132: 1 | F132: =HLOOKUP(Table2[[#This Row],[Catch crop]], Tool!C$29:M$29,1,0) ->  | G132: 75 | H132: =100-Table2[[#This Row],[Achieved]] -> 25
A133: Tinkamumas trumpam laikotarpiui | B133: Privalumai: poveikis dirvožemiui | C133: Šakniniai ridikai | D133: Very good | E133: 3 | F133: =HLOOKUP(Table2[[#This Row],[Catch crop]], Tool!C$29:M$29,1,0) ->  | G133: 25 | H133: =100-Table2[[#This Row],[Achieved]] -> 75
A134: Perteklinio azoto sulaikymas | B134: Veiksmingumas ir funkcijos | C134: Žieminiai rapsiukai | D134: Very good | E134: 3 | F134: =HLOOKUP(Table2[[#This Row],[Catch crop]], Tool!C$29:M$29,1,0) -> Žieminiai rapsiukai | G134: 100 | H134: =100-Table2[[#This Row],[Achieved]] -> 0
A135: Organinės medžiagos kiekio didinimas | B135: Veiksmingumas ir funkcijos | C135: Žieminiai rapsiukai | D135: Very good | E135: 3 | F135: =HLOOKUP(Table2[[#This Row],[Catch crop]], Tool!C$29:M$29,1,0) -> Žieminiai rapsiukai | H135: =100-Table2[[#This Row],[Achieved]] -> 100
A136: Erozijos mažinimas | B136: Veiksmingumas ir funkcijos | C136: Žieminiai rapsiukai | D136: Excellent | E136: 4 | F136: =HLOOKUP(Table2[[#This Row],[Catch crop]], Tool!C$29:M$29,1,0) -> Žieminiai rapsiukai | H136: =100-Table2[[#This Row],[Achieved]] -> 100
A137: Piktžolėtumo mažinimas | B137: Veiksmingumas ir funkcijos | C137: Žieminiai rapsiukai | D137: Very good | E137: 3 | F137: =HLOOKUP(Table2[[#This Row],[Catch crop]], Tool!C$29:M$29,1,0) -> Žieminiai rapsiukai | H137: =100-Table2[[#This Row],[Achieved]] -> 100
A138: Greitas augimas | B138: Veiksmingumas ir funkcijos | C138: Žieminiai rapsiukai | D138: Excellent | E138: 4 | F138: =HLOOKUP(Table2[[#This Row],[Catch crop]], Tool!C$29:M$29,1,0) -> Žieminiai rapsiukai | H138: =100-Table2[[#This Row],[Achieved]] -> 100
A139: Liekanų ilgaamžiškumas | B139: Veiksmingumas ir funkcijos | C139: Žieminiai rapsiukai | D139: Excellent | E139: 4 | F139: =HLOOKUP(Table2[[#This Row],[Catch crop]], Tool!C$29:M$29,1,0) -> Žieminiai rapsiukai | H139: =100-Table2[[#This Row],[Achieved]] -> 100
A140: Tinkamumas augti su pagrindiniu pasėliu | B140: Veiksmingumas ir funkcijos | C140: Žieminiai rapsiukai | D140: Fair | E140: 1 | F140: =HLOOKUP(Table2[[#This Row],[Catch crop]], Tool!C$29:M$29,1,0) -> Žieminiai rapsiukai | H140: =100-Table2[[#This Row],[Achieved]] -> 100
A141: Atsparumas šalčiui/ šalnoms | B141: Atsparumas/ pakantumas | C141: Žieminiai rapsiukai | D141: Good | E141: 2 | F141: =HLOOKUP(Table2[[#This Row],[Catch crop]], Tool!C$29:M$29,1,0) -> Žieminiai rapsiukai | H141: =100-Table2[[#This Row],[Achieved]] -> 100
A142: Pakantumas kaitrai | B142: Atsparumas/ pakantumas | C142: Žieminiai rapsiukai | D142: Fair | E142: 1 | F142: =HLOOKUP(Table2[[#This Row],[Catch crop]], Tool!C$29:M$29,1,0) -> Žieminiai rapsiukai | H142: =100-Table2[[#This Row],[Achieved]] -> 100
A143: Pakantumas sausrai | B143: Atsparumas/ pakantumas | C143: Žieminiai rapsiukai | D143: Fair | E143: 1 | F143: =HLOOKUP(Table2[[#This Row],[Catch crop]], Tool!C$29:M$29,1,0) -> Žieminiai rapsiukai | H143: =100-Table2[[#This Row],[Achieved]] -> 100
A144: Paunksmės toleravimas | B144: Atsparumas/ pakantumas | C144: Žieminiai rapsiukai | D144: Good | E144: 2 | F144: =HLOOKUP(Table2[[#This Row],[Catch crop]], Tool!C$29:M$29,1,0) -> Žieminiai rapsiukai | H144: =100-Table2[[#This Row],[Achieved]] -> 100
A145: Pakantumas užtvindymui | B145: Atsparumas/ pakantumas | C145: Žieminiai rapsiukai | D145: Fair | E145: 1 | F145: =HLOOKUP(Table2[[#This Row],[Catch crop]], Tool!C$29:M$29,1,0) -> Žieminiai rapsiukai | H145: =100-Table2[[#This Row],[Achieved]] -> 100
A146: Pakantumas nederlingoms dirvoms | B146: Atsparumas/ pakantumas | C146: Žieminiai rapsiukai | D146: Fair | E146: 1 | F146: =HLOOKUP(Table2[[#This Row],[Catch crop]], Tool!C$29:M$29,1,0) -> Žieminiai rapsiukai | H146: =100-Table2[[#This Row],[Achieved]] -> 100
A147: Podirvio purenimas | B147: Privalumai: poveikis dirvožemiui | C147: Žieminiai rapsiukai | D147: Very good | E147: 3 | F147: =HLOOKUP(Table2[[#This Row],[Catch crop]], Tool!C$29:M$29,1,0) -> Žieminiai rapsiukai | H147: =100-Table2[[#This Row],[Achieved]] -> 100
A148: Judriųjų P ir K gausinimas | B148: Privalumai: poveikis dirvožemiui | C148: Žieminiai rapsiukai | D148: Good | E148: 2 | F148: =HLOOKUP(Table2[[#This Row],[Catch crop]], Tool!C$29:M$29,1,0) -> Žieminiai rapsiukai | H148: =100-Table2[[#This Row],[Achieved]] -> 100
A149: Armens purenimas | B149: Privalumai: poveikis dirvožemiui | C149: Žieminiai rapsiukai | D149: Very good | E149: 3 | F149: =HLOOKUP(Table2[[#This Row],[Catch crop]], Tool!C$29:M$29,1,0) -> Žieminiai rapsiukai | H149: =100-Table2[[#This Row],[Achieved]] -> 100
A150: Nematodų kontrolė | B150: Privalumai: ligų ir piktžolių kontrolė | C150: Žieminiai rapsiukai | D150: Very good | E150: 3 | F150: =HLOOKUP(Table2[[#This Row],[Catch crop]], Tool!C$29:M$29,1,0) -> Žieminiai rapsiukai | H150: =100-Table2[[#This Row],[Achieved]] -> 100
A151: Ligų kontrolė | B151: Privalumai: ligų ir piktžolių kontrolė | C151: Žieminiai rapsiukai | D151: Good | E151: 2 | F151: =HLOOKUP(Table2[[#This Row],[Catch crop]], Tool!C$29:M$29,1,0) -> Žieminiai rapsiukai | H151: =100-Table2[[#This Row],[Achieved]] -> 100
A152: Alelopatinis poveikis | B152: Privalumai: ligų ir piktžolių kontrolė | C152: Žieminiai rapsiukai | D152: Very good | E152: 3 | F152: =HLOOKUP(Table2[[#This Row],[Catch crop]], Tool!C$29:M$29,1,0) -> Žieminiai rapsiukai | H152: =100-Table2[[#This Row],[Achieved]] -> 100
A153: Piktžolių stelbimas | B153: Privalumai: ligų ir piktžolių kontrolė | C153: Žieminiai rapsiukai | D153: Very good | E153: 3 | F153: =HLOOKUP(Table2[[#This Row],[Catch crop]], Tool!C$29:M$29,1,0) -> Žieminiai rapsiukai | H153: =100-Table2[[#This Row],[Achieved]] -> 100
A154: Naudingų vabzdžių pritraukimas | B154: Privalumai: poveikis dirvožemiui | C154: Žieminiai rapsiukai | D154: Fair | E154: 1 | F154: =HLOOKUP(Table2[[#This Row],[Catch crop]], Tool!C$29:M$29,1,0) -> Žieminiai rapsiukai | H154: =100-Table2[[#This Row],[Achieved]] -> 100
A155: Tinkamumas trumpam laikotarpiui | B155: Privalumai: poveikis dirvožemiui | C155: Žieminiai rapsiukai | D155: Very good | E155: 3 | F155: =HLOOKUP(Table2[[#This Row],[Catch crop]], Tool!C$29:M$29,1,0) -> Žieminiai rapsiukai | H155: =100-Table2[[#This Row],[Achieved]] -> 100
A156: Perteklinio azoto sulaikymas | B156: Veiksmingumas ir funkcijos | C156: Žieminiai rugiai | D156: Very good | E156: 3 | F156: =HLOOKUP(Table2[[#This Row],[Catch crop]], Tool!C$29:M$29,1,0) -> Žieminiai rugiai | H156: =100-Table2[[#This Row],[Achieved]] -> 100
A157: Organinės medžiagos kiekio didinimas | B157: Veiksmingumas ir funkcijos | C157: Žieminiai rugiai | D157: Very good | E157: 3 | F157: =HLOOKUP(Table2[[#This Row],[Catch crop]], Tool!C$29:M$29,1,0) -> Žieminiai rugiai | H157: =100-Table2[[#This Row],[Achieved]] -> 100
A158: Erozijos mažinimas | B158: Veiksmingumas ir funkcijos | C158: Žieminiai rugiai | D158: Excellent | E158: 4 | F158: =HLOOKUP(Table2[[#This Row],[Catch crop]], Tool!C$29:M$29,1,0) -> Žieminiai rugiai | H158: =100-Table2[[#This Row],[Achieved]] -> 100
A159: Piktžolėtumo mažinimas | B159: Veiksmingumas ir funkcijos | C159: Žieminiai rugiai | D159: Excellent | E159: 4 | F159: =HLOOKUP(Table2[[#This Row],[Catch crop]], Tool!C$29:M$29,1,0) -> Žieminiai rugiai | H159: =100-Table2[[#This Row],[Achieved]] -> 100
A160: Greitas augimas | B160: Veiksmingumas ir funkcijos | C160: Žieminiai rugiai | D160: Excellent | E160: 4 | F160: =HLOOKUP(Table2[[#This Row],[Catch crop]], Tool!C$29:M$29,1,0) -> Žieminiai rugiai | H160: =100-Table2[[#This Row],[Achieved]] -> 100
A161: Liekanų ilgaamžiškumas | B161: Veiksmingumas ir funkcijos | C161: Žieminiai rugiai | D161: Excellent | E161: 4 | F161: =HLOOKUP(Table2[[#This Row],[Catch crop]], Tool!C$29:M$29,1,0) -> Žieminiai rugiai | H161: =100-Table2[[#This Row],[Achieved]] -> 100
A162: Tinkamumas augti su pagrindiniu pasėliu | B162: Veiksmingumas ir funkcijos | C162: Žieminiai rugiai | D162: Very good | E162: 3 | F162: =HLOOKUP(Table2[[#This Row],[Catch crop]], Tool!C$29:M$29,1,0) -> Žieminiai rugiai | H162: =100-Table2[[#This Row],[Achieved]] -> 100
A163: Atsparumas šalčiui/ šalnoms | B163: Atsparumas/ pakantumas | C163: Žieminiai rugiai | D163: Excellent | E163: 4 | F163: =HLOOKUP(Table2[[#This Row],[Catch crop]], Tool!C$29:M$29,1,0) -> Žieminiai rugiai | H163: =100-Table2[[#This Row],[Achieved]] -> 100
A164: Pakantumas kaitrai | B164: Atsparumas/ pakantumas | C164: Žieminiai rugiai | D164: Good | E164: 2 | F164: =HLOOKUP(Table2[[#This Row],[Catch crop]], Tool!C$29:M$29,1,0) -> Žieminiai rugiai | H164: =100-Table2[[#This Row],[Achieved]] -> 100
A165: Pakantumas sausrai | B165: Atsparumas/ pakantumas | C165: Žieminiai rugiai | D165: Very good | E165: 3 | F165: =HLOOKUP(Table2[[#This Row],[Catch crop]], Tool!C$29:M$29,1,0) -> Žieminiai rugiai | H165: =100-Table2[[#This Row],[Achieved]] -> 100
A166: Paunksmės toleravimas | B166: Atsparumas/ pakantumas | C166: Žieminiai rugiai | D166: Very good | E166: 3 | F166: =HLOOKUP(Table2[[#This Row],[Catch crop]], Tool!C$29:M$29,1,0) -> Žieminiai rugiai | H166: =100-Table2[[#This Row],[Achieved]] -> 100
A167: Pakantumas užtvindymui | B167: Atsparumas/ pakantumas | C167: Žieminiai rugiai | D167: Good | E167: 2 | F167: =HLOOKUP(Table2[[#This Row],[Catch crop]], Tool!C$29:M$29,1,0) -> Žieminiai rugiai | H167: =100-Table2[[#This Row],[Achieved]] -> 100
A168: Pakantumas nederlingoms dirvoms | B168: Atsparumas/ pakantumas | C168: Žieminiai rugiai | D168: Excellent | E168: 4 | F168: =HLOOKUP(Table2[[#This Row],[Catch crop]], Tool!C$29:M$29,1,0) -> Žieminiai rugiai | H168: =100-Table2[[#This Row],[Achieved]] -> 100
A169: Podirvio purenimas | B169: Privalumai: poveikis dirvožemiui | C169: Žieminiai rugiai | D169: Fair | E169: 1 | F169: =HLOOKUP(Table2[[#This Row],[Catch crop]], Tool!C$29:M$29,1,0) -> Žieminiai rugiai | H169: =100-Table2[[#This Row],[Achieved]] -> 100
A170: Judriųjų P ir K gausinimas | B170: Privalumai: poveikis dirvožemiui | C170: Žieminiai rugiai | D170: Very good | E170: 3 | F170: =HLOOKUP(Table2[[#This Row],[Catch crop]], Tool!C$29:M$29,1,0) -> Žieminiai rugiai | H170: =100-Table2[[#This Row],[Achieved]] -> 100
A171: Armens purenimas | B171: Privalumai: poveikis dirvožemiui | C171: Žieminiai rugiai | D171: Excellent | E171: 4 | F171: =HLOOKUP(Table2[[#This Row],[Catch crop]], Tool!C$29:M$29,1,0) -> Žieminiai rugiai | H171: =100-Table2[[#This Row],[Achieved]] -> 100
A172: Nematodų kontrolė | B172: Privalumai: ligų ir piktžolių kontrolė | C172: Žieminiai rugiai | D172: Good | E172: 2 | F172: =HLOOKUP(Table2[[#This Row],[Catch crop]], Tool!C$29:M$29,1,0) -> Žieminiai rugiai | H172: =100-Table2[[#This Row],[Achieved]] -> 100
A173: Ligų kontrolė | B173: Privalumai: ligų ir piktžolių kontrolė | C173: Žieminiai rugiai | D173: Very good | E173: 3 | F173: =HLOOKUP(Table2[[#This Row],[Catch crop]], Tool!C$29:M$29,1,0) -> Žieminiai rugiai | H173: =100-Table2[[#This Row],[Achieved]] -> 100
A174: Alelopatinis poveikis | B174: Privalumai: ligų ir piktžolių kontrolė | C174: Žieminiai rugiai | D174: Excellent | E174: 4 | F174: =HLOOKUP(Table2[[#This Row],[Catch crop]], Tool!C$29:M$29,1,0) -> Žieminiai rugiai | H174: =100-Table2[[#This Row],[Achieved]] -> 100
A175: Piktžolių stelbimas | B175: Privalumai: ligų ir piktžolių kontrolė | C175: Žieminiai rugiai | D175: Excellent | E175: 4 | F175: =HLOOKUP(Table2[[#This Row],[Catch crop]], Tool!C$29:M$29,1,0) -> Žieminiai rugiai | H175: =100-Table2[[#This Row],[Achieved]] -> 100
A176: Naudingų vabzdžių pritraukimas | B176: Privalumai: poveikis dirvožemiui | C176: Žieminiai rugiai | D176: Fair | E176: 1 | F176: =HLOOKUP(Table2[[#This Row],[Catch crop]], Tool!C$29:M$29,1,0) -> Žieminiai rugiai | H176: =100-Table2[[#This Row],[Achieved]] -> 100
A177: Tinkamumas trumpam laikotarpiui | B177: Privalumai: poveikis dirvožemiui | C177: Žieminiai rugiai | D177: Excellent | E177: 4 | F177: =HLOOKUP(Table2[[#This Row],[Catch crop]], Tool!C$29:M$29,1,0) -> Žieminiai rugiai | H177: =100-Table2[[#This Row],[Achieved]] -> 100
A178: Perteklinio azoto sulaikymas | B178: Veiksmingumas ir funkcijos | C178: Baltieji dobilai | D178: Fair | E178: 1 | F178: =HLOOKUP(Table2[[#This Row],[Catch crop]], Tool!C$29:M$29,1,0) ->  | H178: =100-Table2[[#This Row],[Achieved]] -> 100
A179: Organinės medžiagos kiekio didinimas | B179: Veiksmingumas ir funkcijos | C179: Baltieji dobilai | D179: Good | E179: 2 | F179: =HLOOKUP(Table2[[#This Row],[Catch crop]], Tool!C$29:M$29,1,0) ->  | H179: =100-Table2[[#This Row],[Achieved]] -> 100
A180: Erozijos mažinimas | B180: Veiksmingumas ir funkcijos | C180: Baltieji dobilai | D180: Very good | E180: 3 | F180: =HLOOKUP(Table2[[#This Row],[Catch crop]], Tool!C$29:M$29,1,0) ->  | H180: =100-Table2[[#This Row],[Achieved]] -> 100
A181: Piktžolėtumo mažinimas | B181: Veiksmingumas ir funkcijos | C181: Baltieji dobilai | D181: Good | E181: 2 | F181: =HLOOKUP(Table2[[#This Row],[Catch crop]], Tool!C$29:M$29,1,0) ->  | H181: =100-Table2[[#This Row],[Achieved]] -> 100
A182: Greitas augimas | B182: Veiksmingumas ir funkcijos | C182: Baltieji dobilai | D182: Fair | E182: 1 | F182: =HLOOKUP(Table2[[#This Row],[Catch crop]], Tool!C$29:M$29,1,0) ->  | H182: =100-Table2[[#This Row],[Achieved]] -> 100
A183: Liekanų ilgaamžiškumas | B183: Veiksmingumas ir funkcijos | C183: Baltieji dobilai | D183: Fair | E183: 1 | F183: =HLOOKUP(Table2[[#This Row],[Catch crop]], Tool!C$29:M$29,1,0) ->  | H183: =100-Table2[[#This Row],[Achieved]] -> 100
A184: Tinkamumas augti su pagrindiniu pasėliu | B184: Veiksmingumas ir funkcijos | C184: Baltieji dobilai | D184: Very good | E184: 3 | F184: =HLOOKUP(Table2[[#This Row],[Catch crop]], Tool!C$29:M$29,1,0) ->  | H184: =100-Table2[[#This Row],[Achieved]] -> 100
A185: Atsparumas šalčiui/ šalnoms | B185: Atsparumas/ pakantumas | C185: Baltieji dobilai | D185: Excellent | E185: 4 | F185: =HLOOKUP(Table2[[#This Row],[Catch crop]], Tool!C$29:M$29,1,0) ->  | H185: =100-Table2[[#This Row],[Achieved]] -> 100
A186: Pakantumas kaitrai | B186: Atsparumas/ pakantumas | C186: Baltieji dobilai | D186: Good | E186: 2 | F186: =HLOOKUP(Table2[[#This Row],[Catch crop]], Tool!C$29:M$29,1,0) ->  | H186: =100-Table2[[#This Row],[Achieved]] -> 100
A187: Pakantumas sausrai | B187: Atsparumas/ pakantumas | C187: Baltieji dobilai | D187: Good | E187: 2 | F187: =HLOOKUP(Table2[[#This Row],[Catch crop]], Tool!C$29:M$29,1,0) ->  | H187: =100-Table2[[#This Row],[Achieved]] -> 100
A188: Paunksmės toleravimas | B188: Atsparumas/ pakantumas | C188: Baltieji dobilai | D188: Very good | E188: 3 | F188: =HLOOKUP(Table2[[#This Row],[Catch crop]], Tool!C$29:M$29,1,0) ->  | H188: =100-Table2[[#This Row],[Achieved]] -> 100
A189: Pakantumas užtvindymui | B189: Atsparumas/ pakantumas | C189: Baltieji dobilai | D189: Very good | E189: 3 | F189: =HLOOKUP(Table2[[#This Row],[Catch crop]], Tool!C$29:M$29,1,0) ->  | H189: =100-Table2[[#This Row],[Achieved]] -> 100
A190: Pakantumas nederlingoms dirvoms | B190: Atsparumas/ pakantumas | C190: Baltieji dobilai | D190: Good | E190: 2 | F190: =HLOOKUP(Table2[[#This Row],[Catch crop]], Tool!C$29:M$29,1,0) ->  | H190: =100-Table2[[#This Row],[Achieved]] -> 100
A191: Podirvio purenimas | B191: Privalumai: poveikis dirvožemiui | C191: Baltieji dobilai | D191: Fair | E191: 1 | F191: =HLOOKUP(Table2[[#This Row],[Catch crop]], Tool!C$29:M$29,1,0) ->  | H191: =100-Table2[[#This Row],[Achieved]] -> 100
A192: Judriųjų P ir K gausinimas | B192: Privalumai: poveikis dirvožemiui | C192: Baltieji dobilai | D192: Fair | E192: 1 | F192: =HLOOKUP(Table2[[#This Row],[Catch crop]], Tool!C$29:M$29,1,0) ->  | H192: =100-Table2[[#This Row],[Achieved]] -> 100
A193: Armens purenimas | B193: Privalumai: poveikis dirvožemiui | C193: Baltieji dobilai | D193: Very good | E193: 3 | F193: =HLOOKUP(Table2[[#This Row],[Catch crop]], Tool!C$29:M$29,1,0) ->  | H193: =100-Table2[[#This Row],[Achieved]] -> 100
A194: Nematodų kontrolė | B194: Privalumai: ligų ir piktžolių kontrolė | C194: Baltieji dobilai | D194: Poor | E194: 0 | F194: =HLOOKUP(Table2[[#This Row],[Catch crop]], Tool!C$29:M$29,1,0) ->  | H194: =100-Table2[[#This Row],[Achieved]] -> 100
A195: Ligų kontrolė | B195: Privalumai: ligų ir piktžolių kontrolė | C195: Baltieji dobilai | D195: Poor | E195: 0 | F195: =HLOOKUP(Table2[[#This Row],[Catch crop]], Tool!C$29:M$29,1,0) ->  | H195: =100-Table2[[#This Row],[Achieved]] -> 100
A196: Alelopatinis poveikis | B196: Privalumai: ligų ir piktžolių kontrolė | C196: Baltieji dobilai | D196: Good | E196: 2 | F196: =HLOOKUP(Table2[[#This Row],[Catch crop]], Tool!C$29:M$29,1,0) ->  | H196: =100-Table2[[#This Row],[Achieved]] -> 100
A197: Piktžolių stelbimas | B197: Privalumai: ligų ir piktžolių kontrolė | C197: Baltieji dobilai | D197: Very good | E197: 3 | F197: =HLOOKUP(Table2[[#This Row],[Catch crop]], Tool!C$29:M$29,1,0) ->  | H197: =100-Table2[[#This Row],[Achieved]] -> 100
A198: Naudingų vabzdžių pritraukimas | B198: Privalumai: poveikis dirvožemiui | C198: Baltieji dobilai | D198: Good | E198: 2 | F198: =HLOOKUP(Table2[[#This Row],[Catch crop]], Tool!C$29:M$29,1,0) ->  | H198: =100-Table2[[#This Row],[Achieved]] -> 100
A199: Tinkamumas trumpam laikotarpiui | B199: Privalumai: poveikis dirvožemiui | C199: Baltieji dobilai | D199: Good | E199: 2 | F199: =HLOOKUP(Table2[[#This Row],[Catch crop]], Tool!C$29:M$29,1,0) ->  | H199: =100-Table2[[#This Row],[Achieved]] -> 100
A200: Perteklinio azoto sulaikymas | B200: Veiksmingumas ir funkcijos | C200: Raudonieji dobilai | D200: Fair | E200: 1 | F200: =HLOOKUP(Table2[[#This Row],[Catch crop]], Tool!C$29:M$29,1,0) ->  | H200: =100-Table2[[#This Row],[Achieved]] -> 100
... 326 more rows

Sheet Pivot-Features (hidden)
A1: Filter | B1: (Multiple Items)
A3: Max of Value | B3: Column Labels
A4: Row Labels | B4: Aliejiniai ridikai | C4: Grand Total
A5: Privalumai: poveikis dirvožemiui | B5: 4 | C5: 4
A6: Podirvio purenimas | B6: 4 | C6: 4
A7: Judriųjų P ir K gausinimas | B7: 3 | C7: 3
A8: Armens purenimas | B8: 2 | C8: 2
A9: Naudingų vabzdžių pritraukimas | B9: 1 | C9: 1
A10: Tinkamumas trumpam laikotarpiui | B10: 3 | C10: 3
A11: Grand Total | B11: 4 | C11: 4

Sheet Data for PAN release (hidden)
A1: Catch crop | B1: C:N ratio | C1: PAN, kg/ha | D1: Time, days | E1: Filter | F1: Biomass typical, t/ha | G1: User biomass, t/ha | H1: PAN typical, kg/ha
A2: Baltosios garstyčios | B2: 11.84210526 | C2: =Table3[[#This Row],[PAN typical, kg/ha]]/Table3[[#This Row],[Biomass typical, t/ha]]*Table3[[#This Row],[User biomass, t/ha]] -> 9.776222513 | D2: 20 | E2: =HLOOKUP(A:A,Tool!$C$29:$M$29,1,FALSE) -> Baltosios garstyčios | F2: 2.3 | G2: =VLOOKUP(A:A,K:L,2,FALSE) -> 2.3 | H2: 9.776222513 | K2: =Tool!C113 -> Baltosios garstyčios | L2: =Tool!C115 -> 2.3
A3: Rudosios garstyčios | B3: 11.84210526 | C3: =Table3[[#This Row],[PAN typical, kg/ha]]/Table3[[#This Row],[Biomass typical, t/ha]]*Table3[[#This Row],[User biomass, t/ha]] ->  | D3: 20 | E3: =HLOOKUP(A:A,Tool!$C$29:$M$29,1,FALSE) ->  | F3: 2.3 | G3: =VLOOKUP(A:A,K:L,2,FALSE) ->  | H3: 9.776222513 | K3: =Tool!E113 -> Vasariniai rapsai | L3: =Tool!E115 -> 1.55
A4: Vasariniai rapsai | B4: 12.5 | C4: =Table3[[#This Row],[PAN typical, kg/ha]]/Table3[[#This Row],[Biomass typical, t/ha]]*Table3[[#This Row],[User biomass, t/ha]] -> 3.730615833 | D4: 20 | E4: =HLOOKUP(A:A,Tool!$C$29:$M$29,1,FALSE) -> Vasariniai rapsai | F4: 1.55 | G4: 1.55 | H4: 3.730615833 | K4: =Tool!G113 -> Žieminiai rapsai | L4: =Tool!G115 -> 1.55
A5: Žieminiai rapsai | B5: 12.5 | C5: =Table3[[#This Row],[PAN typical, kg/ha]]/Table3[[#This Row],[Biomass typical, t/ha]]*Table3[[#This Row],[User biomass, t/ha]] -> 3.730615833 | D5: 20 | E5: =HLOOKUP(A:A,Tool!$C$29:$M$29,1,FALSE) -> Žieminiai rapsai | F5: 1.55 | G5: 1.55 | H5: 3.730615833 | K5: =Tool!I113 -> Aliejiniai ridikai | L5: =Tool!I115 -> 2.95
A6: Aliejiniai ridikai | B6: 12.16216216 | C6: =Table3[[#This Row],[PAN typical, kg/ha]]/Table3[[#This Row],[Biomass typical, t/ha]]*Table3[[#This Row],[User biomass, t/ha]] -> 9.812497212 | D6: 20 | E6: =HLOOKUP(A:A,Tool!$C$29:$M$29,1,FALSE) -> Aliejiniai ridikai | F6: 2.95 | G6: 2.95 | H6: 9.812497212 | K6: =Tool!K113 -> Žieminiai rapsiukai | L6: =Tool!K115 -> 1.65
A7: Šakniniai ridikai | B7: 13.23529412 | C7: =Table3[[#This Row],[PAN typical, kg/ha]]/Table3[[#This Row],[Biomass typical, t/ha]]*Table3[[#This Row],[User biomass, t/ha]] ->  | D7: 20 | E7: =HLOOKUP(A:A,Tool!$C$29:$M$29,1,FALSE) ->  | F7: 2.05 | H7: 1.1961654 | K7: =Tool!M113 -> Žieminiai rugiai | L7: =Tool!M115 -> 1.25
A8: Žieminiai rapsiukai | B8: 13.23529412 | C8: =Table3[[#This Row],[PAN typical, kg/ha]]/Table3[[#This Row],[Biomass typical, t/ha]]*Table3[[#This Row],[User biomass, t/ha]] -> 0.9627672736 | D8: 20 | E8: =HLOOKUP(A:A,Tool!$C$29:$M$29,1,FALSE) -> Žieminiai rapsiukai | F8: 1.65 | G8: 1.65 | H8: 0.9627672736
A9: Žieminiai rugiai | B9: 15 | C9: =Table3[[#This Row],[PAN typical, kg/ha]]/Table3[[#This Row],[Biomass typical, t/ha]]*Table3[[#This Row],[User biomass, t/ha]] -> -3.299883138 | D9: 20 | E9: =HLOOKUP(A:A,Tool!$C$29:$M$29,1,FALSE) -> Žieminiai rugiai | F9: 1.25 | G9: 1.25 | H9: -3.299883138
A10: Baltieji dobilai | B10: 14.0625 | C10: =Table3[[#This Row],[PAN typical, kg/ha]]/Table3[[#This Row],[Biomass typical, t/ha]]*Table3[[#This Row],[User biomass, t/ha]] ->  | D10: 20 | E10: =HLOOKUP(A:A,Tool!$C$29:$M$29,1,FALSE) ->  | F10: 2.05 | H10: -2.495839643
A11: Raudonieji dobilai | B11: 14.0625 | C11: =Table3[[#This Row],[PAN typical, kg/ha]]/Table3[[#This Row],[Biomass typical, t/ha]]*Table3[[#This Row],[User biomass, t/ha]] ->  | D11: 20 | E11: =HLOOKUP(A:A,Tool!$C$29:$M$29,1,FALSE) ->  | F11: 2.05 | H11: -2.495839643
A12: Baltažiedžiai barkūnai | B12: 14.0625 | C12: =Table3[[#This Row],[PAN typical, kg/ha]]/Table3[[#This Row],[Biomass typical, t/ha]]*Table3[[#This Row],[User biomass, t/ha]] ->  | D12: 20 | E12: =HLOOKUP(A:A,Tool!$C$29:$M$29,1,FALSE) ->  | F12: 1.95 | H12: -2.374091368
A13: Gausiažiedės svidrės | B13: 18 | C13: =Table3[[#This Row],[PAN typical, kg/ha]]/Table3[[#This Row],[Biomass typical, t/ha]]*Table3[[#This Row],[User biomass, t/ha]] ->  | D13: 20 | E13: =HLOOKUP(A:A,Tool!$C$29:$M$29,1,FALSE) ->  | F13: 1.4 | H13: -4.137942508
A14: Daugiametės svidrės | B14: 18 | C14: =Table3[[#This Row],[PAN typical, kg/ha]]/Table3[[#This Row],[Biomass typical, t/ha]]*Table3[[#This Row],[User biomass, t/ha]] ->  | D14: 20 | E14: =HLOOKUP(A:A,Tool!$C$29:$M$29,1,FALSE) ->  | F14: 1.4 | H14: -4.137942508
A15: Facelijos | B15: 14.0625 | C15: =Table3[[#This Row],[PAN typical, kg/ha]]/Table3[[#This Row],[Biomass typical, t/ha]]*Table3[[#This Row],[User biomass, t/ha]] ->  | D15: 20 | E15: =HLOOKUP(A:A,Tool!$C$29:$M$29,1,FALSE) ->  | F15: 2.05 | H15: -2.495839643
A16: Paprastosios šunažolės | B16: 17.30769231 | C16: =Table3[[#This Row],[PAN typical, kg/ha]]/Table3[[#This Row],[Biomass typical, t/ha]]*Table3[[#This Row],[User biomass, t/ha]] ->  | D16: 20 | E16: =HLOOKUP(A:A,Tool!$C$29:$M$29,1,FALSE) ->  | F16: 1.85 | H16: -5.17822445
A17: Sėjamosios ir netikšės avižos | B17: 17.30769231 | C17: =Table3[[#This Row],[PAN typical, kg/ha]]/Table3[[#This Row],[Biomass typical, t/ha]]*Table3[[#This Row],[User biomass, t/ha]] ->  | D17: 20 | E17: =HLOOKUP(A:A,Tool!$C$29:$M$29,1,FALSE) ->  | F17: 1.85 | H17: -5.17822445
A18: Grikiai | B18: 18.75 | C18: =Table3[[#This Row],[PAN typical, kg/ha]]/Table3[[#This Row],[Biomass typical, t/ha]]*Table3[[#This Row],[User biomass, t/ha]] ->  | D18: 20 | E18: =HLOOKUP(A:A,Tool!$C$29:$M$29,1,FALSE) ->  | F18: 1.85 | H18: -5.826676825
A19: Žieminiai (ruginiai) vikiai | B19: 10 | C19: =Table3[[#This Row],[PAN typical, kg/ha]]/Table3[[#This Row],[Biomass typical, t/ha]]*Table3[[#This Row],[User biomass, t/ha]] ->  | D19: 20 | E19: =HLOOKUP(A:A,Tool!$C$29:$M$29,1,FALSE) ->  | F19: 1.65 | H19: 17.88234018
A20: Sėjamieji žirniai | B20: 11.25 | C20: =Table3[[#This Row],[PAN typical, kg/ha]]/Table3[[#This Row],[Biomass typical, t/ha]]*Table3[[#This Row],[User biomass, t/ha]] ->  | D20: 20 | E20: =HLOOKUP(A:A,Tool!$C$29:$M$29,1,FALSE) ->  | F20: 1.85 | H20: 11.30843169
A21: Siauralapiai lubinai | B21: 11.25 | C21: =Table3[[#This Row],[PAN typical, kg/ha]]/Table3[[#This Row],[Biomass typical, t/ha]]*Table3[[#This Row],[User biomass, t/ha]] ->  | D21: 20 | E21: =HLOOKUP(A:A,Tool!$C$29:$M$29,1,FALSE) ->  | F21: 2.05 | H21: 12.53096484
A22: Pupos | B22: 10 | C22: =Table3[[#This Row],[PAN typical, kg/ha]]/Table3[[#This Row],[Biomass typical, t/ha]]*Table3[[#This Row],[User biomass, t/ha]] ->  | D22: 20 | E22: =HLOOKUP(A:A,Tool!$C$29:$M$29,1,FALSE) ->  | F22: 1.95 | H22: 21.13367476
A23: Baltosios garstyčios | B23: 11.84210526 | C23: =Table3[[#This Row],[PAN typical, kg/ha]]/Table3[[#This Row],[Biomass typical, t/ha]]*Table3[[#This Row],[User biomass, t/ha]] -> 16.54162411 | D23: 40 | E23: =HLOOKUP(A:A,Tool!$C$29:$M$29,1,FALSE) -> Baltosios garstyčios | F23: 2.3 | G23: 2.3 | H23: 16.54162411
A24: Rudosios garstyčios | B24: 11.84210526 | C24: =Table3[[#This Row],[PAN typical, kg/ha]]/Table3[[#This Row],[Biomass typical, t/ha]]*Table3[[#This Row],[User biomass, t/ha]] ->  | D24: 40 | E24: =HLOOKUP(A:A,Tool!$C$29:$M$29,1,FALSE) ->  | F24: 2.3 | H24: 16.54162411
A25: Vasariniai rapsai | B25: 12.5 | C25: =Table3[[#This Row],[PAN typical, kg/ha]]/Table3[[#This Row],[Biomass typical, t/ha]]*Table3[[#This Row],[User biomass, t/ha]] -> 8.148191977 | D25: 40 | E25: =HLOOKUP(A:A,Tool!$C$29:$M$29,1,FALSE) -> Vasariniai rapsai | F25: 1.55 | G25: 1.55 | H25: 8.148191977
A26: Žieminiai rapsai | B26: 12.5 | C26: =Table3[[#This Row],[PAN typical, kg/ha]]/Table3[[#This Row],[Biomass typical, t/ha]]*Table3[[#This Row],[User biomass, t/ha]] -> 8.148191977 | D26: 40 | E26: =HLOOKUP(A:A,Tool!$C$29:$M$29,1,FALSE) -> Žieminiai rapsai | F26: 1.55 | G26: 1.55 | H26: 8.148191977
A27: Aliejiniai ridikai | B27: 12.16216216 | C27: =Table3[[#This Row],[PAN typical, kg/ha]]/Table3[[#This Row],[Biomass typical, t/ha]]*Table3[[#This Row],[User biomass, t/ha]] -> 18.36034594 | D27: 40 | E27: =HLOOKUP(A:A,Tool!$C$29:$M$29,1,FALSE) -> Aliejiniai ridikai | F27: 2.95 | G27: 2.95 | H27: 18.36034594
A28: Šakniniai ridikai | B28: 13.23529412 | C28: =Table3[[#This Row],[PAN typical, kg/ha]]/Table3[[#This Row],[Biomass typical, t/ha]]*Table3[[#This Row],[User biomass, t/ha]] ->  | D28: 40 | E28: =HLOOKUP(A:A,Tool!$C$29:$M$29,1,FALSE) ->  | F28: 2.05 | H28: 6.820357972
A29: Žieminiai rapsiukai | B29: 13.23529412 | C29: =Table3[[#This Row],[PAN typical, kg/ha]]/Table3[[#This Row],[Biomass typical, t/ha]]*Table3[[#This Row],[User biomass, t/ha]] -> 5.489556417 | D29: 40 | E29: =HLOOKUP(A:A,Tool!$C$29:$M$29,1,FALSE) -> Žieminiai rapsiukai | F29: 1.65 | G29: 1.65 | H29: 5.489556417
A30: Žieminiai rugiai | B30: 15 | C30: =Table3[[#This Row],[PAN typical, kg/ha]]/Table3[[#This Row],[Biomass typical, t/ha]]*Table3[[#This Row],[User biomass, t/ha]] -> -0.2450227019 | D30: 40 | E30: =HLOOKUP(A:A,Tool!$C$29:$M$29,1,FALSE) -> Žieminiai rugiai | F30: 1.25 | G30: 1.25 | H30: -0.2450227019
A31: Baltieji dobilai | B31: 14.0625 | C31: =Table3[[#This Row],[PAN typical, kg/ha]]/Table3[[#This Row],[Biomass typical, t/ha]]*Table3[[#This Row],[User biomass, t/ha]] ->  | D31: 40 | E31: =HLOOKUP(A:A,Tool!$C$29:$M$29,1,FALSE) ->  | F31: 2.05 | H31: 2.876370379
A32: Raudonieji dobilai | B32: 14.0625 | C32: =Table3[[#This Row],[PAN typical, kg/ha]]/Table3[[#This Row],[Biomass typical, t/ha]]*Table3[[#This Row],[User biomass, t/ha]] ->  | D32: 40 | E32: =HLOOKUP(A:A,Tool!$C$29:$M$29,1,FALSE) ->  | F32: 2.05 | H32: 2.876370379
A33: Baltažiedžiai barkūnai | B33: 14.0625 | C33: =Table3[[#This Row],[PAN typical, kg/ha]]/Table3[[#This Row],[Biomass typical, t/ha]]*Table3[[#This Row],[User biomass, t/ha]] ->  | D33: 40 | E33: =HLOOKUP(A:A,Tool!$C$29:$M$29,1,FALSE) ->  | F33: 1.95 | H33: 2.736059629
A34: Gausiažiedės svidrės | B34: 18 | C34: =Table3[[#This Row],[PAN typical, kg/ha]]/Table3[[#This Row],[Biomass typical, t/ha]]*Table3[[#This Row],[User biomass, t/ha]] ->  | D34: 40 | E34: =HLOOKUP(A:A,Tool!$C$29:$M$29,1,FALSE) ->  | F34: 1.4 | H34: -1.799819311
A35: Daugiametės svidrės | B35: 18 | C35: =Table3[[#This Row],[PAN typical, kg/ha]]/Table3[[#This Row],[Biomass typical, t/ha]]*Table3[[#This Row],[User biomass, t/ha]] ->  | D35: 40 | E35: =HLOOKUP(A:A,Tool!$C$29:$M$29,1,FALSE) ->  | F35: 1.4 | H35: -1.799819311
A36: Facelijos | B36: 14.0625 | C36: =Table3[[#This Row],[PAN typical, kg/ha]]/Table3[[#This Row],[Biomass typical, t/ha]]*Table3[[#This Row],[User biomass, t/ha]] ->  | D36: 40 | E36: =HLOOKUP(A:A,Tool!$C$29:$M$29,1,FALSE) ->  | F36: 2.05 | H36: 2.876370379
A37: Paprastosios šunažolės | B37: 17.30769231 | C37: =Table3[[#This Row],[PAN typical, kg/ha]]/Table3[[#This Row],[Biomass typical, t/ha]]*Table3[[#This Row],[User biomass, t/ha]] ->  | D37: 40 | E37: =HLOOKUP(A:A,Tool!$C$29:$M$29,1,FALSE) ->  | F37: 1.85 | H37: -1.821656703
A38: Sėjamosios ir netikšės avižos | B38: 17.30769231 | C38: =Table3[[#This Row],[PAN typical, kg/ha]]/Table3[[#This Row],[Biomass typical, t/ha]]*Table3[[#This Row],[User biomass, t/ha]] ->  | D38: 40 | E38: =HLOOKUP(A:A,Tool!$C$29:$M$29,1,FALSE) ->  | F38: 1.85 | H38: -1.821656703
A39: Grikiai | B39: 18.75 | C39: =Table3[[#This Row],[PAN typical, kg/ha]]/Table3[[#This Row],[Biomass typical, t/ha]]*Table3[[#This Row],[User biomass, t/ha]] ->  | D39: 40 | E39: =HLOOKUP(A:A,Tool!$C$29:$M$29,1,FALSE) ->  | F39: 1.85 | H39: -2.9973362
A40: Žieminiai (ruginiai) vikiai | B40: 10 | C40: =Table3[[#This Row],[PAN typical, kg/ha]]/Table3[[#This Row],[Biomass typical, t/ha]]*Table3[[#This Row],[User biomass, t/ha]] ->  | D40: 40 | E40: =HLOOKUP(A:A,Tool!$C$29:$M$29,1,FALSE) ->  | F40: 1.65 | H40: 23.09539573
A41: Sėjamieji žirniai | B41: 11.25 | C41: =Table3[[#This Row],[PAN typical, kg/ha]]/Table3[[#This Row],[Biomass typical, t/ha]]*Table3[[#This Row],[User biomass, t/ha]] ->  | D41: 40 | E41: =HLOOKUP(A:A,Tool!$C$29:$M$29,1,FALSE) ->  | F41: 1.85 | H41: 16.89359821
A42: Siauralapiai lubinai | B42: 11.25 | C42: =Table3[[#This Row],[PAN typical, kg/ha]]/Table3[[#This Row],[Biomass typical, t/ha]]*Table3[[#This Row],[User biomass, t/ha]] ->  | D42: 40 | E42: =HLOOKUP(A:A,Tool!$C$29:$M$29,1,FALSE) ->  | F42: 2.05 | H42: 18.71993316
A43: Pupos | B43: 10 | C43: =Table3[[#This Row],[PAN typical, kg/ha]]/Table3[[#This Row],[Biomass typical, t/ha]]*Table3[[#This Row],[User biomass, t/ha]] ->  | D43: 40 | E43: =HLOOKUP(A:A,Tool!$C$29:$M$29,1,FALSE) ->  | F43: 1.95 | H43: 27.29455858
A44: Baltosios garstyčios | B44: 11.84210526 | C44: =Table3[[#This Row],[PAN typical, kg/ha]]/Table3[[#This Row],[Biomass typical, t/ha]]*Table3[[#This Row],[User biomass, t/ha]] -> 21.89953857 | D44: 60 | E44: =HLOOKUP(A:A,Tool!$C$29:$M$29,1,FALSE) -> Baltosios garstyčios | F44: 2.3 | G44: 2.3 | H44: 21.89953857
A45: Rudosios garstyčios | B45: 11.84210526 | C45: =Table3[[#This Row],[PAN typical, kg/ha]]/Table3[[#This Row],[Biomass typical, t/ha]]*Table3[[#This Row],[User biomass, t/ha]] ->  | D45: 60 | E45: =HLOOKUP(A:A,Tool!$C$29:$M$29,1,FALSE) ->  | F45: 2.3 | H45: 21.89953857
A46: Vasariniai rapsai | B46: 12.5 | C46: =Table3[[#This Row],[PAN typical, kg/ha]]/Table3[[#This Row],[Biomass typical, t/ha]]*Table3[[#This Row],[User biomass, t/ha]] -> 11.80890968 | D46: 60 | E46: =HLOOKUP(A:A,Tool!$C$29:$M$29,1,FALSE) -> Vasariniai rapsai | F46: 1.55 | G46: 1.55 | H46: 11.80890968
A47: Žieminiai rapsai | B47: 12.5 | C47: =Table3[[#This Row],[PAN typical, kg/ha]]/Table3[[#This Row],[Biomass typical, t/ha]]*Table3[[#This Row],[User biomass, t/ha]] -> 11.80890968 | D47: 60 | E47: =HLOOKUP(A:A,Tool!$C$29:$M$29,1,FALSE) -> Žieminiai rapsai | F47: 1.55 | G47: 1.55 | H47: 11.80890968
A48: Aliejiniai ridikai | B48: 12.16216216 | C48: =Table3[[#This Row],[PAN typical, kg/ha]]/Table3[[#This Row],[Biomass typical, t/ha]]*Table3[[#This Row],[User biomass, t/ha]] -> 25.28009921 | D48: 60 | E48: =HLOOKUP(A:A,Tool!$C$29:$M$29,1,FALSE) -> Aliejiniai ridikai | F48: 2.95 | G48: 2.95 | H48: 25.28009921
A49: Šakniniai ridikai | B49: 13.23529412 | C49: =Table3[[#This Row],[PAN typical, kg/ha]]/Table3[[#This Row],[Biomass typical, t/ha]]*Table3[[#This Row],[User biomass, t/ha]] ->  | D49: 60 | E49: =HLOOKUP(A:A,Tool!$C$29:$M$29,1,FALSE) ->  | F49: 2.05 | H49: 11.72705532
A50: Žieminiai rapsiukai | B50: 13.23529412 | C50: =Table3[[#This Row],[PAN typical, kg/ha]]/Table3[[#This Row],[Biomass typical, t/ha]]*Table3[[#This Row],[User biomass, t/ha]] -> 9.438849406 | D50: 60 | E50: =HLOOKUP(A:A,Tool!$C$29:$M$29,1,FALSE) -> Žieminiai rapsiukai | F50: 1.65 | G50: 1.65 | H50: 9.438849406
A51: Žieminiai rugiai | B51: 15 | C51: =Table3[[#This Row],[PAN typical, kg/ha]]/Table3[[#This Row],[Biomass typical, t/ha]]*Table3[[#This Row],[User biomass, t/ha]] -> 2.748556903 | D51: 60 | E51: =HLOOKUP(A:A,Tool!$C$29:$M$29,1,FALSE) -> Žieminiai rugiai | F51: 1.25 | G51: 1.25 | H51: 2.748556903
A52: Baltieji dobilai | B52: 14.0625 | C52: =Table3[[#This Row],[PAN typical, kg/ha]]/Table3[[#This Row],[Biomass typical, t/ha]]*Table3[[#This Row],[User biomass, t/ha]] ->  | D52: 60 | E52: =HLOOKUP(A:A,Tool!$C$29:$M$29,1,FALSE) ->  | F52: 2.05 | H52: 7.846470889
A53: Raudonieji dobilai | B53: 14.0625 | C53: =Table3[[#This Row],[PAN typical, kg/ha]]/Table3[[#This Row],[Biomass typical, t/ha]]*Table3[[#This Row],[User biomass, t/ha]] ->  | D53: 60 | E53: =HLOOKUP(A:A,Tool!$C$29:$M$29,1,FALSE) ->  | F53: 2.05 | H53: 7.846470889
A54: Baltažiedžiai barkūnai | B54: 14.0625 | C54: =Table3[[#This Row],[PAN typical, kg/ha]]/Table3[[#This Row],[Biomass typical, t/ha]]*Table3[[#This Row],[User biomass, t/ha]] ->  | D54: 60 | E54: =HLOOKUP(A:A,Tool!$C$29:$M$29,1,FALSE) ->  | F54: 1.95 | H54: 7.463716211
A55: Gausiažiedės svidrės | B55: 18 | C55: =Table3[[#This Row],[PAN typical, kg/ha]]/Table3[[#This Row],[Biomass typical, t/ha]]*Table3[[#This Row],[User biomass, t/ha]] ->  | D55: 60 | E55: =HLOOKUP(A:A,Tool!$C$29:$M$29,1,FALSE) ->  | F55: 1.4 | H55: 0.7074267639
A56: Daugiametės svidrės | B56: 18 | C56: =Table3[[#This Row],[PAN typical, kg/ha]]/Table3[[#This Row],[Biomass typical, t/ha]]*Table3[[#This Row],[User biomass, t/ha]] ->  | D56: 60 | E56: =HLOOKUP(A:A,Tool!$C$29:$M$29,1,FALSE) ->  | F56: 1.4 | H56: 0.7074267639
A57: Facelijos | B57: 14.0625 | C57: =Table3[[#This Row],[PAN typical, kg/ha]]/Table3[[#This Row],[Biomass typical, t/ha]]*Table3[[#This Row],[User biomass, t/ha]] ->  | D57: 60 | E57: =HLOOKUP(A:A,Tool!$C$29:$M$29,1,FALSE) ->  | F57: 2.05 | H57: 7.846470889
A58: Paprastosios šunažolės | B58: 17.30769231 | C58: =Table3[[#This Row],[PAN typical, kg/ha]]/Table3[[#This Row],[Biomass typical, t/ha]]*Table3[[#This Row],[User biomass, t/ha]] ->  | D58: 60 | E58: =HLOOKUP(A:A,Tool!$C$29:$M$29,1,FALSE) ->  | F58: 1.85 | H58: 1.683239962
A59: Sėjamosios ir netikšės avižos | B59: 17.30769231 | C59: =Table3[[#This Row],[PAN typical, kg/ha]]/Table3[[#This Row],[Biomass typical, t/ha]]*Table3[[#This Row],[User biomass, t/ha]] ->  | D59: 60 | E59: =HLOOKUP(A:A,Tool!$C$29:$M$29,1,FALSE) ->  | F59: 1.85 | H59: 1.683239962
A60: Grikiai | B60: 18.75 | C60: =Table3[[#This Row],[PAN typical, kg/ha]]/Table3[[#This Row],[Biomass typical, t/ha]]*Table3[[#This Row],[User biomass, t/ha]] ->  | D60: 60 | E60: =HLOOKUP(A:A,Tool!$C$29:$M$29,1,FALSE) ->  | F60: 1.85 | H60: 0.1370728605
A61: Žieminiai (ruginiai) vikiai | B61: 10 | C61: =Table3[[#This Row],[PAN typical, kg/ha]]/Table3[[#This Row],[Biomass typical, t/ha]]*Table3[[#This Row],[User biomass, t/ha]] ->  | D61: 60 | E61: =HLOOKUP(A:A,Tool!$C$29:$M$29,1,FALSE) ->  | F61: 1.65 | H61: 26.75332283
A62: Sėjamieji žirniai | B62: 11.25 | C62: =Table3[[#This Row],[PAN typical, kg/ha]]/Table3[[#This Row],[Biomass typical, t/ha]]*Table3[[#This Row],[User biomass, t/ha]] ->  | D62: 60 | E62: =HLOOKUP(A:A,Tool!$C$29:$M$29,1,FALSE) ->  | F62: 1.85 | H62: 21.14329781
A63: Siauralapiai lubinai | B63: 11.25 | C63: =Table3[[#This Row],[PAN typical, kg/ha]]/Table3[[#This Row],[Biomass typical, t/ha]]*Table3[[#This Row],[User biomass, t/ha]] ->  | D63: 60 | E63: =HLOOKUP(A:A,Tool!$C$29:$M$29,1,FALSE) ->  | F63: 2.05 | H63: 23.42905973
A64: Pupos | B64: 10 | C64: =Table3[[#This Row],[PAN typical, kg/ha]]/Table3[[#This Row],[Biomass typical, t/ha]]*Table3[[#This Row],[User biomass, t/ha]] ->  | D64: 60 | E64: =HLOOKUP(A:A,Tool!$C$29:$M$29,1,FALSE) ->  | F64: 1.95 | H64: 31.61756334
A65: Baltosios garstyčios | B65: 11.84210526 | C65: =Table3[[#This Row],[PAN typical, kg/ha]]/Table3[[#This Row],[Biomass typical, t/ha]]*Table3[[#This Row],[User biomass, t/ha]] -> 26.19996339 | D65: 80 | E65: =HLOOKUP(A:A,Tool!$C$29:$M$29,1,FALSE) -> Baltosios garstyčios | F65: 2.3 | G65: 2.3 | H65: 26.19996339
A66: Rudosios garstyčios | B66: 11.84210526 | C66: =Table3[[#This Row],[PAN typical, kg/ha]]/Table3[[#This Row],[Biomass typical, t/ha]]*Table3[[#This Row],[User biomass, t/ha]] ->  | D66: 80 | E66: =HLOOKUP(A:A,Tool!$C$29:$M$29,1,FALSE) ->  | F66: 2.3 | H66: 26.19996339
A67: Vasariniai rapsai | B67: 12.5 | C67: =Table3[[#This Row],[PAN typical, kg/ha]]/Table3[[#This Row],[Biomass typical, t/ha]]*Table3[[#This Row],[User biomass, t/ha]] -> 14.75963563 | D67: 80 | E67: =HLOOKUP(A:A,Tool!$C$29:$M$29,1,FALSE) -> Vasariniai rapsai | F67: 1.55 | G67: =VLOOKUP(A:A,K:L,2,FALSE) -> 1.55 | H67: 14.75963563
A68: Žieminiai rapsai | B68: 12.5 | C68: =Table3[[#This Row],[PAN typical, kg/ha]]/Table3[[#This Row],[Biomass typical, t/ha]]*Table3[[#This Row],[User biomass, t/ha]] -> 14.75963563 | D68: 80 | E68: =HLOOKUP(A:A,Tool!$C$29:$M$29,1,FALSE) -> Žieminiai rapsai | F68: 1.55 | G68: 1.55 | H68: 14.75963563
A69: Aliejiniai ridikai | B69: 12.16216216 | C69: =Table3[[#This Row],[PAN typical, kg/ha]]/Table3[[#This Row],[Biomass typical, t/ha]]*Table3[[#This Row],[User biomass, t/ha]] -> 30.84532409 | D69: 80 | E69: =HLOOKUP(A:A,Tool!$C$29:$M$29,1,FALSE) -> Aliejiniai ridikai | F69: 2.95 | G69: 2.95 | H69: 30.84532409
A70: Šakniniai ridikai | B70: 13.23529412 | C70: =Table3[[#This Row],[PAN typical, kg/ha]]/Table3[[#This Row],[Biomass typical, t/ha]]*Table3[[#This Row],[User biomass, t/ha]] ->  | D70: 80 | E70: =HLOOKUP(A:A,Tool!$C$29:$M$29,1,FALSE) ->  | F70: 2.05 | H70: 15.70265462
A71: Žieminiai rapsiukai | B71: 13.23529412 | C71: =Table3[[#This Row],[PAN typical, kg/ha]]/Table3[[#This Row],[Biomass typical, t/ha]]*Table3[[#This Row],[User biomass, t/ha]] -> 12.63872201 | D71: 80 | E71: =HLOOKUP(A:A,Tool!$C$29:$M$29,1,FALSE) -> Žieminiai rapsiukai | F71: 1.65 | G71: 1.65 | H71: 12.63872201
A72: Žieminiai rugiai | B72: 15 | C72: =Table3[[#This Row],[PAN typical, kg/ha]]/Table3[[#This Row],[Biomass typical, t/ha]]*Table3[[#This Row],[User biomass, t/ha]] -> 5.205314166 | D72: 80 | E72: =HLOOKUP(A:A,Tool!$C$29:$M$29,1,FALSE) -> Žieminiai rugiai | F72: 1.25 | G72: 1.25 | H72: 5.205314166
A73: Baltieji dobilai | B73: 14.0625 | C73: =Table3[[#This Row],[PAN typical, kg/ha]]/Table3[[#This Row],[Biomass typical, t/ha]]*Table3[[#This Row],[User biomass, t/ha]] ->  | D73: 80 | E73: =HLOOKUP(A:A,Tool!$C$29:$M$29,1,FALSE) ->  | F73: 2.05 | H73: 11.89868249
A74: Raudonieji dobilai | B74: 14.0625 | C74: =Table3[[#This Row],[PAN typical, kg/ha]]/Table3[[#This Row],[Biomass typical, t/ha]]*Table3[[#This Row],[User biomass, t/ha]] ->  | D74: 80 | E74: =HLOOKUP(A:A,Tool!$C$29:$M$29,1,FALSE) ->  | F74: 2.05 | H74: 11.89868249
A75: Baltažiedžiai barkūnai | B75: 14.0625 | C75: =Table3[[#This Row],[PAN typical, kg/ha]]/Table3[[#This Row],[Biomass typical, t/ha]]*Table3[[#This Row],[User biomass, t/ha]] ->  | D75: 80 | E75: =HLOOKUP(A:A,Tool!$C$29:$M$29,1,FALSE) ->  | F75: 1.95 | H75: 11.31825895
A76: Gausiažiedės svidrės | B76: 18 | C76: =Table3[[#This Row],[PAN typical, kg/ha]]/Table3[[#This Row],[Biomass typical, t/ha]]*Table3[[#This Row],[User biomass, t/ha]] ->  | D76: 80 | E76: =HLOOKUP(A:A,Tool!$C$29:$M$29,1,FALSE) ->  | F76: 1.4 | H76: 2.792175912
A77: Daugiametės svidrės | B77: 18 | C77: =Table3[[#This Row],[PAN typical, kg/ha]]/Table3[[#This Row],[Biomass typical, t/ha]]*Table3[[#This Row],[User biomass, t/ha]] ->  | D77: 80 | E77: =HLOOKUP(A:A,Tool!$C$29:$M$29,1,FALSE) ->  | F77: 1.4 | H77: 2.792175912
A78: Facelijos | B78: 14.0625 | C78: =Table3[[#This Row],[PAN typical, kg/ha]]/Table3[[#This Row],[Biomass typical, t/ha]]*Table3[[#This Row],[User biomass, t/ha]] ->  | D78: 80 | E78: =HLOOKUP(A:A,Tool!$C$29:$M$29,1,FALSE) ->  | F78: 2.05 | H78: 11.89868249
A79: Paprastosios šunažolės | B79: 17.30769231 | C79: =Table3[[#This Row],[PAN typical, kg/ha]]/Table3[[#This Row],[Biomass typical, t/ha]]*Table3[[#This Row],[User biomass, t/ha]] ->  | D79: 80 | E79: =HLOOKUP(A:A,Tool!$C$29:$M$29,1,FALSE) ->  | F79: 1.85 | H79: 4.586825361
A80: Sėjamosios ir netikšės avižos | B80: 17.30769231 | C80: =Table3[[#This Row],[PAN typical, kg/ha]]/Table3[[#This Row],[Biomass typical, t/ha]]*Table3[[#This Row],[User biomass, t/ha]] ->  | D80: 80 | E80: =HLOOKUP(A:A,Tool!$C$29:$M$29,1,FALSE) ->  | F80: 1.85 | H80: 4.586825361
A81: Grikiai | B81: 18.75 | C81: =Table3[[#This Row],[PAN typical, kg/ha]]/Table3[[#This Row],[Biomass typical, t/ha]]*Table3[[#This Row],[User biomass, t/ha]] ->  | D81: 80 | E81: =HLOOKUP(A:A,Tool!$C$29:$M$29,1,FALSE) ->  | F81: 1.85 | H81: 2.754784027
A82: Žieminiai (ruginiai) vikiai | B82: 10 | C82: =Table3[[#This Row],[PAN typical, kg/ha]]/Table3[[#This Row],[Biomass typical, t/ha]]*Table3[[#This Row],[User biomass, t/ha]] ->  | D82: 80 | E82: =HLOOKUP(A:A,Tool!$C$29:$M$29,1,FALSE) ->  | F82: 1.65 | H82: 29.66235475
A83: Sėjamieji žirniai | B83: 11.25 | C83: =Table3[[#This Row],[PAN typical, kg/ha]]/Table3[[#This Row],[Biomass typical, t/ha]]*Table3[[#This Row],[User biomass, t/ha]] ->  | D83: 80 | E83: =HLOOKUP(A:A,Tool!$C$29:$M$29,1,FALSE) ->  | F83: 1.85 | H83: 24.54250287
A84: Siauralapiai lubinai | B84: 11.25 | C84: =Table3[[#This Row],[PAN typical, kg/ha]]/Table3[[#This Row],[Biomass typical, t/ha]]*Table3[[#This Row],[User biomass, t/ha]] ->  | D84: 80 | E84: =HLOOKUP(A:A,Tool!$C$29:$M$29,1,FALSE) ->  | F84: 2.05 | H84: 27.19574642
A85: Pupos | B85: 10 | C85: =Table3[[#This Row],[PAN typical, kg/ha]]/Table3[[#This Row],[Biomass typical, t/ha]]*Table3[[#This Row],[User biomass, t/ha]] ->  | D85: 80 | E85: =HLOOKUP(A:A,Tool!$C$29:$M$29,1,FALSE) ->  | F85: 1.95 | H85: 35.05551015
A86: Baltosios garstyčios | B86: 11.84210526 | C86: =Table3[[#This Row],[PAN typical, kg/ha]]/Table3[[#This Row],[Biomass typical, t/ha]]*Table3[[#This Row],[User biomass, t/ha]] -> 29.6558409 | D86: 100 | E86: =HLOOKUP(A:A,Tool!$C$29:$M$29,1,FALSE) -> Baltosios garstyčios | F86: 2.3 | G86: 2.3 | H86: 29.6558409
A87: Rudosios garstyčios | B87: 11.84210526 | C87: =Table3[[#This Row],[PAN typical, kg/ha]]/Table3[[#This Row],[Biomass typical, t/ha]]*Table3[[#This Row],[User biomass, t/ha]] ->  | D87: 100 | E87: =HLOOKUP(A:A,Tool!$C$29:$M$29,1,FALSE) ->  | F87: 2.3 | H87: 29.6558409
A88: Vasariniai rapsai | B88: 12.5 | C88: =Table3[[#This Row],[PAN typical, kg/ha]]/Table3[[#This Row],[Biomass typical, t/ha]]*Table3[[#This Row],[User biomass, t/ha]] -> 17.1318324 | D88: 100 | E88: =HLOOKUP(A:A,Tool!$C$29:$M$29,1,FALSE) -> Vasariniai rapsai | F88: 1.55 | G88: 1.55 | H88: 17.1318324
A89: Žieminiai rapsai | B89: 12.5 | C89: =Table3[[#This Row],[PAN typical, kg/ha]]/Table3[[#This Row],[Biomass typical, t/ha]]*Table3[[#This Row],[User biomass, t/ha]] -> 17.1318324 | D89: 100 | E89: =HLOOKUP(A:A,Tool!$C$29:$M$29,1,FALSE) -> Žieminiai rapsai | F89: 1.55 | G89: 1.55 | H89: 17.1318324
A90: Aliejiniai ridikai | B90: 12.16216216 | C90: =Table3[[#This Row],[PAN typical, kg/ha]]/Table3[[#This Row],[Biomass typical, t/ha]]*Table3[[#This Row],[User biomass, t/ha]] -> 35.31843865 | D90: 100 | E90: =HLOOKUP(A:A,Tool!$C$29:$M$29,1,FALSE) -> Aliejiniai ridikai | F90: 2.95 | G90: 2.95 | H90: 35.31843865
A91: Šakniniai ridikai | B91: 13.23529412 | C91: =Table3[[#This Row],[PAN typical, kg/ha]]/Table3[[#This Row],[Biomass typical, t/ha]]*Table3[[#This Row],[User biomass, t/ha]] ->  | D91: 100 | E91: =HLOOKUP(A:A,Tool!$C$29:$M$29,1,FALSE) ->  | F91: 2.05 | H91: 18.90054288
A92: Žieminiai rapsiukai | B92: 13.23529412 | C92: =Table3[[#This Row],[PAN typical, kg/ha]]/Table3[[#This Row],[Biomass typical, t/ha]]*Table3[[#This Row],[User biomass, t/ha]] -> 15.21263208 | D92: 100 | E92: =HLOOKUP(A:A,Tool!$C$29:$M$29,1,FALSE) -> Žieminiai rapsiukai | F92: 1.65 | G92: 1.65 | H92: 15.21263208
A93: Žieminiai rugiai | B93: 15 | C93: =Table3[[#This Row],[PAN typical, kg/ha]]/Table3[[#This Row],[Biomass typical, t/ha]]*Table3[[#This Row],[User biomass, t/ha]] -> 7.18462784 | D93: 100 | E93: =HLOOKUP(A:A,Tool!$C$29:$M$29,1,FALSE) -> Žieminiai rugiai | F93: 1.25 | G93: 1.25 | H93: 7.18462784
A94: Baltieji dobilai | B94: 14.0625 | C94: =Table3[[#This Row],[PAN typical, kg/ha]]/Table3[[#This Row],[Biomass typical, t/ha]]*Table3[[#This Row],[User biomass, t/ha]] ->  | D94: 100 | E94: =HLOOKUP(A:A,Tool!$C$29:$M$29,1,FALSE) ->  | F94: 2.05 | H94: 15.16059078
A95: Raudonieji dobilai | B95: 14.0625 | C95: =Table3[[#This Row],[PAN typical, kg/ha]]/Table3[[#This Row],[Biomass typical, t/ha]]*Table3[[#This Row],[User biomass, t/ha]] ->  | D95: 100 | E95: =HLOOKUP(A:A,Tool!$C$29:$M$29,1,FALSE) ->  | F95: 2.05 | H95: 15.16059078
A96: Baltažiedžiai barkūnai | B96: 14.0625 | C96: =Table3[[#This Row],[PAN typical, kg/ha]]/Table3[[#This Row],[Biomass typical, t/ha]]*Table3[[#This Row],[User biomass, t/ha]] ->  | D96: 100 | E96: =HLOOKUP(A:A,Tool!$C$29:$M$29,1,FALSE) ->  | F96: 1.95 | H96: 14.42104976
A97: Gausiažiedės svidrės | B97: 18 | C97: =Table3[[#This Row],[PAN typical, kg/ha]]/Table3[[#This Row],[Biomass typical, t/ha]]*Table3[[#This Row],[User biomass, t/ha]] ->  | D97: 100 | E97: =HLOOKUP(A:A,Tool!$C$29:$M$29,1,FALSE) ->  | F97: 1.4 | H97: 4.475435287
A98: Daugiametės svidrės | B98: 18 | C98: =Table3[[#This Row],[PAN typical, kg/ha]]/Table3[[#This Row],[Biomass typical, t/ha]]*Table3[[#This Row],[User biomass, t/ha]] ->  | D98: 100 | E98: =HLOOKUP(A:A,Tool!$C$29:$M$29,1,FALSE) ->  | F98: 1.4 | H98: 4.475435287
A99: Facelijos | B99: 14.0625 | C99: =Table3[[#This Row],[PAN typical, kg/ha]]/Table3[[#This Row],[Biomass typical, t/ha]]*Table3[[#This Row],[User biomass, t/ha]] ->  | D99: 100 | E99: =HLOOKUP(A:A,Tool!$C$29:$M$29,1,FALSE) ->  | F99: 2.05 | H99: 15.16059078
A100: Paprastosios šunažolės | B100: 17.30769231 | C100: =Table3[[#This Row],[PAN typical, kg/ha]]/Table3[[#This Row],[Biomass typical, t/ha]]*Table3[[#This Row],[User biomass, t/ha]] ->  | D100: 100 | E100: =HLOOKUP(A:A,Tool!$C$29:$M$29,1,FALSE) ->  | F100: 1.85 | H100: 6.929773296
A101: Sėjamosios ir netikšės avižos | B101: 17.30769231 | C101: =Table3[[#This Row],[PAN typical, kg/ha]]/Table3[[#This Row],[Biomass typical, t/ha]]*Table3[[#This Row],[User biomass, t/ha]] ->  | D101: 100 | E101: =HLOOKUP(A:A,Tool!$C$29:$M$29,1,FALSE) ->  | F101: 1.85 | H101: 6.929773296
A102: Grikiai | B102: 18.75 | C102: =Table3[[#This Row],[PAN typical, kg/ha]]/Table3[[#This Row],[Biomass typical, t/ha]]*Table3[[#This Row],[User biomass, t/ha]] ->  | D102: 100 | E102: =HLOOKUP(A:A,Tool!$C$29:$M$29,1,FALSE) ->  | F102: 1.85 | H102: 4.869955394
A103: Žieminiai (ruginiai) vikiai | B103: 10 | C103: =Table3[[#This Row],[PAN typical, kg/ha]]/Table3[[#This Row],[Biomass typical, t/ha]]*Table3[[#This Row],[User biomass, t/ha]] ->  | D103: 100 | E103: =HLOOKUP(A:A,Tool!$C$29:$M$29,1,FALSE) ->  | F103: 1.65 | H103: 31.99858257
A104: Sėjamieji žirniai | B104: 11.25 | C104: =Table3[[#This Row],[PAN typical, kg/ha]]/Table3[[#This Row],[Biomass typical, t/ha]]*Table3[[#This Row],[User biomass, t/ha]] ->  | D104: 100 | E104: =HLOOKUP(A:A,Tool!$C$29:$M$29,1,FALSE) ->  | F104: 1.85 | H104: 27.27336731
A105: Siauralapiai lubinai | B105: 11.25 | C105: =Table3[[#This Row],[PAN typical, kg/ha]]/Table3[[#This Row],[Biomass typical, t/ha]]*Table3[[#This Row],[User biomass, t/ha]] ->  | D105: 100 | E105: =HLOOKUP(A:A,Tool!$C$29:$M$29,1,FALSE) ->  | F105: 2.05 | H105: 30.22183945
A106: Pupos | B106: 10 | C106: =Table3[[#This Row],[PAN typical, kg/ha]]/Table3[[#This Row],[Biomass typical, t/ha]]*Table3[[#This Row],[User biomass, t/ha]] ->  | D106: 100 | E106: =HLOOKUP(A:A,Tool!$C$29:$M$29,1,FALSE) ->  | F106: 1.95 | H106: 37.81650668
A107: Baltosios garstyčios | B107: 11.84210526 | C107: =Table3[[#This Row],[PAN typical, kg/ha]]/Table3[[#This Row],[Biomass typical, t/ha]]*Table3[[#This Row],[User biomass, t/ha]] -> 32.43333734 | D107: 120 | E107: =HLOOKUP(A:A,Tool!$C$29:$M$29,1,FALSE) -> Baltosios garstyčios | F107: 2.3 | G107: 2.3 | H107: 32.43333734
A108: Rudosios garstyčios | B108: 11.84210526 | C108: =Table3[[#This Row],[PAN typical, kg/ha]]/Table3[[#This Row],[Biomass typical, t/ha]]*Table3[[#This Row],[User biomass, t/ha]] ->  | D108: 120 | E108: =HLOOKUP(A:A,Tool!$C$29:$M$29,1,FALSE) ->  | F108: 2.3 | H108: 32.43333734
A109: Vasariniai rapsai | B109: 12.5 | C109: =Table3[[#This Row],[PAN typical, kg/ha]]/Table3[[#This Row],[Biomass typical, t/ha]]*Table3[[#This Row],[User biomass, t/ha]] -> 19.03844501 | D109: 120 | E109: =HLOOKUP(A:A,Tool!$C$29:$M$29,1,FALSE) -> Vasariniai rapsai | F109: 1.55 | G109: 1.55 | H109: 19.03844501
A110: Žieminiai rapsai | B110: 12.5 | C110: =Table3[[#This Row],[PAN typical, kg/ha]]/Table3[[#This Row],[Biomass typical, t/ha]]*Table3[[#This Row],[User biomass, t/ha]] -> 19.03844501 | D110: 120 | E110: =HLOOKUP(A:A,Tool!$C$29:$M$29,1,FALSE) -> Žieminiai rapsai | F110: 1.55 | G110: 1.55 | H110: 19.03844501
A111: Aliejiniai ridikai | B111: 12.16216216 | C111: =Table3[[#This Row],[PAN typical, kg/ha]]/Table3[[#This Row],[Biomass typical, t/ha]]*Table3[[#This Row],[User biomass, t/ha]] -> 38.91355169 | D111: 120 | E111: =HLOOKUP(A:A,Tool!$C$29:$M$29,1,FALSE) -> Aliejiniai ridikai | F111: 2.95 | G111: 2.95 | H111: 38.91355169
A112: Šakniniai ridikai | B112: 13.23529412 | C112: =Table3[[#This Row],[PAN typical, kg/ha]]/Table3[[#This Row],[Biomass typical, t/ha]]*Table3[[#This Row],[User biomass, t/ha]] ->  | D112: 120 | E112: =HLOOKUP(A:A,Tool!$C$29:$M$29,1,FALSE) ->  | F112: 2.05 | H112: 21.47094126
A113: Žieminiai rapsiukai | B113: 13.23529412 | C113: =Table3[[#This Row],[PAN typical, kg/ha]]/Table3[[#This Row],[Biomass typical, t/ha]]*Table3[[#This Row],[User biomass, t/ha]] -> 17.28148931 | D113: 120 | E113: =HLOOKUP(A:A,Tool!$C$29:$M$29,1,FALSE) -> Žieminiai rapsiukai | F113: 1.65 | G113: 1.65 | H113: 17.28148931
A114: Žieminiai rugiai | B114: 15 | C114: =Table3[[#This Row],[PAN typical, kg/ha]]/Table3[[#This Row],[Biomass typical, t/ha]]*Table3[[#This Row],[User biomass, t/ha]] -> 8.775876134 | D114: 120 | E114: =HLOOKUP(A:A,Tool!$C$29:$M$29,1,FALSE) -> Žieminiai rugiai | F114: 1.25 | G114: 1.25 | H114: 8.775876134
A115: Baltieji dobilai | B115: 14.0625 | C115: =Table3[[#This Row],[PAN typical, kg/ha]]/Table3[[#This Row],[Biomass typical, t/ha]]*Table3[[#This Row],[User biomass, t/ha]] ->  | D115: 120 | E115: =HLOOKUP(A:A,Tool!$C$29:$M$29,1,FALSE) ->  | F115: 2.05 | H115: 17.78267374
A116: Raudonieji dobilai | B116: 14.0625 | C116: =Table3[[#This Row],[PAN typical, kg/ha]]/Table3[[#This Row],[Biomass typical, t/ha]]*Table3[[#This Row],[User biomass, t/ha]] ->  | D116: 120 | E116: =HLOOKUP(A:A,Tool!$C$29:$M$29,1,FALSE) ->  | F116: 2.05 | H116: 17.78267374
A117: Baltažiedžiai barkūnai | B117: 14.0625 | C117: =Table3[[#This Row],[PAN typical, kg/ha]]/Table3[[#This Row],[Biomass typical, t/ha]]*Table3[[#This Row],[User biomass, t/ha]] ->  | D117: 120 | E117: =HLOOKUP(A:A,Tool!$C$29:$M$29,1,FALSE) ->  | F117: 1.95 | H117: 16.91522624
A118: Gausiažiedės svidrės | B118: 18 | C118: =Table3[[#This Row],[PAN typical, kg/ha]]/Table3[[#This Row],[Biomass typical, t/ha]]*Table3[[#This Row],[User biomass, t/ha]] ->  | D118: 120 | E118: =HLOOKUP(A:A,Tool!$C$29:$M$29,1,FALSE) ->  | F118: 1.4 | H118: 5.829145998
A119: Daugiametės svidrės | B119: 18 | C119: =Table3[[#This Row],[PAN typical, kg/ha]]/Table3[[#This Row],[Biomass typical, t/ha]]*Table3[[#This Row],[User biomass, t/ha]] ->  | D119: 120 | E119: =HLOOKUP(A:A,Tool!$C$29:$M$29,1,FALSE) ->  | F119: 1.4 | H119: 5.829145998
A120: Facelijos | B120: 14.0625 | C120: =Table3[[#This Row],[PAN typical, kg/ha]]/Table3[[#This Row],[Biomass typical, t/ha]]*Table3[[#This Row],[User biomass, t/ha]] ->  | D120: 120 | E120: =HLOOKUP(A:A,Tool!$C$29:$M$29,1,FALSE) ->  | F120: 2.05 | H120: 17.78267374
A121: Paprastosios šunažolės | B121: 17.30769231 | C121: =Table3[[#This Row],[PAN typical, kg/ha]]/Table3[[#This Row],[Biomass typical, t/ha]]*Table3[[#This Row],[User biomass, t/ha]] ->  | D121: 120 | E121: =HLOOKUP(A:A,Tool!$C$29:$M$29,1,FALSE) ->  | F121: 1.85 | H121: 8.813825488
A122: Sėjamosios ir netikšės avižos | B122: 17.30769231 | C122: =Table3[[#This Row],[PAN typical, kg/ha]]/Table3[[#This Row],[Biomass typical, t/ha]]*Table3[[#This Row],[User biomass, t/ha]] ->  | D122: 120 | E122: =HLOOKUP(A:A,Tool!$C$29:$M$29,1,FALSE) ->  | F122: 1.85 | H122: 8.813825488
A123: Grikiai | B123: 18.75 | C123: =Table3[[#This Row],[PAN typical, kg/ha]]/Table3[[#This Row],[Biomass typical, t/ha]]*Table3[[#This Row],[User biomass, t/ha]] ->  | D123: 120 | E123: =HLOOKUP(A:A,Tool!$C$29:$M$29,1,FALSE) ->  | F123: 1.85 | H123: 6.571234995
A124: Žieminiai (ruginiai) vikiai | B124: 10 | C124: =Table3[[#This Row],[PAN typical, kg/ha]]/Table3[[#This Row],[Biomass typical, t/ha]]*Table3[[#This Row],[User biomass, t/ha]] ->  | D124: 120 | E124: =HLOOKUP(A:A,Tool!$C$29:$M$29,1,FALSE) ->  | F124: 1.65 | H124: 33.87613069
A125: Sėjamieji žirniai | B125: 11.25 | C125: =Table3[[#This Row],[PAN typical, kg/ha]]/Table3[[#This Row],[Biomass typical, t/ha]]*Table3[[#This Row],[User biomass, t/ha]] ->  | D125: 120 | E125: =HLOOKUP(A:A,Tool!$C$29:$M$29,1,FALSE) ->  | F125: 1.85 | H125: 29.46811733
A126: Siauralapiai lubinai | B126: 11.25 | C126: =Table3[[#This Row],[PAN typical, kg/ha]]/Table3[[#This Row],[Biomass typical, t/ha]]*Table3[[#This Row],[User biomass, t/ha]] ->  | D126: 120 | E126: =HLOOKUP(A:A,Tool!$C$29:$M$29,1,FALSE) ->  | F126: 2.05 | H126: 32.65385974
A127: Pupos | B127: 10 | C127: =Table3[[#This Row],[PAN typical, kg/ha]]/Table3[[#This Row],[Biomass typical, t/ha]]*Table3[[#This Row],[User biomass, t/ha]] ->  | D127: 120 | E127: =HLOOKUP(A:A,Tool!$C$29:$M$29,1,FALSE) ->  | F127: 1.95 | H127: 40.03542718
A128: Baltosios garstyčios | B128: 11.84210526 | C128: =Table3[[#This Row],[PAN typical, kg/ha]]/Table3[[#This Row],[Biomass typical, t/ha]]*Table3[[#This Row],[User biomass, t/ha]] -> 34.66563985 | D128: 140 | E128: =HLOOKUP(A:A,Tool!$C$29:$M$29,1,FALSE) -> Baltosios garstyčios | F128: 2.3 | G128: 2.3 | H128: 34.66563985
A129: Rudosios garstyčios | B129: 11.84210526 | C129: =Table3[[#This Row],[PAN typical, kg/ha]]/Table3[[#This Row],[Biomass typical, t/ha]]*Table3[[#This Row],[User biomass, t/ha]] ->  | D129: 140 | E129: =HLOOKUP(A:A,Tool!$C$29:$M$29,1,FALSE) ->  | F129: 2.3 | H129: 34.66563985
A130: Vasariniai rapsai | B130: 12.5 | C130: =Table3[[#This Row],[PAN typical, kg/ha]]/Table3[[#This Row],[Biomass typical, t/ha]]*Table3[[#This Row],[User biomass, t/ha]] -> 20.57081476 | D130: 140 | E130: =HLOOKUP(A:A,Tool!$C$29:$M$29,1,FALSE) -> Vasariniai rapsai | F130: 1.55 | G130: 1.55 | H130: 20.57081476
A131: Žieminiai rapsai | B131: 12.5 | C131: =Table3[[#This Row],[PAN typical, kg/ha]]/Table3[[#This Row],[Biomass typical, t/ha]]*Table3[[#This Row],[User biomass, t/ha]] -> 20.57081476 | D131: 140 | E131: =HLOOKUP(A:A,Tool!$C$29:$M$29,1,FALSE) -> Žieminiai rapsai | F131: 1.55 | G131: =VLOOKUP(A:A,K:L,2,FALSE) -> 1.55 | H131: 20.57081476
A132: Aliejiniai ridikai | B132: 12.16216216 | C132: =Table3[[#This Row],[PAN typical, kg/ha]]/Table3[[#This Row],[Biomass typical, t/ha]]*Table3[[#This Row],[User biomass, t/ha]] -> 41.80298557 | D132: 140 | E132: =HLOOKUP(A:A,Tool!$C$29:$M$29,1,FALSE) -> Aliejiniai ridikai | F132: 2.95 | G132: 2.95 | H132: 41.80298557
A133: Šakniniai ridikai | B133: 13.23529412 | C133: =Table3[[#This Row],[PAN typical, kg/ha]]/Table3[[#This Row],[Biomass typical, t/ha]]*Table3[[#This Row],[User biomass, t/ha]] ->  | D133: 140 | E133: =HLOOKUP(A:A,Tool!$C$29:$M$29,1,FALSE) ->  | F133: 2.05 | H133: 23.53681723
A134: Žieminiai rapsiukai | B134: 13.23529412 | C134: =Table3[[#This Row],[PAN typical, kg/ha]]/Table3[[#This Row],[Biomass typical, t/ha]]*Table3[[#This Row],[User biomass, t/ha]] -> 18.94426753 | D134: 140 | E134: =HLOOKUP(A:A,Tool!$C$29:$M$29,1,FALSE) -> Žieminiai rapsiukai | F134: 1.65 | G134: 1.65 | H134: 18.94426753
A135: Žieminiai rugiai | B135: 15 | C135: =Table3[[#This Row],[PAN typical, kg/ha]]/Table3[[#This Row],[Biomass typical, t/ha]]*Table3[[#This Row],[User biomass, t/ha]] -> 10.0548227 | D135: 140 | E135: =HLOOKUP(A:A,Tool!$C$29:$M$29,1,FALSE) -> Žieminiai rugiai | F135: 1.25 | G135: 1.25 | H135: 10.0548227
A136: Baltieji dobilai | B136: 14.0625 | C136: =Table3[[#This Row],[PAN typical, kg/ha]]/Table3[[#This Row],[Biomass typical, t/ha]]*Table3[[#This Row],[User biomass, t/ha]] ->  | D136: 140 | E136: =HLOOKUP(A:A,Tool!$C$29:$M$29,1,FALSE) ->  | F136: 2.05 | H136: 19.89011083
A137: Raudonieji dobilai | B137: 14.0625 | C137: =Table3[[#This Row],[PAN typical, kg/ha]]/Table3[[#This Row],[Biomass typical, t/ha]]*Table3[[#This Row],[User biomass, t/ha]] ->  | D137: 140 | E137: =HLOOKUP(A:A,Tool!$C$29:$M$29,1,FALSE) ->  | F137: 2.05 | H137: 19.89011083
A138: Baltažiedžiai barkūnai | B138: 14.0625 | C138: =Table3[[#This Row],[PAN typical, kg/ha]]/Table3[[#This Row],[Biomass typical, t/ha]]*Table3[[#This Row],[User biomass, t/ha]] ->  | D138: 140 | E138: =HLOOKUP(A:A,Tool!$C$29:$M$29,1,FALSE) ->  | F138: 1.95 | H138: 18.91986152
A139: Gausiažiedės svidrės | B139: 18 | C139: =Table3[[#This Row],[PAN typical, kg/ha]]/Table3[[#This Row],[Biomass typical, t/ha]]*Table3[[#This Row],[User biomass, t/ha]] ->  | D139: 140 | E139: =HLOOKUP(A:A,Tool!$C$29:$M$29,1,FALSE) ->  | F139: 1.4 | H139: 6.917233309
A140: Daugiametės svidrės | B140: 18 | C140: =Table3[[#This Row],[PAN typical, kg/ha]]/Table3[[#This Row],[Biomass typical, t/ha]]*Table3[[#This Row],[User biomass, t/ha]] ->  | D140: 140 | E140: =HLOOKUP(A:A,Tool!$C$29:$M$29,1,FALSE) ->  | F140: 1.4 | H140: 6.917233309
A141: Facelijos | B141: 14.0625 | C141: =Table3[[#This Row],[PAN typical, kg/ha]]/Table3[[#This Row],[Biomass typical, t/ha]]*Table3[[#This Row],[User biomass, t/ha]] ->  | D141: 140 | E141: =HLOOKUP(A:A,Tool!$C$29:$M$29,1,FALSE) ->  | F141: 2.05 | H141: 19.89011083
A142: Paprastosios šunažolės | B142: 17.30769231 | C142: =Table3[[#This Row],[PAN typical, kg/ha]]/Table3[[#This Row],[Biomass typical, t/ha]]*Table3[[#This Row],[User biomass, t/ha]] ->  | D142: 140 | E142: =HLOOKUP(A:A,Tool!$C$29:$M$29,1,FALSE) ->  | F142: 1.85 | H142: 10.32816641
A143: Sėjamosios ir netikšės avižos | B143: 17.30769231 | C143: =Table3[[#This Row],[PAN typical, kg/ha]]/Table3[[#This Row],[Biomass typical, t/ha]]*Table3[[#This Row],[User biomass, t/ha]] ->  | D143: 140 | E143: =HLOOKUP(A:A,Tool!$C$29:$M$29,1,FALSE) ->  | F143: 1.85 | H143: 10.32816641
A144: Grikiai | B144: 18.75 | C144: =Table3[[#This Row],[PAN typical, kg/ha]]/Table3[[#This Row],[Biomass typical, t/ha]]*Table3[[#This Row],[User biomass, t/ha]] ->  | D144: 140 | E144: =HLOOKUP(A:A,Tool!$C$29:$M$29,1,FALSE) ->  | F144: 1.85 | H144: 7.938720394
A145: Žieminiai (ruginiai) vikiai | B145: 10 | C145: =Table3[[#This Row],[PAN typical, kg/ha]]/Table3[[#This Row],[Biomass typical, t/ha]]*Table3[[#This Row],[User biomass, t/ha]] ->  | D145: 140 | E145: =HLOOKUP(A:A,Tool!$C$29:$M$29,1,FALSE) ->  | F145: 1.65 | H145: 35.38513093
A146: Sėjamieji žirniai | B146: 11.25 | C146: =Table3[[#This Row],[PAN typical, kg/ha]]/Table3[[#This Row],[Biomass typical, t/ha]]*Table3[[#This Row],[User biomass, t/ha]] ->  | D146: 140 | E146: =HLOOKUP(A:A,Tool!$C$29:$M$29,1,FALSE) ->  | F146: 1.85 | H146: 31.23205711
A147: Siauralapiai lubinai | B147: 11.25 | C147: =Table3[[#This Row],[PAN typical, kg/ha]]/Table3[[#This Row],[Biomass typical, t/ha]]*Table3[[#This Row],[User biomass, t/ha]] ->  | D147: 140 | E147: =HLOOKUP(A:A,Tool!$C$29:$M$29,1,FALSE) ->  | F147: 2.05 | H147: 34.60849571
A148: Pupos | B148: 10 | C148: =Table3[[#This Row],[PAN typical, kg/ha]]/Table3[[#This Row],[Biomass typical, t/ha]]*Table3[[#This Row],[User biomass, t/ha]] ->  | D148: 140 | E148: =HLOOKUP(A:A,Tool!$C$29:$M$29,1,FALSE) ->  | F148: 1.95 | H148: 41.8187911
A149: Baltosios garstyčios | B149: 11.84210526 | C149: =Table3[[#This Row],[PAN typical, kg/ha]]/Table3[[#This Row],[Biomass typical, t/ha]]*Table3[[#This Row],[User biomass, t/ha]] -> 36.45976601 | D149: 160 | E149: =HLOOKUP(A:A,Tool!$C$29:$M$29,1,FALSE) -> Baltosios garstyčios | F149: 2.3 | G149: 2.3 | H149: 36.45976601
A150: Rudosios garstyčios | B150: 11.84210526 | C150: =Table3[[#This Row],[PAN typical, kg/ha]]/Table3[[#This Row],[Biomass typical, t/ha]]*Table3[[#This Row],[User biomass, t/ha]] ->  | D150: 160 | E150: =HLOOKUP(A:A,Tool!$C$29:$M$29,1,FALSE) ->  | F150: 2.3 | H150: 36.45976601
A151: Vasariniai rapsai | B151: 12.5 | C151: =Table3[[#This Row],[PAN typical, kg/ha]]/Table3[[#This Row],[Biomass typical, t/ha]]*Table3[[#This Row],[User biomass, t/ha]] -> 21.80239767 | D151: 160 | E151: =HLOOKUP(A:A,Tool!$C$29:$M$29,1,FALSE) -> Vasariniai rapsai | F151: 1.55 | G151: 1.55 | H151: 21.80239767
A152: Žieminiai rapsai | B152: 12.5 | C152: =Table3[[#This Row],[PAN typical, kg/ha]]/Table3[[#This Row],[Biomass typical, t/ha]]*Table3[[#This Row],[User biomass, t/ha]] -> 21.80239767 | D152: 160 | E152: =HLOOKUP(A:A,Tool!$C$29:$M$29,1,FALSE) -> Žieminiai rapsai | F152: 1.55 | G152: 1.55 | H152: 21.80239767
A153: Aliejiniai ridikai | B153: 12.16216216 | C153: =Table3[[#This Row],[PAN typical, kg/ha]]/Table3[[#This Row],[Biomass typical, t/ha]]*Table3[[#This Row],[User biomass, t/ha]] -> 44.12525581 | D153: 160 | E153: =HLOOKUP(A:A,Tool!$C$29:$M$29,1,FALSE) -> Aliejiniai ridikai | F153: 2.95 | G153: 2.95 | H153: 44.12525581
A154: Šakniniai ridikai | B154: 13.23529412 | C154: =Table3[[#This Row],[PAN typical, kg/ha]]/Table3[[#This Row],[Biomass typical, t/ha]]*Table3[[#This Row],[User biomass, t/ha]] ->  | D154: 160 | E154: =HLOOKUP(A:A,Tool!$C$29:$M$29,1,FALSE) ->  | F154: 2.05 | H154: 25.19718621
A155: Žieminiai rapsiukai | B155: 13.23529412 | C155: =Table3[[#This Row],[PAN typical, kg/ha]]/Table3[[#This Row],[Biomass typical, t/ha]]*Table3[[#This Row],[User biomass, t/ha]] -> 20.28066207 | D155: 160 | E155: =HLOOKUP(A:A,Tool!$C$29:$M$29,1,FALSE) -> Žieminiai rapsiukai | F155: 1.65 | G155: 1.65 | H155: 20.28066207
A156: Žieminiai rugiai | B156: 15 | C156: =Table3[[#This Row],[PAN typical, kg/ha]]/Table3[[#This Row],[Biomass typical, t/ha]]*Table3[[#This Row],[User biomass, t/ha]] -> 11.08273028 | D156: 160 | E156: =HLOOKUP(A:A,Tool!$C$29:$M$29,1,FALSE) -> Žieminiai rugiai | F156: 1.25 | G156: 1.25 | H156: 11.08273028
A157: Baltieji dobilai | B157: 14.0625 | C157: =Table3[[#This Row],[PAN typical, kg/ha]]/Table3[[#This Row],[Biomass typical, t/ha]]*Table3[[#This Row],[User biomass, t/ha]] ->  | D157: 160 | E157: =HLOOKUP(A:A,Tool!$C$29:$M$29,1,FALSE) ->  | F157: 2.05 | H157: 21.58388496
A158: Raudonieji dobilai | B158: 14.0625 | C158: =Table3[[#This Row],[PAN typical, kg/ha]]/Table3[[#This Row],[Biomass typical, t/ha]]*Table3[[#This Row],[User biomass, t/ha]] ->  | D158: 160 | E158: =HLOOKUP(A:A,Tool!$C$29:$M$29,1,FALSE) ->  | F158: 2.05 | H158: 21.58388496
A159: Baltažiedžiai barkūnai | B159: 14.0625 | C159: =Table3[[#This Row],[PAN typical, kg/ha]]/Table3[[#This Row],[Biomass typical, t/ha]]*Table3[[#This Row],[User biomass, t/ha]] ->  | D159: 160 | E159: =HLOOKUP(A:A,Tool!$C$29:$M$29,1,FALSE) ->  | F159: 1.95 | H159: 20.53101252
A160: Gausiažiedės svidrės | B160: 18 | C160: =Table3[[#This Row],[PAN typical, kg/ha]]/Table3[[#This Row],[Biomass typical, t/ha]]*Table3[[#This Row],[User biomass, t/ha]] ->  | D160: 160 | E160: =HLOOKUP(A:A,Tool!$C$29:$M$29,1,FALSE) ->  | F160: 1.4 | H160: 7.791751702
A161: Daugiametės svidrės | B161: 18 | C161: =Table3[[#This Row],[PAN typical, kg/ha]]/Table3[[#This Row],[Biomass typical, t/ha]]*Table3[[#This Row],[User biomass, t/ha]] ->  | D161: 160 | E161: =HLOOKUP(A:A,Tool!$C$29:$M$29,1,FALSE) ->  | F161: 1.4 | H161: 7.791751702
A162: Facelijos | B162: 14.0625 | C162: =Table3[[#This Row],[PAN typical, kg/ha]]/Table3[[#This Row],[Biomass typical, t/ha]]*Table3[[#This Row],[User biomass, t/ha]] ->  | D162: 160 | E162: =HLOOKUP(A:A,Tool!$C$29:$M$29,1,FALSE) ->  | F162: 2.05 | H162: 21.58388496
A163: Paprastosios šunažolės | B163: 17.30769231 | C163: =Table3[[#This Row],[PAN typical, kg/ha]]/Table3[[#This Row],[Biomass typical, t/ha]]*Table3[[#This Row],[User biomass, t/ha]] ->  | D163: 160 | E163: =HLOOKUP(A:A,Tool!$C$29:$M$29,1,FALSE) ->  | F163: 1.85 | H163: 11.54527055
A164: Sėjamosios ir netikšės avižos | B164: 17.30769231 | C164: =Table3[[#This Row],[PAN typical, kg/ha]]/Table3[[#This Row],[Biomass typical, t/ha]]*Table3[[#This Row],[User biomass, t/ha]] ->  | D164: 160 | E164: =HLOOKUP(A:A,Tool!$C$29:$M$29,1,FALSE) ->  | F164: 1.85 | H164: 11.54527055
A165: Grikiai | B165: 18.75 | C165: =Table3[[#This Row],[PAN typical, kg/ha]]/Table3[[#This Row],[Biomass typical, t/ha]]*Table3[[#This Row],[User biomass, t/ha]] ->  | D165: 160 | E165: =HLOOKUP(A:A,Tool!$C$29:$M$29,1,FALSE) ->  | F165: 1.85 | H165: 9.037800562
A166: Žieminiai (ruginiai) vikiai | B166: 10 | C166: =Table3[[#This Row],[PAN typical, kg/ha]]/Table3[[#This Row],[Biomass typical, t/ha]]*Table3[[#This Row],[User biomass, t/ha]] ->  | D166: 160 | E166: =HLOOKUP(A:A,Tool!$C$29:$M$29,1,FALSE) ->  | F166: 1.65 | H166: 36.59793083
A167: Sėjamieji žirniai | B167: 11.25 | C167: =Table3[[#This Row],[PAN typical, kg/ha]]/Table3[[#This Row],[Biomass typical, t/ha]]*Table3[[#This Row],[User biomass, t/ha]] ->  | D167: 160 | E167: =HLOOKUP(A:A,Tool!$C$29:$M$29,1,FALSE) ->  | F167: 1.85 | H167: 32.64975475
A168: Siauralapiai lubinai | B168: 11.25 | C168: =Table3[[#This Row],[PAN typical, kg/ha]]/Table3[[#This Row],[Biomass typical, t/ha]]*Table3[[#This Row],[User biomass, t/ha]] ->  | D168: 160 | E168: =HLOOKUP(A:A,Tool!$C$29:$M$29,1,FALSE) ->  | F168: 2.05 | H168: 36.17945797
A169: Pupos | B169: 10 | C169: =Table3[[#This Row],[PAN typical, kg/ha]]/Table3[[#This Row],[Biomass typical, t/ha]]*Table3[[#This Row],[User biomass, t/ha]] ->  | D169: 160 | E169: =HLOOKUP(A:A,Tool!$C$29:$M$29,1,FALSE) ->  | F169: 1.95 | H169: 43.25210008

Sheet Pivot-Pan release (hidden)
A1: Filter | B1: (Multiple Items)
A3: Average of PAN, kg/ha | B3: Column Labels
A4: Row Labels | B4: Aliejiniai ridikai
A5: 20 | B5: 9.812497212
A6: 40 | B6: 18.36034594
A7: 60 | B7: 25.28009921
A8: 80 | B8: 30.84532409
A9: 100 | B9: 35.31843865
A10: 120 | B10: 38.91355169
A11: 140 | B11: 41.80298557
A12: 160 | B12: 44.12525581

Sheet Questions (hidden)
A1: Klausimai
A3: Aušros ataskaitoje Cock's foot yra nurodomas kaip įsėlinis augalas, tuo tarpu Vaclovas nurodęs, kad tik posėlinis.
A4: Ar rodyti vieną sėjos normą, ar atskirai drilled ir broadcasted?
A5: Kaip rodyti įsėlinių augalų sėjos laiką. Toks pat kaip posėliniams tikriausiai netinka?
A6: Ar prie warnings prie miglinių augalų (avižų, svidrės ir šunažolės) reikia rašyti, kad gali konkuruoti dėl N su javais?
A7: Gal prie warningų reikėtų prirašyti, kad bastutinių tarpinių pasėlių pradinį augimą gali riboti azoto trūkumas
A8: Ar reikia kažkokių nurodymų dėl "termination"?
A9: Peržiūrėti ir papildyti rekomendacijas dėl sėjos. Gal rašyti, kad augalai geriau sudygsta sėti į skustą dirvą?
A10: žirniai, vikiai, lubinai ir kt.) gerai sudygsta tik tuomet kai yra įterptos 3-4 cm gylyje ir gerai padengtos dirvos sluoksniu, todėl pirma skutamos ražienos, vėliau sėjama eiline sėjamąja. Taip pat šias sėklas galima paskleisti trąšų barstytuvu ir jas įterpti ražienų skutimo metu.
A11: verta išberti startinę azoto trąšų normą (N 30 kg/ha)
A12: Įsėliniai: Į žieminius javus sėjama su ražieninėmis sėjamosiomis arba sėjamosiomis su specialiais noragėlių priedais, arba kartu su pasėlių akėčiomis sukomplektuotu sėjos aparatu.
A13: Auginant įsėlinius tarpinius pasėlius reikia žinoti, kad būtina parinkti javams su įsėliu tinkamus herbicidus, mažinti javų sėklos normą, naudoti mažesnes azoto trąšų normas.
